Workbook

Sheet Summary
B2: =Underwriting!B2 -> NORTH SYDNEY APT RENEWAL | R2: =UPPER(Underwriting!I2) -> 
B3: =Underwriting!E11&", "&Underwriting!I10 -> Sydney, NSW | R3: ="ANALYSIS START - "&UPPER(TEXT(Underwriting!E13,"MMM YYYY")) -> ANALYSIS START - SEP 2024
B4: INVESTMENT DESCRIPTION
B5: Address | F5: =Underwriting!E10&", "&Underwriting!E11&" "&Underwriting!I10 -> 123 Miller St, North Sydney, Sydney NSW | G5: STRENGTHS
B6: Homes | F6: =Units_BTR -> 280 | G6: [List strength #1]
B7: Lots | F7: =IF(Underwriting!I15=1,Underwriting!I15&" Bldg",Underwriting!I15&" Lots") -> 1 Bldg | G7: [List strength #2]
B8: Homes per Lot | E8: =Underwriting!I17 -> 280 | G8: [List strength #3]
G9: [List strength #4]
B10: ="NRA ("&Unit_Type&")" -> NRA (M2) | F10: =Units_SF_M2 -> 35900 | G10: [List strength #5]
B11: Land Area | F11: =Underwriting!E15 -> 1.2 | G11: [List strength #6]
B12: Parking Ratio | F12: =Underwriting!E19 -> 2 | G12: WEAKNESSES
B13: Analysis Start | E13: 1 | F13: =Underwriting!E13 -> 2024-09-01 | G13: [List Weakness #1]
B14: Construction Start | E14: 1 | F14: =Underwriting!E13 -> 2024-09-01 | G14: [List Weakness #2]
B15: Construction End | E15: =Timing_Construction_End -> 19 | F15: =INDEX(Underwriting!$R$94:$ES$94,1,MATCH(Timing_Construction_End,Underwriting!$R$93:$ES$93,0)) -> 2026-03-31 | G15: [List Weakness #3]
B16: 1st Home Delivered | E16: =Timing_Operation_Begin_Month -> 20 | F16: =INDEX(Underwriting!$R$94:$ES$94,1,MATCH(Timing_Operation_Begin_Month,Underwriting!$R$93:$ES$93,0)) -> 2026-04-30 | G16: [List Weakness #4]
B17: Stabilization | E17: =Stabilization_1st_Month -> 62 | F17: =INDEX(Underwriting!$R$94:$ES$94,1,MATCH(Stabilization_1st_Month,Underwriting!$R$93:$ES$93,0)) -> 2029-10-31 | G17: [List Weakness #5]
B18: Sale Date | E18: =Timing_Reversion_Month -> 84 | F18: =INDEX(Underwriting!$R$94:$ES$94,1,MATCH(Timing_Reversion_Month,Underwriting!$R$93:$ES$93,0)) -> 2031-08-31 | G18: [List Weakness #6]
A19: 1 | B19: PROPERTY-LEVEL CASH FLOW | P19: ANNUAL CASH FLOW REPORT: | Q19: Hide | R19: Show

Sheet Annual Cash Flow
B2: =Underwriting!B2 -> NORTH SYDNEY APT RENEWAL | R2: =UPPER(Underwriting!I2) -> 
B3: =Underwriting!E11&", "&Underwriting!I10 -> Sydney, NSW | R3: ="ANALYSIS START - "&UPPER(TEXT(Underwriting!E13,"mmm-yyyy")) -> ANALYSIS START - SEP-2024
B4: ANNUAL CASH FLOW | H4: =IF(H5="","",IF(EOMONTH(G6,12)>H6,"EXIT","")) ->  | I4: =IF(I5="","",IF(EOMONTH(H6,12)>I6,"EXIT","")) -> 
F5: Analysis Year | G5: 0 | H5: =IF(OR(G5="",G5=MAX($G$54:$EI$54)),"",G5+1) -> 1 | I5: 2 | J5: 3 | K5: 4 | L5: 5 | M5: 6 | N5: 7
F6: Period Ending | G6: =EOMONTH(Underwriting!E13,-1) -> 2024-08-31 | H6: =IF(H5="","",IF(I5="",MAX(Underwriting!$Q$209:$ES$209),EOMONTH(G6,12))) -> 2025-08-31 | I6: =IF(I5="","",IF(J5="",MAX(Underwriting!$Q$209:$ES$209),EOMONTH(H6,12))) -> 2026-08-31 | J6: =IF(J5="","",IF(K5="",MAX(Underwriting!$Q$209:$ES$209),EOMONTH(I6,12))) -> 2027-08-31 | K6: =IF(K5="","",IF(L5="",MAX(Underwriting!$Q$209:$ES$209),EOMONTH(J6,12))) -> 2028-08-31 | L6: =IF(L5="","",IF(M5="",MAX(Underwriting!$Q$209:$ES$209),EOMONTH(K6,12))) -> 2029-08-31 | M6: =IF(M5="","",IF(N5="",MAX(Underwriting!$Q$209:$ES$209),EOMONTH(L6,12))) -> 2030-08-31 | N6: =IF(N5="","",IF(O5="",MAX(Underwriting!$Q$209:$ES$209),EOMONTH(M6,12))) -> 2031-08-31 | O6: =IF(O5="","",IF(P5="",MAX(Underwriting!$Q$209:$ES$209),EOMONTH(N6,12))) ->  | P6: =IF(P5="","",IF(Q5="",MAX(Underwriting!$Q$209:$ES$209),EOMONTH(O6,12))) ->  | Q6: =IF(Q5="","",IF(R5="",MAX(Underwriting!$Q$209:$ES$209),EOMONTH(P6,12))) ->  | R6: =IF(R5="","",IF(S5="",MAX(Underwriting!$Q$209:$ES$209),EOMONTH(Q6,12))) -> 
B7: ANNUAL DEVELOPMENT CASH FLOWS
B8: =B56 -> Land Costs | G8: =IF(G$5="","",SUMIF($G$54:$EI$54,G$5,$G56:$EI56)) -> 42075500 | H8: 0 | I8: 0 | J8: 0 | K8: 0 | L8: 0 | M8: 0 | N8: 0
B9: =B57 -> Hard Costs (Horizontal) | G9: =IF(G$5="","",SUMIF($G$54:$EI$54,G$5,$G57:$EI57)) -> 0 | H9: =IF(H$5="","",SUMIF($G$54:$EI$54,H$5,$G57:$EI57)) -> 5936997.15 | I9: 0 | J9: 0 | K9: 0 | L9: 0 | M9: 0 | N9: 0
B10: Hard Costs (Vertical) | G10: =IF(G$5="","",SUMIF($G$54:$EI$54,G$5,$G58:$EI58)) -> 0 | H10: 2497908.994 | I10: 3468591.006 | J10: 0 | K10: 0 | L10: 0 | M10: 0 | N10: 0
B11: Soft Costs | G11: =IF(G$5="","",SUMIF($G$54:$EI$54,G$5,$G59:$EI59)) -> 0 | H11: 1512918.485 | I11: 1063689.68 | J11: 0 | K11: 0 | L11: 0 | M11: 0 | N11: 0
B12: TOTAL PROJECT COST BEFORE FINANCING | G12: =IF(G$5="","",SUMIF($G$54:$EI$54,G$5,$G60:$EI60)) -> 42075500 | H12: 9947824.629 | I12: 4532280.686 | J12: 0 | K12: 0 | L12: 0 | M12: 0 | N12: 0
B14: Carry Costs | G14: =IF(G$5="","",SUMIF($G$54:$EI$54,G$5,$G62:$EI62)) -> 120000 | H14: 429154.2349 | I14: 1462012.764 | J14: 1254696.356 | K14: 290521.4126 | L14: 0 | M14: 0 | N14: 0
B16: TOTAL PROJECT COST | G16: =IF(G$5="","",SUMIF($G$54:$EI$54,G$5,$G64:$EI64)) -> 42195500 | H16: 10376978.86 | I16: 5994293.45 | J16: 1254696.356 | K16: 290521.4126 | L16: 0 | M16: 0 | N16: 0
B18: SOURCES | G18: =IF(G$5="","",SUMIF($G$54:$EI$54,G$5,$G66:$EI66)) -> 42195500 | H18: 10376978.86 | I18: 5994293.45 | J18: 1254696.356 | K18: 290521.4126 | L18: 0 | M18: 0 | N18: 0
B19: USES | G19: =IF(G$5="","",SUMIF($G$54:$EI$54,G$5,$G67:$EI67)) -> 42195500 | H19: 10376978.86 | I19: 5994293.45 | J19: 1254696.356 | K19: 290521.4126 | L19: 0 | M19: 0 | N19: 0
B21: ANNUAL OPERATING CASH FLOWS
B22: Rental Income | G22: =IF(G$5="","",SUMIF($G$54:$EI$54,G$5,$G70:$EI70)) -> 0 | H22: 0 | I22: 105891.7582 | J22: 1002488.004 | K22: 2126482.053 | L22: 3339106.482 | M22: 4519646.646 | N22: 4736934.614
B23: Other Income | G23: =IF(G$5="","",SUMIF($G$54:$EI$54,G$5,$G71:$EI71)) -> 0 | H23: 0 | I23: 27000 | J23: 150444 | K23: 279789.12 | L23: 419241.1392 | M23: 517831.1424 | N23: 539491.9735
B24: Commercial Income (Net of Expenses) | G24: =IF(G$5="","",SUMIF($G$54:$EI$54,G$5,$G72:$EI72)) -> 0 | H24: 0 | I24: 0 | J24: 0 | K24: 0 | L24: 0 | M24: 0 | N24: 0
B25: TOTAL POTENTIAL INCOME | G25: =IF(G$5="","",SUMIF($G$54:$EI$54,G$5,$G73:$EI73)) -> 0 | H25: 0 | I25: 132891.7582 | J25: 1152932.004 | K25: 2406271.173 | L25: 3758347.621 | M25: 5037477.789 | N25: 5276426.587
B26: - General Vacancy and Credit Loss | G26: =IF(G$5="","",SUMIF($G$54:$EI$54,G$5,$G74:$EI74)) -> 0 | H26: 0 | I26: -7973.505495 | J26: -69175.92026 | K26: -144376.2704 | L26: -225500.8573 | M26: -302248.6673 | N26: -316585.5952
B27: EFFECTIVE GROSS REVENUE | G27: =IF(G$5="","",SUMIF($G$54:$EI$54,G$5,$G75:$EI75)) -> 0 | H27: 0 | I27: 124918.2527 | J27: 1083756.084 | K27: 2261894.902 | L27: 3532846.764 | M27: 4735229.121 | N27: 4959840.992
B29: OPERATING EXPENSES
B30: =Underwriting!B179 -> Repairs and Maintenance | G30: =IF(G$5="","",SUMIF($G$54:$EI$54,G$5,$G78:$EI78)) -> 0 | H30: 0 | I30: 58333.33333 | J30: 141750 | K30: 146002.5 | L30: 150382.575 | M30: 154894.0523 | N30: 159540.8738
B31: =Underwriting!B180 -> Payroll | G31: =IF(G$5="","",SUMIF($G$54:$EI$54,G$5,$G79:$EI79)) -> 0 | H31: 0 | I31: 81666.66667 | J31: 198450 | K31: 204403.5 | L31: 210535.605 | M31: 216851.6732 | N31: 223357.2233
B32: =Underwriting!B181 -> General & Administrative | G32: =IF(G$5="","",SUMIF($G$54:$EI$54,G$5,$G80:$EI80)) -> 0 | H32: 0 | I32: 27500 | J32: 70717.5 | K32: 78470.55 | L32: 86625.13725 | M32: 92895.45409 | N32: 95724.52429
B33: =Underwriting!B182 -> Marketing | G33: =IF(G$5="","",SUMIF($G$54:$EI$54,G$5,$G81:$EI81)) -> 0 | H33: 0 | I33: 29166.66667 | J33: 70875 | K33: 73001.25 | L33: 75191.2875 | M33: 77447.02613 | N33: 79770.43691
B34: =Underwriting!B183 -> Utilities | G34: =IF(G$5="","",SUMIF($G$54:$EI$54,G$5,$G82:$EI82)) -> 0 | H34: 0 | I34: 16666.66667 | J34: 46987.5 | K34: 57783 | L34: 69183.94125 | M34: 77378.73069 | N34: 79770.43691
B35: =Underwriting!B184 -> Contract Services | G35: =IF(G$5="","",SUMIF($G$54:$EI$54,G$5,$G83:$EI83)) -> 0 | H35: 0 | I35: 36666.66667 | J35: 94290 | K35: 104627.4 | L35: 115500.183 | M35: 123860.6055 | N35: 127632.6991
B36: =Underwriting!B185 -> Capital Reserves | G36: =IF(G$5="","",SUMIF($G$54:$EI$54,G$5,$G84:$EI84)) -> 0 | H36: 0 | I36: 23333.33333 | J36: 56700 | K36: 58401 | L36: 60153.03 | M36: 61957.6209 | N36: 63816.34953
B37: =Underwriting!B186 -> Management Fee | G37: =IF(G$5="","",SUMIF($G$54:$EI$54,G$5,$G85:$EI85)) -> 0 | H37: 0 | I37: 3747.547582 | J37: 32512.68252 | K37: 67856.84707 | L37: 105985.4029 | M37: 142056.8736 | N37: 148795.2298
B38: =Underwriting!B187 -> Insurance | G38: =IF(G$5="","",SUMIF($G$54:$EI$54,G$5,$G86:$EI86)) -> 0 | H38: 0 | I38: 18750 | J38: 45562.5 | K38: 46929.375 | L38: 48337.25625 | M38: 49787.37394 | N38: 51280.99516
B39: =Underwriting!B188 -> Property Taxes | G39: =IF(G$5="","",SUMIF($G$54:$EI$54,G$5,$G87:$EI87)) -> 0 | H39: 0 | I39: 10156.25 | J39: 29910.15625 | K39: 43517.5 | L39: 52365.36094 | M39: 53936.32177 | N39: 55554.41142
B40: TOTAL OPERATING EXPENSES | G40: =IF(G$5="","",SUMIF($G$54:$EI$54,G$5,$G88:$EI88)) -> 0 | H40: 0 | I40: 305987.1309 | J40: 787755.3388 | K40: 880992.9221 | L40: 974259.7791 | M40: 1051065.732 | N40: 1085243.18
B42: NET OPERATING INCOME | G42: =IF(G$5="","",SUMIF($G$54:$EI$54,G$5,$G90:$EI90)) -> 0 | H42: 0 | I42: -181068.8782 | J42: 296000.7454 | K42: 1380901.98 | L42: 2558586.985 | M42: 3684163.389 | N42: 3874597.812
B44: CAPITAL EXPENDITURES | G44: =IF(G$5="","",SUMIF($G$54:$EI$54,G$5,$G92:$EI92)) -> 0 | H44: 0 | I44: 1488.095238 | J44: 8250 | K44: 15201.69643 | L44: 22563.06964 | M44: 27610.86973 | N44: 28489.44175
B46: CASH FLOW FROM OPERATIONS | G46: =IF(G$5="","",SUMIF($G$54:$EI$54,G$5,$G94:$EI94)) -> 0 | H46: 0 | I46: -182556.9734 | J46: 287750.7454 | K46: 1365700.284 | L46: 2536023.915 | M46: 3656552.52 | N46: 3846108.37
B48: ANNUAL PROPERTY-LEVEL CASH FLOWS
B50: Net Unlevered Cash Flow | G50: =IF(G$5="","",SUMIF($G$54:$EI$54,G$5,$G98:$EI98)) -> -42075500 | H50: -9947824.629 | I50: -4714837.659 | J50: 287750.7454 | K50: 1365700.284 | L50: 2536023.915 | M50: 3656552.52 | N50: 79345828.48
B51: Net Levered Cash Flow | G51: =IF(G$5="","",SUMIF($G$54:$EI$54,G$5,$G99:$EI99)) -> -42078206.96 | H51: 0 | I51: -1.571606845e-09 | J51: -5.798028724e-12 | K51: 40849.63199 | L51: 912983.434 | M51: 2033512.038 | N51: 59689004.88
F54: Analysis Year | G54: =IF(G55="","",Underwriting!Q2) -> 0 | H54: =IF(H55="","",Underwriting!R2) -> 1 | I54: =IF(I55="","",Underwriting!S2) -> 1 | J54: =IF(J55="","",Underwriting!T2) -> 1 | K54: =IF(K55="","",Underwriting!U2) -> 1 | L54: =IF(L55="","",Underwriting!V2) -> 1 | M54: =IF(M55="","",Underwriting!W2) -> 1 | N54: =IF(N55="","",Underwriting!X2) -> 1 | O54: =IF(O55="","",Underwriting!Y2) -> 1 | P54: =IF(P55="","",Underwriting!Z2) -> 1 | Q54: =IF(Q55="","",Underwriting!AA2) -> 1 | R54: =IF(R55="","",Underwriting!AB2) -> 1 | S54: =IF(S55="","",Underwriting!AC2) -> 1 | T54: =IF(T55="","",Underwriting!AD2) -> 2 | U54: =IF(U55="","",Underwriting!AE2) -> 2 | V54: =IF(V55="","",Underwriting!AF2) -> 2 | W54: =IF(W55="","",Underwriting!AG2) -> 2 | X54: =IF(X55="","",Underwriting!AH2) -> 2 | Y54: =IF(Y55="","",Underwriting!AI2) -> 2 | Z54: =IF(Z55="","",Underwriting!AJ2) -> 2 | AA54: =IF(AA55="","",Underwriting!AK2) -> 2 | AB54: =IF(AB55="","",Underwriting!AL2) -> 2 | AC54: =IF(AC55="","",Underwriting!AM2) -> 2 | AD54: =IF(AD55="","",Underwriting!AN2) -> 2 | AE54: =IF(AE55="","",Underwriting!AO2) -> 2 | AF54: =IF(AF55="","",Underwriting!AP2) -> 3 | AG54: =IF(AG55="","",Underwriting!AQ2) -> 3 | AH54: =IF(AH55="","",Underwriting!AR2) -> 3 | AI54: =IF(AI55="","",Underwriting!AS2) -> 3 | AJ54: =IF(AJ55="","",Underwriting!AT2) -> 3 | AK54: =IF(AK55="","",Underwriting!AU2) -> 3 | AL54: =IF(AL55="","",Underwriting!AV2) -> 3 | AM54: =IF(AM55="","",Underwriting!AW2) -> 3 | AN54: =IF(AN55="","",Underwriting!AX2) -> 3 | AO54: =IF(AO55="","",Underwriting!AY2) -> 3 | AP54: =IF(AP55="","",Underwriting!AZ2) -> 3 | AQ54: =IF(AQ55="","",Underwriting!BA2) -> 3 | AR54: =IF(AR55="","",Underwriting!BB2) -> 4 | AS54: =IF(AS55="","",Underwriting!BC2) -> 4 | AT54: =IF(AT55="","",Underwriting!BD2) -> 4 | AU54: =IF(AU55="","",Underwriting!BE2) -> 4 | AV54: =IF(AV55="","",Underwriting!BF2) -> 4 | AW54: =IF(AW55="","",Underwriting!BG2) -> 4 | AX54: =IF(AX55="","",Underwriting!BH2) -> 4 | AY54: =IF(AY55="","",Underwriting!BI2) -> 4 | AZ54: =IF(AZ55="","",Underwriting!BJ2) -> 4 | BA54: =IF(BA55="","",Underwriting!BK2) -> 4 | BB54: =IF(BB55="","",Underwriting!BL2) -> 4 | BC54: =IF(BC55="","",Underwriting!BM2) -> 4 | BD54: =IF(BD55="","",Underwriting!BN2) -> 5 | BE54: =IF(BE55="","",Underwriting!BO2) -> 5 | BF54: =IF(BF55="","",Underwriting!BP2) -> 5 | BG54: =IF(BG55="","",Underwriting!BQ2) -> 5 | BH54: =IF(BH55="","",Underwriting!BR2) -> 5 | BI54: =IF(BI55="","",Underwriting!BS2) -> 5 | BJ54: =IF(BJ55="","",Underwriting!BT2) -> 5 | BK54: =IF(BK55="","",Underwriting!BU2) -> 5 | BL54: =IF(BL55="","",Underwriting!BV2) -> 5 | BM54: =IF(BM55="","",Underwriting!BW2) -> 5 | BN54: =IF(BN55="","",Underwriting!BX2) -> 5 | BO54: =IF(BO55="","",Underwriting!BY2) -> 5 | BP54: =IF(BP55="","",Underwriting!BZ2) -> 6 | BQ54: =IF(BQ55="","",Underwriting!CA2) -> 6 | BR54: =IF(BR55="","",Underwriting!CB2) -> 6 | BS54: =IF(BS55="","",Underwriting!CC2) -> 6 | BT54: =IF(BT55="","",Underwriting!CD2) -> 6 | BU54: =IF(BU55="","",Underwriting!CE2) -> 6 | BV54: =IF(BV55="","",Underwriting!CF2) -> 6 | BW54: =IF(BW55="","",Underwriting!CG2) -> 6 | BX54: =IF(BX55="","",Underwriting!CH2) -> 6 | BY54: =IF(BY55="","",Underwriting!CI2) -> 6 | BZ54: =IF(BZ55="","",Underwriting!CJ2) -> 6 | CA54: =IF(CA55="","",Underwriting!CK2) -> 6 | CB54: =IF(CB55="","",Underwriting!CL2) -> 7 | CC54: =IF(CC55="","",Underwriting!CM2) -> 7 | CD54: =IF(CD55="","",Underwriting!CN2) -> 7 | CE54: =IF(CE55="","",Underwriting!CO2) -> 7 | CF54: =IF(CF55="","",Underwriting!CP2) -> 7 | CG54: =IF(CG55="","",Underwriting!CQ2) -> 7 | CH54: =IF(CH55="","",Underwriting!CR2) -> 7 | CI54: =IF(CI55="","",Underwriting!CS2) -> 7 | CJ54: =IF(CJ55="","",Underwriting!CT2) -> 7 | CK54: =IF(CK55="","",Underwriting!CU2) -> 7 | CL54: =IF(CL55="","",Underwriting!CV2) -> 7 | CM54: =IF(CM55="","",Underwriting!CW2) -> 7 | CN54: =IF(CN55="","",Underwriting!CX2) ->  | CO54: =IF(CO55="","",Underwriting!CY2) ->  | CP54: =IF(CP55="","",Underwriting!CZ2) ->  | CQ54: =IF(CQ55="","",Underwriting!DA2) ->  | CR54: =IF(CR55="","",Underwriting!DB2) ->  | CS54: =IF(CS55="","",Underwriting!DC2) ->  | CT54: =IF(CT55="","",Underwriting!DD2) ->  | CU54: =IF(CU55="","",Underwriting!DE2) ->  | CV54: =IF(CV55="","",Underwriting!DF2) ->  | CW54: =IF(CW55="","",Underwriting!DG2) ->  | CX54: =IF(CX55="","",Underwriting!DH2) ->  | CY54: =IF(CY55="","",Underwriting!DI2) ->  | CZ54: =IF(CZ55="","",Underwriting!DJ2) ->  | DA54: =IF(DA55="","",Underwriting!DK2) ->  | DB54: =IF(DB55="","",Underwriting!DL2) ->  | DC54: =IF(DC55="","",Underwriting!DM2) ->  | DD54: =IF(DD55="","",Underwriting!DN2) ->  | DE54: =IF(DE55="","",Underwriting!DO2) ->  | DF54: =IF(DF55="","",Underwriting!DP2) ->  | DG54: =IF(DG55="","",Underwriting!DQ2) ->  | DH54: =IF(DH55="","",Underwriting!DR2) ->  | DI54: =IF(DI55="","",Underwriting!DS2) ->  | DJ54: =IF(DJ55="","",Underwriting!DT2) ->  | DK54: =IF(DK55="","",Underwriting!DU2) ->  | DL54: =IF(DL55="","",Underwriting!DV2) ->  | DM54: =IF(DM55="","",Underwriting!DW2) ->  | DN54: =IF(DN55="","",Underwriting!DX2) ->  | DO54: =IF(DO55="","",Underwriting!DY2) ->  | DP54: =IF(DP55="","",Underwriting!DZ2) ->  | DQ54: =IF(DQ55="","",Underwriting!EA2) ->  | DR54: =IF(DR55="","",Underwriting!EB2) ->  | DS54: =IF(DS55="","",Underwriting!EC2) ->  | DT54: =IF(DT55="","",Underwriting!ED2) ->  | DU54: =IF(DU55="","",Underwriting!EE2) ->  | DV54: =IF(DV55="","",Underwriting!EF2) ->  | DW54: =IF(DW55="","",Underwriting!EG2) ->  | DX54: =IF(DX55="","",Underwriting!EH2) ->  | DY54: =IF(DY55="","",Underwriting!EI2) ->  | DZ54: =IF(DZ55="","",Underwriting!EJ2) ->  | EA54: =IF(EA55="","",Underwriting!EK2) ->  | EB54: =IF(EB55="","",Underwriting!EL2) ->  | EC54: =IF(EC55="","",Underwriting!EM2) ->  | ED54: =IF(ED55="","",Underwriting!EN2) ->  | EE54: =IF(EE55="","",Underwriting!EO2) ->  | EF54: =IF(EF55="","",Underwriting!EP2) ->  | EG54: =IF(EG55="","",Underwriting!EQ2) ->  | EH54: =IF(EH55="","",Underwriting!ER2) ->  | EI54: =IF(EI55="","",Underwriting!ES2) -> 
B55: MONTHLY DEVELOPMENT CASH FLOWS | G55: =Underwriting!Q208 -> 0 | H55: =Underwriting!R208 -> 1 | I55: =Underwriting!S208 -> 2 | J55: =Underwriting!T208 -> 3 | K55: =Underwriting!U208 -> 4 | L55: =Underwriting!V208 -> 5 | M55: =Underwriting!W208 -> 6 | N55: =Underwriting!X208 -> 7 | O55: =Underwriting!Y208 -> 8 | P55: =Underwriting!Z208 -> 9 | Q55: =Underwriting!AA208 -> 10 | R55: =Underwriting!AB208 -> 11 | S55: =Underwriting!AC208 -> 12 | T55: =Underwriting!AD208 -> 13 | U55: =Underwriting!AE208 -> 14 | V55: =Underwriting!AF208 -> 15 | W55: =Underwriting!AG208 -> 16 | X55: =Underwriting!AH208 -> 17 | Y55: =Underwriting!AI208 -> 18 | Z55: =Underwriting!AJ208 -> 19 | AA55: =Underwriting!AK208 -> 20 | AB55: =Underwriting!AL208 -> 21 | AC55: =Underwriting!AM208 -> 22 | AD55: =Underwriting!AN208 -> 23 | AE55: =Underwriting!AO208 -> 24 | AF55: =Underwriting!AP208 -> 25 | AG55: =Underwriting!AQ208 -> 26 | AH55: =Underwriting!AR208 -> 27 | AI55: =Underwriting!AS208 -> 28 | AJ55: =Underwriting!AT208 -> 29 | AK55: =Underwriting!AU208 -> 30 | AL55: =Underwriting!AV208 -> 31 | AM55: =Underwriting!AW208 -> 32 | AN55: =Underwriting!AX208 -> 33 | AO55: =Underwriting!AY208 -> 34 | AP55: =Underwriting!AZ208 -> 35 | AQ55: =Underwriting!BA208 -> 36 | AR55: =Underwriting!BB208 -> 37 | AS55: =Underwriting!BC208 -> 38 | AT55: =Underwriting!BD208 -> 39 | AU55: =Underwriting!BE208 -> 40 | AV55: =Underwriting!BF208 -> 41 | AW55: =Underwriting!BG208 -> 42 | AX55: =Underwriting!BH208 -> 43 | AY55: =Underwriting!BI208 -> 44 | AZ55: =Underwriting!BJ208 -> 45 | BA55: =Underwriting!BK208 -> 46 | BB55: =Underwriting!BL208 -> 47 | BC55: =Underwriting!BM208 -> 48 | BD55: =Underwriting!BN208 -> 49 | BE55: =Underwriting!BO208 -> 50 | BF55: =Underwriting!BP208 -> 51 | BG55: =Underwriting!BQ208 -> 52 | BH55: =Underwriting!BR208 -> 53 | BI55: =Underwriting!BS208 -> 54 | BJ55: =Underwriting!BT208 -> 55 | BK55: =Underwriting!BU208 -> 56 | BL55: =Underwriting!BV208 -> 57 | BM55: =Underwriting!BW208 -> 58 | BN55: =Underwriting!BX208 -> 59 | BO55: =Underwriting!BY208 -> 60 | BP55: =Underwriting!BZ208 -> 61 | BQ55: =Underwriting!CA208 -> 62 | BR55: =Underwriting!CB208 -> 63 | BS55: =Underwriting!CC208 -> 64 | BT55: =Underwriting!CD208 -> 65 | BU55: =Underwriting!CE208 -> 66 | BV55: =Underwriting!CF208 -> 67 | BW55: =Underwriting!CG208 -> 68 | BX55: =Underwriting!CH208 -> 69 | BY55: =Underwriting!CI208 -> 70 | BZ55: =Underwriting!CJ208 -> 71 | CA55: =Underwriting!CK208 -> 72 | CB55: =Underwriting!CL208 -> 73 | CC55: =Underwriting!CM208 -> 74 | CD55: =Underwriting!CN208 -> 75 | CE55: =Underwriting!CO208 -> 76 | CF55: =Underwriting!CP208 -> 77 | CG55: =Underwriting!CQ208 -> 78 | CH55: =Underwriting!CR208 -> 79 | CI55: =Underwriting!CS208 -> 80 | CJ55: =Underwriting!CT208 -> 81 | CK55: =Underwriting!CU208 -> 82 | CL55: =Underwriting!CV208 -> 83 | CM55: =Underwriting!CW208 -> 84 | CN55: =Underwriting!CX208 ->  | CO55: =Underwriting!CY208 ->  | CP55: =Underwriting!CZ208 ->  | CQ55: =Underwriting!DA208 ->  | CR55: =Underwriting!DB208 ->  | CS55: =Underwriting!DC208 ->  | CT55: =Underwriting!DD208 ->  | CU55: =Underwriting!DE208 ->  | CV55: =Underwriting!DF208 ->  | CW55: =Underwriting!DG208 ->  | CX55: =Underwriting!DH208 ->  | CY55: =Underwriting!DI208 ->  | CZ55: =Underwriting!DJ208 ->  | DA55: =Underwriting!DK208 ->  | DB55: =Underwriting!DL208 ->  | DC55: =Underwriting!DM208 ->  | DD55: =Underwriting!DN208 ->  | DE55: =Underwriting!DO208 ->  | DF55: =Underwriting!DP208 ->  | DG55: =Underwriting!DQ208 ->  | DH55: =Underwriting!DR208 ->  | DI55: =Underwriting!DS208 ->  | DJ55: =Underwriting!DT208 ->  | DK55: =Underwriting!DU208 ->  | DL55: =Underwriting!DV208 ->  | DM55: =Underwriting!DW208 ->  | DN55: =Underwriting!DX208 ->  | DO55: =Underwriting!DY208 ->  | DP55: =Underwriting!DZ208 ->  | DQ55: =Underwriting!EA208 ->  | DR55: =Underwriting!EB208 ->  | DS55: =Underwriting!EC208 ->  | DT55: =Underwriting!ED208 ->  | DU55: =Underwriting!EE208 ->  | DV55: =Underwriting!EF208 ->  | DW55: =Underwriting!EG208 ->  | DX55: =Underwriting!EH208 ->  | DY55: =Underwriting!EI208 ->  | DZ55: =Underwriting!EJ208 ->  | EA55: =Underwriting!EK208 ->  | EB55: =Underwriting!EL208 ->  | EC55: =Underwriting!EM208 ->  | ED55: =Underwriting!EN208 ->  | EE55: =Underwriting!EO208 ->  | EF55: =Underwriting!EP208 ->  | EG55: =Underwriting!EQ208 ->  | EH55: =Underwriting!ER208 ->  | EI55: =Underwriting!ES208 -> 
B56: Land Costs | G56: =IF(G$55="","",Underwriting!Q28) -> 42075500 | H56: =IF(H$55="","",Underwriting!R28) -> 0 | I56: =IF(I$55="","",Underwriting!S28) -> 0 | J56: =IF(J$55="","",Underwriting!T28) -> 0 | K56: =IF(K$55="","",Underwriting!U28) -> 0 | L56: =IF(L$55="","",Underwriting!V28) -> 0 | M56: =IF(M$55="","",Underwriting!W28) -> 0 | N56: =IF(N$55="","",Underwriting!X28) -> 0 | O56: =IF(O$55="","",Underwriting!Y28) -> 0 | P56: =IF(P$55="","",Underwriting!Z28) -> 0 | Q56: =IF(Q$55="","",Underwriting!AA28) -> 0 | R56: =IF(R$55="","",Underwriting!AB28) -> 0 | S56: =IF(S$55="","",Underwriting!AC28) -> 0 | T56: =IF(T$55="","",Underwriting!AD28) -> 0 | U56: =IF(U$55="","",Underwriting!AE28) -> 0 | V56: =IF(V$55="","",Underwriting!AF28) -> 0 | W56: =IF(W$55="","",Underwriting!AG28) -> 0 | X56: =IF(X$55="","",Underwriting!AH28) -> 0 | Y56: =IF(Y$55="","",Underwriting!AI28) -> 0 | Z56: =IF(Z$55="","",Underwriting!AJ28) -> 0 | AA56: =IF(AA$55="","",Underwriting!AK28) -> 0 | AB56: =IF(AB$55="","",Underwriting!AL28) -> 0 | AC56: =IF(AC$55="","",Underwriting!AM28) -> 0 | AD56: =IF(AD$55="","",Underwriting!AN28) -> 0 | AE56: =IF(AE$55="","",Underwriting!AO28) -> 0 | AF56: =IF(AF$55="","",Underwriting!AP28) -> 0 | AG56: =IF(AG$55="","",Underwriting!AQ28) -> 0 | AH56: =IF(AH$55="","",Underwriting!AR28) -> 0 | AI56: =IF(AI$55="","",Underwriting!AS28) -> 0 | AJ56: =IF(AJ$55="","",Underwriting!AT28) -> 0 | AK56: =IF(AK$55="","",Underwriting!AU28) -> 0 | AL56: =IF(AL$55="","",Underwriting!AV28) -> 0 | AM56: =IF(AM$55="","",Underwriting!AW28) -> 0 | AN56: =IF(AN$55="","",Underwriting!AX28) -> 0 | AO56: =IF(AO$55="","",Underwriting!AY28) -> 0 | AP56: =IF(AP$55="","",Underwriting!AZ28) -> 0 | AQ56: =IF(AQ$55="","",Underwriting!BA28) -> 0 | AR56: =IF(AR$55="","",Underwriting!BB28) -> 0 | AS56: =IF(AS$55="","",Underwriting!BC28) -> 0 | AT56: =IF(AT$55="","",Underwriting!BD28) -> 0 | AU56: =IF(AU$55="","",Underwriting!BE28) -> 0 | AV56: =IF(AV$55="","",Underwriting!BF28) -> 0 | AW56: =IF(AW$55="","",Underwriting!BG28) -> 0 | AX56: =IF(AX$55="","",Underwriting!BH28) -> 0 | AY56: =IF(AY$55="","",Underwriting!BI28) -> 0 | AZ56: =IF(AZ$55="","",Underwriting!BJ28) -> 0 | BA56: =IF(BA$55="","",Underwriting!BK28) -> 0 | BB56: =IF(BB$55="","",Underwriting!BL28) -> 0 | BC56: =IF(BC$55="","",Underwriting!BM28) -> 0 | BD56: =IF(BD$55="","",Underwriting!BN28) -> 0 | BE56: =IF(BE$55="","",Underwriting!BO28) -> 0 | BF56: =IF(BF$55="","",Underwriting!BP28) -> 0 | BG56: =IF(BG$55="","",Underwriting!BQ28) -> 0 | BH56: =IF(BH$55="","",Underwriting!BR28) -> 0 | BI56: =IF(BI$55="","",Underwriting!BS28) -> 0 | BJ56: =IF(BJ$55="","",Underwriting!BT28) -> 0 | BK56: =IF(BK$55="","",Underwriting!BU28) -> 0 | BL56: =IF(BL$55="","",Underwriting!BV28) -> 0 | BM56: =IF(BM$55="","",Underwriting!BW28) -> 0 | BN56: =IF(BN$55="","",Underwriting!BX28) -> 0 | BO56: =IF(BO$55="","",Underwriting!BY28) -> 0 | BP56: =IF(BP$55="","",Underwriting!BZ28) -> 0 | BQ56: =IF(BQ$55="","",Underwriting!CA28) -> 0 | BR56: =IF(BR$55="","",Underwriting!CB28) -> 0 | BS56: =IF(BS$55="","",Underwriting!CC28) -> 0 | BT56: =IF(BT$55="","",Underwriting!CD28) -> 0 | BU56: =IF(BU$55="","",Underwriting!CE28) -> 0 | BV56: =IF(BV$55="","",Underwriting!CF28) -> 0 | BW56: =IF(BW$55="","",Underwriting!CG28) -> 0 | BX56: =IF(BX$55="","",Underwriting!CH28) -> 0 | BY56: =IF(BY$55="","",Underwriting!CI28) -> 0 | BZ56: =IF(BZ$55="","",Underwriting!CJ28) -> 0 | CA56: =IF(CA$55="","",Underwriting!CK28) -> 0 | CB56: =IF(CB$55="","",Underwriting!CL28) -> 0 | CC56: =IF(CC$55="","",Underwriting!CM28) -> 0 | CD56: =IF(CD$55="","",Underwriting!CN28) -> 0 | CE56: =IF(CE$55="","",Underwriting!CO28) -> 0 | CF56: =IF(CF$55="","",Underwriting!CP28) -> 0 | CG56: =IF(CG$55="","",Underwriting!CQ28) -> 0 | CH56: =IF(CH$55="","",Underwriting!CR28) -> 0 | CI56: =IF(CI$55="","",Underwriting!CS28) -> 0 | CJ56: =IF(CJ$55="","",Underwriting!CT28) -> 0 | CK56: =IF(CK$55="","",Underwriting!CU28) -> 0 | CL56: =IF(CL$55="","",Underwriting!CV28) -> 0 | CM56: =IF(CM$55="","",Underwriting!CW28) -> 0 | CN56: =IF(CN$55="","",Underwriting!CX28) ->  | CO56: =IF(CO$55="","",Underwriting!CY28) ->  | CP56: =IF(CP$55="","",Underwriting!CZ28) ->  | CQ56: =IF(CQ$55="","",Underwriting!DA28) ->  | CR56: =IF(CR$55="","",Underwriting!DB28) ->  | CS56: =IF(CS$55="","",Underwriting!DC28) ->  | CT56: =IF(CT$55="","",Underwriting!DD28) ->  | CU56: =IF(CU$55="","",Underwriting!DE28) ->  | CV56: =IF(CV$55="","",Underwriting!DF28) ->  | CW56: =IF(CW$55="","",Underwriting!DG28) ->  | CX56: =IF(CX$55="","",Underwriting!DH28) ->  | CY56: =IF(CY$55="","",Underwriting!DI28) ->  | CZ56: =IF(CZ$55="","",Underwriting!DJ28) ->  | DA56: =IF(DA$55="","",Underwriting!DK28) ->  | DB56: =IF(DB$55="","",Underwriting!DL28) ->  | DC56: =IF(DC$55="","",Underwriting!DM28) ->  | DD56: =IF(DD$55="","",Underwriting!DN28) ->  | DE56: =IF(DE$55="","",Underwriting!DO28) ->  | DF56: =IF(DF$55="","",Underwriting!DP28) ->  | DG56: =IF(DG$55="","",Underwriting!DQ28) ->  | DH56: =IF(DH$55="","",Underwriting!DR28) ->  | DI56: =IF(DI$55="","",Underwriting!DS28) ->  | DJ56: =IF(DJ$55="","",Underwriting!DT28) ->  | DK56: =IF(DK$55="","",Underwriting!DU28) ->  | DL56: =IF(DL$55="","",Underwriting!DV28) ->  | DM56: =IF(DM$55="","",Underwriting!DW28) ->  | DN56: =IF(DN$55="","",Underwriting!DX28) ->  | DO56: =IF(DO$55="","",Underwriting!DY28) ->  | DP56: =IF(DP$55="","",Underwriting!DZ28) ->  | DQ56: =IF(DQ$55="","",Underwriting!EA28) ->  | DR56: =IF(DR$55="","",Underwriting!EB28) ->  | DS56: =IF(DS$55="","",Underwriting!EC28) ->  | DT56: =IF(DT$55="","",Underwriting!ED28) ->  | DU56: =IF(DU$55="","",Underwriting!EE28) ->  | DV56: =IF(DV$55="","",Underwriting!EF28) ->  | DW56: =IF(DW$55="","",Underwriting!EG28) ->  | DX56: =IF(DX$55="","",Underwriting!EH28) ->  | DY56: =IF(DY$55="","",Underwriting!EI28) ->  | DZ56: =IF(DZ$55="","",Underwriting!EJ28) ->  | EA56: =IF(EA$55="","",Underwriting!EK28) ->  | EB56: =IF(EB$55="","",Underwriting!EL28) ->  | EC56: =IF(EC$55="","",Underwriting!EM28) ->  | ED56: =IF(ED$55="","",Underwriting!EN28) ->  | EE56: =IF(EE$55="","",Underwriting!EO28) ->  | EF56: =IF(EF$55="","",Underwriting!EP28) ->  | EG56: =IF(EG$55="","",Underwriting!EQ28) ->  | EH56: =IF(EH$55="","",Underwriting!ER28) ->  | EI56: =IF(EI$55="","",Underwriting!ES28) -> 
B57: Hard Costs (Horizontal) | G57: =IF(G$55="","",Underwriting!Q35) -> 0 | H57: =IF(H$55="","",Underwriting!R35) -> 55469.04245 | I57: =IF(I$55="","",Underwriting!S35) -> 278415.6434 | J57: =IF(J$55="","",Underwriting!T35) -> 855598.5419 | K57: =IF(K$55="","",Underwriting!U35) -> 1434807.244 | L57: =IF(L$55="","",Underwriting!V35) -> 1434807.244 | M57: =IF(M$55="","",Underwriting!W35) -> 892829.9107 | N57: =IF(N$55="","",Underwriting!X35) -> 565198.5104 | O57: =IF(O$55="","",Underwriting!Y35) -> 342251.9094 | P57: =IF(P$55="","",Underwriting!Z35) -> 77619.10445 | Q57: =IF(Q$55="","",Underwriting!AA35) -> 0 | R57: =IF(R$55="","",Underwriting!AB35) -> 0 | S57: =IF(S$55="","",Underwriting!AC35) -> 0 | T57: =IF(T$55="","",Underwriting!AD35) -> 0 | U57: =IF(U$55="","",Underwriting!AE35) -> 0 | V57: =IF(V$55="","",Underwriting!AF35) -> 0 | W57: =IF(W$55="","",Underwriting!AG35) -> 0 | X57: =IF(X$55="","",Underwriting!AH35) -> 0 | Y57: =IF(Y$55="","",Underwriting!AI35) -> 0 | Z57: =IF(Z$55="","",Underwriting!AJ35) -> 0 | AA57: =IF(AA$55="","",Underwriting!AK35) -> 0 | AB57: =IF(AB$55="","",Underwriting!AL35) -> 0 | AC57: =IF(AC$55="","",Underwriting!AM35) -> 0 | AD57: =IF(AD$55="","",Underwriting!AN35) -> 0 | AE57: =IF(AE$55="","",Underwriting!AO35) -> 0 | AF57: =IF(AF$55="","",Underwriting!AP35) -> 0 | AG57: =IF(AG$55="","",Underwriting!AQ35) -> 0 | AH57: =IF(AH$55="","",Underwriting!AR35) -> 0 | AI57: =IF(AI$55="","",Underwriting!AS35) -> 0 | AJ57: =IF(AJ$55="","",Underwriting!AT35) -> 0 | AK57: =IF(AK$55="","",Underwriting!AU35) -> 0 | AL57: =IF(AL$55="","",Underwriting!AV35) -> 0 | AM57: =IF(AM$55="","",Underwriting!AW35) -> 0 | AN57: =IF(AN$55="","",Underwriting!AX35) -> 0 | AO57: =IF(AO$55="","",Underwriting!AY35) -> 0 | AP57: =IF(AP$55="","",Underwriting!AZ35) -> 0 | AQ57: =IF(AQ$55="","",Underwriting!BA35) -> 0 | AR57: =IF(AR$55="","",Underwriting!BB35) -> 0 | AS57: =IF(AS$55="","",Underwriting!BC35) -> 0 | AT57: =IF(AT$55="","",Underwriting!BD35) -> 0 | AU57: =IF(AU$55="","",Underwriting!BE35) -> 0 | AV57: =IF(AV$55="","",Underwriting!BF35) -> 0 | AW57: =IF(AW$55="","",Underwriting!BG35) -> 0 | AX57: =IF(AX$55="","",Underwriting!BH35) -> 0 | AY57: =IF(AY$55="","",Underwriting!BI35) -> 0 | AZ57: =IF(AZ$55="","",Underwriting!BJ35) -> 0 | BA57: =IF(BA$55="","",Underwriting!BK35) -> 0 | BB57: =IF(BB$55="","",Underwriting!BL35) -> 0 | BC57: =IF(BC$55="","",Underwriting!BM35) -> 0 | BD57: =IF(BD$55="","",Underwriting!BN35) -> 0 | BE57: =IF(BE$55="","",Underwriting!BO35) -> 0 | BF57: =IF(BF$55="","",Underwriting!BP35) -> 0 | BG57: =IF(BG$55="","",Underwriting!BQ35) -> 0 | BH57: =IF(BH$55="","",Underwriting!BR35) -> 0 | BI57: =IF(BI$55="","",Underwriting!BS35) -> 0 | BJ57: =IF(BJ$55="","",Underwriting!BT35) -> 0 | BK57: =IF(BK$55="","",Underwriting!BU35) -> 0 | BL57: =IF(BL$55="","",Underwriting!BV35) -> 0 | BM57: =IF(BM$55="","",Underwriting!BW35) -> 0 | BN57: =IF(BN$55="","",Underwriting!BX35) -> 0 | BO57: =IF(BO$55="","",Underwriting!BY35) -> 0 | BP57: =IF(BP$55="","",Underwriting!BZ35) -> 0 | BQ57: =IF(BQ$55="","",Underwriting!CA35) -> 0 | BR57: =IF(BR$55="","",Underwriting!CB35) -> 0 | BS57: =IF(BS$55="","",Underwriting!CC35) -> 0 | BT57: =IF(BT$55="","",Underwriting!CD35) -> 0 | BU57: =IF(BU$55="","",Underwriting!CE35) -> 0 | BV57: =IF(BV$55="","",Underwriting!CF35) -> 0 | BW57: =IF(BW$55="","",Underwriting!CG35) -> 0 | BX57: =IF(BX$55="","",Underwriting!CH35) -> 0 | BY57: =IF(BY$55="","",Underwriting!CI35) -> 0 | BZ57: =IF(BZ$55="","",Underwriting!CJ35) -> 0 | CA57: =IF(CA$55="","",Underwriting!CK35) -> 0 | CB57: =IF(CB$55="","",Underwriting!CL35) -> 0 | CC57: =IF(CC$55="","",Underwriting!CM35) -> 0 | CD57: =IF(CD$55="","",Underwriting!CN35) -> 0 | CE57: =IF(CE$55="","",Underwriting!CO35) -> 0 | CF57: =IF(CF$55="","",Underwriting!CP35) -> 0 | CG57: =IF(CG$55="","",Underwriting!CQ35) -> 0 | CH57: =IF(CH$55="","",Underwriting!CR35) -> 0 | CI57: =IF(CI$55="","",Underwriting!CS35) -> 0 | CJ57: =IF(CJ$55="","",Underwriting!CT35) -> 0 | CK57: =IF(CK$55="","",Underwriting!CU35) -> 0 | CL57: =IF(CL$55="","",Underwriting!CV35) -> 0 | CM57: =IF(CM$55="","",Underwriting!CW35) -> 0 | CN57: =IF(CN$55="","",Underwriting!CX35) ->  | CO57: =IF(CO$55="","",Underwriting!CY35) ->  | CP57: =IF(CP$55="","",Underwriting!CZ35) ->  | CQ57: =IF(CQ$55="","",Underwriting!DA35) ->  | CR57: =IF(CR$55="","",Underwriting!DB35) ->  | CS57: =IF(CS$55="","",Underwriting!DC35) ->  | CT57: =IF(CT$55="","",Underwriting!DD35) ->  | CU57: =IF(CU$55="","",Underwriting!DE35) ->  | CV57: =IF(CV$55="","",Underwriting!DF35) ->  | CW57: =IF(CW$55="","",Underwriting!DG35) ->  | CX57: =IF(CX$55="","",Underwriting!DH35) ->  | CY57: =IF(CY$55="","",Underwriting!DI35) ->  | CZ57: =IF(CZ$55="","",Underwriting!DJ35) ->  | DA57: =IF(DA$55="","",Underwriting!DK35) ->  | DB57: =IF(DB$55="","",Underwriting!DL35) ->  | DC57: =IF(DC$55="","",Underwriting!DM35) ->  | DD57: =IF(DD$55="","",Underwriting!DN35) ->  | DE57: =IF(DE$55="","",Underwriting!DO35) ->  | DF57: =IF(DF$55="","",Underwriting!DP35) ->  | DG57: =IF(DG$55="","",Underwriting!DQ35) ->  | DH57: =IF(DH$55="","",Underwriting!DR35) ->  | DI57: =IF(DI$55="","",Underwriting!DS35) ->  | DJ57: =IF(DJ$55="","",Underwriting!DT35) ->  | DK57: =IF(DK$55="","",Underwriting!DU35) ->  | DL57: =IF(DL$55="","",Underwriting!DV35) ->  | DM57: =IF(DM$55="","",Underwriting!DW35) ->  | DN57: =IF(DN$55="","",Underwriting!DX35) ->  | DO57: =IF(DO$55="","",Underwriting!DY35) ->  | DP57: =IF(DP$55="","",Underwriting!DZ35) ->  | DQ57: =IF(DQ$55="","",Underwriting!EA35) ->  | DR57: =IF(DR$55="","",Underwriting!EB35) ->  | DS57: =IF(DS$55="","",Underwriting!EC35) ->  | DT57: =IF(DT$55="","",Underwriting!ED35) ->  | DU57: =IF(DU$55="","",Underwriting!EE35) ->  | DV57: =IF(DV$55="","",Underwriting!EF35) ->  | DW57: =IF(DW$55="","",Underwriting!EG35) ->  | DX57: =IF(DX$55="","",Underwriting!EH35) ->  | DY57: =IF(DY$55="","",Underwriting!EI35) ->  | DZ57: =IF(DZ$55="","",Underwriting!EJ35) ->  | EA57: =IF(EA$55="","",Underwriting!EK35) ->  | EB57: =IF(EB$55="","",Underwriting!EL35) ->  | EC57: =IF(EC$55="","",Underwriting!EM35) ->  | ED57: =IF(ED$55="","",Underwriting!EN35) ->  | EE57: =IF(EE$55="","",Underwriting!EO35) ->  | EF57: =IF(EF$55="","",Underwriting!EP35) ->  | EG57: =IF(EG$55="","",Underwriting!EQ35) ->  | EH57: =IF(EH$55="","",Underwriting!ER35) ->  | EI57: =IF(EI$55="","",Underwriting!ES35) -> 
B58: Hard Costs (Vertical) | G58: =IF(G$55="","",Underwriting!Q46) -> 0 | H58: =IF(H$55="","",Underwriting!R46) -> 0 | I58: =IF(I$55="","",Underwriting!S46) -> 0 | J58: =IF(J$55="","",Underwriting!T46) -> 0 | K58: =IF(K$55="","",Underwriting!U46) -> 0 | L58: =IF(L$55="","",Underwriting!V46) -> 5141.391964 | M58: =IF(M$55="","",Underwriting!W46) -> 21466.22854 | N58: =IF(N$55="","",Underwriting!X46) -> 180508.9547 | O58: =IF(O$55="","",Underwriting!Y46) -> 268659.6421 | P58: =IF(P$55="","",Underwriting!Z46) -> 364105.72 | Q58: =IF(Q$55="","",Underwriting!AA46) -> 608112.9352 | R58: =IF(R$55="","",Underwriting!AB46) -> 558135.3058 | S58: =IF(S$55="","",Underwriting!AC46) -> 491778.8154 | T58: =IF(T$55="","",Underwriting!AD46) -> 603990.257 | U58: =IF(U$55="","",Underwriting!AE46) -> 583476.7121 | V58: =IF(V$55="","",Underwriting!AF46) -> 576372.0373 | W58: =IF(W$55="","",Underwriting!AG46) -> 575728.3333 | X58: =IF(X$55="","",Underwriting!AH46) -> 457246.3333 | Y58: =IF(Y$55="","",Underwriting!AI46) -> 434027.3333 | Z58: =IF(Z$55="","",Underwriting!AJ46) -> 237750 | AA58: =IF(AA$55="","",Underwriting!AK46) -> 0 | AB58: =IF(AB$55="","",Underwriting!AL46) -> 0 | AC58: =IF(AC$55="","",Underwriting!AM46) -> 0 | AD58: =IF(AD$55="","",Underwriting!AN46) -> 0 | AE58: =IF(AE$55="","",Underwriting!AO46) -> 0 | AF58: =IF(AF$55="","",Underwriting!AP46) -> 0 | AG58: =IF(AG$55="","",Underwriting!AQ46) -> 0 | AH58: =IF(AH$55="","",Underwriting!AR46) -> 0 | AI58: =IF(AI$55="","",Underwriting!AS46) -> 0 | AJ58: =IF(AJ$55="","",Underwriting!AT46) -> 0 | AK58: =IF(AK$55="","",Underwriting!AU46) -> 0 | AL58: =IF(AL$55="","",Underwriting!AV46) -> 0 | AM58: =IF(AM$55="","",Underwriting!AW46) -> 0 | AN58: =IF(AN$55="","",Underwriting!AX46) -> 0 | AO58: =IF(AO$55="","",Underwriting!AY46) -> 0 | AP58: =IF(AP$55="","",Underwriting!AZ46) -> 0 | AQ58: =IF(AQ$55="","",Underwriting!BA46) -> 0 | AR58: =IF(AR$55="","",Underwriting!BB46) -> 0 | AS58: =IF(AS$55="","",Underwriting!BC46) -> 0 | AT58: =IF(AT$55="","",Underwriting!BD46) -> 0 | AU58: =IF(AU$55="","",Underwriting!BE46) -> 0 | AV58: =IF(AV$55="","",Underwriting!BF46) -> 0 | AW58: =IF(AW$55="","",Underwriting!BG46) -> 0 | AX58: =IF(AX$55="","",Underwriting!BH46) -> 0 | AY58: =IF(AY$55="","",Underwriting!BI46) -> 0 | AZ58: =IF(AZ$55="","",Underwriting!BJ46) -> 0 | BA58: =IF(BA$55="","",Underwriting!BK46) -> 0 | BB58: =IF(BB$55="","",Underwriting!BL46) -> 0 | BC58: =IF(BC$55="","",Underwriting!BM46) -> 0 | BD58: =IF(BD$55="","",Underwriting!BN46) -> 0 | BE58: =IF(BE$55="","",Underwriting!BO46) -> 0 | BF58: =IF(BF$55="","",Underwriting!BP46) -> 0 | BG58: =IF(BG$55="","",Underwriting!BQ46) -> 0 | BH58: =IF(BH$55="","",Underwriting!BR46) -> 0 | BI58: =IF(BI$55="","",Underwriting!BS46) -> 0 | BJ58: =IF(BJ$55="","",Underwriting!BT46) -> 0 | BK58: =IF(BK$55="","",Underwriting!BU46) -> 0 | BL58: =IF(BL$55="","",Underwriting!BV46) -> 0 | BM58: =IF(BM$55="","",Underwriting!BW46) -> 0 | BN58: =IF(BN$55="","",Underwriting!BX46) -> 0 | BO58: =IF(BO$55="","",Underwriting!BY46) -> 0 | BP58: =IF(BP$55="","",Underwriting!BZ46) -> 0 | BQ58: =IF(BQ$55="","",Underwriting!CA46) -> 0 | BR58: =IF(BR$55="","",Underwriting!CB46) -> 0 | BS58: =IF(BS$55="","",Underwriting!CC46) -> 0 | BT58: =IF(BT$55="","",Underwriting!CD46) -> 0 | BU58: =IF(BU$55="","",Underwriting!CE46) -> 0 | BV58: =IF(BV$55="","",Underwriting!CF46) -> 0 | BW58: =IF(BW$55="","",Underwriting!CG46) -> 0 | BX58: =IF(BX$55="","",Underwriting!CH46) -> 0 | BY58: =IF(BY$55="","",Underwriting!CI46) -> 0 | BZ58: =IF(BZ$55="","",Underwriting!CJ46) -> 0 | CA58: =IF(CA$55="","",Underwriting!CK46) -> 0 | CB58: =IF(CB$55="","",Underwriting!CL46) -> 0 | CC58: =IF(CC$55="","",Underwriting!CM46) -> 0 | CD58: =IF(CD$55="","",Underwriting!CN46) -> 0 | CE58: =IF(CE$55="","",Underwriting!CO46) -> 0 | CF58: =IF(CF$55="","",Underwriting!CP46) -> 0 | CG58: =IF(CG$55="","",Underwriting!CQ46) -> 0 | CH58: =IF(CH$55="","",Underwriting!CR46) -> 0 | CI58: =IF(CI$55="","",Underwriting!CS46) -> 0 | CJ58: =IF(CJ$55="","",Underwriting!CT46) -> 0 | CK58: =IF(CK$55="","",Underwriting!CU46) -> 0 | CL58: =IF(CL$55="","",Underwriting!CV46) -> 0 | CM58: =IF(CM$55="","",Underwriting!CW46) -> 0 | CN58: =IF(CN$55="","",Underwriting!CX46) ->  | CO58: =IF(CO$55="","",Underwriting!CY46) ->  | CP58: =IF(CP$55="","",Underwriting!CZ46) ->  | CQ58: =IF(CQ$55="","",Underwriting!DA46) ->  | CR58: =IF(CR$55="","",Underwriting!DB46) ->  | CS58: =IF(CS$55="","",Underwriting!DC46) ->  | CT58: =IF(CT$55="","",Underwriting!DD46) ->  | CU58: =IF(CU$55="","",Underwriting!DE46) ->  | CV58: =IF(CV$55="","",Underwriting!DF46) ->  | CW58: =IF(CW$55="","",Underwriting!DG46) ->  | CX58: =IF(CX$55="","",Underwriting!DH46) ->  | CY58: =IF(CY$55="","",Underwriting!DI46) ->  | CZ58: =IF(CZ$55="","",Underwriting!DJ46) ->  | DA58: =IF(DA$55="","",Underwriting!DK46) ->  | DB58: =IF(DB$55="","",Underwriting!DL46) ->  | DC58: =IF(DC$55="","",Underwriting!DM46) ->  | DD58: =IF(DD$55="","",Underwriting!DN46) ->  | DE58: =IF(DE$55="","",Underwriting!DO46) ->  | DF58: =IF(DF$55="","",Underwriting!DP46) ->  | DG58: =IF(DG$55="","",Underwriting!DQ46) ->  | DH58: =IF(DH$55="","",Underwriting!DR46) ->  | DI58: =IF(DI$55="","",Underwriting!DS46) ->  | DJ58: =IF(DJ$55="","",Underwriting!DT46) ->  | DK58: =IF(DK$55="","",Underwriting!DU46) ->  | DL58: =IF(DL$55="","",Underwriting!DV46) ->  | DM58: =IF(DM$55="","",Underwriting!DW46) ->  | DN58: =IF(DN$55="","",Underwriting!DX46) ->  | DO58: =IF(DO$55="","",Underwriting!DY46) ->  | DP58: =IF(DP$55="","",Underwriting!DZ46) ->  | DQ58: =IF(DQ$55="","",Underwriting!EA46) ->  | DR58: =IF(DR$55="","",Underwriting!EB46) ->  | DS58: =IF(DS$55="","",Underwriting!EC46) ->  | DT58: =IF(DT$55="","",Underwriting!ED46) ->  | DU58: =IF(DU$55="","",Underwriting!EE46) ->  | DV58: =IF(DV$55="","",Underwriting!EF46) ->  | DW58: =IF(DW$55="","",Underwriting!EG46) ->  | DX58: =IF(DX$55="","",Underwriting!EH46) ->  | DY58: =IF(DY$55="","",Underwriting!EI46) ->  | DZ58: =IF(DZ$55="","",Underwriting!EJ46) ->  | EA58: =IF(EA$55="","",Underwriting!EK46) ->  | EB58: =IF(EB$55="","",Underwriting!EL46) ->  | EC58: =IF(EC$55="","",Underwriting!EM46) ->  | ED58: =IF(ED$55="","",Underwriting!EN46) ->  | EE58: =IF(EE$55="","",Underwriting!EO46) ->  | EF58: =IF(EF$55="","",Underwriting!EP46) ->  | EG58: =IF(EG$55="","",Underwriting!EQ46) ->  | EH58: =IF(EH$55="","",Underwriting!ER46) ->  | EI58: =IF(EI$55="","",Underwriting!ES46) -> 
B59: Soft Costs | G59: =IF(G$55="","",Underwriting!Q54) -> 0 | H59: =IF(H$55="","",Underwriting!R54) -> 37589.991 | I59: =IF(I$55="","",Underwriting!S54) -> 37589.991 | J59: =IF(J$55="","",Underwriting!T54) -> 138319.3049 | K59: =IF(K$55="","",Underwriting!U54) -> 138319.3049 | L59: =IF(L$55="","",Underwriting!V54) -> 138319.3049 | M59: =IF(M$55="","",Underwriting!W54) -> 138319.3049 | N59: =IF(N$55="","",Underwriting!X54) -> 138319.3049 | O59: =IF(O$55="","",Underwriting!Y54) -> 138319.3049 | P59: =IF(P$55="","",Underwriting!Z54) -> 151955.6685 | Q59: =IF(Q$55="","",Underwriting!AA54) -> 151955.6685 | R59: =IF(R$55="","",Underwriting!AB54) -> 151955.6685 | S59: =IF(S$55="","",Underwriting!AC54) -> 151955.6685 | T59: =IF(T$55="","",Underwriting!AD54) -> 151955.6685 | U59: =IF(U$55="","",Underwriting!AE54) -> 151955.6685 | V59: =IF(V$55="","",Underwriting!AF54) -> 151955.6685 | W59: =IF(W$55="","",Underwriting!AG54) -> 151955.6685 | X59: =IF(X$55="","",Underwriting!AH54) -> 151955.6685 | Y59: =IF(Y$55="","",Underwriting!AI54) -> 151955.6685 | Z59: =IF(Z$55="","",Underwriting!AJ54) -> 151955.6685 | AA59: =IF(AA$55="","",Underwriting!AK54) -> 0 | AB59: =IF(AB$55="","",Underwriting!AL54) -> 0 | AC59: =IF(AC$55="","",Underwriting!AM54) -> 0 | AD59: =IF(AD$55="","",Underwriting!AN54) -> 0 | AE59: =IF(AE$55="","",Underwriting!AO54) -> 0 | AF59: =IF(AF$55="","",Underwriting!AP54) -> 0 | AG59: =IF(AG$55="","",Underwriting!AQ54) -> 0 | AH59: =IF(AH$55="","",Underwriting!AR54) -> 0 | AI59: =IF(AI$55="","",Underwriting!AS54) -> 0 | AJ59: =IF(AJ$55="","",Underwriting!AT54) -> 0 | AK59: =IF(AK$55="","",Underwriting!AU54) -> 0 | AL59: =IF(AL$55="","",Underwriting!AV54) -> 0 | AM59: =IF(AM$55="","",Underwriting!AW54) -> 0 | AN59: =IF(AN$55="","",Underwriting!AX54) -> 0 | AO59: =IF(AO$55="","",Underwriting!AY54) -> 0 | AP59: =IF(AP$55="","",Underwriting!AZ54) -> 0 | AQ59: =IF(AQ$55="","",Underwriting!BA54) -> 0 | AR59: =IF(AR$55="","",Underwriting!BB54) -> 0 | AS59: =IF(AS$55="","",Underwriting!BC54) -> 0 | AT59: =IF(AT$55="","",Underwriting!BD54) -> 0 | AU59: =IF(AU$55="","",Underwriting!BE54) -> 0 | AV59: =IF(AV$55="","",Underwriting!BF54) -> 0 | AW59: =IF(AW$55="","",Underwriting!BG54) -> 0 | AX59: =IF(AX$55="","",Underwriting!BH54) -> 0 | AY59: =IF(AY$55="","",Underwriting!BI54) -> 0 | AZ59: =IF(AZ$55="","",Underwriting!BJ54) -> 0 | BA59: =IF(BA$55="","",Underwriting!BK54) -> 0 | BB59: =IF(BB$55="","",Underwriting!BL54) -> 0 | BC59: =IF(BC$55="","",Underwriting!BM54) -> 0 | BD59: =IF(BD$55="","",Underwriting!BN54) -> 0 | BE59: =IF(BE$55="","",Underwriting!BO54) -> 0 | BF59: =IF(BF$55="","",Underwriting!BP54) -> 0 | BG59: =IF(BG$55="","",Underwriting!BQ54) -> 0 | BH59: =IF(BH$55="","",Underwriting!BR54) -> 0 | BI59: =IF(BI$55="","",Underwriting!BS54) -> 0 | BJ59: =IF(BJ$55="","",Underwriting!BT54) -> 0 | BK59: =IF(BK$55="","",Underwriting!BU54) -> 0 | BL59: =IF(BL$55="","",Underwriting!BV54) -> 0 | BM59: =IF(BM$55="","",Underwriting!BW54) -> 0 | BN59: =IF(BN$55="","",Underwriting!BX54) -> 0 | BO59: =IF(BO$55="","",Underwriting!BY54) -> 0 | BP59: =IF(BP$55="","",Underwriting!BZ54) -> 0 | BQ59: =IF(BQ$55="","",Underwriting!CA54) -> 0 | BR59: =IF(BR$55="","",Underwriting!CB54) -> 0 | BS59: =IF(BS$55="","",Underwriting!CC54) -> 0 | BT59: =IF(BT$55="","",Underwriting!CD54) -> 0 | BU59: =IF(BU$55="","",Underwriting!CE54) -> 0 | BV59: =IF(BV$55="","",Underwriting!CF54) -> 0 | BW59: =IF(BW$55="","",Underwriting!CG54) -> 0 | BX59: =IF(BX$55="","",Underwriting!CH54) -> 0 | BY59: =IF(BY$55="","",Underwriting!CI54) -> 0 | BZ59: =IF(BZ$55="","",Underwriting!CJ54) -> 0 | CA59: =IF(CA$55="","",Underwriting!CK54) -> 0 | CB59: =IF(CB$55="","",Underwriting!CL54) -> 0 | CC59: =IF(CC$55="","",Underwriting!CM54) -> 0 | CD59: =IF(CD$55="","",Underwriting!CN54) -> 0 | CE59: =IF(CE$55="","",Underwriting!CO54) -> 0 | CF59: =IF(CF$55="","",Underwriting!CP54) -> 0 | CG59: =IF(CG$55="","",Underwriting!CQ54) -> 0 | CH59: =IF(CH$55="","",Underwriting!CR54) -> 0 | CI59: =IF(CI$55="","",Underwriting!CS54) -> 0 | CJ59: =IF(CJ$55="","",Underwriting!CT54) -> 0 | CK59: =IF(CK$55="","",Underwriting!CU54) -> 0 | CL59: =IF(CL$55="","",Underwriting!CV54) -> 0 | CM59: =IF(CM$55="","",Underwriting!CW54) -> 0 | CN59: =IF(CN$55="","",Underwriting!CX54) ->  | CO59: =IF(CO$55="","",Underwriting!CY54) ->  | CP59: =IF(CP$55="","",Underwriting!CZ54) ->  | CQ59: =IF(CQ$55="","",Underwriting!DA54) ->  | CR59: =IF(CR$55="","",Underwriting!DB54) ->  | CS59: =IF(CS$55="","",Underwriting!DC54) ->  | CT59: =IF(CT$55="","",Underwriting!DD54) ->  | CU59: =IF(CU$55="","",Underwriting!DE54) ->  | CV59: =IF(CV$55="","",Underwriting!DF54) ->  | CW59: =IF(CW$55="","",Underwriting!DG54) ->  | CX59: =IF(CX$55="","",Underwriting!DH54) ->  | CY59: =IF(CY$55="","",Underwriting!DI54) ->  | CZ59: =IF(CZ$55="","",Underwriting!DJ54) ->  | DA59: =IF(DA$55="","",Underwriting!DK54) ->  | DB59: =IF(DB$55="","",Underwriting!DL54) ->  | DC59: =IF(DC$55="","",Underwriting!DM54) ->  | DD59: =IF(DD$55="","",Underwriting!DN54) ->  | DE59: =IF(DE$55="","",Underwriting!DO54) ->  | DF59: =IF(DF$55="","",Underwriting!DP54) ->  | DG59: =IF(DG$55="","",Underwriting!DQ54) ->  | DH59: =IF(DH$55="","",Underwriting!DR54) ->  | DI59: =IF(DI$55="","",Underwriting!DS54) ->  | DJ59: =IF(DJ$55="","",Underwriting!DT54) ->  | DK59: =IF(DK$55="","",Underwriting!DU54) ->  | DL59: =IF(DL$55="","",Underwriting!DV54) ->  | DM59: =IF(DM$55="","",Underwriting!DW54) ->  | DN59: =IF(DN$55="","",Underwriting!DX54) ->  | DO59: =IF(DO$55="","",Underwriting!DY54) ->  | DP59: =IF(DP$55="","",Underwriting!DZ54) ->  | DQ59: =IF(DQ$55="","",Underwriting!EA54) ->  | DR59: =IF(DR$55="","",Underwriting!EB54) ->  | DS59: =IF(DS$55="","",Underwriting!EC54) ->  | DT59: =IF(DT$55="","",Underwriting!ED54) ->  | DU59: =IF(DU$55="","",Underwriting!EE54) ->  | DV59: =IF(DV$55="","",Underwriting!EF54) ->  | DW59: =IF(DW$55="","",Underwriting!EG54) ->  | DX59: =IF(DX$55="","",Underwriting!EH54) ->  | DY59: =IF(DY$55="","",Underwriting!EI54) ->  | DZ59: =IF(DZ$55="","",Underwriting!EJ54) ->  | EA59: =IF(EA$55="","",Underwriting!EK54) ->  | EB59: =IF(EB$55="","",Underwriting!EL54) ->  | EC59: =IF(EC$55="","",Underwriting!EM54) ->  | ED59: =IF(ED$55="","",Underwriting!EN54) ->  | EE59: =IF(EE$55="","",Underwriting!EO54) ->  | EF59: =IF(EF$55="","",Underwriting!EP54) ->  | EG59: =IF(EG$55="","",Underwriting!EQ54) ->  | EH59: =IF(EH$55="","",Underwriting!ER54) ->  | EI59: =IF(EI$55="","",Underwriting!ES54) -> 
B60: TOTAL PROJECT COST BEFORE FINANCING | G60: =IF(G$55="","",SUM(G56:G59)) -> 42075500 | H60: =IF(H$55="","",SUM(H56:H59)) -> 93059.03345 | I60: 316005.6344 | J60: 993917.8468 | K60: 1573126.549 | L60: 1578267.941 | M60: 1052615.444 | N60: 884026.7699 | O60: 749230.8564 | P60: 593680.4929 | Q60: 760068.6037 | R60: 710090.9744 | S60: 643734.484 | T60: 755945.9255 | U60: 735432.3806 | V60: 728327.7058 | W60: 727684.0019 | X60: 609202.0019 | Y60: 585983.0019 | Z60: 389705.6685 | AA60: 0 | AB60: 0 | AC60: 0 | AD60: 0 | AE60: 0 | AF60: 0 | AG60: 0 | AH60: 0 | AI60: 0 | AJ60: 0 | AK60: 0 | AL60: 0 | AM60: 0 | AN60: 0 | AO60: 0 | AP60: 0 | AQ60: 0 | AR60: 0 | AS60: 0 | AT60: 0 | AU60: 0 | AV60: 0 | AW60: 0 | AX60: 0 | AY60: 0 | AZ60: 0 | BA60: 0 | BB60: 0 | BC60: 0 | BD60: 0 | BE60: 0 | BF60: 0 | BG60: 0 | BH60: 0 | BI60: 0 | BJ60: 0 | BK60: 0 | BL60: 0 | BM60: 0 | BN60: 0 | BO60: 0 | BP60: 0 | BQ60: 0 | BR60: 0 | BS60: 0 | BT60: =IF(BT$55="","",SUM(BT56:BT59)) -> 0 | BU60: 0 | BV60: 0 | BW60: 0 | BX60: 0 | BY60: 0 | BZ60: 0 | CA60: 0 | CB60: 0 | CC60: 0 | CD60: 0 | CE60: 0 | CF60: 0 | CG60: 0 | CH60: 0 | CI60: 0 | CJ60: 0 | CK60: 0 | CL60: 0 | CM60: 0 | EF60: =IF(EF$55="","",SUM(EF56:EF59)) -> 
B62: Carry Costs | G62: =IF(G$55="","",Underwriting!Q62) -> 120000 | H62: =IF(H$55="","",Underwriting!R62) -> 879.6978206 | I62: =IF(I$55="","",Underwriting!S62) -> 1584.238305 | J62: =IF(J$55="","",Underwriting!T62) -> 3966.16235 | K62: =IF(K$55="","",Underwriting!U62) -> 11450.29242 | L62: =IF(L$55="","",Underwriting!V62) -> 23334.61873 | M62: =IF(M$55="","",Underwriting!W62) -> 35346.63792 | N62: =IF(N$55="","",Underwriting!X62) -> 43506.35354 | O62: =IF(O$55="","",Underwriting!Y62) -> 50462.85196 | P62: =IF(P$55="","",Underwriting!Z62) -> 56460.55477 | Q62: =IF(Q$55="","",Underwriting!AA62) -> 61336.61263 | R62: =IF(R$55="","",Underwriting!AB62) -> 67497.15176 | S62: =IF(S$55="","",Underwriting!AC62) -> 73329.0627 | T62: =IF(T$55="","",Underwriting!AD62) -> 78707.0393 | U62: =IF(U$55="","",Underwriting!AE62) -> 84966.93654 | V62: =IF(V$55="","",Underwriting!AF62) -> 91119.93142 | W62: =IF(W$55="","",Underwriting!AG62) -> 97265.78869 | X62: =IF(X$55="","",Underwriting!AH62) -> 103452.9121 | Y62: =IF(Y$55="","",Underwriting!AI62) -> 108797.824 | Z62: =IF(Z$55="","",Underwriting!AJ62) -> 114008.6802 | AA62: =IF(AA$55="","",Underwriting!AK62) -> 168656.3605 | AB62: =IF(AB$55="","",Underwriting!AL62) -> 162742.0692 | AC62: =IF(AC$55="","",Underwriting!AM62) -> 156783.4207 | AD62: =IF(AD$55="","",Underwriting!AN62) -> 150780.0823 | AE62: =IF(AE$55="","",Underwriting!AO62) -> 144731.719 | AF62: =IF(AF$55="","",Underwriting!AP62) -> 138637.9929 | AG62: =IF(AG$55="","",Underwriting!AQ62) -> 132498.5638 | AH62: =IF(AH$55="","",Underwriting!AR62) -> 126313.089 | AI62: =IF(AI$55="","",Underwriting!AS62) -> 120081.2232 | AJ62: =IF(AJ$55="","",Underwriting!AT62) -> 113802.6184 | AK62: =IF(AK$55="","",Underwriting!AU62) -> 107476.924 | AL62: =IF(AL$55="","",Underwriting!AV62) -> 101103.7869 | AM62: =IF(AM$55="","",Underwriting!AW62) -> 97848.91625 | AN62: =IF(AN$55="","",Underwriting!AX62) -> 89875.86502 | AO62: =IF(AO$55="","",Underwriting!AY62) -> 82816.19306 | AP62: =IF(AP$55="","",Underwriting!AZ62) -> 75703.57357 | AQ62: =IF(AQ$55="","",Underwriting!BA62) -> 68537.60943 | AR62: =IF(AR$55="","",Underwriting!BB62) -> 61317.90055 | AS62: =IF(AS$55="","",Underwriting!BC62) -> 54044.04387 | AT62: =IF(AT$55="","",Underwriting!BD62) -> 46715.63325 | AU62: =IF(AU$55="","",Underwriting!BE62) -> 39332.25956 | AV62: =IF(AV$55="","",Underwriting!BF62) -> 31893.51056 | AW62: =IF(AW$55="","",Underwriting!BG62) -> 24398.97095 | AX62: =IF(AX$55="","",Underwriting!BH62) -> 16848.22229 | AY62: =IF(AY$55="","",Underwriting!BI62) -> 11963.12179 | AZ62: =IF(AZ$55="","",Underwriting!BJ62) -> 4007.749803 | BA62: =IF(BA$55="","",Underwriting!BK62) -> 0 | BB62: =IF(BB$55="","",Underwriting!BL62) -> 0 | BC62: =IF(BC$55="","",Underwriting!BM62) -> 0 | BD62: =IF(BD$55="","",Underwriting!BN62) -> 0 | BE62: =IF(BE$55="","",Underwriting!BO62) -> 0 | BF62: =IF(BF$55="","",Underwriting!BP62) -> 0 | BG62: =IF(BG$55="","",Underwriting!BQ62) -> 0 | BH62: =IF(BH$55="","",Underwriting!BR62) -> 0 | BI62: =IF(BI$55="","",Underwriting!BS62) -> 0 | BJ62: =IF(BJ$55="","",Underwriting!BT62) -> 0 | BK62: =IF(BK$55="","",Underwriting!BU62) -> 0 | BL62: =IF(BL$55="","",Underwriting!BV62) -> 0 | BM62: =IF(BM$55="","",Underwriting!BW62) -> 0 | BN62: =IF(BN$55="","",Underwriting!BX62) -> 0 | BO62: =IF(BO$55="","",Underwriting!BY62) -> 0 | BP62: =IF(BP$55="","",Underwriting!BZ62) -> 0 | BQ62: =IF(BQ$55="","",Underwriting!CA62) -> 0 | BR62: =IF(BR$55="","",Underwriting!CB62) -> 0 | BS62: =IF(BS$55="","",Underwriting!CC62) -> 0 | BT62: =IF(BT$55="","",Underwriting!CD62) -> 0 | BU62: =IF(BU$55="","",Underwriting!CE62) -> 0 | BV62: =IF(BV$55="","",Underwriting!CF62) -> 0 | BW62: =IF(BW$55="","",Underwriting!CG62) -> 0 | BX62: =IF(BX$55="","",Underwriting!CH62) -> 0 | BY62: =IF(BY$55="","",Underwriting!CI62) -> 0 | BZ62: =IF(BZ$55="","",Underwriting!CJ62) -> 0 | CA62: =IF(CA$55="","",Underwriting!CK62) -> 0 | CB62: =IF(CB$55="","",Underwriting!CL62) -> 0 | CC62: =IF(CC$55="","",Underwriting!CM62) -> 0 | CD62: =IF(CD$55="","",Underwriting!CN62) -> 0 | CE62: =IF(CE$55="","",Underwriting!CO62) -> 0 | CF62: =IF(CF$55="","",Underwriting!CP62) -> 0 | CG62: =IF(CG$55="","",Underwriting!CQ62) -> 0 | CH62: =IF(CH$55="","",Underwriting!CR62) -> 0 | CI62: =IF(CI$55="","",Underwriting!CS62) -> 0 | CJ62: =IF(CJ$55="","",Underwriting!CT62) -> 0 | CK62: =IF(CK$55="","",Underwriting!CU62) -> 0 | CL62: =IF(CL$55="","",Underwriting!CV62) -> 0 | CM62: =IF(CM$55="","",Underwriting!CW62) -> 0 | CN62: =IF(CN$55="","",Underwriting!CX62) ->  | CO62: =IF(CO$55="","",Underwriting!CY62) ->  | CP62: =IF(CP$55="","",Underwriting!CZ62) ->  | CQ62: =IF(CQ$55="","",Underwriting!DA62) ->  | CR62: =IF(CR$55="","",Underwriting!DB62) ->  | CS62: =IF(CS$55="","",Underwriting!DC62) ->  | CT62: =IF(CT$55="","",Underwriting!DD62) ->  | CU62: =IF(CU$55="","",Underwriting!DE62) ->  | CV62: =IF(CV$55="","",Underwriting!DF62) ->  | CW62: =IF(CW$55="","",Underwriting!DG62) ->  | CX62: =IF(CX$55="","",Underwriting!DH62) ->  | CY62: =IF(CY$55="","",Underwriting!DI62) ->  | CZ62: =IF(CZ$55="","",Underwriting!DJ62) ->  | DA62: =IF(DA$55="","",Underwriting!DK62) ->  | DB62: =IF(DB$55="","",Underwriting!DL62) ->  | DC62: =IF(DC$55="","",Underwriting!DM62) ->  | DD62: =IF(DD$55="","",Underwriting!DN62) ->  | DE62: =IF(DE$55="","",Underwriting!DO62) ->  | DF62: =IF(DF$55="","",Underwriting!DP62) ->  | DG62: =IF(DG$55="","",Underwriting!DQ62) ->  | DH62: =IF(DH$55="","",Underwriting!DR62) ->  | DI62: =IF(DI$55="","",Underwriting!DS62) ->  | DJ62: =IF(DJ$55="","",Underwriting!DT62) ->  | DK62: =IF(DK$55="","",Underwriting!DU62) ->  | DL62: =IF(DL$55="","",Underwriting!DV62) ->  | DM62: =IF(DM$55="","",Underwriting!DW62) ->  | DN62: =IF(DN$55="","",Underwriting!DX62) ->  | DO62: =IF(DO$55="","",Underwriting!DY62) ->  | DP62: =IF(DP$55="","",Underwriting!DZ62) ->  | DQ62: =IF(DQ$55="","",Underwriting!EA62) ->  | DR62: =IF(DR$55="","",Underwriting!EB62) ->  | DS62: =IF(DS$55="","",Underwriting!EC62) ->  | DT62: =IF(DT$55="","",Underwriting!ED62) ->  | DU62: =IF(DU$55="","",Underwriting!EE62) ->  | DV62: =IF(DV$55="","",Underwriting!EF62) ->  | DW62: =IF(DW$55="","",Underwriting!EG62) ->  | DX62: =IF(DX$55="","",Underwriting!EH62) ->  | DY62: =IF(DY$55="","",Underwriting!EI62) ->  | DZ62: =IF(DZ$55="","",Underwriting!EJ62) ->  | EA62: =IF(EA$55="","",Underwriting!EK62) ->  | EB62: =IF(EB$55="","",Underwriting!EL62) ->  | EC62: =IF(EC$55="","",Underwriting!EM62) ->  | ED62: =IF(ED$55="","",Underwriting!EN62) ->  | EE62: =IF(EE$55="","",Underwriting!EO62) ->  | EF62: =IF(EF$55="","",Underwriting!EP62) ->  | EG62: =IF(EG$55="","",Underwriting!EQ62) ->  | EH62: =IF(EH$55="","",Underwriting!ER62) ->  | EI62: =IF(EI$55="","",Underwriting!ES62) -> 
B64: TOTAL PROJECT COST | G64: =IF(G$55="","",G62+G60) -> 42195500 | H64: =IF(H$55="","",H62+H60) -> 93938.73127 | I64: 317589.8727 | J64: 997884.0092 | K64: 1584576.841 | L64: 1601602.559 | M64: 1087962.082 | N64: 927533.1235 | O64: 799693.7084 | P64: 650141.0477 | Q64: 821405.2163 | R64: 777588.1261 | S64: 717063.5467 | T64: 834652.9648 | U64: 820399.3171 | V64: 819447.6372 | W64: 824949.7906 | X64: 712654.914 | Y64: 694780.8258 | Z64: 503714.3487 | AA64: 168656.3605 | AB64: 162742.0692 | AC64: 156783.4207 | AD64: 150780.0823 | AE64: 144731.719 | AF64: 138637.9929 | AG64: 132498.5638 | AH64: 126313.089 | AI64: 120081.2232 | AJ64: 113802.6184 | AK64: 107476.924 | AL64: 101103.7869 | AM64: 97848.91625 | AN64: 89875.86502 | AO64: 82816.19306 | AP64: 75703.57357 | AQ64: 68537.60943 | AR64: 61317.90055 | AS64: 54044.04387 | AT64: 46715.63325 | AU64: 39332.25956 | AV64: 31893.51056 | AW64: 24398.97095 | AX64: 16848.22229 | AY64: 11963.12179 | AZ64: 4007.749803 | BA64: 0 | BB64: 0 | BC64: 0 | BD64: 0 | BE64: 0 | BF64: 0 | BG64: 0 | BH64: 0 | BI64: 0 | BJ64: 0 | BK64: 0 | BL64: 0 | BM64: 0 | BN64: 0 | BO64: 0 | BP64: 0 | BQ64: 0 | BR64: 0 | BS64: 0 | BT64: =IF(BT$55="","",BT62+BT60) -> 0 | BU64: 0 | BV64: 0 | BW64: 0 | BX64: 0 | BY64: 0 | BZ64: 0 | CA64: 0 | CB64: 0 | CC64: 0 | CD64: 0 | CE64: 0 | CF64: 0 | CG64: 0 | CH64: 0 | CI64: 0 | CJ64: 0 | CK64: 0 | CL64: 0 | CM64: 0 | EF64: =IF(EF$55="","",EF62+EF60) -> 
B66: SOURCES | G66: =IF(G$55="","",Underwriting!Q64) -> 42195500 | H66: =IF(H$55="","",Underwriting!R64) -> 93938.73127 | I66: =IF(I$55="","",Underwriting!S64) -> 317589.8727 | J66: =IF(J$55="","",Underwriting!T64) -> 997884.0092 | K66: =IF(K$55="","",Underwriting!U64) -> 1584576.841 | L66: =IF(L$55="","",Underwriting!V64) -> 1601602.559 | M66: =IF(M$55="","",Underwriting!W64) -> 1087962.082 | N66: =IF(N$55="","",Underwriting!X64) -> 927533.1235 | O66: =IF(O$55="","",Underwriting!Y64) -> 799693.7084 | P66: =IF(P$55="","",Underwriting!Z64) -> 650141.0477 | Q66: =IF(Q$55="","",Underwriting!AA64) -> 821405.2163 | R66: =IF(R$55="","",Underwriting!AB64) -> 777588.1261 | S66: =IF(S$55="","",Underwriting!AC64) -> 717063.5467 | T66: =IF(T$55="","",Underwriting!AD64) -> 834652.9648 | U66: =IF(U$55="","",Underwriting!AE64) -> 820399.3171 | V66: =IF(V$55="","",Underwriting!AF64) -> 819447.6372 | W66: =IF(W$55="","",Underwriting!AG64) -> 824949.7906 | X66: =IF(X$55="","",Underwriting!AH64) -> 712654.914 | Y66: =IF(Y$55="","",Underwriting!AI64) -> 694780.8258 | Z66: =IF(Z$55="","",Underwriting!AJ64) -> 503714.3487 | AA66: =IF(AA$55="","",Underwriting!AK64) -> 168656.3605 | AB66: =IF(AB$55="","",Underwriting!AL64) -> 162742.0692 | AC66: =IF(AC$55="","",Underwriting!AM64) -> 156783.4207 | AD66: =IF(AD$55="","",Underwriting!AN64) -> 150780.0823 | AE66: =IF(AE$55="","",Underwriting!AO64) -> 144731.719 | AF66: =IF(AF$55="","",Underwriting!AP64) -> 138637.9929 | AG66: =IF(AG$55="","",Underwriting!AQ64) -> 132498.5638 | AH66: =IF(AH$55="","",Underwriting!AR64) -> 126313.089 | AI66: =IF(AI$55="","",Underwriting!AS64) -> 120081.2232 | AJ66: =IF(AJ$55="","",Underwriting!AT64) -> 113802.6184 | AK66: =IF(AK$55="","",Underwriting!AU64) -> 107476.924 | AL66: =IF(AL$55="","",Underwriting!AV64) -> 101103.7869 | AM66: =IF(AM$55="","",Underwriting!AW64) -> 97848.91625 | AN66: =IF(AN$55="","",Underwriting!AX64) -> 89875.86502 | AO66: =IF(AO$55="","",Underwriting!AY64) -> 82816.19306 | AP66: =IF(AP$55="","",Underwriting!AZ64) -> 75703.57357 | AQ66: =IF(AQ$55="","",Underwriting!BA64) -> 68537.60943 | AR66: =IF(AR$55="","",Underwriting!BB64) -> 61317.90055 | AS66: =IF(AS$55="","",Underwriting!BC64) -> 54044.04387 | AT66: =IF(AT$55="","",Underwriting!BD64) -> 46715.63325 | AU66: =IF(AU$55="","",Underwriting!BE64) -> 39332.25956 | AV66: =IF(AV$55="","",Underwriting!BF64) -> 31893.51056 | AW66: =IF(AW$55="","",Underwriting!BG64) -> 24398.97095 | AX66: =IF(AX$55="","",Underwriting!BH64) -> 16848.22229 | AY66: =IF(AY$55="","",Underwriting!BI64) -> 11963.12179 | AZ66: =IF(AZ$55="","",Underwriting!BJ64) -> 4007.749803 | BA66: =IF(BA$55="","",Underwriting!BK64) -> 0 | BB66: =IF(BB$55="","",Underwriting!BL64) -> 0 | BC66: =IF(BC$55="","",Underwriting!BM64) -> 0 | BD66: =IF(BD$55="","",Underwriting!BN64) -> 0 | BE66: =IF(BE$55="","",Underwriting!BO64) -> 0 | BF66: =IF(BF$55="","",Underwriting!BP64) -> 0 | BG66: =IF(BG$55="","",Underwriting!BQ64) -> 0 | BH66: =IF(BH$55="","",Underwriting!BR64) -> 0 | BI66: =IF(BI$55="","",Underwriting!BS64) -> 0 | BJ66: =IF(BJ$55="","",Underwriting!BT64) -> 0 | BK66: =IF(BK$55="","",Underwriting!BU64) -> 0 | BL66: =IF(BL$55="","",Underwriting!BV64) -> 0 | BM66: =IF(BM$55="","",Underwriting!BW64) -> 0 | BN66: =IF(BN$55="","",Underwriting!BX64) -> 0 | BO66: =IF(BO$55="","",Underwriting!BY64) -> 0 | BP66: =IF(BP$55="","",Underwriting!BZ64) -> 0 | BQ66: =IF(BQ$55="","",Underwriting!CA64) -> 0 | BR66: =IF(BR$55="","",Underwriting!CB64) -> 0 | BS66: =IF(BS$55="","",Underwriting!CC64) -> 0 | BT66: =IF(BT$55="","",Underwriting!CD64) -> 0 | BU66: =IF(BU$55="","",Underwriting!CE64) -> 0 | BV66: =IF(BV$55="","",Underwriting!CF64) -> 0 | BW66: =IF(BW$55="","",Underwriting!CG64) -> 0 | BX66: =IF(BX$55="","",Underwriting!CH64) -> 0 | BY66: =IF(BY$55="","",Underwriting!CI64) -> 0 | BZ66: =IF(BZ$55="","",Underwriting!CJ64) -> 0 | CA66: =IF(CA$55="","",Underwriting!CK64) -> 0 | CB66: =IF(CB$55="","",Underwriting!CL64) -> 0 | CC66: =IF(CC$55="","",Underwriting!CM64) -> 0 | CD66: =IF(CD$55="","",Underwriting!CN64) -> 0 | CE66: =IF(CE$55="","",Underwriting!CO64) -> 0 | CF66: =IF(CF$55="","",Underwriting!CP64) -> 0 | CG66: =IF(CG$55="","",Underwriting!CQ64) -> 0 | CH66: =IF(CH$55="","",Underwriting!CR64) -> 0 | CI66: =IF(CI$55="","",Underwriting!CS64) -> 0 | CJ66: =IF(CJ$55="","",Underwriting!CT64) -> 0 | CK66: =IF(CK$55="","",Underwriting!CU64) -> 0 | CL66: =IF(CL$55="","",Underwriting!CV64) -> 0 | CM66: =IF(CM$55="","",Underwriting!CW64) -> 0 | CN66: =IF(CN$55="","",Underwriting!CX64) ->  | CO66: =IF(CO$55="","",Underwriting!CY64) ->  | CP66: =IF(CP$55="","",Underwriting!CZ64) ->  | CQ66: =IF(CQ$55="","",Underwriting!DA64) ->  | CR66: =IF(CR$55="","",Underwriting!DB64) ->  | CS66: =IF(CS$55="","",Underwriting!DC64) ->  | CT66: =IF(CT$55="","",Underwriting!DD64) ->  | CU66: =IF(CU$55="","",Underwriting!DE64) ->  | CV66: =IF(CV$55="","",Underwriting!DF64) ->  | CW66: =IF(CW$55="","",Underwriting!DG64) ->  | CX66: =IF(CX$55="","",Underwriting!DH64) ->  | CY66: =IF(CY$55="","",Underwriting!DI64) ->  | CZ66: =IF(CZ$55="","",Underwriting!DJ64) ->  | DA66: =IF(DA$55="","",Underwriting!DK64) ->  | DB66: =IF(DB$55="","",Underwriting!DL64) ->  | DC66: =IF(DC$55="","",Underwriting!DM64) ->  | DD66: =IF(DD$55="","",Underwriting!DN64) ->  | DE66: =IF(DE$55="","",Underwriting!DO64) ->  | DF66: =IF(DF$55="","",Underwriting!DP64) ->  | DG66: =IF(DG$55="","",Underwriting!DQ64) ->  | DH66: =IF(DH$55="","",Underwriting!DR64) ->  | DI66: =IF(DI$55="","",Underwriting!DS64) ->  | DJ66: =IF(DJ$55="","",Underwriting!DT64) ->  | DK66: =IF(DK$55="","",Underwriting!DU64) ->  | DL66: =IF(DL$55="","",Underwriting!DV64) ->  | DM66: =IF(DM$55="","",Underwriting!DW64) ->  | DN66: =IF(DN$55="","",Underwriting!DX64) ->  | DO66: =IF(DO$55="","",Underwriting!DY64) ->  | DP66: =IF(DP$55="","",Underwriting!DZ64) ->  | DQ66: =IF(DQ$55="","",Underwriting!EA64) ->  | DR66: =IF(DR$55="","",Underwriting!EB64) ->  | DS66: =IF(DS$55="","",Underwriting!EC64) ->  | DT66: =IF(DT$55="","",Underwriting!ED64) ->  | DU66: =IF(DU$55="","",Underwriting!EE64) ->  | DV66: =IF(DV$55="","",Underwriting!EF64) ->  | DW66: =IF(DW$55="","",Underwriting!EG64) ->  | DX66: =IF(DX$55="","",Underwriting!EH64) ->  | DY66: =IF(DY$55="","",Underwriting!EI64) ->  | DZ66: =IF(DZ$55="","",Underwriting!EJ64) ->  | EA66: =IF(EA$55="","",Underwriting!EK64) ->  | EB66: =IF(EB$55="","",Underwriting!EL64) ->  | EC66: =IF(EC$55="","",Underwriting!EM64) ->  | ED66: =IF(ED$55="","",Underwriting!EN64) ->  | EE66: =IF(EE$55="","",Underwriting!EO64) ->  | EF66: =IF(EF$55="","",Underwriting!EP64) ->  | EG66: =IF(EG$55="","",Underwriting!EQ64) ->  | EH66: =IF(EH$55="","",Underwriting!ER64) ->  | EI66: =IF(EI$55="","",Underwriting!ES64) -> 
B67: USES | G67: =IF(G$55="","",Underwriting!Q84) -> 42195500 | H67: =IF(H$55="","",Underwriting!R84) -> 93938.73127 | I67: =IF(I$55="","",Underwriting!S84) -> 317589.8727 | J67: =IF(J$55="","",Underwriting!T84) -> 997884.0092 | K67: =IF(K$55="","",Underwriting!U84) -> 1584576.841 | L67: =IF(L$55="","",Underwriting!V84) -> 1601602.559 | M67: =IF(M$55="","",Underwriting!W84) -> 1087962.082 | N67: =IF(N$55="","",Underwriting!X84) -> 927533.1235 | O67: =IF(O$55="","",Underwriting!Y84) -> 799693.7084 | P67: =IF(P$55="","",Underwriting!Z84) -> 650141.0477 | Q67: =IF(Q$55="","",Underwriting!AA84) -> 821405.2163 | R67: =IF(R$55="","",Underwriting!AB84) -> 777588.1261 | S67: =IF(S$55="","",Underwriting!AC84) -> 717063.5467 | T67: =IF(T$55="","",Underwriting!AD84) -> 834652.9648 | U67: =IF(U$55="","",Underwriting!AE84) -> 820399.3171 | V67: =IF(V$55="","",Underwriting!AF84) -> 819447.6372 | W67: =IF(W$55="","",Underwriting!AG84) -> 824949.7906 | X67: =IF(X$55="","",Underwriting!AH84) -> 712654.914 | Y67: =IF(Y$55="","",Underwriting!AI84) -> 694780.8258 | Z67: =IF(Z$55="","",Underwriting!AJ84) -> 503714.3487 | AA67: =IF(AA$55="","",Underwriting!AK84) -> 168656.3605 | AB67: =IF(AB$55="","",Underwriting!AL84) -> 162742.0692 | AC67: =IF(AC$55="","",Underwriting!AM84) -> 156783.4207 | AD67: =IF(AD$55="","",Underwriting!AN84) -> 150780.0823 | AE67: =IF(AE$55="","",Underwriting!AO84) -> 144731.719 | AF67: =IF(AF$55="","",Underwriting!AP84) -> 138637.9929 | AG67: =IF(AG$55="","",Underwriting!AQ84) -> 132498.5638 | AH67: =IF(AH$55="","",Underwriting!AR84) -> 126313.089 | AI67: =IF(AI$55="","",Underwriting!AS84) -> 120081.2232 | AJ67: =IF(AJ$55="","",Underwriting!AT84) -> 113802.6184 | AK67: =IF(AK$55="","",Underwriting!AU84) -> 107476.924 | AL67: =IF(AL$55="","",Underwriting!AV84) -> 101103.7869 | AM67: =IF(AM$55="","",Underwriting!AW84) -> 97848.91625 | AN67: =IF(AN$55="","",Underwriting!AX84) -> 89875.86502 | AO67: =IF(AO$55="","",Underwriting!AY84) -> 82816.19306 | AP67: =IF(AP$55="","",Underwriting!AZ84) -> 75703.57357 | AQ67: =IF(AQ$55="","",Underwriting!BA84) -> 68537.60943 | AR67: =IF(AR$55="","",Underwriting!BB84) -> 61317.90055 | AS67: =IF(AS$55="","",Underwriting!BC84) -> 54044.04387 | AT67: =IF(AT$55="","",Underwriting!BD84) -> 46715.63325 | AU67: =IF(AU$55="","",Underwriting!BE84) -> 39332.25956 | AV67: =IF(AV$55="","",Underwriting!BF84) -> 31893.51056 | AW67: =IF(AW$55="","",Underwriting!BG84) -> 24398.97095 | AX67: =IF(AX$55="","",Underwriting!BH84) -> 16848.22229 | AY67: =IF(AY$55="","",Underwriting!BI84) -> 11963.12179 | AZ67: =IF(AZ$55="","",Underwriting!BJ84) -> 4007.749803 | BA67: =IF(BA$55="","",Underwriting!BK84) -> 0 | BB67: =IF(BB$55="","",Underwriting!BL84) -> 0 | BC67: =IF(BC$55="","",Underwriting!BM84) -> 0 | BD67: =IF(BD$55="","",Underwriting!BN84) -> 0 | BE67: =IF(BE$55="","",Underwriting!BO84) -> 0 | BF67: =IF(BF$55="","",Underwriting!BP84) -> 0 | BG67: =IF(BG$55="","",Underwriting!BQ84) -> 0 | BH67: =IF(BH$55="","",Underwriting!BR84) -> 0 | BI67: =IF(BI$55="","",Underwriting!BS84) -> 0 | BJ67: =IF(BJ$55="","",Underwriting!BT84) -> 0 | BK67: =IF(BK$55="","",Underwriting!BU84) -> 0 | BL67: =IF(BL$55="","",Underwriting!BV84) -> 0 | BM67: =IF(BM$55="","",Underwriting!BW84) -> 0 | BN67: =IF(BN$55="","",Underwriting!BX84) -> 0 | BO67: =IF(BO$55="","",Underwriting!BY84) -> 0 | BP67: =IF(BP$55="","",Underwriting!BZ84) -> 0 | BQ67: =IF(BQ$55="","",Underwriting!CA84) -> 0 | BR67: =IF(BR$55="","",Underwriting!CB84) -> 0 | BS67: =IF(BS$55="","",Underwriting!CC84) -> 0 | BT67: =IF(BT$55="","",Underwriting!CD84) -> 0 | BU67: =IF(BU$55="","",Underwriting!CE84) -> 0 | BV67: =IF(BV$55="","",Underwriting!CF84) -> 0 | BW67: =IF(BW$55="","",Underwriting!CG84) -> 0 | BX67: =IF(BX$55="","",Underwriting!CH84) -> 0 | BY67: =IF(BY$55="","",Underwriting!CI84) -> 0 | BZ67: =IF(BZ$55="","",Underwriting!CJ84) -> 0 | CA67: =IF(CA$55="","",Underwriting!CK84) -> 0 | CB67: =IF(CB$55="","",Underwriting!CL84) -> 0 | CC67: =IF(CC$55="","",Underwriting!CM84) -> 0 | CD67: =IF(CD$55="","",Underwriting!CN84) -> 0 | CE67: =IF(CE$55="","",Underwriting!CO84) -> 0 | CF67: =IF(CF$55="","",Underwriting!CP84) -> 0 | CG67: =IF(CG$55="","",Underwriting!CQ84) -> 0 | CH67: =IF(CH$55="","",Underwriting!CR84) -> 0 | CI67: =IF(CI$55="","",Underwriting!CS84) -> 0 | CJ67: =IF(CJ$55="","",Underwriting!CT84) -> 0 | CK67: =IF(CK$55="","",Underwriting!CU84) -> 0 | CL67: =IF(CL$55="","",Underwriting!CV84) -> 0 | CM67: =IF(CM$55="","",Underwriting!CW84) -> 0 | CN67: =IF(CN$55="","",Underwriting!CX84) ->  | CO67: =IF(CO$55="","",Underwriting!CY84) ->  | CP67: =IF(CP$55="","",Underwriting!CZ84) ->  | CQ67: =IF(CQ$55="","",Underwriting!DA84) ->  | CR67: =IF(CR$55="","",Underwriting!DB84) ->  | CS67: =IF(CS$55="","",Underwriting!DC84) ->  | CT67: =IF(CT$55="","",Underwriting!DD84) ->  | CU67: =IF(CU$55="","",Underwriting!DE84) ->  | CV67: =IF(CV$55="","",Underwriting!DF84) ->  | CW67: =IF(CW$55="","",Underwriting!DG84) ->  | CX67: =IF(CX$55="","",Underwriting!DH84) ->  | CY67: =IF(CY$55="","",Underwriting!DI84) ->  | CZ67: =IF(CZ$55="","",Underwriting!DJ84) ->  | DA67: =IF(DA$55="","",Underwriting!DK84) ->  | DB67: =IF(DB$55="","",Underwriting!DL84) ->  | DC67: =IF(DC$55="","",Underwriting!DM84) ->  | DD67: =IF(DD$55="","",Underwriting!DN84) ->  | DE67: =IF(DE$55="","",Underwriting!DO84) ->  | DF67: =IF(DF$55="","",Underwriting!DP84) ->  | DG67: =IF(DG$55="","",Underwriting!DQ84) ->  | DH67: =IF(DH$55="","",Underwriting!DR84) ->  | DI67: =IF(DI$55="","",Underwriting!DS84) ->  | DJ67: =IF(DJ$55="","",Underwriting!DT84) ->  | DK67: =IF(DK$55="","",Underwriting!DU84) ->  | DL67: =IF(DL$55="","",Underwriting!DV84) ->  | DM67: =IF(DM$55="","",Underwriting!DW84) ->  | DN67: =IF(DN$55="","",Underwriting!DX84) ->  | DO67: =IF(DO$55="","",Underwriting!DY84) ->  | DP67: =IF(DP$55="","",Underwriting!DZ84) ->  | DQ67: =IF(DQ$55="","",Underwriting!EA84) ->  | DR67: =IF(DR$55="","",Underwriting!EB84) ->  | DS67: =IF(DS$55="","",Underwriting!EC84) ->  | DT67: =IF(DT$55="","",Underwriting!ED84) ->  | DU67: =IF(DU$55="","",Underwriting!EE84) ->  | DV67: =IF(DV$55="","",Underwriting!EF84) ->  | DW67: =IF(DW$55="","",Underwriting!EG84) ->  | DX67: =IF(DX$55="","",Underwriting!EH84) ->  | DY67: =IF(DY$55="","",Underwriting!EI84) ->  | DZ67: =IF(DZ$55="","",Underwriting!EJ84) ->  | EA67: =IF(EA$55="","",Underwriting!EK84) ->  | EB67: =IF(EB$55="","",Underwriting!EL84) ->  | EC67: =IF(EC$55="","",Underwriting!EM84) ->  | ED67: =IF(ED$55="","",Underwriting!EN84) ->  | EE67: =IF(EE$55="","",Underwriting!EO84) ->  | EF67: =IF(EF$55="","",Underwriting!EP84) ->  | EG67: =IF(EG$55="","",Underwriting!EQ84) ->  | EH67: =IF(EH$55="","",Underwriting!ER84) ->  | EI67: =IF(EI$55="","",Underwriting!ES84) -> 
B69: MONTHLY OPERATING CASH FLOWS | G69: =+G55 -> 0 | H69: =+H55 -> 1 | I69: 2 | J69: 3 | K69: 4 | L69: 5 | M69: 6 | N69: 7 | O69: 8 | P69: 9 | Q69: 10 | R69: 11 | S69: 12 | T69: 13 | U69: 14 | V69: 15 | W69: 16 | X69: 17 | Y69: 18 | Z69: 19 | AA69: 20 | AB69: 21 | AC69: 22 | AD69: 23 | AE69: 24 | AF69: 25 | AG69: 26 | AH69: 27 | AI69: 28 | AJ69: 29 | AK69: 30 | AL69: 31 | AM69: 32 | AN69: 33 | AO69: 34 | AP69: 35 | AQ69: 36 | AR69: 37 | AS69: 38 | AT69: 39 | AU69: 40 | AV69: 41 | AW69: 42 | AX69: 43 | AY69: 44 | AZ69: 45 | BA69: 46 | BB69: 47 | BC69: 48 | BD69: 49 | BE69: 50 | BF69: 51 | BG69: 52 | BH69: 53 | BI69: 54 | BJ69: 55 | BK69: 56 | BL69: 57 | BM69: 58 | BN69: 59 | BO69: 60 | BP69: 61 | BQ69: 62 | BR69: 63 | BS69: 64 | BT69: =+BT55 -> 65 | BU69: 66 | BV69: 67 | BW69: 68 | BX69: 69 | BY69: 70 | BZ69: 71 | CA69: 72 | CB69: 73 | CC69: 74 | CD69: 75 | CE69: 76 | CF69: 77 | CG69: 78 | CH69: 79 | CI69: 80 | CJ69: 81 | CK69: 82 | CL69: 83 | CM69: 84 | EF69: =+EF55 -> 
B70: Rental Income | G70: =IF(G$69="","",Underwriting!Q111) -> 0 | H70: =IF(H$69="","",Underwriting!R111) -> 0 | I70: =IF(I$69="","",Underwriting!S111) -> 0 | J70: =IF(J$69="","",Underwriting!T111) -> 0 | K70: =IF(K$69="","",Underwriting!U111) -> 0 | L70: =IF(L$69="","",Underwriting!V111) -> 0 | M70: =IF(M$69="","",Underwriting!W111) -> 0 | N70: =IF(N$69="","",Underwriting!X111) -> 0 | O70: =IF(O$69="","",Underwriting!Y111) -> 0 | P70: =IF(P$69="","",Underwriting!Z111) -> 0 | Q70: =IF(Q$69="","",Underwriting!AA111) -> 0 | R70: =IF(R$69="","",Underwriting!AB111) -> 0 | S70: =IF(S$69="","",Underwriting!AC111) -> 0 | T70: =IF(T$69="","",Underwriting!AD111) -> 0 | U70: =IF(U$69="","",Underwriting!AE111) -> 0 | V70: =IF(V$69="","",Underwriting!AF111) -> 0 | W70: =IF(W$69="","",Underwriting!AG111) -> 0 | X70: =IF(X$69="","",Underwriting!AH111) -> 0 | Y70: =IF(Y$69="","",Underwriting!AI111) -> 0 | Z70: =IF(Z$69="","",Underwriting!AJ111) -> 0 | AA70: =IF(AA$69="","",Underwriting!AK111) -> 6624.065934 | AB70: =IF(AB$69="","",Underwriting!AL111) -> 13901.20879 | AC70: =IF(AC$69="","",Underwriting!AM111) -> 21178.35165 | AD70: =IF(AD$69="","",Underwriting!AN111) -> 28455.49451 | AE70: =IF(AE$69="","",Underwriting!AO111) -> 35732.63736 | AF70: =IF(AF$69="","",Underwriting!AP111) -> 43009.78022 | AG70: =IF(AG$69="","",Underwriting!AQ111) -> 50286.92308 | AH70: =IF(AH$69="","",Underwriting!AR111) -> 57564.06593 | AI70: =IF(AI$69="","",Underwriting!AS111) -> 64841.20879 | AJ70: =IF(AJ$69="","",Underwriting!AT111) -> 72118.35165 | AK70: =IF(AK$69="","",Underwriting!AU111) -> 79395.49451 | AL70: =IF(AL$69="","",Underwriting!AV111) -> 86672.63736 | AM70: =IF(AM$69="","",Underwriting!AW111) -> 93147.42857 | AN70: =IF(AN$69="","",Underwriting!AX111) -> 102074.0571 | AO70: =IF(AO$69="","",Underwriting!AY111) -> 109933.3714 | AP70: =IF(AP$69="","",Underwriting!AZ111) -> 117792.6857 | AQ70: =IF(AQ$69="","",Underwriting!BA111) -> 125652 | AR70: =IF(AR$69="","",Underwriting!BB111) -> 133511.3143 | AS70: =IF(AS$69="","",Underwriting!BC111) -> 141370.6286 | AT70: =IF(AT$69="","",Underwriting!BD111) -> 149229.9429 | AU70: =IF(AU$69="","",Underwriting!BE111) -> 157089.2571 | AV70: =IF(AV$69="","",Underwriting!BF111) -> 164948.5714 | AW70: =IF(AW$69="","",Underwriting!BG111) -> 172807.8857 | AX70: =IF(AX$69="","",Underwriting!BH111) -> 180667.2 | AY70: =IF(AY$69="","",Underwriting!BI111) -> 187994.7977 | AZ70: =IF(AZ$69="","",Underwriting!BJ111) -> 196168.4846 | BA70: =IF(BA$69="","",Underwriting!BK111) -> 205754.9074 | BB70: =IF(BB$69="","",Underwriting!BL111) -> 214231.3234 | BC70: =IF(BC$69="","",Underwriting!BM111) -> 222707.7394 | BD70: =IF(BD$69="","",Underwriting!BN111) -> 231184.1554 | BE70: =IF(BE$69="","",Underwriting!BO111) -> 239660.5714 | BF70: =IF(BF$69="","",Underwriting!BP111) -> 248136.9874 | BG70: =IF(BG$69="","",Underwriting!BQ111) -> 256613.4034 | BH70: =IF(BH$69="","",Underwriting!BR111) -> 265089.8194 | BI70: =IF(BI$69="","",Underwriting!BS111) -> 273566.2354 | BJ70: =IF(BJ$69="","",Underwriting!BT111) -> 282042.6514 | BK70: =IF(BK$69="","",Underwriting!BU111) -> 290280.9205 | BL70: =IF(BL$69="","",Underwriting!BV111) -> 299096.3931 | BM70: =IF(BM$69="","",Underwriting!BW111) -> 307911.8658 | BN70: =IF(BN$69="","",Underwriting!BX111) -> 318196.5839 | BO70: =IF(BO$69="","",Underwriting!BY111) -> 327326.8948 | BP70: =IF(BP$69="","",Underwriting!BZ111) -> 336457.2058 | BQ70: =IF(BQ$69="","",Underwriting!CA111) -> 374972.4255 | BR70: =IF(BR$69="","",Underwriting!CB111) -> 375916.9404 | BS70: =IF(BS$69="","",Underwriting!CC111) -> 376861.4554 | BT70: =IF(BT$69="","",Underwriting!CD111) -> 377805.9703 | BU70: =IF(BU$69="","",Underwriting!CE111) -> 378750.4852 | BV70: =IF(BV$69="","",Underwriting!CF111) -> 379695.0001 | BW70: =IF(BW$69="","",Underwriting!CG111) -> 381567.2386 | BX70: =IF(BX$69="","",Underwriting!CH111) -> 382549.5341 | BY70: =IF(BY$69="","",Underwriting!CI111) -> 383531.8297 | BZ70: =IF(BZ$69="","",Underwriting!CJ111) -> 384514.1252 | CA70: =IF(CA$69="","",Underwriting!CK111) -> 387024.436 | CB70: =IF(CB$69="","",Underwriting!CL111) -> 388334.1633 | CC70: =IF(CC$69="","",Underwriting!CM111) -> 389643.8907 | CD70: =IF(CD$69="","",Underwriting!CN111) -> 390953.6181 | CE70: =IF(CE$69="","",Underwriting!CO111) -> 391935.9136 | CF70: =IF(CF$69="","",Underwriting!CP111) -> 392918.2091 | CG70: =IF(CG$69="","",Underwriting!CQ111) -> 393900.5046 | CH70: =IF(CH$69="","",Underwriting!CR111) -> 394882.8001 | CI70: =IF(CI$69="","",Underwriting!CS111) -> 396829.9282 | CJ70: =IF(CJ$69="","",Underwriting!CT111) -> 397851.5155 | CK70: =IF(CK$69="","",Underwriting!CU111) -> 398873.1028 | CL70: =IF(CL$69="","",Underwriting!CV111) -> 399894.6902 | CM70: =IF(CM$69="","",Underwriting!CW111) -> 400916.2775 | CN70: =IF(CN$69="","",Underwriting!CX111) ->  | CO70: =IF(CO$69="","",Underwriting!CY111) ->  | CP70: =IF(CP$69="","",Underwriting!CZ111) ->  | CQ70: =IF(CQ$69="","",Underwriting!DA111) ->  | CR70: =IF(CR$69="","",Underwriting!DB111) ->  | CS70: =IF(CS$69="","",Underwriting!DC111) ->  | CT70: =IF(CT$69="","",Underwriting!DD111) ->  | CU70: =IF(CU$69="","",Underwriting!DE111) ->  | CV70: =IF(CV$69="","",Underwriting!DF111) ->  | CW70: =IF(CW$69="","",Underwriting!DG111) ->  | CX70: =IF(CX$69="","",Underwriting!DH111) ->  | CY70: =IF(CY$69="","",Underwriting!DI111) ->  | CZ70: =IF(CZ$69="","",Underwriting!DJ111) ->  | DA70: =IF(DA$69="","",Underwriting!DK111) ->  | DB70: =IF(DB$69="","",Underwriting!DL111) ->  | DC70: =IF(DC$69="","",Underwriting!DM111) ->  | DD70: =IF(DD$69="","",Underwriting!DN111) ->  | DE70: =IF(DE$69="","",Underwriting!DO111) ->  | DF70: =IF(DF$69="","",Underwriting!DP111) ->  | DG70: =IF(DG$69="","",Underwriting!DQ111) ->  | DH70: =IF(DH$69="","",Underwriting!DR111) ->  | DI70: =IF(DI$69="","",Underwriting!DS111) ->  | DJ70: =IF(DJ$69="","",Underwriting!DT111) ->  | DK70: =IF(DK$69="","",Underwriting!DU111) ->  | DL70: =IF(DL$69="","",Underwriting!DV111) ->  | DM70: =IF(DM$69="","",Underwriting!DW111) ->  | DN70: =IF(DN$69="","",Underwriting!DX111) ->  | DO70: =IF(DO$69="","",Underwriting!DY111) ->  | DP70: =IF(DP$69="","",Underwriting!DZ111) ->  | DQ70: =IF(DQ$69="","",Underwriting!EA111) ->  | DR70: =IF(DR$69="","",Underwriting!EB111) ->  | DS70: =IF(DS$69="","",Underwriting!EC111) ->  | DT70: =IF(DT$69="","",Underwriting!ED111) ->  | DU70: =IF(DU$69="","",Underwriting!EE111) ->  | DV70: =IF(DV$69="","",Underwriting!EF111) ->  | DW70: =IF(DW$69="","",Underwriting!EG111) ->  | DX70: =IF(DX$69="","",Underwriting!EH111) ->  | DY70: =IF(DY$69="","",Underwriting!EI111) ->  | DZ70: =IF(DZ$69="","",Underwriting!EJ111) ->  | EA70: =IF(EA$69="","",Underwriting!EK111) ->  | EB70: =IF(EB$69="","",Underwriting!EL111) ->  | EC70: =IF(EC$69="","",Underwriting!EM111) ->  | ED70: =IF(ED$69="","",Underwriting!EN111) ->  | EE70: =IF(EE$69="","",Underwriting!EO111) ->  | EF70: =IF(EF$69="","",Underwriting!EP111) ->  | EG70: =IF(EG$69="","",Underwriting!EQ111) ->  | EH70: =IF(EH$69="","",Underwriting!ER111) ->  | EI70: =IF(EI$69="","",Underwriting!ES111) -> 
B71: Other Income | G71: =IF(G$69="","",Underwriting!Q117) -> 0 | H71: =IF(H$69="","",Underwriting!R117) -> 0 | I71: =IF(I$69="","",Underwriting!S117) -> 0 | J71: =IF(J$69="","",Underwriting!T117) -> 0 | K71: =IF(K$69="","",Underwriting!U117) -> 0 | L71: =IF(L$69="","",Underwriting!V117) -> 0 | M71: =IF(M$69="","",Underwriting!W117) -> 0 | N71: =IF(N$69="","",Underwriting!X117) -> 0 | O71: =IF(O$69="","",Underwriting!Y117) -> 0 | P71: =IF(P$69="","",Underwriting!Z117) -> 0 | Q71: =IF(Q$69="","",Underwriting!AA117) -> 0 | R71: =IF(R$69="","",Underwriting!AB117) -> 0 | S71: =IF(S$69="","",Underwriting!AC117) -> 0 | T71: =IF(T$69="","",Underwriting!AD117) -> 0 | U71: =IF(U$69="","",Underwriting!AE117) -> 0 | V71: =IF(V$69="","",Underwriting!AF117) -> 0 | W71: =IF(W$69="","",Underwriting!AG117) -> 0 | X71: =IF(X$69="","",Underwriting!AH117) -> 0 | Y71: =IF(Y$69="","",Underwriting!AI117) -> 0 | Z71: =IF(Z$69="","",Underwriting!AJ117) -> 0 | AA71: =IF(AA$69="","",Underwriting!AK117) -> 3780 | AB71: =IF(AB$69="","",Underwriting!AL117) -> 4590 | AC71: =IF(AC$69="","",Underwriting!AM117) -> 5400 | AD71: =IF(AD$69="","",Underwriting!AN117) -> 6210 | AE71: =IF(AE$69="","",Underwriting!AO117) -> 7020 | AF71: =IF(AF$69="","",Underwriting!AP117) -> 7830 | AG71: =IF(AG$69="","",Underwriting!AQ117) -> 8640 | AH71: =IF(AH$69="","",Underwriting!AR117) -> 9450 | AI71: =IF(AI$69="","",Underwriting!AS117) -> 10260 | AJ71: =IF(AJ$69="","",Underwriting!AT117) -> 11070 | AK71: =IF(AK$69="","",Underwriting!AU117) -> 11880 | AL71: =IF(AL$69="","",Underwriting!AV117) -> 12690 | AM71: =IF(AM$69="","",Underwriting!AW117) -> 14040 | AN71: =IF(AN$69="","",Underwriting!AX117) -> 14882.4 | AO71: =IF(AO$69="","",Underwriting!AY117) -> 15724.8 | AP71: =IF(AP$69="","",Underwriting!AZ117) -> 16567.2 | AQ71: =IF(AQ$69="","",Underwriting!BA117) -> 17409.6 | AR71: =IF(AR$69="","",Underwriting!BB117) -> 18252 | AS71: =IF(AS$69="","",Underwriting!BC117) -> 19094.4 | AT71: =IF(AT$69="","",Underwriting!BD117) -> 19936.8 | AU71: =IF(AU$69="","",Underwriting!BE117) -> 20779.2 | AV71: =IF(AV$69="","",Underwriting!BF117) -> 21621.6 | AW71: =IF(AW$69="","",Underwriting!BG117) -> 22464 | AX71: =IF(AX$69="","",Underwriting!BH117) -> 23306.4 | AY71: =IF(AY$69="","",Underwriting!BI117) -> 25114.752 | AZ71: =IF(AZ$69="","",Underwriting!BJ117) -> 25990.848 | BA71: =IF(BA$69="","",Underwriting!BK117) -> 26866.944 | BB71: =IF(BB$69="","",Underwriting!BL117) -> 27743.04 | BC71: =IF(BC$69="","",Underwriting!BM117) -> 28619.136 | BD71: =IF(BD$69="","",Underwriting!BN117) -> 29495.232 | BE71: =IF(BE$69="","",Underwriting!BO117) -> 30371.328 | BF71: =IF(BF$69="","",Underwriting!BP117) -> 31247.424 | BG71: =IF(BG$69="","",Underwriting!BQ117) -> 32123.52 | BH71: =IF(BH$69="","",Underwriting!BR117) -> 32999.616 | BI71: =IF(BI$69="","",Underwriting!BS117) -> 33875.712 | BJ71: =IF(BJ$69="","",Underwriting!BT117) -> 34751.808 | BK71: =IF(BK$69="","",Underwriting!BU117) -> 37053.02016 | BL71: =IF(BL$69="","",Underwriting!BV117) -> 37964.16 | BM71: =IF(BM$69="","",Underwriting!BW117) -> 38875.29984 | BN71: =IF(BN$69="","",Underwriting!BX117) -> 39786.43968 | BO71: =IF(BO$69="","",Underwriting!BY117) -> 40697.57952 | BP71: =IF(BP$69="","",Underwriting!BZ117) -> 41608.71936 | BQ71: =IF(BQ$69="","",Underwriting!CA117) -> 42519.8592 | BR71: =IF(BR$69="","",Underwriting!CB117) -> 42519.8592 | BS71: =IF(BS$69="","",Underwriting!CC117) -> 42519.8592 | BT71: =IF(BT$69="","",Underwriting!CD117) -> 42519.8592 | BU71: =IF(BU$69="","",Underwriting!CE117) -> 42519.8592 | BV71: =IF(BV$69="","",Underwriting!CF117) -> 42519.8592 | BW71: =IF(BW$69="","",Underwriting!CG117) -> 44220.65357 | BX71: =IF(BX$69="","",Underwriting!CH117) -> 44220.65357 | BY71: =IF(BY$69="","",Underwriting!CI117) -> 44220.65357 | BZ71: =IF(BZ$69="","",Underwriting!CJ117) -> 44220.65357 | CA71: =IF(CA$69="","",Underwriting!CK117) -> 44220.65357 | CB71: =IF(CB$69="","",Underwriting!CL117) -> 44220.65357 | CC71: =IF(CC$69="","",Underwriting!CM117) -> 44220.65357 | CD71: =IF(CD$69="","",Underwriting!CN117) -> 44220.65357 | CE71: =IF(CE$69="","",Underwriting!CO117) -> 44220.65357 | CF71: =IF(CF$69="","",Underwriting!CP117) -> 44220.65357 | CG71: =IF(CG$69="","",Underwriting!CQ117) -> 44220.65357 | CH71: =IF(CH$69="","",Underwriting!CR117) -> 44220.65357 | CI71: =IF(CI$69="","",Underwriting!CS117) -> 45989.47971 | CJ71: =IF(CJ$69="","",Underwriting!CT117) -> 45989.47971 | CK71: =IF(CK$69="","",Underwriting!CU117) -> 45989.47971 | CL71: =IF(CL$69="","",Underwriting!CV117) -> 45989.47971 | CM71: =IF(CM$69="","",Underwriting!CW117) -> 45989.47971 | CN71: =IF(CN$69="","",Underwriting!CX117) ->  | CO71: =IF(CO$69="","",Underwriting!CY117) ->  | CP71: =IF(CP$69="","",Underwriting!CZ117) ->  | CQ71: =IF(CQ$69="","",Underwriting!DA117) ->  | CR71: =IF(CR$69="","",Underwriting!DB117) ->  | CS71: =IF(CS$69="","",Underwriting!DC117) ->  | CT71: =IF(CT$69="","",Underwriting!DD117) ->  | CU71: =IF(CU$69="","",Underwriting!DE117) ->  | CV71: =IF(CV$69="","",Underwriting!DF117) ->  | CW71: =IF(CW$69="","",Underwriting!DG117) ->  | CX71: =IF(CX$69="","",Underwriting!DH117) ->  | CY71: =IF(CY$69="","",Underwriting!DI117) ->  | CZ71: =IF(CZ$69="","",Underwriting!DJ117) ->  | DA71: =IF(DA$69="","",Underwriting!DK117) ->  | DB71: =IF(DB$69="","",Underwriting!DL117) ->  | DC71: =IF(DC$69="","",Underwriting!DM117) ->  | DD71: =IF(DD$69="","",Underwriting!DN117) ->  | DE71: =IF(DE$69="","",Underwriting!DO117) ->  | DF71: =IF(DF$69="","",Underwriting!DP117) ->  | DG71: =IF(DG$69="","",Underwriting!DQ117) ->  | DH71: =IF(DH$69="","",Underwriting!DR117) ->  | DI71: =IF(DI$69="","",Underwriting!DS117) ->  | DJ71: =IF(DJ$69="","",Underwriting!DT117) ->  | DK71: =IF(DK$69="","",Underwriting!DU117) ->  | DL71: =IF(DL$69="","",Underwriting!DV117) ->  | DM71: =IF(DM$69="","",Underwriting!DW117) ->  | DN71: =IF(DN$69="","",Underwriting!DX117) ->  | DO71: =IF(DO$69="","",Underwriting!DY117) ->  | DP71: =IF(DP$69="","",Underwriting!DZ117) ->  | DQ71: =IF(DQ$69="","",Underwriting!EA117) ->  | DR71: =IF(DR$69="","",Underwriting!EB117) ->  | DS71: =IF(DS$69="","",Underwriting!EC117) ->  | DT71: =IF(DT$69="","",Underwriting!ED117) ->  | DU71: =IF(DU$69="","",Underwriting!EE117) ->  | DV71: =IF(DV$69="","",Underwriting!EF117) ->  | DW71: =IF(DW$69="","",Underwriting!EG117) ->  | DX71: =IF(DX$69="","",Underwriting!EH117) ->  | DY71: =IF(DY$69="","",Underwriting!EI117) ->  | DZ71: =IF(DZ$69="","",Underwriting!EJ117) ->  | EA71: =IF(EA$69="","",Underwriting!EK117) ->  | EB71: =IF(EB$69="","",Underwriting!EL117) ->  | EC71: =IF(EC$69="","",Underwriting!EM117) ->  | ED71: =IF(ED$69="","",Underwriting!EN117) ->  | EE71: =IF(EE$69="","",Underwriting!EO117) ->  | EF71: =IF(EF$69="","",Underwriting!EP117) ->  | EG71: =IF(EG$69="","",Underwriting!EQ117) ->  | EH71: =IF(EH$69="","",Underwriting!ER117) ->  | EI71: =IF(EI$69="","",Underwriting!ES117) -> 
B72: Commercial Income (Net of Expenses) | G72: =IF(G$69="","",Underwriting!Q119) -> 0 | H72: =IF(H$69="","",Underwriting!R119) -> 0 | I72: =IF(I$69="","",Underwriting!S119) -> 0 | J72: =IF(J$69="","",Underwriting!T119) -> 0 | K72: =IF(K$69="","",Underwriting!U119) -> 0 | L72: =IF(L$69="","",Underwriting!V119) -> 0 | M72: =IF(M$69="","",Underwriting!W119) -> 0 | N72: =IF(N$69="","",Underwriting!X119) -> 0 | O72: =IF(O$69="","",Underwriting!Y119) -> 0 | P72: =IF(P$69="","",Underwriting!Z119) -> 0 | Q72: =IF(Q$69="","",Underwriting!AA119) -> 0 | R72: =IF(R$69="","",Underwriting!AB119) -> 0 | S72: =IF(S$69="","",Underwriting!AC119) -> 0 | T72: =IF(T$69="","",Underwriting!AD119) -> 0 | U72: =IF(U$69="","",Underwriting!AE119) -> 0 | V72: =IF(V$69="","",Underwriting!AF119) -> 0 | W72: =IF(W$69="","",Underwriting!AG119) -> 0 | X72: =IF(X$69="","",Underwriting!AH119) -> 0 | Y72: =IF(Y$69="","",Underwriting!AI119) -> 0 | Z72: =IF(Z$69="","",Underwriting!AJ119) -> 0 | AA72: =IF(AA$69="","",Underwriting!AK119) -> 0 | AB72: =IF(AB$69="","",Underwriting!AL119) -> 0 | AC72: =IF(AC$69="","",Underwriting!AM119) -> 0 | AD72: =IF(AD$69="","",Underwriting!AN119) -> 0 | AE72: =IF(AE$69="","",Underwriting!AO119) -> 0 | AF72: =IF(AF$69="","",Underwriting!AP119) -> 0 | AG72: =IF(AG$69="","",Underwriting!AQ119) -> 0 | AH72: =IF(AH$69="","",Underwriting!AR119) -> 0 | AI72: =IF(AI$69="","",Underwriting!AS119) -> 0 | AJ72: =IF(AJ$69="","",Underwriting!AT119) -> 0 | AK72: =IF(AK$69="","",Underwriting!AU119) -> 0 | AL72: =IF(AL$69="","",Underwriting!AV119) -> 0 | AM72: =IF(AM$69="","",Underwriting!AW119) -> 0 | AN72: =IF(AN$69="","",Underwriting!AX119) -> 0 | AO72: =IF(AO$69="","",Underwriting!AY119) -> 0 | AP72: =IF(AP$69="","",Underwriting!AZ119) -> 0 | AQ72: =IF(AQ$69="","",Underwriting!BA119) -> 0 | AR72: =IF(AR$69="","",Underwriting!BB119) -> 0 | AS72: =IF(AS$69="","",Underwriting!BC119) -> 0 | AT72: =IF(AT$69="","",Underwriting!BD119) -> 0 | AU72: =IF(AU$69="","",Underwriting!BE119) -> 0 | AV72: =IF(AV$69="","",Underwriting!BF119) -> 0 | AW72: =IF(AW$69="","",Underwriting!BG119) -> 0 | AX72: =IF(AX$69="","",Underwriting!BH119) -> 0 | AY72: =IF(AY$69="","",Underwriting!BI119) -> 0 | AZ72: =IF(AZ$69="","",Underwriting!BJ119) -> 0 | BA72: =IF(BA$69="","",Underwriting!BK119) -> 0 | BB72: =IF(BB$69="","",Underwriting!BL119) -> 0 | BC72: =IF(BC$69="","",Underwriting!BM119) -> 0 | BD72: =IF(BD$69="","",Underwriting!BN119) -> 0 | BE72: =IF(BE$69="","",Underwriting!BO119) -> 0 | BF72: =IF(BF$69="","",Underwriting!BP119) -> 0 | BG72: =IF(BG$69="","",Underwriting!BQ119) -> 0 | BH72: =IF(BH$69="","",Underwriting!BR119) -> 0 | BI72: =IF(BI$69="","",Underwriting!BS119) -> 0 | BJ72: =IF(BJ$69="","",Underwriting!BT119) -> 0 | BK72: =IF(BK$69="","",Underwriting!BU119) -> 0 | BL72: =IF(BL$69="","",Underwriting!BV119) -> 0 | BM72: =IF(BM$69="","",Underwriting!BW119) -> 0 | BN72: =IF(BN$69="","",Underwriting!BX119) -> 0 | BO72: =IF(BO$69="","",Underwriting!BY119) -> 0 | BP72: =IF(BP$69="","",Underwriting!BZ119) -> 0 | BQ72: =IF(BQ$69="","",Underwriting!CA119) -> 0 | BR72: =IF(BR$69="","",Underwriting!CB119) -> 0 | BS72: =IF(BS$69="","",Underwriting!CC119) -> 0 | BT72: =IF(BT$69="","",Underwriting!CD119) -> 0 | BU72: =IF(BU$69="","",Underwriting!CE119) -> 0 | BV72: =IF(BV$69="","",Underwriting!CF119) -> 0 | BW72: =IF(BW$69="","",Underwriting!CG119) -> 0 | BX72: =IF(BX$69="","",Underwriting!CH119) -> 0 | BY72: =IF(BY$69="","",Underwriting!CI119) -> 0 | BZ72: =IF(BZ$69="","",Underwriting!CJ119) -> 0 | CA72: =IF(CA$69="","",Underwriting!CK119) -> 0 | CB72: =IF(CB$69="","",Underwriting!CL119) -> 0 | CC72: =IF(CC$69="","",Underwriting!CM119) -> 0 | CD72: =IF(CD$69="","",Underwriting!CN119) -> 0 | CE72: =IF(CE$69="","",Underwriting!CO119) -> 0 | CF72: =IF(CF$69="","",Underwriting!CP119) -> 0 | CG72: =IF(CG$69="","",Underwriting!CQ119) -> 0 | CH72: =IF(CH$69="","",Underwriting!CR119) -> 0 | CI72: =IF(CI$69="","",Underwriting!CS119) -> 0 | CJ72: =IF(CJ$69="","",Underwriting!CT119) -> 0 | CK72: =IF(CK$69="","",Underwriting!CU119) -> 0 | CL72: =IF(CL$69="","",Underwriting!CV119) -> 0 | CM72: =IF(CM$69="","",Underwriting!CW119) -> 0 | CN72: =IF(CN$69="","",Underwriting!CX119) ->  | CO72: =IF(CO$69="","",Underwriting!CY119) ->  | CP72: =IF(CP$69="","",Underwriting!CZ119) ->  | CQ72: =IF(CQ$69="","",Underwriting!DA119) ->  | CR72: =IF(CR$69="","",Underwriting!DB119) ->  | CS72: =IF(CS$69="","",Underwriting!DC119) ->  | CT72: =IF(CT$69="","",Underwriting!DD119) ->  | CU72: =IF(CU$69="","",Underwriting!DE119) ->  | CV72: =IF(CV$69="","",Underwriting!DF119) ->  | CW72: =IF(CW$69="","",Underwriting!DG119) ->  | CX72: =IF(CX$69="","",Underwriting!DH119) ->  | CY72: =IF(CY$69="","",Underwriting!DI119) ->  | CZ72: =IF(CZ$69="","",Underwriting!DJ119) ->  | DA72: =IF(DA$69="","",Underwriting!DK119) ->  | DB72: =IF(DB$69="","",Underwriting!DL119) ->  | DC72: =IF(DC$69="","",Underwriting!DM119) ->  | DD72: =IF(DD$69="","",Underwriting!DN119) ->  | DE72: =IF(DE$69="","",Underwriting!DO119) ->  | DF72: =IF(DF$69="","",Underwriting!DP119) ->  | DG72: =IF(DG$69="","",Underwriting!DQ119) ->  | DH72: =IF(DH$69="","",Underwriting!DR119) ->  | DI72: =IF(DI$69="","",Underwriting!DS119) ->  | DJ72: =IF(DJ$69="","",Underwriting!DT119) ->  | DK72: =IF(DK$69="","",Underwriting!DU119) ->  | DL72: =IF(DL$69="","",Underwriting!DV119) ->  | DM72: =IF(DM$69="","",Underwriting!DW119) ->  | DN72: =IF(DN$69="","",Underwriting!DX119) ->  | DO72: =IF(DO$69="","",Underwriting!DY119) ->  | DP72: =IF(DP$69="","",Underwriting!DZ119) ->  | DQ72: =IF(DQ$69="","",Underwriting!EA119) ->  | DR72: =IF(DR$69="","",Underwriting!EB119) ->  | DS72: =IF(DS$69="","",Underwriting!EC119) ->  | DT72: =IF(DT$69="","",Underwriting!ED119) ->  | DU72: =IF(DU$69="","",Underwriting!EE119) ->  | DV72: =IF(DV$69="","",Underwriting!EF119) ->  | DW72: =IF(DW$69="","",Underwriting!EG119) ->  | DX72: =IF(DX$69="","",Underwriting!EH119) ->  | DY72: =IF(DY$69="","",Underwriting!EI119) ->  | DZ72: =IF(DZ$69="","",Underwriting!EJ119) ->  | EA72: =IF(EA$69="","",Underwriting!EK119) ->  | EB72: =IF(EB$69="","",Underwriting!EL119) ->  | EC72: =IF(EC$69="","",Underwriting!EM119) ->  | ED72: =IF(ED$69="","",Underwriting!EN119) ->  | EE72: =IF(EE$69="","",Underwriting!EO119) ->  | EF72: =IF(EF$69="","",Underwriting!EP119) ->  | EG72: =IF(EG$69="","",Underwriting!EQ119) ->  | EH72: =IF(EH$69="","",Underwriting!ER119) ->  | EI72: =IF(EI$69="","",Underwriting!ES119) -> 
B73: TOTAL POTENTIAL INCOME | G73: =IF(G$69="","",SUM(G70:G72)) -> 0 | H73: =IF(H$69="","",SUM(H70:H72)) -> 0 | I73: 0 | J73: 0 | K73: 0 | L73: 0 | M73: 0 | N73: 0 | O73: 0 | P73: 0 | Q73: 0 | R73: 0 | S73: 0 | T73: 0 | U73: 0 | V73: 0 | W73: 0 | X73: 0 | Y73: 0 | Z73: 0 | AA73: 10404.06593 | AB73: 18491.20879 | AC73: 26578.35165 | AD73: 34665.49451 | AE73: 42752.63736 | AF73: 50839.78022 | AG73: 58926.92308 | AH73: 67014.06593 | AI73: 75101.20879 | AJ73: 83188.35165 | AK73: 91275.49451 | AL73: 99362.63736 | AM73: 107187.4286 | AN73: 116956.4571 | AO73: 125658.1714 | AP73: 134359.8857 | AQ73: 143061.6 | AR73: 151763.3143 | AS73: 160465.0286 | AT73: 169166.7429 | AU73: 177868.4571 | AV73: 186570.1714 | AW73: 195271.8857 | AX73: 203973.6 | AY73: 213109.5497 | AZ73: 222159.3326 | BA73: 232621.8514 | BB73: 241974.3634 | BC73: 251326.8754 | BD73: 260679.3874 | BE73: 270031.8994 | BF73: 279384.4114 | BG73: 288736.9234 | BH73: 298089.4354 | BI73: 307441.9474 | BJ73: 316794.4594 | BK73: 327333.9407 | BL73: 337060.5531 | BM73: 346787.1656 | BN73: 357983.0235 | BO73: 368024.4743 | BP73: 378065.9251 | BQ73: 417492.2847 | BR73: 418436.7996 | BS73: 419381.3146 | BT73: =IF(BT$69="","",SUM(BT70:BT72)) -> 420325.8295 | BU73: 421270.3444 | BV73: 422214.8593 | BW73: 425787.8922 | BX73: 426770.1877 | BY73: 427752.4832 | BZ73: 428734.7787 | CA73: 431245.0895 | CB73: 432554.8169 | CC73: 433864.5443 | CD73: 435174.2716 | CE73: 436156.5671 | CF73: 437138.8627 | CG73: 438121.1582 | CH73: 439103.4537 | CI73: 442819.4079 | CJ73: 443840.9952 | CK73: 444862.5826 | CL73: 445884.1699 | CM73: 446905.7572 | EF73: =IF(EF$69="","",SUM(EF70:EF72)) -> 
B74: - General Vacancy and Credit Loss | G74: =IF(G$69="","",Underwriting!Q121+Underwriting!Q122) -> 0 | H74: =IF(H$69="","",Underwriting!R121+Underwriting!R122) -> 0 | I74: =IF(I$69="","",Underwriting!S121+Underwriting!S122) -> 0 | J74: =IF(J$69="","",Underwriting!T121+Underwriting!T122) -> 0 | K74: =IF(K$69="","",Underwriting!U121+Underwriting!U122) -> 0 | L74: =IF(L$69="","",Underwriting!V121+Underwriting!V122) -> 0 | M74: =IF(M$69="","",Underwriting!W121+Underwriting!W122) -> 0 | N74: =IF(N$69="","",Underwriting!X121+Underwriting!X122) -> 0 | O74: =IF(O$69="","",Underwriting!Y121+Underwriting!Y122) -> 0 | P74: =IF(P$69="","",Underwriting!Z121+Underwriting!Z122) -> 0 | Q74: =IF(Q$69="","",Underwriting!AA121+Underwriting!AA122) -> 0 | R74: =IF(R$69="","",Underwriting!AB121+Underwriting!AB122) -> 0 | S74: =IF(S$69="","",Underwriting!AC121+Underwriting!AC122) -> 0 | T74: =IF(T$69="","",Underwriting!AD121+Underwriting!AD122) -> 0 | U74: =IF(U$69="","",Underwriting!AE121+Underwriting!AE122) -> 0 | V74: =IF(V$69="","",Underwriting!AF121+Underwriting!AF122) -> 0 | W74: =IF(W$69="","",Underwriting!AG121+Underwriting!AG122) -> 0 | X74: =IF(X$69="","",Underwriting!AH121+Underwriting!AH122) -> 0 | Y74: =IF(Y$69="","",Underwriting!AI121+Underwriting!AI122) -> 0 | Z74: =IF(Z$69="","",Underwriting!AJ121+Underwriting!AJ122) -> 0 | AA74: =IF(AA$69="","",Underwriting!AK121+Underwriting!AK122) -> -624.243956 | AB74: =IF(AB$69="","",Underwriting!AL121+Underwriting!AL122) -> -1109.472527 | AC74: =IF(AC$69="","",Underwriting!AM121+Underwriting!AM122) -> -1594.701099 | AD74: =IF(AD$69="","",Underwriting!AN121+Underwriting!AN122) -> -2079.92967 | AE74: =IF(AE$69="","",Underwriting!AO121+Underwriting!AO122) -> -2565.158242 | AF74: =IF(AF$69="","",Underwriting!AP121+Underwriting!AP122) -> -3050.386813 | AG74: =IF(AG$69="","",Underwriting!AQ121+Underwriting!AQ122) -> -3535.615385 | AH74: =IF(AH$69="","",Underwriting!AR121+Underwriting!AR122) -> -4020.843956 | AI74: =IF(AI$69="","",Underwriting!AS121+Underwriting!AS122) -> -4506.072527 | AJ74: =IF(AJ$69="","",Underwriting!AT121+Underwriting!AT122) -> -4991.301099 | AK74: =IF(AK$69="","",Underwriting!AU121+Underwriting!AU122) -> -5476.52967 | AL74: =IF(AL$69="","",Underwriting!AV121+Underwriting!AV122) -> -5961.758242 | AM74: =IF(AM$69="","",Underwriting!AW121+Underwriting!AW122) -> -6431.245714 | AN74: =IF(AN$69="","",Underwriting!AX121+Underwriting!AX122) -> -7017.387429 | AO74: =IF(AO$69="","",Underwriting!AY121+Underwriting!AY122) -> -7539.490286 | AP74: =IF(AP$69="","",Underwriting!AZ121+Underwriting!AZ122) -> -8061.593143 | AQ74: =IF(AQ$69="","",Underwriting!BA121+Underwriting!BA122) -> -8583.696 | AR74: =IF(AR$69="","",Underwriting!BB121+Underwriting!BB122) -> -9105.798857 | AS74: =IF(AS$69="","",Underwriting!BC121+Underwriting!BC122) -> -9627.901714 | AT74: =IF(AT$69="","",Underwriting!BD121+Underwriting!BD122) -> -10150.00457 | AU74: =IF(AU$69="","",Underwriting!BE121+Underwriting!BE122) -> -10672.10743 | AV74: =IF(AV$69="","",Underwriting!BF121+Underwriting!BF122) -> -11194.21029 | AW74: =IF(AW$69="","",Underwriting!BG121+Underwriting!BG122) -> -11716.31314 | AX74: =IF(AX$69="","",Underwriting!BH121+Underwriting!BH122) -> -12238.416 | AY74: =IF(AY$69="","",Underwriting!BI121+Underwriting!BI122) -> -12786.57298 | AZ74: =IF(AZ$69="","",Underwriting!BJ121+Underwriting!BJ122) -> -13329.55995 | BA74: =IF(BA$69="","",Underwriting!BK121+Underwriting!BK122) -> -13957.31109 | BB74: =IF(BB$69="","",Underwriting!BL121+Underwriting!BL122) -> -14518.46181 | BC74: =IF(BC$69="","",Underwriting!BM121+Underwriting!BM122) -> -15079.61253 | BD74: =IF(BD$69="","",Underwriting!BN121+Underwriting!BN122) -> -15640.76325 | BE74: =IF(BE$69="","",Underwriting!BO121+Underwriting!BO122) -> -16201.91397 | BF74: =IF(BF$69="","",Underwriting!BP121+Underwriting!BP122) -> -16763.06469 | BG74: =IF(BG$69="","",Underwriting!BQ121+Underwriting!BQ122) -> -17324.21541 | BH74: =IF(BH$69="","",Underwriting!BR121+Underwriting!BR122) -> -17885.36613 | BI74: =IF(BI$69="","",Underwriting!BS121+Underwriting!BS122) -> -18446.51685 | BJ74: =IF(BJ$69="","",Underwriting!BT121+Underwriting!BT122) -> -19007.66757 | BK74: =IF(BK$69="","",Underwriting!BU121+Underwriting!BU122) -> -19640.03644 | BL74: =IF(BL$69="","",Underwriting!BV121+Underwriting!BV122) -> -20223.63319 | BM74: =IF(BM$69="","",Underwriting!BW121+Underwriting!BW122) -> -20807.22994 | BN74: =IF(BN$69="","",Underwriting!BX121+Underwriting!BX122) -> -21478.98141 | BO74: =IF(BO$69="","",Underwriting!BY121+Underwriting!BY122) -> -22081.46846 | BP74: =IF(BP$69="","",Underwriting!BZ121+Underwriting!BZ122) -> -22683.95551 | BQ74: =IF(BQ$69="","",Underwriting!CA121+Underwriting!CA122) -> -25049.53708 | BR74: =IF(BR$69="","",Underwriting!CB121+Underwriting!CB122) -> -25106.20798 | BS74: =IF(BS$69="","",Underwriting!CC121+Underwriting!CC122) -> -25162.87887 | BT74: =IF(BT$69="","",Underwriting!CD121+Underwriting!CD122) -> -25219.54977 | BU74: =IF(BU$69="","",Underwriting!CE121+Underwriting!CE122) -> -25276.22066 | BV74: =IF(BV$69="","",Underwriting!CF121+Underwriting!CF122) -> -25332.89156 | BW74: =IF(BW$69="","",Underwriting!CG121+Underwriting!CG122) -> -25547.27353 | BX74: =IF(BX$69="","",Underwriting!CH121+Underwriting!CH122) -> -25606.21126 | BY74: =IF(BY$69="","",Underwriting!CI121+Underwriting!CI122) -> -25665.14899 | BZ74: =IF(BZ$69="","",Underwriting!CJ121+Underwriting!CJ122) -> -25724.08672 | CA74: =IF(CA$69="","",Underwriting!CK121+Underwriting!CK122) -> -25874.70537 | CB74: =IF(CB$69="","",Underwriting!CL121+Underwriting!CL122) -> -25953.28901 | CC74: =IF(CC$69="","",Underwriting!CM121+Underwriting!CM122) -> -26031.87266 | CD74: =IF(CD$69="","",Underwriting!CN121+Underwriting!CN122) -> -26110.4563 | CE74: =IF(CE$69="","",Underwriting!CO121+Underwriting!CO122) -> -26169.39403 | CF74: =IF(CF$69="","",Underwriting!CP121+Underwriting!CP122) -> -26228.33176 | CG74: =IF(CG$69="","",Underwriting!CQ121+Underwriting!CQ122) -> -26287.26949 | CH74: =IF(CH$69="","",Underwriting!CR121+Underwriting!CR122) -> -26346.20722 | CI74: =IF(CI$69="","",Underwriting!CS121+Underwriting!CS122) -> -26569.16447 | CJ74: =IF(CJ$69="","",Underwriting!CT121+Underwriting!CT122) -> -26630.45971 | CK74: =IF(CK$69="","",Underwriting!CU121+Underwriting!CU122) -> -26691.75495 | CL74: =IF(CL$69="","",Underwriting!CV121+Underwriting!CV122) -> -26753.05019 | CM74: =IF(CM$69="","",Underwriting!CW121+Underwriting!CW122) -> -26814.34543 | CN74: =IF(CN$69="","",Underwriting!CX121+Underwriting!CX122) ->  | CO74: =IF(CO$69="","",Underwriting!CY121+Underwriting!CY122) ->  | CP74: =IF(CP$69="","",Underwriting!CZ121+Underwriting!CZ122) ->  | CQ74: =IF(CQ$69="","",Underwriting!DA121+Underwriting!DA122) ->  | CR74: =IF(CR$69="","",Underwriting!DB121+Underwriting!DB122) ->  | CS74: =IF(CS$69="","",Underwriting!DC121+Underwriting!DC122) ->  | CT74: =IF(CT$69="","",Underwriting!DD121+Underwriting!DD122) ->  | CU74: =IF(CU$69="","",Underwriting!DE121+Underwriting!DE122) ->  | CV74: =IF(CV$69="","",Underwriting!DF121+Underwriting!DF122) ->  | CW74: =IF(CW$69="","",Underwriting!DG121+Underwriting!DG122) ->  | CX74: =IF(CX$69="","",Underwriting!DH121+Underwriting!DH122) ->  | CY74: =IF(CY$69="","",Underwriting!DI121+Underwriting!DI122) ->  | CZ74: =IF(CZ$69="","",Underwriting!DJ121+Underwriting!DJ122) ->  | DA74: =IF(DA$69="","",Underwriting!DK121+Underwriting!DK122) ->  | DB74: =IF(DB$69="","",Underwriting!DL121+Underwriting!DL122) ->  | DC74: =IF(DC$69="","",Underwriting!DM121+Underwriting!DM122) ->  | DD74: =IF(DD$69="","",Underwriting!DN121+Underwriting!DN122) ->  | DE74: =IF(DE$69="","",Underwriting!DO121+Underwriting!DO122) ->  | DF74: =IF(DF$69="","",Underwriting!DP121+Underwriting!DP122) ->  | DG74: =IF(DG$69="","",Underwriting!DQ121+Underwriting!DQ122) ->  | DH74: =IF(DH$69="","",Underwriting!DR121+Underwriting!DR122) ->  | DI74: =IF(DI$69="","",Underwriting!DS121+Underwriting!DS122) ->  | DJ74: =IF(DJ$69="","",Underwriting!DT121+Underwriting!DT122) ->  | DK74: =IF(DK$69="","",Underwriting!DU121+Underwriting!DU122) ->  | DL74: =IF(DL$69="","",Underwriting!DV121+Underwriting!DV122) ->  | DM74: =IF(DM$69="","",Underwriting!DW121+Underwriting!DW122) ->  | DN74: =IF(DN$69="","",Underwriting!DX121+Underwriting!DX122) ->  | DO74: =IF(DO$69="","",Underwriting!DY121+Underwriting!DY122) ->  | DP74: =IF(DP$69="","",Underwriting!DZ121+Underwriting!DZ122) ->  | DQ74: =IF(DQ$69="","",Underwriting!EA121+Underwriting!EA122) ->  | DR74: =IF(DR$69="","",Underwriting!EB121+Underwriting!EB122) ->  | DS74: =IF(DS$69="","",Underwriting!EC121+Underwriting!EC122) ->  | DT74: =IF(DT$69="","",Underwriting!ED121+Underwriting!ED122) ->  | DU74: =IF(DU$69="","",Underwriting!EE121+Underwriting!EE122) ->  | DV74: =IF(DV$69="","",Underwriting!EF121+Underwriting!EF122) ->  | DW74: =IF(DW$69="","",Underwriting!EG121+Underwriting!EG122) ->  | DX74: =IF(DX$69="","",Underwriting!EH121+Underwriting!EH122) ->  | DY74: =IF(DY$69="","",Underwriting!EI121+Underwriting!EI122) ->  | DZ74: =IF(DZ$69="","",Underwriting!EJ121+Underwriting!EJ122) ->  | EA74: =IF(EA$69="","",Underwriting!EK121+Underwriting!EK122) ->  | EB74: =IF(EB$69="","",Underwriting!EL121+Underwriting!EL122) ->  | EC74: =IF(EC$69="","",Underwriting!EM121+Underwriting!EM122) ->  | ED74: =IF(ED$69="","",Underwriting!EN121+Underwriting!EN122) ->  | EE74: =IF(EE$69="","",Underwriting!EO121+Underwriting!EO122) ->  | EF74: =IF(EF$69="","",Underwriting!EP121+Underwriting!EP122) ->  | EG74: =IF(EG$69="","",Underwriting!EQ121+Underwriting!EQ122) ->  | EH74: =IF(EH$69="","",Underwriting!ER121+Underwriting!ER122) ->  | EI74: =IF(EI$69="","",Underwriting!ES121+Underwriting!ES122) -> 
B75: EFFECTIVE GROSS REVENUE | G75: =IF(G$69="","",SUM(G73:G74)) -> 0 | H75: =IF(H$69="","",SUM(H73:H74)) -> 0 | I75: 0 | J75: 0 | K75: 0 | L75: 0 | M75: 0 | N75: 0 | O75: 0 | P75: 0 | Q75: 0 | R75: 0 | S75: 0 | T75: 0 | U75: 0 | V75: 0 | W75: 0 | X75: 0 | Y75: 0 | Z75: 0 | AA75: 9779.821978 | AB75: 17381.73626 | AC75: 24983.65055 | AD75: 32585.56484 | AE75: 40187.47912 | AF75: 47789.39341 | AG75: 55391.30769 | AH75: 62993.22198 | AI75: 70595.13626 | AJ75: 78197.05055 | AK75: 85798.96484 | AL75: 93400.87912 | AM75: 100756.1829 | AN75: 109939.0697 | AO75: 118118.6811 | AP75: 126298.2926 | AQ75: 134477.904 | AR75: 142657.5154 | AS75: 150837.1269 | AT75: 159016.7383 | AU75: 167196.3497 | AV75: 175375.9611 | AW75: 183555.5726 | AX75: 191735.184 | AY75: 200322.9767 | AZ75: 208829.7726 | BA75: 218664.5403 | BB75: 227455.9016 | BC75: 236247.2629 | BD75: 245038.6242 | BE75: 253829.9855 | BF75: 262621.3467 | BG75: 271412.708 | BH75: 280204.0693 | BI75: 288995.4306 | BJ75: 297786.7919 | BK75: 307693.9042 | BL75: 316836.92 | BM75: 325979.9357 | BN75: 336504.0421 | BO75: 345943.0059 | BP75: 355381.9696 | BQ75: 392442.7476 | BR75: 393330.5917 | BS75: 394218.4357 | BT75: =IF(BT$69="","",SUM(BT73:BT74)) -> 395106.2797 | BU75: 395994.1237 | BV75: 396881.9678 | BW75: 400240.6186 | BX75: 401163.9764 | BY75: 402087.3342 | BZ75: 403010.692 | CA75: 405370.3842 | CB75: 406601.5279 | CC75: 407832.6716 | CD75: 409063.8153 | CE75: 409987.1731 | CF75: 410910.5309 | CG75: 411833.8887 | CH75: 412757.2465 | CI75: 416250.2434 | CJ75: 417210.5355 | CK75: 418170.8276 | CL75: 419131.1197 | CM75: 420091.4118 | EF75: =IF(EF$69="","",SUM(EF73:EF74)) -> 
B77: OPERATING EXPENSES
B78: Repairs and Maintenance | G78: =IF(G$69="","",Underwriting!Q130) -> 0 | H78: =IF(H$69="","",Underwriting!R130) -> 0 | I78: =IF(I$69="","",Underwriting!S130) -> 0 | J78: =IF(J$69="","",Underwriting!T130) -> 0 | K78: =IF(K$69="","",Underwriting!U130) -> 0 | L78: =IF(L$69="","",Underwriting!V130) -> 0 | M78: =IF(M$69="","",Underwriting!W130) -> 0 | N78: =IF(N$69="","",Underwriting!X130) -> 0 | O78: =IF(O$69="","",Underwriting!Y130) -> 0 | P78: =IF(P$69="","",Underwriting!Z130) -> 0 | Q78: =IF(Q$69="","",Underwriting!AA130) -> 0 | R78: =IF(R$69="","",Underwriting!AB130) -> 0 | S78: =IF(S$69="","",Underwriting!AC130) -> 0 | T78: =IF(T$69="","",Underwriting!AD130) -> 0 | U78: =IF(U$69="","",Underwriting!AE130) -> 0 | V78: =IF(V$69="","",Underwriting!AF130) -> 0 | W78: =IF(W$69="","",Underwriting!AG130) -> 0 | X78: =IF(X$69="","",Underwriting!AH130) -> 0 | Y78: =IF(Y$69="","",Underwriting!AI130) -> 0 | Z78: =IF(Z$69="","",Underwriting!AJ130) -> 0 | AA78: =IF(AA$69="","",Underwriting!AK130) -> 11666.66667 | AB78: =IF(AB$69="","",Underwriting!AL130) -> 11666.66667 | AC78: =IF(AC$69="","",Underwriting!AM130) -> 11666.66667 | AD78: =IF(AD$69="","",Underwriting!AN130) -> 11666.66667 | AE78: =IF(AE$69="","",Underwriting!AO130) -> 11666.66667 | AF78: =IF(AF$69="","",Underwriting!AP130) -> 11666.66667 | AG78: =IF(AG$69="","",Underwriting!AQ130) -> 11666.66667 | AH78: =IF(AH$69="","",Underwriting!AR130) -> 11666.66667 | AI78: =IF(AI$69="","",Underwriting!AS130) -> 11666.66667 | AJ78: =IF(AJ$69="","",Underwriting!AT130) -> 11666.66667 | AK78: =IF(AK$69="","",Underwriting!AU130) -> 11666.66667 | AL78: =IF(AL$69="","",Underwriting!AV130) -> 11666.66667 | AM78: =IF(AM$69="","",Underwriting!AW130) -> 12016.66667 | AN78: =IF(AN$69="","",Underwriting!AX130) -> 12016.66667 | AO78: =IF(AO$69="","",Underwriting!AY130) -> 12016.66667 | AP78: =IF(AP$69="","",Underwriting!AZ130) -> 12016.66667 | AQ78: =IF(AQ$69="","",Underwriting!BA130) -> 12016.66667 | AR78: =IF(AR$69="","",Underwriting!BB130) -> 12016.66667 | AS78: =IF(AS$69="","",Underwriting!BC130) -> 12016.66667 | AT78: =IF(AT$69="","",Underwriting!BD130) -> 12016.66667 | AU78: =IF(AU$69="","",Underwriting!BE130) -> 12016.66667 | AV78: =IF(AV$69="","",Underwriting!BF130) -> 12016.66667 | AW78: =IF(AW$69="","",Underwriting!BG130) -> 12016.66667 | AX78: =IF(AX$69="","",Underwriting!BH130) -> 12016.66667 | AY78: =IF(AY$69="","",Underwriting!BI130) -> 12377.16667 | AZ78: =IF(AZ$69="","",Underwriting!BJ130) -> 12377.16667 | BA78: =IF(BA$69="","",Underwriting!BK130) -> 12377.16667 | BB78: =IF(BB$69="","",Underwriting!BL130) -> 12377.16667 | BC78: =IF(BC$69="","",Underwriting!BM130) -> 12377.16667 | BD78: =IF(BD$69="","",Underwriting!BN130) -> 12377.16667 | BE78: =IF(BE$69="","",Underwriting!BO130) -> 12377.16667 | BF78: =IF(BF$69="","",Underwriting!BP130) -> 12377.16667 | BG78: =IF(BG$69="","",Underwriting!BQ130) -> 12377.16667 | BH78: =IF(BH$69="","",Underwriting!BR130) -> 12377.16667 | BI78: =IF(BI$69="","",Underwriting!BS130) -> 12377.16667 | BJ78: =IF(BJ$69="","",Underwriting!BT130) -> 12377.16667 | BK78: =IF(BK$69="","",Underwriting!BU130) -> 12748.48167 | BL78: =IF(BL$69="","",Underwriting!BV130) -> 12748.48167 | BM78: =IF(BM$69="","",Underwriting!BW130) -> 12748.48167 | BN78: =IF(BN$69="","",Underwriting!BX130) -> 12748.48167 | BO78: =IF(BO$69="","",Underwriting!BY130) -> 12748.48167 | BP78: =IF(BP$69="","",Underwriting!BZ130) -> 12748.48167 | BQ78: =IF(BQ$69="","",Underwriting!CA130) -> 12748.48167 | BR78: =IF(BR$69="","",Underwriting!CB130) -> 12748.48167 | BS78: =IF(BS$69="","",Underwriting!CC130) -> 12748.48167 | BT78: =IF(BT$69="","",Underwriting!CD130) -> 12748.48167 | BU78: =IF(BU$69="","",Underwriting!CE130) -> 12748.48167 | BV78: =IF(BV$69="","",Underwriting!CF130) -> 12748.48167 | BW78: =IF(BW$69="","",Underwriting!CG130) -> 13130.93612 | BX78: =IF(BX$69="","",Underwriting!CH130) -> 13130.93612 | BY78: =IF(BY$69="","",Underwriting!CI130) -> 13130.93612 | BZ78: =IF(BZ$69="","",Underwriting!CJ130) -> 13130.93612 | CA78: =IF(CA$69="","",Underwriting!CK130) -> 13130.93612 | CB78: =IF(CB$69="","",Underwriting!CL130) -> 13130.93612 | CC78: =IF(CC$69="","",Underwriting!CM130) -> 13130.93612 | CD78: =IF(CD$69="","",Underwriting!CN130) -> 13130.93612 | CE78: =IF(CE$69="","",Underwriting!CO130) -> 13130.93612 | CF78: =IF(CF$69="","",Underwriting!CP130) -> 13130.93612 | CG78: =IF(CG$69="","",Underwriting!CQ130) -> 13130.93612 | CH78: =IF(CH$69="","",Underwriting!CR130) -> 13130.93612 | CI78: =IF(CI$69="","",Underwriting!CS130) -> 13524.8642 | CJ78: =IF(CJ$69="","",Underwriting!CT130) -> 13524.8642 | CK78: =IF(CK$69="","",Underwriting!CU130) -> 13524.8642 | CL78: =IF(CL$69="","",Underwriting!CV130) -> 13524.8642 | CM78: =IF(CM$69="","",Underwriting!CW130) -> 13524.8642 | CN78: =IF(CN$69="","",Underwriting!CX130) ->  | CO78: =IF(CO$69="","",Underwriting!CY130) ->  | CP78: =IF(CP$69="","",Underwriting!CZ130) ->  | CQ78: =IF(CQ$69="","",Underwriting!DA130) ->  | CR78: =IF(CR$69="","",Underwriting!DB130) ->  | CS78: =IF(CS$69="","",Underwriting!DC130) ->  | CT78: =IF(CT$69="","",Underwriting!DD130) ->  | CU78: =IF(CU$69="","",Underwriting!DE130) ->  | CV78: =IF(CV$69="","",Underwriting!DF130) ->  | CW78: =IF(CW$69="","",Underwriting!DG130) ->  | CX78: =IF(CX$69="","",Underwriting!DH130) ->  | CY78: =IF(CY$69="","",Underwriting!DI130) ->  | CZ78: =IF(CZ$69="","",Underwriting!DJ130) ->  | DA78: =IF(DA$69="","",Underwriting!DK130) ->  | DB78: =IF(DB$69="","",Underwriting!DL130) ->  | DC78: =IF(DC$69="","",Underwriting!DM130) ->  | DD78: =IF(DD$69="","",Underwriting!DN130) ->  | DE78: =IF(DE$69="","",Underwriting!DO130) ->  | DF78: =IF(DF$69="","",Underwriting!DP130) ->  | DG78: =IF(DG$69="","",Underwriting!DQ130) ->  | DH78: =IF(DH$69="","",Underwriting!DR130) ->  | DI78: =IF(DI$69="","",Underwriting!DS130) ->  | DJ78: =IF(DJ$69="","",Underwriting!DT130) ->  | DK78: =IF(DK$69="","",Underwriting!DU130) ->  | DL78: =IF(DL$69="","",Underwriting!DV130) ->  | DM78: =IF(DM$69="","",Underwriting!DW130) ->  | DN78: =IF(DN$69="","",Underwriting!DX130) ->  | DO78: =IF(DO$69="","",Underwriting!DY130) ->  | DP78: =IF(DP$69="","",Underwriting!DZ130) ->  | DQ78: =IF(DQ$69="","",Underwriting!EA130) ->  | DR78: =IF(DR$69="","",Underwriting!EB130) ->  | DS78: =IF(DS$69="","",Underwriting!EC130) ->  | DT78: =IF(DT$69="","",Underwriting!ED130) ->  | DU78: =IF(DU$69="","",Underwriting!EE130) ->  | DV78: =IF(DV$69="","",Underwriting!EF130) ->  | DW78: =IF(DW$69="","",Underwriting!EG130) ->  | DX78: =IF(DX$69="","",Underwriting!EH130) ->  | DY78: =IF(DY$69="","",Underwriting!EI130) ->  | DZ78: =IF(DZ$69="","",Underwriting!EJ130) ->  | EA78: =IF(EA$69="","",Underwriting!EK130) ->  | EB78: =IF(EB$69="","",Underwriting!EL130) ->  | EC78: =IF(EC$69="","",Underwriting!EM130) ->  | ED78: =IF(ED$69="","",Underwriting!EN130) ->  | EE78: =IF(EE$69="","",Underwriting!EO130) ->  | EF78: =IF(EF$69="","",Underwriting!EP130) ->  | EG78: =IF(EG$69="","",Underwriting!EQ130) ->  | EH78: =IF(EH$69="","",Underwriting!ER130) ->  | EI78: =IF(EI$69="","",Underwriting!ES130) -> 
B79: Payroll | G79: =IF(G$69="","",Underwriting!Q131) -> 0 | H79: =IF(H$69="","",Underwriting!R131) -> 0 | I79: =IF(I$69="","",Underwriting!S131) -> 0 | J79: =IF(J$69="","",Underwriting!T131) -> 0 | K79: =IF(K$69="","",Underwriting!U131) -> 0 | L79: =IF(L$69="","",Underwriting!V131) -> 0 | M79: =IF(M$69="","",Underwriting!W131) -> 0 | N79: =IF(N$69="","",Underwriting!X131) -> 0 | O79: =IF(O$69="","",Underwriting!Y131) -> 0 | P79: =IF(P$69="","",Underwriting!Z131) -> 0 | Q79: =IF(Q$69="","",Underwriting!AA131) -> 0 | R79: =IF(R$69="","",Underwriting!AB131) -> 0 | S79: =IF(S$69="","",Underwriting!AC131) -> 0 | T79: =IF(T$69="","",Underwriting!AD131) -> 0 | U79: =IF(U$69="","",Underwriting!AE131) -> 0 | V79: =IF(V$69="","",Underwriting!AF131) -> 0 | W79: =IF(W$69="","",Underwriting!AG131) -> 0 | X79: =IF(X$69="","",Underwriting!AH131) -> 0 | Y79: =IF(Y$69="","",Underwriting!AI131) -> 0 | Z79: =IF(Z$69="","",Underwriting!AJ131) -> 0 | AA79: =IF(AA$69="","",Underwriting!AK131) -> 16333.33333 | AB79: =IF(AB$69="","",Underwriting!AL131) -> 16333.33333 | AC79: =IF(AC$69="","",Underwriting!AM131) -> 16333.33333 | AD79: =IF(AD$69="","",Underwriting!AN131) -> 16333.33333 | AE79: =IF(AE$69="","",Underwriting!AO131) -> 16333.33333 | AF79: =IF(AF$69="","",Underwriting!AP131) -> 16333.33333 | AG79: =IF(AG$69="","",Underwriting!AQ131) -> 16333.33333 | AH79: =IF(AH$69="","",Underwriting!AR131) -> 16333.33333 | AI79: =IF(AI$69="","",Underwriting!AS131) -> 16333.33333 | AJ79: =IF(AJ$69="","",Underwriting!AT131) -> 16333.33333 | AK79: =IF(AK$69="","",Underwriting!AU131) -> 16333.33333 | AL79: =IF(AL$69="","",Underwriting!AV131) -> 16333.33333 | AM79: =IF(AM$69="","",Underwriting!AW131) -> 16823.33333 | AN79: =IF(AN$69="","",Underwriting!AX131) -> 16823.33333 | AO79: =IF(AO$69="","",Underwriting!AY131) -> 16823.33333 | AP79: =IF(AP$69="","",Underwriting!AZ131) -> 16823.33333 | AQ79: =IF(AQ$69="","",Underwriting!BA131) -> 16823.33333 | AR79: =IF(AR$69="","",Underwriting!BB131) -> 16823.33333 | AS79: =IF(AS$69="","",Underwriting!BC131) -> 16823.33333 | AT79: =IF(AT$69="","",Underwriting!BD131) -> 16823.33333 | AU79: =IF(AU$69="","",Underwriting!BE131) -> 16823.33333 | AV79: =IF(AV$69="","",Underwriting!BF131) -> 16823.33333 | AW79: =IF(AW$69="","",Underwriting!BG131) -> 16823.33333 | AX79: =IF(AX$69="","",Underwriting!BH131) -> 16823.33333 | AY79: =IF(AY$69="","",Underwriting!BI131) -> 17328.03333 | AZ79: =IF(AZ$69="","",Underwriting!BJ131) -> 17328.03333 | BA79: =IF(BA$69="","",Underwriting!BK131) -> 17328.03333 | BB79: =IF(BB$69="","",Underwriting!BL131) -> 17328.03333 | BC79: =IF(BC$69="","",Underwriting!BM131) -> 17328.03333 | BD79: =IF(BD$69="","",Underwriting!BN131) -> 17328.03333 | BE79: =IF(BE$69="","",Underwriting!BO131) -> 17328.03333 | BF79: =IF(BF$69="","",Underwriting!BP131) -> 17328.03333 | BG79: =IF(BG$69="","",Underwriting!BQ131) -> 17328.03333 | BH79: =IF(BH$69="","",Underwriting!BR131) -> 17328.03333 | BI79: =IF(BI$69="","",Underwriting!BS131) -> 17328.03333 | BJ79: =IF(BJ$69="","",Underwriting!BT131) -> 17328.03333 | BK79: =IF(BK$69="","",Underwriting!BU131) -> 17847.87433 | BL79: =IF(BL$69="","",Underwriting!BV131) -> 17847.87433 | BM79: =IF(BM$69="","",Underwriting!BW131) -> 17847.87433 | BN79: =IF(BN$69="","",Underwriting!BX131) -> 17847.87433 | BO79: =IF(BO$69="","",Underwriting!BY131) -> 17847.87433 | BP79: =IF(BP$69="","",Underwriting!BZ131) -> 17847.87433 | BQ79: =IF(BQ$69="","",Underwriting!CA131) -> 17847.87433 | BR79: =IF(BR$69="","",Underwriting!CB131) -> 17847.87433 | BS79: =IF(BS$69="","",Underwriting!CC131) -> 17847.87433 | BT79: =IF(BT$69="","",Underwriting!CD131) -> 17847.87433 | BU79: =IF(BU$69="","",Underwriting!CE131) -> 17847.87433 | BV79: =IF(BV$69="","",Underwriting!CF131) -> 17847.87433 | BW79: =IF(BW$69="","",Underwriting!CG131) -> 18383.31056 | BX79: =IF(BX$69="","",Underwriting!CH131) -> 18383.31056 | BY79: =IF(BY$69="","",Underwriting!CI131) -> 18383.31056 | BZ79: =IF(BZ$69="","",Underwriting!CJ131) -> 18383.31056 | CA79: =IF(CA$69="","",Underwriting!CK131) -> 18383.31056 | CB79: =IF(CB$69="","",Underwriting!CL131) -> 18383.31056 | CC79: =IF(CC$69="","",Underwriting!CM131) -> 18383.31056 | CD79: =IF(CD$69="","",Underwriting!CN131) -> 18383.31056 | CE79: =IF(CE$69="","",Underwriting!CO131) -> 18383.31056 | CF79: =IF(CF$69="","",Underwriting!CP131) -> 18383.31056 | CG79: =IF(CG$69="","",Underwriting!CQ131) -> 18383.31056 | CH79: =IF(CH$69="","",Underwriting!CR131) -> 18383.31056 | CI79: =IF(CI$69="","",Underwriting!CS131) -> 18934.80988 | CJ79: =IF(CJ$69="","",Underwriting!CT131) -> 18934.80988 | CK79: =IF(CK$69="","",Underwriting!CU131) -> 18934.80988 | CL79: =IF(CL$69="","",Underwriting!CV131) -> 18934.80988 | CM79: =IF(CM$69="","",Underwriting!CW131) -> 18934.80988 | CN79: =IF(CN$69="","",Underwriting!CX131) ->  | CO79: =IF(CO$69="","",Underwriting!CY131) ->  | CP79: =IF(CP$69="","",Underwriting!CZ131) ->  | CQ79: =IF(CQ$69="","",Underwriting!DA131) ->  | CR79: =IF(CR$69="","",Underwriting!DB131) ->  | CS79: =IF(CS$69="","",Underwriting!DC131) ->  | CT79: =IF(CT$69="","",Underwriting!DD131) ->  | CU79: =IF(CU$69="","",Underwriting!DE131) ->  | CV79: =IF(CV$69="","",Underwriting!DF131) ->  | CW79: =IF(CW$69="","",Underwriting!DG131) ->  | CX79: =IF(CX$69="","",Underwriting!DH131) ->  | CY79: =IF(CY$69="","",Underwriting!DI131) ->  | CZ79: =IF(CZ$69="","",Underwriting!DJ131) ->  | DA79: =IF(DA$69="","",Underwriting!DK131) ->  | DB79: =IF(DB$69="","",Underwriting!DL131) ->  | DC79: =IF(DC$69="","",Underwriting!DM131) ->  | DD79: =IF(DD$69="","",Underwriting!DN131) ->  | DE79: =IF(DE$69="","",Underwriting!DO131) ->  | DF79: =IF(DF$69="","",Underwriting!DP131) ->  | DG79: =IF(DG$69="","",Underwriting!DQ131) ->  | DH79: =IF(DH$69="","",Underwriting!DR131) ->  | DI79: =IF(DI$69="","",Underwriting!DS131) ->  | DJ79: =IF(DJ$69="","",Underwriting!DT131) ->  | DK79: =IF(DK$69="","",Underwriting!DU131) ->  | DL79: =IF(DL$69="","",Underwriting!DV131) ->  | DM79: =IF(DM$69="","",Underwriting!DW131) ->  | DN79: =IF(DN$69="","",Underwriting!DX131) ->  | DO79: =IF(DO$69="","",Underwriting!DY131) ->  | DP79: =IF(DP$69="","",Underwriting!DZ131) ->  | DQ79: =IF(DQ$69="","",Underwriting!EA131) ->  | DR79: =IF(DR$69="","",Underwriting!EB131) ->  | DS79: =IF(DS$69="","",Underwriting!EC131) ->  | DT79: =IF(DT$69="","",Underwriting!ED131) ->  | DU79: =IF(DU$69="","",Underwriting!EE131) ->  | DV79: =IF(DV$69="","",Underwriting!EF131) ->  | DW79: =IF(DW$69="","",Underwriting!EG131) ->  | DX79: =IF(DX$69="","",Underwriting!EH131) ->  | DY79: =IF(DY$69="","",Underwriting!EI131) ->  | DZ79: =IF(DZ$69="","",Underwriting!EJ131) ->  | EA79: =IF(EA$69="","",Underwriting!EK131) ->  | EB79: =IF(EB$69="","",Underwriting!EL131) ->  | EC79: =IF(EC$69="","",Underwriting!EM131) ->  | ED79: =IF(ED$69="","",Underwriting!EN131) ->  | EE79: =IF(EE$69="","",Underwriting!EO131) ->  | EF79: =IF(EF$69="","",Underwriting!EP131) ->  | EG79: =IF(EG$69="","",Underwriting!EQ131) ->  | EH79: =IF(EH$69="","",Underwriting!ER131) ->  | EI79: =IF(EI$69="","",Underwriting!ES131) -> 
B80: General & Administrative | G80: =IF(G$69="","",Underwriting!Q132) -> 0 | H80: =IF(H$69="","",Underwriting!R132) -> 0 | I80: =IF(I$69="","",Underwriting!S132) -> 0 | J80: =IF(J$69="","",Underwriting!T132) -> 0 | K80: =IF(K$69="","",Underwriting!U132) -> 0 | L80: =IF(L$69="","",Underwriting!V132) -> 0 | M80: =IF(M$69="","",Underwriting!W132) -> 0 | N80: =IF(N$69="","",Underwriting!X132) -> 0 | O80: =IF(O$69="","",Underwriting!Y132) -> 0 | P80: =IF(P$69="","",Underwriting!Z132) -> 0 | Q80: =IF(Q$69="","",Underwriting!AA132) -> 0 | R80: =IF(R$69="","",Underwriting!AB132) -> 0 | S80: =IF(S$69="","",Underwriting!AC132) -> 0 | T80: =IF(T$69="","",Underwriting!AD132) -> 0 | U80: =IF(U$69="","",Underwriting!AE132) -> 0 | V80: =IF(V$69="","",Underwriting!AF132) -> 0 | W80: =IF(W$69="","",Underwriting!AG132) -> 0 | X80: =IF(X$69="","",Underwriting!AH132) -> 0 | Y80: =IF(Y$69="","",Underwriting!AI132) -> 0 | Z80: =IF(Z$69="","",Underwriting!AJ132) -> 0 | AA80: =IF(AA$69="","",Underwriting!AK132) -> 5425 | AB80: =IF(AB$69="","",Underwriting!AL132) -> 5462.5 | AC80: =IF(AC$69="","",Underwriting!AM132) -> 5500 | AD80: =IF(AD$69="","",Underwriting!AN132) -> 5537.5 | AE80: =IF(AE$69="","",Underwriting!AO132) -> 5575 | AF80: =IF(AF$69="","",Underwriting!AP132) -> 5612.5 | AG80: =IF(AG$69="","",Underwriting!AQ132) -> 5650 | AH80: =IF(AH$69="","",Underwriting!AR132) -> 5687.5 | AI80: =IF(AI$69="","",Underwriting!AS132) -> 5725 | AJ80: =IF(AJ$69="","",Underwriting!AT132) -> 5762.5 | AK80: =IF(AK$69="","",Underwriting!AU132) -> 5800 | AL80: =IF(AL$69="","",Underwriting!AV132) -> 5837.5 | AM80: =IF(AM$69="","",Underwriting!AW132) -> 6051.25 | AN80: =IF(AN$69="","",Underwriting!AX132) -> 6089.875 | AO80: =IF(AO$69="","",Underwriting!AY132) -> 6128.5 | AP80: =IF(AP$69="","",Underwriting!AZ132) -> 6167.125 | AQ80: =IF(AQ$69="","",Underwriting!BA132) -> 6205.75 | AR80: =IF(AR$69="","",Underwriting!BB132) -> 6244.375 | AS80: =IF(AS$69="","",Underwriting!BC132) -> 6283 | AT80: =IF(AT$69="","",Underwriting!BD132) -> 6321.625 | AU80: =IF(AU$69="","",Underwriting!BE132) -> 6360.25 | AV80: =IF(AV$69="","",Underwriting!BF132) -> 6398.875 | AW80: =IF(AW$69="","",Underwriting!BG132) -> 6437.5 | AX80: =IF(AX$69="","",Underwriting!BH132) -> 6476.125 | AY80: =IF(AY$69="","",Underwriting!BI132) -> 6710.1925 | AZ80: =IF(AZ$69="","",Underwriting!BJ132) -> 6749.97625 | BA80: =IF(BA$69="","",Underwriting!BK132) -> 6789.76 | BB80: =IF(BB$69="","",Underwriting!BL132) -> 6829.54375 | BC80: =IF(BC$69="","",Underwriting!BM132) -> 6869.3275 | BD80: =IF(BD$69="","",Underwriting!BN132) -> 6909.11125 | BE80: =IF(BE$69="","",Underwriting!BO132) -> 6948.895 | BF80: =IF(BF$69="","",Underwriting!BP132) -> 6988.67875 | BG80: =IF(BG$69="","",Underwriting!BQ132) -> 7028.4625 | BH80: =IF(BH$69="","",Underwriting!BR132) -> 7068.24625 | BI80: =IF(BI$69="","",Underwriting!BS132) -> 7108.03 | BJ80: =IF(BJ$69="","",Underwriting!BT132) -> 7147.81375 | BK80: =IF(BK$69="","",Underwriting!BU132) -> 7403.225425 | BL80: =IF(BL$69="","",Underwriting!BV132) -> 7444.202688 | BM80: =IF(BM$69="","",Underwriting!BW132) -> 7485.17995 | BN80: =IF(BN$69="","",Underwriting!BX132) -> 7526.157213 | BO80: =IF(BO$69="","",Underwriting!BY132) -> 7567.134475 | BP80: =IF(BP$69="","",Underwriting!BZ132) -> 7608.111738 | BQ80: =IF(BQ$69="","",Underwriting!CA132) -> 7649.089 | BR80: =IF(BR$69="","",Underwriting!CB132) -> 7649.089 | BS80: =IF(BS$69="","",Underwriting!CC132) -> 7649.089 | BT80: =IF(BT$69="","",Underwriting!CD132) -> 7649.089 | BU80: =IF(BU$69="","",Underwriting!CE132) -> 7649.089 | BV80: =IF(BV$69="","",Underwriting!CF132) -> 7649.089 | BW80: =IF(BW$69="","",Underwriting!CG132) -> 7878.56167 | BX80: =IF(BX$69="","",Underwriting!CH132) -> 7878.56167 | BY80: =IF(BY$69="","",Underwriting!CI132) -> 7878.56167 | BZ80: =IF(BZ$69="","",Underwriting!CJ132) -> 7878.56167 | CA80: =IF(CA$69="","",Underwriting!CK132) -> 7878.56167 | CB80: =IF(CB$69="","",Underwriting!CL132) -> 7878.56167 | CC80: =IF(CC$69="","",Underwriting!CM132) -> 7878.56167 | CD80: =IF(CD$69="","",Underwriting!CN132) -> 7878.56167 | CE80: =IF(CE$69="","",Underwriting!CO132) -> 7878.56167 | CF80: =IF(CF$69="","",Underwriting!CP132) -> 7878.56167 | CG80: =IF(CG$69="","",Underwriting!CQ132) -> 7878.56167 | CH80: =IF(CH$69="","",Underwriting!CR132) -> 7878.56167 | CI80: =IF(CI$69="","",Underwriting!CS132) -> 8114.91852 | CJ80: =IF(CJ$69="","",Underwriting!CT132) -> 8114.91852 | CK80: =IF(CK$69="","",Underwriting!CU132) -> 8114.91852 | CL80: =IF(CL$69="","",Underwriting!CV132) -> 8114.91852 | CM80: =IF(CM$69="","",Underwriting!CW132) -> 8114.91852 | CN80: =IF(CN$69="","",Underwriting!CX132) ->  | CO80: =IF(CO$69="","",Underwriting!CY132) ->  | CP80: =IF(CP$69="","",Underwriting!CZ132) ->  | CQ80: =IF(CQ$69="","",Underwriting!DA132) ->  | CR80: =IF(CR$69="","",Underwriting!DB132) ->  | CS80: =IF(CS$69="","",Underwriting!DC132) ->  | CT80: =IF(CT$69="","",Underwriting!DD132) ->  | CU80: =IF(CU$69="","",Underwriting!DE132) ->  | CV80: =IF(CV$69="","",Underwriting!DF132) ->  | CW80: =IF(CW$69="","",Underwriting!DG132) ->  | CX80: =IF(CX$69="","",Underwriting!DH132) ->  | CY80: =IF(CY$69="","",Underwriting!DI132) ->  | CZ80: =IF(CZ$69="","",Underwriting!DJ132) ->  | DA80: =IF(DA$69="","",Underwriting!DK132) ->  | DB80: =IF(DB$69="","",Underwriting!DL132) ->  | DC80: =IF(DC$69="","",Underwriting!DM132) ->  | DD80: =IF(DD$69="","",Underwriting!DN132) ->  | DE80: =IF(DE$69="","",Underwriting!DO132) ->  | DF80: =IF(DF$69="","",Underwriting!DP132) ->  | DG80: =IF(DG$69="","",Underwriting!DQ132) ->  | DH80: =IF(DH$69="","",Underwriting!DR132) ->  | DI80: =IF(DI$69="","",Underwriting!DS132) ->  | DJ80: =IF(DJ$69="","",Underwriting!DT132) ->  | DK80: =IF(DK$69="","",Underwriting!DU132) ->  | DL80: =IF(DL$69="","",Underwriting!DV132) ->  | DM80: =IF(DM$69="","",Underwriting!DW132) ->  | DN80: =IF(DN$69="","",Underwriting!DX132) ->  | DO80: =IF(DO$69="","",Underwriting!DY132) ->  | DP80: =IF(DP$69="","",Underwriting!DZ132) ->  | DQ80: =IF(DQ$69="","",Underwriting!EA132) ->  | DR80: =IF(DR$69="","",Underwriting!EB132) ->  | DS80: =IF(DS$69="","",Underwriting!EC132) ->  | DT80: =IF(DT$69="","",Underwriting!ED132) ->  | DU80: =IF(DU$69="","",Underwriting!EE132) ->  | DV80: =IF(DV$69="","",Underwriting!EF132) ->  | DW80: =IF(DW$69="","",Underwriting!EG132) ->  | DX80: =IF(DX$69="","",Underwriting!EH132) ->  | DY80: =IF(DY$69="","",Underwriting!EI132) ->  | DZ80: =IF(DZ$69="","",Underwriting!EJ132) ->  | EA80: =IF(EA$69="","",Underwriting!EK132) ->  | EB80: =IF(EB$69="","",Underwriting!EL132) ->  | EC80: =IF(EC$69="","",Underwriting!EM132) ->  | ED80: =IF(ED$69="","",Underwriting!EN132) ->  | EE80: =IF(EE$69="","",Underwriting!EO132) ->  | EF80: =IF(EF$69="","",Underwriting!EP132) ->  | EG80: =IF(EG$69="","",Underwriting!EQ132) ->  | EH80: =IF(EH$69="","",Underwriting!ER132) ->  | EI80: =IF(EI$69="","",Underwriting!ES132) -> 
B81: Marketing | G81: =IF(G$69="","",Underwriting!Q133) -> 0 | H81: =IF(H$69="","",Underwriting!R133) -> 0 | I81: =IF(I$69="","",Underwriting!S133) -> 0 | J81: =IF(J$69="","",Underwriting!T133) -> 0 | K81: =IF(K$69="","",Underwriting!U133) -> 0 | L81: =IF(L$69="","",Underwriting!V133) -> 0 | M81: =IF(M$69="","",Underwriting!W133) -> 0 | N81: =IF(N$69="","",Underwriting!X133) -> 0 | O81: =IF(O$69="","",Underwriting!Y133) -> 0 | P81: =IF(P$69="","",Underwriting!Z133) -> 0 | Q81: =IF(Q$69="","",Underwriting!AA133) -> 0 | R81: =IF(R$69="","",Underwriting!AB133) -> 0 | S81: =IF(S$69="","",Underwriting!AC133) -> 0 | T81: =IF(T$69="","",Underwriting!AD133) -> 0 | U81: =IF(U$69="","",Underwriting!AE133) -> 0 | V81: =IF(V$69="","",Underwriting!AF133) -> 0 | W81: =IF(W$69="","",Underwriting!AG133) -> 0 | X81: =IF(X$69="","",Underwriting!AH133) -> 0 | Y81: =IF(Y$69="","",Underwriting!AI133) -> 0 | Z81: =IF(Z$69="","",Underwriting!AJ133) -> 0 | AA81: =IF(AA$69="","",Underwriting!AK133) -> 5833.333333 | AB81: =IF(AB$69="","",Underwriting!AL133) -> 5833.333333 | AC81: =IF(AC$69="","",Underwriting!AM133) -> 5833.333333 | AD81: =IF(AD$69="","",Underwriting!AN133) -> 5833.333333 | AE81: =IF(AE$69="","",Underwriting!AO133) -> 5833.333333 | AF81: =IF(AF$69="","",Underwriting!AP133) -> 5833.333333 | AG81: =IF(AG$69="","",Underwriting!AQ133) -> 5833.333333 | AH81: =IF(AH$69="","",Underwriting!AR133) -> 5833.333333 | AI81: =IF(AI$69="","",Underwriting!AS133) -> 5833.333333 | AJ81: =IF(AJ$69="","",Underwriting!AT133) -> 5833.333333 | AK81: =IF(AK$69="","",Underwriting!AU133) -> 5833.333333 | AL81: =IF(AL$69="","",Underwriting!AV133) -> 5833.333333 | AM81: =IF(AM$69="","",Underwriting!AW133) -> 6008.333333 | AN81: =IF(AN$69="","",Underwriting!AX133) -> 6008.333333 | AO81: =IF(AO$69="","",Underwriting!AY133) -> 6008.333333 | AP81: =IF(AP$69="","",Underwriting!AZ133) -> 6008.333333 | AQ81: =IF(AQ$69="","",Underwriting!BA133) -> 6008.333333 | AR81: =IF(AR$69="","",Underwriting!BB133) -> 6008.333333 | AS81: =IF(AS$69="","",Underwriting!BC133) -> 6008.333333 | AT81: =IF(AT$69="","",Underwriting!BD133) -> 6008.333333 | AU81: =IF(AU$69="","",Underwriting!BE133) -> 6008.333333 | AV81: =IF(AV$69="","",Underwriting!BF133) -> 6008.333333 | AW81: =IF(AW$69="","",Underwriting!BG133) -> 6008.333333 | AX81: =IF(AX$69="","",Underwriting!BH133) -> 6008.333333 | AY81: =IF(AY$69="","",Underwriting!BI133) -> 6188.583333 | AZ81: =IF(AZ$69="","",Underwriting!BJ133) -> 6188.583333 | BA81: =IF(BA$69="","",Underwriting!BK133) -> 6188.583333 | BB81: =IF(BB$69="","",Underwriting!BL133) -> 6188.583333 | BC81: =IF(BC$69="","",Underwriting!BM133) -> 6188.583333 | BD81: =IF(BD$69="","",Underwriting!BN133) -> 6188.583333 | BE81: =IF(BE$69="","",Underwriting!BO133) -> 6188.583333 | BF81: =IF(BF$69="","",Underwriting!BP133) -> 6188.583333 | BG81: =IF(BG$69="","",Underwriting!BQ133) -> 6188.583333 | BH81: =IF(BH$69="","",Underwriting!BR133) -> 6188.583333 | BI81: =IF(BI$69="","",Underwriting!BS133) -> 6188.583333 | BJ81: =IF(BJ$69="","",Underwriting!BT133) -> 6188.583333 | BK81: =IF(BK$69="","",Underwriting!BU133) -> 6374.240833 | BL81: =IF(BL$69="","",Underwriting!BV133) -> 6374.240833 | BM81: =IF(BM$69="","",Underwriting!BW133) -> 6374.240833 | BN81: =IF(BN$69="","",Underwriting!BX133) -> 6374.240833 | BO81: =IF(BO$69="","",Underwriting!BY133) -> 6374.240833 | BP81: =IF(BP$69="","",Underwriting!BZ133) -> 6374.240833 | BQ81: =IF(BQ$69="","",Underwriting!CA133) -> 6374.240833 | BR81: =IF(BR$69="","",Underwriting!CB133) -> 6374.240833 | BS81: =IF(BS$69="","",Underwriting!CC133) -> 6374.240833 | BT81: =IF(BT$69="","",Underwriting!CD133) -> 6374.240833 | BU81: =IF(BU$69="","",Underwriting!CE133) -> 6374.240833 | BV81: =IF(BV$69="","",Underwriting!CF133) -> 6374.240833 | BW81: =IF(BW$69="","",Underwriting!CG133) -> 6565.468058 | BX81: =IF(BX$69="","",Underwriting!CH133) -> 6565.468058 | BY81: =IF(BY$69="","",Underwriting!CI133) -> 6565.468058 | BZ81: =IF(BZ$69="","",Underwriting!CJ133) -> 6565.468058 | CA81: =IF(CA$69="","",Underwriting!CK133) -> 6565.468058 | CB81: =IF(CB$69="","",Underwriting!CL133) -> 6565.468058 | CC81: =IF(CC$69="","",Underwriting!CM133) -> 6565.468058 | CD81: =IF(CD$69="","",Underwriting!CN133) -> 6565.468058 | CE81: =IF(CE$69="","",Underwriting!CO133) -> 6565.468058 | CF81: =IF(CF$69="","",Underwriting!CP133) -> 6565.468058 | CG81: =IF(CG$69="","",Underwriting!CQ133) -> 6565.468058 | CH81: =IF(CH$69="","",Underwriting!CR133) -> 6565.468058 | CI81: =IF(CI$69="","",Underwriting!CS133) -> 6762.4321 | CJ81: =IF(CJ$69="","",Underwriting!CT133) -> 6762.4321 | CK81: =IF(CK$69="","",Underwriting!CU133) -> 6762.4321 | CL81: =IF(CL$69="","",Underwriting!CV133) -> 6762.4321 | CM81: =IF(CM$69="","",Underwriting!CW133) -> 6762.4321 | CN81: =IF(CN$69="","",Underwriting!CX133) ->  | CO81: =IF(CO$69="","",Underwriting!CY133) ->  | CP81: =IF(CP$69="","",Underwriting!CZ133) ->  | CQ81: =IF(CQ$69="","",Underwriting!DA133) ->  | CR81: =IF(CR$69="","",Underwriting!DB133) ->  | CS81: =IF(CS$69="","",Underwriting!DC133) ->  | CT81: =IF(CT$69="","",Underwriting!DD133) ->  | CU81: =IF(CU$69="","",Underwriting!DE133) ->  | CV81: =IF(CV$69="","",Underwriting!DF133) ->  | CW81: =IF(CW$69="","",Underwriting!DG133) ->  | CX81: =IF(CX$69="","",Underwriting!DH133) ->  | CY81: =IF(CY$69="","",Underwriting!DI133) ->  | CZ81: =IF(CZ$69="","",Underwriting!DJ133) ->  | DA81: =IF(DA$69="","",Underwriting!DK133) ->  | DB81: =IF(DB$69="","",Underwriting!DL133) ->  | DC81: =IF(DC$69="","",Underwriting!DM133) ->  | DD81: =IF(DD$69="","",Underwriting!DN133) ->  | DE81: =IF(DE$69="","",Underwriting!DO133) ->  | DF81: =IF(DF$69="","",Underwriting!DP133) ->  | DG81: =IF(DG$69="","",Underwriting!DQ133) ->  | DH81: =IF(DH$69="","",Underwriting!DR133) ->  | DI81: =IF(DI$69="","",Underwriting!DS133) ->  | DJ81: =IF(DJ$69="","",Underwriting!DT133) ->  | DK81: =IF(DK$69="","",Underwriting!DU133) ->  | DL81: =IF(DL$69="","",Underwriting!DV133) ->  | DM81: =IF(DM$69="","",Underwriting!DW133) ->  | DN81: =IF(DN$69="","",Underwriting!DX133) ->  | DO81: =IF(DO$69="","",Underwriting!DY133) ->  | DP81: =IF(DP$69="","",Underwriting!DZ133) ->  | DQ81: =IF(DQ$69="","",Underwriting!EA133) ->  | DR81: =IF(DR$69="","",Underwriting!EB133) ->  | DS81: =IF(DS$69="","",Underwriting!EC133) ->  | DT81: =IF(DT$69="","",Underwriting!ED133) ->  | DU81: =IF(DU$69="","",Underwriting!EE133) ->  | DV81: =IF(DV$69="","",Underwriting!EF133) ->  | DW81: =IF(DW$69="","",Underwriting!EG133) ->  | DX81: =IF(DX$69="","",Underwriting!EH133) ->  | DY81: =IF(DY$69="","",Underwriting!EI133) ->  | DZ81: =IF(DZ$69="","",Underwriting!EJ133) ->  | EA81: =IF(EA$69="","",Underwriting!EK133) ->  | EB81: =IF(EB$69="","",Underwriting!EL133) ->  | EC81: =IF(EC$69="","",Underwriting!EM133) ->  | ED81: =IF(ED$69="","",Underwriting!EN133) ->  | EE81: =IF(EE$69="","",Underwriting!EO133) ->  | EF81: =IF(EF$69="","",Underwriting!EP133) ->  | EG81: =IF(EG$69="","",Underwriting!EQ133) ->  | EH81: =IF(EH$69="","",Underwriting!ER133) ->  | EI81: =IF(EI$69="","",Underwriting!ES133) -> 
B82: Utilities | G82: =IF(G$69="","",Underwriting!Q134) -> 0 | H82: =IF(H$69="","",Underwriting!R134) -> 0 | I82: =IF(I$69="","",Underwriting!S134) -> 0 | J82: =IF(J$69="","",Underwriting!T134) -> 0 | K82: =IF(K$69="","",Underwriting!U134) -> 0 | L82: =IF(L$69="","",Underwriting!V134) -> 0 | M82: =IF(M$69="","",Underwriting!W134) -> 0 | N82: =IF(N$69="","",Underwriting!X134) -> 0 | O82: =IF(O$69="","",Underwriting!Y134) -> 0 | P82: =IF(P$69="","",Underwriting!Z134) -> 0 | Q82: =IF(Q$69="","",Underwriting!AA134) -> 0 | R82: =IF(R$69="","",Underwriting!AB134) -> 0 | S82: =IF(S$69="","",Underwriting!AC134) -> 0 | T82: =IF(T$69="","",Underwriting!AD134) -> 0 | U82: =IF(U$69="","",Underwriting!AE134) -> 0 | V82: =IF(V$69="","",Underwriting!AF134) -> 0 | W82: =IF(W$69="","",Underwriting!AG134) -> 0 | X82: =IF(X$69="","",Underwriting!AH134) -> 0 | Y82: =IF(Y$69="","",Underwriting!AI134) -> 0 | Z82: =IF(Z$69="","",Underwriting!AJ134) -> 0 | AA82: =IF(AA$69="","",Underwriting!AK134) -> 3208.333333 | AB82: =IF(AB$69="","",Underwriting!AL134) -> 3270.833333 | AC82: =IF(AC$69="","",Underwriting!AM134) -> 3333.333333 | AD82: =IF(AD$69="","",Underwriting!AN134) -> 3395.833333 | AE82: =IF(AE$69="","",Underwriting!AO134) -> 3458.333333 | AF82: =IF(AF$69="","",Underwriting!AP134) -> 3520.833333 | AG82: =IF(AG$69="","",Underwriting!AQ134) -> 3583.333333 | AH82: =IF(AH$69="","",Underwriting!AR134) -> 3645.833333 | AI82: =IF(AI$69="","",Underwriting!AS134) -> 3708.333333 | AJ82: =IF(AJ$69="","",Underwriting!AT134) -> 3770.833333 | AK82: =IF(AK$69="","",Underwriting!AU134) -> 3833.333333 | AL82: =IF(AL$69="","",Underwriting!AV134) -> 3895.833333 | AM82: =IF(AM$69="","",Underwriting!AW134) -> 4077.083333 | AN82: =IF(AN$69="","",Underwriting!AX134) -> 4141.458333 | AO82: =IF(AO$69="","",Underwriting!AY134) -> 4205.833333 | AP82: =IF(AP$69="","",Underwriting!AZ134) -> 4270.208333 | AQ82: =IF(AQ$69="","",Underwriting!BA134) -> 4334.583333 | AR82: =IF(AR$69="","",Underwriting!BB134) -> 4398.958333 | AS82: =IF(AS$69="","",Underwriting!BC134) -> 4463.333333 | AT82: =IF(AT$69="","",Underwriting!BD134) -> 4527.708333 | AU82: =IF(AU$69="","",Underwriting!BE134) -> 4592.083333 | AV82: =IF(AV$69="","",Underwriting!BF134) -> 4656.458333 | AW82: =IF(AW$69="","",Underwriting!BG134) -> 4720.833333 | AX82: =IF(AX$69="","",Underwriting!BH134) -> 4785.208333 | AY82: =IF(AY$69="","",Underwriting!BI134) -> 4995.070833 | AZ82: =IF(AZ$69="","",Underwriting!BJ134) -> 5061.377083 | BA82: =IF(BA$69="","",Underwriting!BK134) -> 5127.683333 | BB82: =IF(BB$69="","",Underwriting!BL134) -> 5193.989583 | BC82: =IF(BC$69="","",Underwriting!BM134) -> 5260.295833 | BD82: =IF(BD$69="","",Underwriting!BN134) -> 5326.602083 | BE82: =IF(BE$69="","",Underwriting!BO134) -> 5392.908333 | BF82: =IF(BF$69="","",Underwriting!BP134) -> 5459.214583 | BG82: =IF(BG$69="","",Underwriting!BQ134) -> 5525.520833 | BH82: =IF(BH$69="","",Underwriting!BR134) -> 5591.827083 | BI82: =IF(BI$69="","",Underwriting!BS134) -> 5658.133333 | BJ82: =IF(BJ$69="","",Underwriting!BT134) -> 5724.439583 | BK82: =IF(BK$69="","",Underwriting!BU134) -> 5964.468208 | BL82: =IF(BL$69="","",Underwriting!BV134) -> 6032.763646 | BM82: =IF(BM$69="","",Underwriting!BW134) -> 6101.059083 | BN82: =IF(BN$69="","",Underwriting!BX134) -> 6169.354521 | BO82: =IF(BO$69="","",Underwriting!BY134) -> 6237.649958 | BP82: =IF(BP$69="","",Underwriting!BZ134) -> 6305.945396 | BQ82: =IF(BQ$69="","",Underwriting!CA134) -> 6374.240833 | BR82: =IF(BR$69="","",Underwriting!CB134) -> 6374.240833 | BS82: =IF(BS$69="","",Underwriting!CC134) -> 6374.240833 | BT82: =IF(BT$69="","",Underwriting!CD134) -> 6374.240833 | BU82: =IF(BU$69="","",Underwriting!CE134) -> 6374.240833 | BV82: =IF(BV$69="","",Underwriting!CF134) -> 6374.240833 | BW82: =IF(BW$69="","",Underwriting!CG134) -> 6565.468058 | BX82: =IF(BX$69="","",Underwriting!CH134) -> 6565.468058 | BY82: =IF(BY$69="","",Underwriting!CI134) -> 6565.468058 | BZ82: =IF(BZ$69="","",Underwriting!CJ134) -> 6565.468058 | CA82: =IF(CA$69="","",Underwriting!CK134) -> 6565.468058 | CB82: =IF(CB$69="","",Underwriting!CL134) -> 6565.468058 | CC82: =IF(CC$69="","",Underwriting!CM134) -> 6565.468058 | CD82: =IF(CD$69="","",Underwriting!CN134) -> 6565.468058 | CE82: =IF(CE$69="","",Underwriting!CO134) -> 6565.468058 | CF82: =IF(CF$69="","",Underwriting!CP134) -> 6565.468058 | CG82: =IF(CG$69="","",Underwriting!CQ134) -> 6565.468058 | CH82: =IF(CH$69="","",Underwriting!CR134) -> 6565.468058 | CI82: =IF(CI$69="","",Underwriting!CS134) -> 6762.4321 | CJ82: =IF(CJ$69="","",Underwriting!CT134) -> 6762.4321 | CK82: =IF(CK$69="","",Underwriting!CU134) -> 6762.4321 | CL82: =IF(CL$69="","",Underwriting!CV134) -> 6762.4321 | CM82: =IF(CM$69="","",Underwriting!CW134) -> 6762.4321 | CN82: =IF(CN$69="","",Underwriting!CX134) ->  | CO82: =IF(CO$69="","",Underwriting!CY134) ->  | CP82: =IF(CP$69="","",Underwriting!CZ134) ->  | CQ82: =IF(CQ$69="","",Underwriting!DA134) ->  | CR82: =IF(CR$69="","",Underwriting!DB134) ->  | CS82: =IF(CS$69="","",Underwriting!DC134) ->  | CT82: =IF(CT$69="","",Underwriting!DD134) ->  | CU82: =IF(CU$69="","",Underwriting!DE134) ->  | CV82: =IF(CV$69="","",Underwriting!DF134) ->  | CW82: =IF(CW$69="","",Underwriting!DG134) ->  | CX82: =IF(CX$69="","",Underwriting!DH134) ->  | CY82: =IF(CY$69="","",Underwriting!DI134) ->  | CZ82: =IF(CZ$69="","",Underwriting!DJ134) ->  | DA82: =IF(DA$69="","",Underwriting!DK134) ->  | DB82: =IF(DB$69="","",Underwriting!DL134) ->  | DC82: =IF(DC$69="","",Underwriting!DM134) ->  | DD82: =IF(DD$69="","",Underwriting!DN134) ->  | DE82: =IF(DE$69="","",Underwriting!DO134) ->  | DF82: =IF(DF$69="","",Underwriting!DP134) ->  | DG82: =IF(DG$69="","",Underwriting!DQ134) ->  | DH82: =IF(DH$69="","",Underwriting!DR134) ->  | DI82: =IF(DI$69="","",Underwriting!DS134) ->  | DJ82: =IF(DJ$69="","",Underwriting!DT134) ->  | DK82: =IF(DK$69="","",Underwriting!DU134) ->  | DL82: =IF(DL$69="","",Underwriting!DV134) ->  | DM82: =IF(DM$69="","",Underwriting!DW134) ->  | DN82: =IF(DN$69="","",Underwriting!DX134) ->  | DO82: =IF(DO$69="","",Underwriting!DY134) ->  | DP82: =IF(DP$69="","",Underwriting!DZ134) ->  | DQ82: =IF(DQ$69="","",Underwriting!EA134) ->  | DR82: =IF(DR$69="","",Underwriting!EB134) ->  | DS82: =IF(DS$69="","",Underwriting!EC134) ->  | DT82: =IF(DT$69="","",Underwriting!ED134) ->  | DU82: =IF(DU$69="","",Underwriting!EE134) ->  | DV82: =IF(DV$69="","",Underwriting!EF134) ->  | DW82: =IF(DW$69="","",Underwriting!EG134) ->  | DX82: =IF(DX$69="","",Underwriting!EH134) ->  | DY82: =IF(DY$69="","",Underwriting!EI134) ->  | DZ82: =IF(DZ$69="","",Underwriting!EJ134) ->  | EA82: =IF(EA$69="","",Underwriting!EK134) ->  | EB82: =IF(EB$69="","",Underwriting!EL134) ->  | EC82: =IF(EC$69="","",Underwriting!EM134) ->  | ED82: =IF(ED$69="","",Underwriting!EN134) ->  | EE82: =IF(EE$69="","",Underwriting!EO134) ->  | EF82: =IF(EF$69="","",Underwriting!EP134) ->  | EG82: =IF(EG$69="","",Underwriting!EQ134) ->  | EH82: =IF(EH$69="","",Underwriting!ER134) ->  | EI82: =IF(EI$69="","",Underwriting!ES134) -> 
B83: Contract Services | G83: =IF(G$69="","",Underwriting!Q135) -> 0 | H83: =IF(H$69="","",Underwriting!R135) -> 0 | I83: =IF(I$69="","",Underwriting!S135) -> 0 | J83: =IF(J$69="","",Underwriting!T135) -> 0 | K83: =IF(K$69="","",Underwriting!U135) -> 0 | L83: =IF(L$69="","",Underwriting!V135) -> 0 | M83: =IF(M$69="","",Underwriting!W135) -> 0 | N83: =IF(N$69="","",Underwriting!X135) -> 0 | O83: =IF(O$69="","",Underwriting!Y135) -> 0 | P83: =IF(P$69="","",Underwriting!Z135) -> 0 | Q83: =IF(Q$69="","",Underwriting!AA135) -> 0 | R83: =IF(R$69="","",Underwriting!AB135) -> 0 | S83: =IF(S$69="","",Underwriting!AC135) -> 0 | T83: =IF(T$69="","",Underwriting!AD135) -> 0 | U83: =IF(U$69="","",Underwriting!AE135) -> 0 | V83: =IF(V$69="","",Underwriting!AF135) -> 0 | W83: =IF(W$69="","",Underwriting!AG135) -> 0 | X83: =IF(X$69="","",Underwriting!AH135) -> 0 | Y83: =IF(Y$69="","",Underwriting!AI135) -> 0 | Z83: =IF(Z$69="","",Underwriting!AJ135) -> 0 | AA83: =IF(AA$69="","",Underwriting!AK135) -> 7233.333333 | AB83: =IF(AB$69="","",Underwriting!AL135) -> 7283.333333 | AC83: =IF(AC$69="","",Underwriting!AM135) -> 7333.333333 | AD83: =IF(AD$69="","",Underwriting!AN135) -> 7383.333333 | AE83: =IF(AE$69="","",Underwriting!AO135) -> 7433.333333 | AF83: =IF(AF$69="","",Underwriting!AP135) -> 7483.333333 | AG83: =IF(AG$69="","",Underwriting!AQ135) -> 7533.333333 | AH83: =IF(AH$69="","",Underwriting!AR135) -> 7583.333333 | AI83: =IF(AI$69="","",Underwriting!AS135) -> 7633.333333 | AJ83: =IF(AJ$69="","",Underwriting!AT135) -> 7683.333333 | AK83: =IF(AK$69="","",Underwriting!AU135) -> 7733.333333 | AL83: =IF(AL$69="","",Underwriting!AV135) -> 7783.333333 | AM83: =IF(AM$69="","",Underwriting!AW135) -> 8068.333333 | AN83: =IF(AN$69="","",Underwriting!AX135) -> 8119.833333 | AO83: =IF(AO$69="","",Underwriting!AY135) -> 8171.333333 | AP83: =IF(AP$69="","",Underwriting!AZ135) -> 8222.833333 | AQ83: =IF(AQ$69="","",Underwriting!BA135) -> 8274.333333 | AR83: =IF(AR$69="","",Underwriting!BB135) -> 8325.833333 | AS83: =IF(AS$69="","",Underwriting!BC135) -> 8377.333333 | AT83: =IF(AT$69="","",Underwriting!BD135) -> 8428.833333 | AU83: =IF(AU$69="","",Underwriting!BE135) -> 8480.333333 | AV83: =IF(AV$69="","",Underwriting!BF135) -> 8531.833333 | AW83: =IF(AW$69="","",Underwriting!BG135) -> 8583.333333 | AX83: =IF(AX$69="","",Underwriting!BH135) -> 8634.833333 | AY83: =IF(AY$69="","",Underwriting!BI135) -> 8946.923333 | AZ83: =IF(AZ$69="","",Underwriting!BJ135) -> 8999.968333 | BA83: =IF(BA$69="","",Underwriting!BK135) -> 9053.013333 | BB83: =IF(BB$69="","",Underwriting!BL135) -> 9106.058333 | BC83: =IF(BC$69="","",Underwriting!BM135) -> 9159.103333 | BD83: =IF(BD$69="","",Underwriting!BN135) -> 9212.148333 | BE83: =IF(BE$69="","",Underwriting!BO135) -> 9265.193333 | BF83: =IF(BF$69="","",Underwriting!BP135) -> 9318.238333 | BG83: =IF(BG$69="","",Underwriting!BQ135) -> 9371.283333 | BH83: =IF(BH$69="","",Underwriting!BR135) -> 9424.328333 | BI83: =IF(BI$69="","",Underwriting!BS135) -> 9477.373333 | BJ83: =IF(BJ$69="","",Underwriting!BT135) -> 9530.418333 | BK83: =IF(BK$69="","",Underwriting!BU135) -> 9870.967233 | BL83: =IF(BL$69="","",Underwriting!BV135) -> 9925.603583 | BM83: =IF(BM$69="","",Underwriting!BW135) -> 9980.239933 | BN83: =IF(BN$69="","",Underwriting!BX135) -> 10034.87628 | BO83: =IF(BO$69="","",Underwriting!BY135) -> 10089.51263 | BP83: =IF(BP$69="","",Underwriting!BZ135) -> 10144.14898 | BQ83: =IF(BQ$69="","",Underwriting!CA135) -> 10198.78533 | BR83: =IF(BR$69="","",Underwriting!CB135) -> 10198.78533 | BS83: =IF(BS$69="","",Underwriting!CC135) -> 10198.78533 | BT83: =IF(BT$69="","",Underwriting!CD135) -> 10198.78533 | BU83: =IF(BU$69="","",Underwriting!CE135) -> 10198.78533 | BV83: =IF(BV$69="","",Underwriting!CF135) -> 10198.78533 | BW83: =IF(BW$69="","",Underwriting!CG135) -> 10504.74889 | BX83: =IF(BX$69="","",Underwriting!CH135) -> 10504.74889 | BY83: =IF(BY$69="","",Underwriting!CI135) -> 10504.74889 | BZ83: =IF(BZ$69="","",Underwriting!CJ135) -> 10504.74889 | CA83: =IF(CA$69="","",Underwriting!CK135) -> 10504.74889 | CB83: =IF(CB$69="","",Underwriting!CL135) -> 10504.74889 | CC83: =IF(CC$69="","",Underwriting!CM135) -> 10504.74889 | CD83: =IF(CD$69="","",Underwriting!CN135) -> 10504.74889 | CE83: =IF(CE$69="","",Underwriting!CO135) -> 10504.74889 | CF83: =IF(CF$69="","",Underwriting!CP135) -> 10504.74889 | CG83: =IF(CG$69="","",Underwriting!CQ135) -> 10504.74889 | CH83: =IF(CH$69="","",Underwriting!CR135) -> 10504.74889 | CI83: =IF(CI$69="","",Underwriting!CS135) -> 10819.89136 | CJ83: =IF(CJ$69="","",Underwriting!CT135) -> 10819.89136 | CK83: =IF(CK$69="","",Underwriting!CU135) -> 10819.89136 | CL83: =IF(CL$69="","",Underwriting!CV135) -> 10819.89136 | CM83: =IF(CM$69="","",Underwriting!CW135) -> 10819.89136 | CN83: =IF(CN$69="","",Underwriting!CX135) ->  | CO83: =IF(CO$69="","",Underwriting!CY135) ->  | CP83: =IF(CP$69="","",Underwriting!CZ135) ->  | CQ83: =IF(CQ$69="","",Underwriting!DA135) ->  | CR83: =IF(CR$69="","",Underwriting!DB135) ->  | CS83: =IF(CS$69="","",Underwriting!DC135) ->  | CT83: =IF(CT$69="","",Underwriting!DD135) ->  | CU83: =IF(CU$69="","",Underwriting!DE135) ->  | CV83: =IF(CV$69="","",Underwriting!DF135) ->  | CW83: =IF(CW$69="","",Underwriting!DG135) ->  | CX83: =IF(CX$69="","",Underwriting!DH135) ->  | CY83: =IF(CY$69="","",Underwriting!DI135) ->  | CZ83: =IF(CZ$69="","",Underwriting!DJ135) ->  | DA83: =IF(DA$69="","",Underwriting!DK135) ->  | DB83: =IF(DB$69="","",Underwriting!DL135) ->  | DC83: =IF(DC$69="","",Underwriting!DM135) ->  | DD83: =IF(DD$69="","",Underwriting!DN135) ->  | DE83: =IF(DE$69="","",Underwriting!DO135) ->  | DF83: =IF(DF$69="","",Underwriting!DP135) ->  | DG83: =IF(DG$69="","",Underwriting!DQ135) ->  | DH83: =IF(DH$69="","",Underwriting!DR135) ->  | DI83: =IF(DI$69="","",Underwriting!DS135) ->  | DJ83: =IF(DJ$69="","",Underwriting!DT135) ->  | DK83: =IF(DK$69="","",Underwriting!DU135) ->  | DL83: =IF(DL$69="","",Underwriting!DV135) ->  | DM83: =IF(DM$69="","",Underwriting!DW135) ->  | DN83: =IF(DN$69="","",Underwriting!DX135) ->  | DO83: =IF(DO$69="","",Underwriting!DY135) ->  | DP83: =IF(DP$69="","",Underwriting!DZ135) ->  | DQ83: =IF(DQ$69="","",Underwriting!EA135) ->  | DR83: =IF(DR$69="","",Underwriting!EB135) ->  | DS83: =IF(DS$69="","",Underwriting!EC135) ->  | DT83: =IF(DT$69="","",Underwriting!ED135) ->  | DU83: =IF(DU$69="","",Underwriting!EE135) ->  | DV83: =IF(DV$69="","",Underwriting!EF135) ->  | DW83: =IF(DW$69="","",Underwriting!EG135) ->  | DX83: =IF(DX$69="","",Underwriting!EH135) ->  | DY83: =IF(DY$69="","",Underwriting!EI135) ->  | DZ83: =IF(DZ$69="","",Underwriting!EJ135) ->  | EA83: =IF(EA$69="","",Underwriting!EK135) ->  | EB83: =IF(EB$69="","",Underwriting!EL135) ->  | EC83: =IF(EC$69="","",Underwriting!EM135) ->  | ED83: =IF(ED$69="","",Underwriting!EN135) ->  | EE83: =IF(EE$69="","",Underwriting!EO135) ->  | EF83: =IF(EF$69="","",Underwriting!EP135) ->  | EG83: =IF(EG$69="","",Underwriting!EQ135) ->  | EH83: =IF(EH$69="","",Underwriting!ER135) ->  | EI83: =IF(EI$69="","",Underwriting!ES135) -> 
B84: Make Ready Cost | G84: =IF(G$69="","",Underwriting!Q136) -> 0 | H84: =IF(H$69="","",Underwriting!R136) -> 0 | I84: =IF(I$69="","",Underwriting!S136) -> 0 | J84: =IF(J$69="","",Underwriting!T136) -> 0 | K84: =IF(K$69="","",Underwriting!U136) -> 0 | L84: =IF(L$69="","",Underwriting!V136) -> 0 | M84: =IF(M$69="","",Underwriting!W136) -> 0 | N84: =IF(N$69="","",Underwriting!X136) -> 0 | O84: =IF(O$69="","",Underwriting!Y136) -> 0 | P84: =IF(P$69="","",Underwriting!Z136) -> 0 | Q84: =IF(Q$69="","",Underwriting!AA136) -> 0 | R84: =IF(R$69="","",Underwriting!AB136) -> 0 | S84: =IF(S$69="","",Underwriting!AC136) -> 0 | T84: =IF(T$69="","",Underwriting!AD136) -> 0 | U84: =IF(U$69="","",Underwriting!AE136) -> 0 | V84: =IF(V$69="","",Underwriting!AF136) -> 0 | W84: =IF(W$69="","",Underwriting!AG136) -> 0 | X84: =IF(X$69="","",Underwriting!AH136) -> 0 | Y84: =IF(Y$69="","",Underwriting!AI136) -> 0 | Z84: =IF(Z$69="","",Underwriting!AJ136) -> 0 | AA84: =IF(AA$69="","",Underwriting!AK136) -> 4666.666667 | AB84: =IF(AB$69="","",Underwriting!AL136) -> 4666.666667 | AC84: =IF(AC$69="","",Underwriting!AM136) -> 4666.666667 | AD84: =IF(AD$69="","",Underwriting!AN136) -> 4666.666667 | AE84: =IF(AE$69="","",Underwriting!AO136) -> 4666.666667 | AF84: =IF(AF$69="","",Underwriting!AP136) -> 4666.666667 | AG84: =IF(AG$69="","",Underwriting!AQ136) -> 4666.666667 | AH84: =IF(AH$69="","",Underwriting!AR136) -> 4666.666667 | AI84: =IF(AI$69="","",Underwriting!AS136) -> 4666.666667 | AJ84: =IF(AJ$69="","",Underwriting!AT136) -> 4666.666667 | AK84: =IF(AK$69="","",Underwriting!AU136) -> 4666.666667 | AL84: =IF(AL$69="","",Underwriting!AV136) -> 4666.666667 | AM84: =IF(AM$69="","",Underwriting!AW136) -> 4806.666667 | AN84: =IF(AN$69="","",Underwriting!AX136) -> 4806.666667 | AO84: =IF(AO$69="","",Underwriting!AY136) -> 4806.666667 | AP84: =IF(AP$69="","",Underwriting!AZ136) -> 4806.666667 | AQ84: =IF(AQ$69="","",Underwriting!BA136) -> 4806.666667 | AR84: =IF(AR$69="","",Underwriting!BB136) -> 4806.666667 | AS84: =IF(AS$69="","",Underwriting!BC136) -> 4806.666667 | AT84: =IF(AT$69="","",Underwriting!BD136) -> 4806.666667 | AU84: =IF(AU$69="","",Underwriting!BE136) -> 4806.666667 | AV84: =IF(AV$69="","",Underwriting!BF136) -> 4806.666667 | AW84: =IF(AW$69="","",Underwriting!BG136) -> 4806.666667 | AX84: =IF(AX$69="","",Underwriting!BH136) -> 4806.666667 | AY84: =IF(AY$69="","",Underwriting!BI136) -> 4950.866667 | AZ84: =IF(AZ$69="","",Underwriting!BJ136) -> 4950.866667 | BA84: =IF(BA$69="","",Underwriting!BK136) -> 4950.866667 | BB84: =IF(BB$69="","",Underwriting!BL136) -> 4950.866667 | BC84: =IF(BC$69="","",Underwriting!BM136) -> 4950.866667 | BD84: =IF(BD$69="","",Underwriting!BN136) -> 4950.866667 | BE84: =IF(BE$69="","",Underwriting!BO136) -> 4950.866667 | BF84: =IF(BF$69="","",Underwriting!BP136) -> 4950.866667 | BG84: =IF(BG$69="","",Underwriting!BQ136) -> 4950.866667 | BH84: =IF(BH$69="","",Underwriting!BR136) -> 4950.866667 | BI84: =IF(BI$69="","",Underwriting!BS136) -> 4950.866667 | BJ84: =IF(BJ$69="","",Underwriting!BT136) -> 4950.866667 | BK84: =IF(BK$69="","",Underwriting!BU136) -> 5099.392667 | BL84: =IF(BL$69="","",Underwriting!BV136) -> 5099.392667 | BM84: =IF(BM$69="","",Underwriting!BW136) -> 5099.392667 | BN84: =IF(BN$69="","",Underwriting!BX136) -> 5099.392667 | BO84: =IF(BO$69="","",Underwriting!BY136) -> 5099.392667 | BP84: =IF(BP$69="","",Underwriting!BZ136) -> 5099.392667 | BQ84: =IF(BQ$69="","",Underwriting!CA136) -> 5099.392667 | BR84: =IF(BR$69="","",Underwriting!CB136) -> 5099.392667 | BS84: =IF(BS$69="","",Underwriting!CC136) -> 5099.392667 | BT84: =IF(BT$69="","",Underwriting!CD136) -> 5099.392667 | BU84: =IF(BU$69="","",Underwriting!CE136) -> 5099.392667 | BV84: =IF(BV$69="","",Underwriting!CF136) -> 5099.392667 | BW84: =IF(BW$69="","",Underwriting!CG136) -> 5252.374447 | BX84: =IF(BX$69="","",Underwriting!CH136) -> 5252.374447 | BY84: =IF(BY$69="","",Underwriting!CI136) -> 5252.374447 | BZ84: =IF(BZ$69="","",Underwriting!CJ136) -> 5252.374447 | CA84: =IF(CA$69="","",Underwriting!CK136) -> 5252.374447 | CB84: =IF(CB$69="","",Underwriting!CL136) -> 5252.374447 | CC84: =IF(CC$69="","",Underwriting!CM136) -> 5252.374447 | CD84: =IF(CD$69="","",Underwriting!CN136) -> 5252.374447 | CE84: =IF(CE$69="","",Underwriting!CO136) -> 5252.374447 | CF84: =IF(CF$69="","",Underwriting!CP136) -> 5252.374447 | CG84: =IF(CG$69="","",Underwriting!CQ136) -> 5252.374447 | CH84: =IF(CH$69="","",Underwriting!CR136) -> 5252.374447 | CI84: =IF(CI$69="","",Underwriting!CS136) -> 5409.94568 | CJ84: =IF(CJ$69="","",Underwriting!CT136) -> 5409.94568 | CK84: =IF(CK$69="","",Underwriting!CU136) -> 5409.94568 | CL84: =IF(CL$69="","",Underwriting!CV136) -> 5409.94568 | CM84: =IF(CM$69="","",Underwriting!CW136) -> 5409.94568 | CN84: =IF(CN$69="","",Underwriting!CX136) ->  | CO84: =IF(CO$69="","",Underwriting!CY136) ->  | CP84: =IF(CP$69="","",Underwriting!CZ136) ->  | CQ84: =IF(CQ$69="","",Underwriting!DA136) ->  | CR84: =IF(CR$69="","",Underwriting!DB136) ->  | CS84: =IF(CS$69="","",Underwriting!DC136) ->  | CT84: =IF(CT$69="","",Underwriting!DD136) ->  | CU84: =IF(CU$69="","",Underwriting!DE136) ->  | CV84: =IF(CV$69="","",Underwriting!DF136) ->  | CW84: =IF(CW$69="","",Underwriting!DG136) ->  | CX84: =IF(CX$69="","",Underwriting!DH136) ->  | CY84: =IF(CY$69="","",Underwriting!DI136) ->  | CZ84: =IF(CZ$69="","",Underwriting!DJ136) ->  | DA84: =IF(DA$69="","",Underwriting!DK136) ->  | DB84: =IF(DB$69="","",Underwriting!DL136) ->  | DC84: =IF(DC$69="","",Underwriting!DM136) ->  | DD84: =IF(DD$69="","",Underwriting!DN136) ->  | DE84: =IF(DE$69="","",Underwriting!DO136) ->  | DF84: =IF(DF$69="","",Underwriting!DP136) ->  | DG84: =IF(DG$69="","",Underwriting!DQ136) ->  | DH84: =IF(DH$69="","",Underwriting!DR136) ->  | DI84: =IF(DI$69="","",Underwriting!DS136) ->  | DJ84: =IF(DJ$69="","",Underwriting!DT136) ->  | DK84: =IF(DK$69="","",Underwriting!DU136) ->  | DL84: =IF(DL$69="","",Underwriting!DV136) ->  | DM84: =IF(DM$69="","",Underwriting!DW136) ->  | DN84: =IF(DN$69="","",Underwriting!DX136) ->  | DO84: =IF(DO$69="","",Underwriting!DY136) ->  | DP84: =IF(DP$69="","",Underwriting!DZ136) ->  | DQ84: =IF(DQ$69="","",Underwriting!EA136) ->  | DR84: =IF(DR$69="","",Underwriting!EB136) ->  | DS84: =IF(DS$69="","",Underwriting!EC136) ->  | DT84: =IF(DT$69="","",Underwriting!ED136) ->  | DU84: =IF(DU$69="","",Underwriting!EE136) ->  | DV84: =IF(DV$69="","",Underwriting!EF136) ->  | DW84: =IF(DW$69="","",Underwriting!EG136) ->  | DX84: =IF(DX$69="","",Underwriting!EH136) ->  | DY84: =IF(DY$69="","",Underwriting!EI136) ->  | DZ84: =IF(DZ$69="","",Underwriting!EJ136) ->  | EA84: =IF(EA$69="","",Underwriting!EK136) ->  | EB84: =IF(EB$69="","",Underwriting!EL136) ->  | EC84: =IF(EC$69="","",Underwriting!EM136) ->  | ED84: =IF(ED$69="","",Underwriting!EN136) ->  | EE84: =IF(EE$69="","",Underwriting!EO136) ->  | EF84: =IF(EF$69="","",Underwriting!EP136) ->  | EG84: =IF(EG$69="","",Underwriting!EQ136) ->  | EH84: =IF(EH$69="","",Underwriting!ER136) ->  | EI84: =IF(EI$69="","",Underwriting!ES136) -> 
B85: Management Fee | G85: =IF(G$69="","",Underwriting!Q137) -> 0 | H85: =IF(H$69="","",Underwriting!R137) -> 0 | I85: =IF(I$69="","",Underwriting!S137) -> 0 | J85: =IF(J$69="","",Underwriting!T137) -> 0 | K85: =IF(K$69="","",Underwriting!U137) -> 0 | L85: =IF(L$69="","",Underwriting!V137) -> 0 | M85: =IF(M$69="","",Underwriting!W137) -> 0 | N85: =IF(N$69="","",Underwriting!X137) -> 0 | O85: =IF(O$69="","",Underwriting!Y137) -> 0 | P85: =IF(P$69="","",Underwriting!Z137) -> 0 | Q85: =IF(Q$69="","",Underwriting!AA137) -> 0 | R85: =IF(R$69="","",Underwriting!AB137) -> 0 | S85: =IF(S$69="","",Underwriting!AC137) -> 0 | T85: =IF(T$69="","",Underwriting!AD137) -> 0 | U85: =IF(U$69="","",Underwriting!AE137) -> 0 | V85: =IF(V$69="","",Underwriting!AF137) -> 0 | W85: =IF(W$69="","",Underwriting!AG137) -> 0 | X85: =IF(X$69="","",Underwriting!AH137) -> 0 | Y85: =IF(Y$69="","",Underwriting!AI137) -> 0 | Z85: =IF(Z$69="","",Underwriting!AJ137) -> 0 | AA85: =IF(AA$69="","",Underwriting!AK137) -> 293.3946593 | AB85: =IF(AB$69="","",Underwriting!AL137) -> 521.4520879 | AC85: =IF(AC$69="","",Underwriting!AM137) -> 749.5095165 | AD85: =IF(AD$69="","",Underwriting!AN137) -> 977.5669451 | AE85: =IF(AE$69="","",Underwriting!AO137) -> 1205.624374 | AF85: =IF(AF$69="","",Underwriting!AP137) -> 1433.681802 | AG85: =IF(AG$69="","",Underwriting!AQ137) -> 1661.739231 | AH85: =IF(AH$69="","",Underwriting!AR137) -> 1889.796659 | AI85: =IF(AI$69="","",Underwriting!AS137) -> 2117.854088 | AJ85: =IF(AJ$69="","",Underwriting!AT137) -> 2345.911516 | AK85: =IF(AK$69="","",Underwriting!AU137) -> 2573.968945 | AL85: =IF(AL$69="","",Underwriting!AV137) -> 2802.026374 | AM85: =IF(AM$69="","",Underwriting!AW137) -> 3022.685486 | AN85: =IF(AN$69="","",Underwriting!AX137) -> 3298.172091 | AO85: =IF(AO$69="","",Underwriting!AY137) -> 3543.560434 | AP85: =IF(AP$69="","",Underwriting!AZ137) -> 3788.948777 | AQ85: =IF(AQ$69="","",Underwriting!BA137) -> 4034.33712 | AR85: =IF(AR$69="","",Underwriting!BB137) -> 4279.725463 | AS85: =IF(AS$69="","",Underwriting!BC137) -> 4525.113806 | AT85: =IF(AT$69="","",Underwriting!BD137) -> 4770.502149 | AU85: =IF(AU$69="","",Underwriting!BE137) -> 5015.890491 | AV85: =IF(AV$69="","",Underwriting!BF137) -> 5261.278834 | AW85: =IF(AW$69="","",Underwriting!BG137) -> 5506.667177 | AX85: =IF(AX$69="","",Underwriting!BH137) -> 5752.05552 | AY85: =IF(AY$69="","",Underwriting!BI137) -> 6009.689302 | AZ85: =IF(AZ$69="","",Underwriting!BJ137) -> 6264.893179 | BA85: =IF(BA$69="","",Underwriting!BK137) -> 6559.93621 | BB85: =IF(BB$69="","",Underwriting!BL137) -> 6823.677049 | BC85: =IF(BC$69="","",Underwriting!BM137) -> 7087.417887 | BD85: =IF(BD$69="","",Underwriting!BN137) -> 7351.158725 | BE85: =IF(BE$69="","",Underwriting!BO137) -> 7614.899564 | BF85: =IF(BF$69="","",Underwriting!BP137) -> 7878.640402 | BG85: =IF(BG$69="","",Underwriting!BQ137) -> 8142.381241 | BH85: =IF(BH$69="","",Underwriting!BR137) -> 8406.122079 | BI85: =IF(BI$69="","",Underwriting!BS137) -> 8669.862917 | BJ85: =IF(BJ$69="","",Underwriting!BT137) -> 8933.603756 | BK85: =IF(BK$69="","",Underwriting!BU137) -> 9230.817127 | BL85: =IF(BL$69="","",Underwriting!BV137) -> 9505.107599 | BM85: =IF(BM$69="","",Underwriting!BW137) -> 9779.398071 | BN85: =IF(BN$69="","",Underwriting!BX137) -> 10095.12126 | BO85: =IF(BO$69="","",Underwriting!BY137) -> 10378.29018 | BP85: =IF(BP$69="","",Underwriting!BZ137) -> 10661.45909 | BQ85: =IF(BQ$69="","",Underwriting!CA137) -> 11773.28243 | BR85: =IF(BR$69="","",Underwriting!CB137) -> 11799.91775 | BS85: =IF(BS$69="","",Underwriting!CC137) -> 11826.55307 | BT85: =IF(BT$69="","",Underwriting!CD137) -> 11853.18839 | BU85: =IF(BU$69="","",Underwriting!CE137) -> 11879.82371 | BV85: =IF(BV$69="","",Underwriting!CF137) -> 11906.45903 | BW85: =IF(BW$69="","",Underwriting!CG137) -> 12007.21856 | BX85: =IF(BX$69="","",Underwriting!CH137) -> 12034.91929 | BY85: =IF(BY$69="","",Underwriting!CI137) -> 12062.62003 | BZ85: =IF(BZ$69="","",Underwriting!CJ137) -> 12090.32076 | CA85: =IF(CA$69="","",Underwriting!CK137) -> 12161.11152 | CB85: =IF(CB$69="","",Underwriting!CL137) -> 12198.04584 | CC85: =IF(CC$69="","",Underwriting!CM137) -> 12234.98015 | CD85: =IF(CD$69="","",Underwriting!CN137) -> 12271.91446 | CE85: =IF(CE$69="","",Underwriting!CO137) -> 12299.61519 | CF85: =IF(CF$69="","",Underwriting!CP137) -> 12327.31593 | CG85: =IF(CG$69="","",Underwriting!CQ137) -> 12355.01666 | CH85: =IF(CH$69="","",Underwriting!CR137) -> 12382.71739 | CI85: =IF(CI$69="","",Underwriting!CS137) -> 12487.5073 | CJ85: =IF(CJ$69="","",Underwriting!CT137) -> 12516.31606 | CK85: =IF(CK$69="","",Underwriting!CU137) -> 12545.12483 | CL85: =IF(CL$69="","",Underwriting!CV137) -> 12573.93359 | CM85: =IF(CM$69="","",Underwriting!CW137) -> 12602.74235 | CN85: =IF(CN$69="","",Underwriting!CX137) ->  | CO85: =IF(CO$69="","",Underwriting!CY137) ->  | CP85: =IF(CP$69="","",Underwriting!CZ137) ->  | CQ85: =IF(CQ$69="","",Underwriting!DA137) ->  | CR85: =IF(CR$69="","",Underwriting!DB137) ->  | CS85: =IF(CS$69="","",Underwriting!DC137) ->  | CT85: =IF(CT$69="","",Underwriting!DD137) ->  | CU85: =IF(CU$69="","",Underwriting!DE137) ->  | CV85: =IF(CV$69="","",Underwriting!DF137) ->  | CW85: =IF(CW$69="","",Underwriting!DG137) ->  | CX85: =IF(CX$69="","",Underwriting!DH137) ->  | CY85: =IF(CY$69="","",Underwriting!DI137) ->  | CZ85: =IF(CZ$69="","",Underwriting!DJ137) ->  | DA85: =IF(DA$69="","",Underwriting!DK137) ->  | DB85: =IF(DB$69="","",Underwriting!DL137) ->  | DC85: =IF(DC$69="","",Underwriting!DM137) ->  | DD85: =IF(DD$69="","",Underwriting!DN137) ->  | DE85: =IF(DE$69="","",Underwriting!DO137) ->  | DF85: =IF(DF$69="","",Underwriting!DP137) ->  | DG85: =IF(DG$69="","",Underwriting!DQ137) ->  | DH85: =IF(DH$69="","",Underwriting!DR137) ->  | DI85: =IF(DI$69="","",Underwriting!DS137) ->  | DJ85: =IF(DJ$69="","",Underwriting!DT137) ->  | DK85: =IF(DK$69="","",Underwriting!DU137) ->  | DL85: =IF(DL$69="","",Underwriting!DV137) ->  | DM85: =IF(DM$69="","",Underwriting!DW137) ->  | DN85: =IF(DN$69="","",Underwriting!DX137) ->  | DO85: =IF(DO$69="","",Underwriting!DY137) ->  | DP85: =IF(DP$69="","",Underwriting!DZ137) ->  | DQ85: =IF(DQ$69="","",Underwriting!EA137) ->  | DR85: =IF(DR$69="","",Underwriting!EB137) ->  | DS85: =IF(DS$69="","",Underwriting!EC137) ->  | DT85: =IF(DT$69="","",Underwriting!ED137) ->  | DU85: =IF(DU$69="","",Underwriting!EE137) ->  | DV85: =IF(DV$69="","",Underwriting!EF137) ->  | DW85: =IF(DW$69="","",Underwriting!EG137) ->  | DX85: =IF(DX$69="","",Underwriting!EH137) ->  | DY85: =IF(DY$69="","",Underwriting!EI137) ->  | DZ85: =IF(DZ$69="","",Underwriting!EJ137) ->  | EA85: =IF(EA$69="","",Underwriting!EK137) ->  | EB85: =IF(EB$69="","",Underwriting!EL137) ->  | EC85: =IF(EC$69="","",Underwriting!EM137) ->  | ED85: =IF(ED$69="","",Underwriting!EN137) ->  | EE85: =IF(EE$69="","",Underwriting!EO137) ->  | EF85: =IF(EF$69="","",Underwriting!EP137) ->  | EG85: =IF(EG$69="","",Underwriting!EQ137) ->  | EH85: =IF(EH$69="","",Underwriting!ER137) ->  | EI85: =IF(EI$69="","",Underwriting!ES137) -> 
B86: Insurance | G86: =IF(G$69="","",Underwriting!Q138) -> 0 | H86: =IF(H$69="","",Underwriting!R138) -> 0 | I86: =IF(I$69="","",Underwriting!S138) -> 0 | J86: =IF(J$69="","",Underwriting!T138) -> 0 | K86: =IF(K$69="","",Underwriting!U138) -> 0 | L86: =IF(L$69="","",Underwriting!V138) -> 0 | M86: =IF(M$69="","",Underwriting!W138) -> 0 | N86: =IF(N$69="","",Underwriting!X138) -> 0 | O86: =IF(O$69="","",Underwriting!Y138) -> 0 | P86: =IF(P$69="","",Underwriting!Z138) -> 0 | Q86: =IF(Q$69="","",Underwriting!AA138) -> 0 | R86: =IF(R$69="","",Underwriting!AB138) -> 0 | S86: =IF(S$69="","",Underwriting!AC138) -> 0 | T86: =IF(T$69="","",Underwriting!AD138) -> 0 | U86: =IF(U$69="","",Underwriting!AE138) -> 0 | V86: =IF(V$69="","",Underwriting!AF138) -> 0 | W86: =IF(W$69="","",Underwriting!AG138) -> 0 | X86: =IF(X$69="","",Underwriting!AH138) -> 0 | Y86: =IF(Y$69="","",Underwriting!AI138) -> 0 | Z86: =IF(Z$69="","",Underwriting!AJ138) -> 0 | AA86: =IF(AA$69="","",Underwriting!AK138) -> 3750 | AB86: =IF(AB$69="","",Underwriting!AL138) -> 3750 | AC86: =IF(AC$69="","",Underwriting!AM138) -> 3750 | AD86: =IF(AD$69="","",Underwriting!AN138) -> 3750 | AE86: =IF(AE$69="","",Underwriting!AO138) -> 3750 | AF86: =IF(AF$69="","",Underwriting!AP138) -> 3750 | AG86: =IF(AG$69="","",Underwriting!AQ138) -> 3750 | AH86: =IF(AH$69="","",Underwriting!AR138) -> 3750 | AI86: =IF(AI$69="","",Underwriting!AS138) -> 3750 | AJ86: =IF(AJ$69="","",Underwriting!AT138) -> 3750 | AK86: =IF(AK$69="","",Underwriting!AU138) -> 3750 | AL86: =IF(AL$69="","",Underwriting!AV138) -> 3750 | AM86: =IF(AM$69="","",Underwriting!AW138) -> 3862.5 | AN86: =IF(AN$69="","",Underwriting!AX138) -> 3862.5 | AO86: =IF(AO$69="","",Underwriting!AY138) -> 3862.5 | AP86: =IF(AP$69="","",Underwriting!AZ138) -> 3862.5 | AQ86: =IF(AQ$69="","",Underwriting!BA138) -> 3862.5 | AR86: =IF(AR$69="","",Underwriting!BB138) -> 3862.5 | AS86: =IF(AS$69="","",Underwriting!BC138) -> 3862.5 | AT86: =IF(AT$69="","",Underwriting!BD138) -> 3862.5 | AU86: =IF(AU$69="","",Underwriting!BE138) -> 3862.5 | AV86: =IF(AV$69="","",Underwriting!BF138) -> 3862.5 | AW86: =IF(AW$69="","",Underwriting!BG138) -> 3862.5 | AX86: =IF(AX$69="","",Underwriting!BH138) -> 3862.5 | AY86: =IF(AY$69="","",Underwriting!BI138) -> 3978.375 | AZ86: =IF(AZ$69="","",Underwriting!BJ138) -> 3978.375 | BA86: =IF(BA$69="","",Underwriting!BK138) -> 3978.375 | BB86: =IF(BB$69="","",Underwriting!BL138) -> 3978.375 | BC86: =IF(BC$69="","",Underwriting!BM138) -> 3978.375 | BD86: =IF(BD$69="","",Underwriting!BN138) -> 3978.375 | BE86: =IF(BE$69="","",Underwriting!BO138) -> 3978.375 | BF86: =IF(BF$69="","",Underwriting!BP138) -> 3978.375 | BG86: =IF(BG$69="","",Underwriting!BQ138) -> 3978.375 | BH86: =IF(BH$69="","",Underwriting!BR138) -> 3978.375 | BI86: =IF(BI$69="","",Underwriting!BS138) -> 3978.375 | BJ86: =IF(BJ$69="","",Underwriting!BT138) -> 3978.375 | BK86: =IF(BK$69="","",Underwriting!BU138) -> 4097.72625 | BL86: =IF(BL$69="","",Underwriting!BV138) -> 4097.72625 | BM86: =IF(BM$69="","",Underwriting!BW138) -> 4097.72625 | BN86: =IF(BN$69="","",Underwriting!BX138) -> 4097.72625 | BO86: =IF(BO$69="","",Underwriting!BY138) -> 4097.72625 | BP86: =IF(BP$69="","",Underwriting!BZ138) -> 4097.72625 | BQ86: =IF(BQ$69="","",Underwriting!CA138) -> 4097.72625 | BR86: =IF(BR$69="","",Underwriting!CB138) -> 4097.72625 | BS86: =IF(BS$69="","",Underwriting!CC138) -> 4097.72625 | BT86: =IF(BT$69="","",Underwriting!CD138) -> 4097.72625 | BU86: =IF(BU$69="","",Underwriting!CE138) -> 4097.72625 | BV86: =IF(BV$69="","",Underwriting!CF138) -> 4097.72625 | BW86: =IF(BW$69="","",Underwriting!CG138) -> 4220.658037 | BX86: =IF(BX$69="","",Underwriting!CH138) -> 4220.658037 | BY86: =IF(BY$69="","",Underwriting!CI138) -> 4220.658037 | BZ86: =IF(BZ$69="","",Underwriting!CJ138) -> 4220.658037 | CA86: =IF(CA$69="","",Underwriting!CK138) -> 4220.658037 | CB86: =IF(CB$69="","",Underwriting!CL138) -> 4220.658037 | CC86: =IF(CC$69="","",Underwriting!CM138) -> 4220.658037 | CD86: =IF(CD$69="","",Underwriting!CN138) -> 4220.658037 | CE86: =IF(CE$69="","",Underwriting!CO138) -> 4220.658037 | CF86: =IF(CF$69="","",Underwriting!CP138) -> 4220.658037 | CG86: =IF(CG$69="","",Underwriting!CQ138) -> 4220.658037 | CH86: =IF(CH$69="","",Underwriting!CR138) -> 4220.658037 | CI86: =IF(CI$69="","",Underwriting!CS138) -> 4347.277779 | CJ86: =IF(CJ$69="","",Underwriting!CT138) -> 4347.277779 | CK86: =IF(CK$69="","",Underwriting!CU138) -> 4347.277779 | CL86: =IF(CL$69="","",Underwriting!CV138) -> 4347.277779 | CM86: =IF(CM$69="","",Underwriting!CW138) -> 4347.277779 | CN86: =IF(CN$69="","",Underwriting!CX138) ->  | CO86: =IF(CO$69="","",Underwriting!CY138) ->  | CP86: =IF(CP$69="","",Underwriting!CZ138) ->  | CQ86: =IF(CQ$69="","",Underwriting!DA138) ->  | CR86: =IF(CR$69="","",Underwriting!DB138) ->  | CS86: =IF(CS$69="","",Underwriting!DC138) ->  | CT86: =IF(CT$69="","",Underwriting!DD138) ->  | CU86: =IF(CU$69="","",Underwriting!DE138) ->  | CV86: =IF(CV$69="","",Underwriting!DF138) ->  | CW86: =IF(CW$69="","",Underwriting!DG138) ->  | CX86: =IF(CX$69="","",Underwriting!DH138) ->  | CY86: =IF(CY$69="","",Underwriting!DI138) ->  | CZ86: =IF(CZ$69="","",Underwriting!DJ138) ->  | DA86: =IF(DA$69="","",Underwriting!DK138) ->  | DB86: =IF(DB$69="","",Underwriting!DL138) ->  | DC86: =IF(DC$69="","",Underwriting!DM138) ->  | DD86: =IF(DD$69="","",Underwriting!DN138) ->  | DE86: =IF(DE$69="","",Underwriting!DO138) ->  | DF86: =IF(DF$69="","",Underwriting!DP138) ->  | DG86: =IF(DG$69="","",Underwriting!DQ138) ->  | DH86: =IF(DH$69="","",Underwriting!DR138) ->  | DI86: =IF(DI$69="","",Underwriting!DS138) ->  | DJ86: =IF(DJ$69="","",Underwriting!DT138) ->  | DK86: =IF(DK$69="","",Underwriting!DU138) ->  | DL86: =IF(DL$69="","",Underwriting!DV138) ->  | DM86: =IF(DM$69="","",Underwriting!DW138) ->  | DN86: =IF(DN$69="","",Underwriting!DX138) ->  | DO86: =IF(DO$69="","",Underwriting!DY138) ->  | DP86: =IF(DP$69="","",Underwriting!DZ138) ->  | DQ86: =IF(DQ$69="","",Underwriting!EA138) ->  | DR86: =IF(DR$69="","",Underwriting!EB138) ->  | DS86: =IF(DS$69="","",Underwriting!EC138) ->  | DT86: =IF(DT$69="","",Underwriting!ED138) ->  | DU86: =IF(DU$69="","",Underwriting!EE138) ->  | DV86: =IF(DV$69="","",Underwriting!EF138) ->  | DW86: =IF(DW$69="","",Underwriting!EG138) ->  | DX86: =IF(DX$69="","",Underwriting!EH138) ->  | DY86: =IF(DY$69="","",Underwriting!EI138) ->  | DZ86: =IF(DZ$69="","",Underwriting!EJ138) ->  | EA86: =IF(EA$69="","",Underwriting!EK138) ->  | EB86: =IF(EB$69="","",Underwriting!EL138) ->  | EC86: =IF(EC$69="","",Underwriting!EM138) ->  | ED86: =IF(ED$69="","",Underwriting!EN138) ->  | EE86: =IF(EE$69="","",Underwriting!EO138) ->  | EF86: =IF(EF$69="","",Underwriting!EP138) ->  | EG86: =IF(EG$69="","",Underwriting!EQ138) ->  | EH86: =IF(EH$69="","",Underwriting!ER138) ->  | EI86: =IF(EI$69="","",Underwriting!ES138) -> 
B87: Property Taxes | G87: =IF(G$69="","",Underwriting!Q139) -> 0 | H87: =IF(H$69="","",Underwriting!R139) -> 0 | I87: =IF(I$69="","",Underwriting!S139) -> 0 | J87: =IF(J$69="","",Underwriting!T139) -> 0 | K87: =IF(K$69="","",Underwriting!U139) -> 0 | L87: =IF(L$69="","",Underwriting!V139) -> 0 | M87: =IF(M$69="","",Underwriting!W139) -> 0 | N87: =IF(N$69="","",Underwriting!X139) -> 0 | O87: =IF(O$69="","",Underwriting!Y139) -> 0 | P87: =IF(P$69="","",Underwriting!Z139) -> 0 | Q87: =IF(Q$69="","",Underwriting!AA139) -> 0 | R87: =IF(R$69="","",Underwriting!AB139) -> 0 | S87: =IF(S$69="","",Underwriting!AC139) -> 0 | T87: =IF(T$69="","",Underwriting!AD139) -> 0 | U87: =IF(U$69="","",Underwriting!AE139) -> 0 | V87: =IF(V$69="","",Underwriting!AF139) -> 0 | W87: =IF(W$69="","",Underwriting!AG139) -> 0 | X87: =IF(X$69="","",Underwriting!AH139) -> 0 | Y87: =IF(Y$69="","",Underwriting!AI139) -> 0 | Z87: =IF(Z$69="","",Underwriting!AJ139) -> 0 | AA87: =IF(AA$69="","",Underwriting!AK139) -> 2031.25 | AB87: =IF(AB$69="","",Underwriting!AL139) -> 2031.25 | AC87: =IF(AC$69="","",Underwriting!AM139) -> 2031.25 | AD87: =IF(AD$69="","",Underwriting!AN139) -> 2031.25 | AE87: =IF(AE$69="","",Underwriting!AO139) -> 2031.25 | AF87: =IF(AF$69="","",Underwriting!AP139) -> 2031.25 | AG87: =IF(AG$69="","",Underwriting!AQ139) -> 2031.25 | AH87: =IF(AH$69="","",Underwriting!AR139) -> 2031.25 | AI87: =IF(AI$69="","",Underwriting!AS139) -> 2031.25 | AJ87: =IF(AJ$69="","",Underwriting!AT139) -> 2031.25 | AK87: =IF(AK$69="","",Underwriting!AU139) -> 2031.25 | AL87: =IF(AL$69="","",Underwriting!AV139) -> 2031.25 | AM87: =IF(AM$69="","",Underwriting!AW139) -> 3138.28125 | AN87: =IF(AN$69="","",Underwriting!AX139) -> 3138.28125 | AO87: =IF(AO$69="","",Underwriting!AY139) -> 3138.28125 | AP87: =IF(AP$69="","",Underwriting!AZ139) -> 3138.28125 | AQ87: =IF(AQ$69="","",Underwriting!BA139) -> 3138.28125 | AR87: =IF(AR$69="","",Underwriting!BB139) -> 3138.28125 | AS87: =IF(AS$69="","",Underwriting!BC139) -> 3138.28125 | AT87: =IF(AT$69="","",Underwriting!BD139) -> 3138.28125 | AU87: =IF(AU$69="","",Underwriting!BE139) -> 3138.28125 | AV87: =IF(AV$69="","",Underwriting!BF139) -> 3138.28125 | AW87: =IF(AW$69="","",Underwriting!BG139) -> 3138.28125 | AX87: =IF(AX$69="","",Underwriting!BH139) -> 3138.28125 | AY87: =IF(AY$69="","",Underwriting!BI139) -> 4309.90625 | AZ87: =IF(AZ$69="","",Underwriting!BJ139) -> 4309.90625 | BA87: =IF(BA$69="","",Underwriting!BK139) -> 4309.90625 | BB87: =IF(BB$69="","",Underwriting!BL139) -> 4309.90625 | BC87: =IF(BC$69="","",Underwriting!BM139) -> 4309.90625 | BD87: =IF(BD$69="","",Underwriting!BN139) -> 4309.90625 | BE87: =IF(BE$69="","",Underwriting!BO139) -> 4309.90625 | BF87: =IF(BF$69="","",Underwriting!BP139) -> 4309.90625 | BG87: =IF(BG$69="","",Underwriting!BQ139) -> 4309.90625 | BH87: =IF(BH$69="","",Underwriting!BR139) -> 4309.90625 | BI87: =IF(BI$69="","",Underwriting!BS139) -> 4309.90625 | BJ87: =IF(BJ$69="","",Underwriting!BT139) -> 4309.90625 | BK87: =IF(BK$69="","",Underwriting!BU139) -> 4439.203438 | BL87: =IF(BL$69="","",Underwriting!BV139) -> 4439.203438 | BM87: =IF(BM$69="","",Underwriting!BW139) -> 4439.203438 | BN87: =IF(BN$69="","",Underwriting!BX139) -> 4439.203438 | BO87: =IF(BO$69="","",Underwriting!BY139) -> 4439.203438 | BP87: =IF(BP$69="","",Underwriting!BZ139) -> 4439.203438 | BQ87: =IF(BQ$69="","",Underwriting!CA139) -> 4439.203438 | BR87: =IF(BR$69="","",Underwriting!CB139) -> 4439.203438 | BS87: =IF(BS$69="","",Underwriting!CC139) -> 4439.203438 | BT87: =IF(BT$69="","",Underwriting!CD139) -> 4439.203438 | BU87: =IF(BU$69="","",Underwriting!CE139) -> 4439.203438 | BV87: =IF(BV$69="","",Underwriting!CF139) -> 4439.203438 | BW87: =IF(BW$69="","",Underwriting!CG139) -> 4572.379541 | BX87: =IF(BX$69="","",Underwriting!CH139) -> 4572.379541 | BY87: =IF(BY$69="","",Underwriting!CI139) -> 4572.379541 | BZ87: =IF(BZ$69="","",Underwriting!CJ139) -> 4572.379541 | CA87: =IF(CA$69="","",Underwriting!CK139) -> 4572.379541 | CB87: =IF(CB$69="","",Underwriting!CL139) -> 4572.379541 | CC87: =IF(CC$69="","",Underwriting!CM139) -> 4572.379541 | CD87: =IF(CD$69="","",Underwriting!CN139) -> 4572.379541 | CE87: =IF(CE$69="","",Underwriting!CO139) -> 4572.379541 | CF87: =IF(CF$69="","",Underwriting!CP139) -> 4572.379541 | CG87: =IF(CG$69="","",Underwriting!CQ139) -> 4572.379541 | CH87: =IF(CH$69="","",Underwriting!CR139) -> 4572.379541 | CI87: =IF(CI$69="","",Underwriting!CS139) -> 4709.550927 | CJ87: =IF(CJ$69="","",Underwriting!CT139) -> 4709.550927 | CK87: =IF(CK$69="","",Underwriting!CU139) -> 4709.550927 | CL87: =IF(CL$69="","",Underwriting!CV139) -> 4709.550927 | CM87: =IF(CM$69="","",Underwriting!CW139) -> 4709.550927 | CN87: =IF(CN$69="","",Underwriting!CX139) ->  | CO87: =IF(CO$69="","",Underwriting!CY139) ->  | CP87: =IF(CP$69="","",Underwriting!CZ139) ->  | CQ87: =IF(CQ$69="","",Underwriting!DA139) ->  | CR87: =IF(CR$69="","",Underwriting!DB139) ->  | CS87: =IF(CS$69="","",Underwriting!DC139) ->  | CT87: =IF(CT$69="","",Underwriting!DD139) ->  | CU87: =IF(CU$69="","",Underwriting!DE139) ->  | CV87: =IF(CV$69="","",Underwriting!DF139) ->  | CW87: =IF(CW$69="","",Underwriting!DG139) ->  | CX87: =IF(CX$69="","",Underwriting!DH139) ->  | CY87: =IF(CY$69="","",Underwriting!DI139) ->  | CZ87: =IF(CZ$69="","",Underwriting!DJ139) ->  | DA87: =IF(DA$69="","",Underwriting!DK139) ->  | DB87: =IF(DB$69="","",Underwriting!DL139) ->  | DC87: =IF(DC$69="","",Underwriting!DM139) ->  | DD87: =IF(DD$69="","",Underwriting!DN139) ->  | DE87: =IF(DE$69="","",Underwriting!DO139) ->  | DF87: =IF(DF$69="","",Underwriting!DP139) ->  | DG87: =IF(DG$69="","",Underwriting!DQ139) ->  | DH87: =IF(DH$69="","",Underwriting!DR139) ->  | DI87: =IF(DI$69="","",Underwriting!DS139) ->  | DJ87: =IF(DJ$69="","",Underwriting!DT139) ->  | DK87: =IF(DK$69="","",Underwriting!DU139) ->  | DL87: =IF(DL$69="","",Underwriting!DV139) ->  | DM87: =IF(DM$69="","",Underwriting!DW139) ->  | DN87: =IF(DN$69="","",Underwriting!DX139) ->  | DO87: =IF(DO$69="","",Underwriting!DY139) ->  | DP87: =IF(DP$69="","",Underwriting!DZ139) ->  | DQ87: =IF(DQ$69="","",Underwriting!EA139) ->  | DR87: =IF(DR$69="","",Underwriting!EB139) ->  | DS87: =IF(DS$69="","",Underwriting!EC139) ->  | DT87: =IF(DT$69="","",Underwriting!ED139) ->  | DU87: =IF(DU$69="","",Underwriting!EE139) ->  | DV87: =IF(DV$69="","",Underwriting!EF139) ->  | DW87: =IF(DW$69="","",Underwriting!EG139) ->  | DX87: =IF(DX$69="","",Underwriting!EH139) ->  | DY87: =IF(DY$69="","",Underwriting!EI139) ->  | DZ87: =IF(DZ$69="","",Underwriting!EJ139) ->  | EA87: =IF(EA$69="","",Underwriting!EK139) ->  | EB87: =IF(EB$69="","",Underwriting!EL139) ->  | EC87: =IF(EC$69="","",Underwriting!EM139) ->  | ED87: =IF(ED$69="","",Underwriting!EN139) ->  | EE87: =IF(EE$69="","",Underwriting!EO139) ->  | EF87: =IF(EF$69="","",Underwriting!EP139) ->  | EG87: =IF(EG$69="","",Underwriting!EQ139) ->  | EH87: =IF(EH$69="","",Underwriting!ER139) ->  | EI87: =IF(EI$69="","",Underwriting!ES139) -> 
B88: TOTAL OPERATING EXPENSES | G88: =IF(G$69="","",SUM(G78:G87)) -> 0 | H88: =IF(H$69="","",SUM(H78:H87)) -> 0 | I88: 0 | J88: 0 | K88: 0 | L88: 0 | M88: 0 | N88: 0 | O88: 0 | P88: 0 | Q88: 0 | R88: 0 | S88: 0 | T88: 0 | U88: 0 | V88: 0 | W88: 0 | X88: 0 | Y88: 0 | Z88: 0 | AA88: 60441.31133 | AB88: 60819.36875 | AC88: 61197.42618 | AD88: 61575.48361 | AE88: 61953.54104 | AF88: 62331.59847 | AG88: 62709.6559 | AH88: 63087.71333 | AI88: 63465.77075 | AJ88: 63843.82818 | AK88: 64221.88561 | AL88: 64599.94304 | AM88: 67875.1334 | AN88: 68305.12001 | AO88: 68705.00835 | AP88: 69104.89669 | AQ88: 69504.78504 | AR88: 69904.67338 | AS88: 70304.56172 | AT88: 70704.45007 | AU88: 71104.33841 | AV88: 71504.22675 | AW88: 71904.11509 | AX88: 72304.00344 | AY88: 75794.80722 | AZ88: 76209.1461 | BA88: 76663.32413 | BB88: 77086.19997 | BC88: 77509.0758 | BD88: 77931.95164 | BE88: 78354.82748 | BF88: 78777.70332 | BG88: 79200.57916 | BH88: 79623.455 | BI88: 80046.33083 | BJ88: 80469.20667 | BK88: 83076.39718 | BL88: 83514.5967 | BM88: 83952.79622 | BN88: 84432.42847 | BO88: 84879.50643 | BP88: 85326.58439 | BQ88: 86602.31678 | BR88: 86628.9521 | BS88: 86655.58742 | BT88: =IF(BT$69="","",SUM(BT78:BT87)) -> 86682.22275 | BU88: 86708.85807 | BV88: 86735.49339 | BW88: 89081.12394 | BX88: 89108.82468 | BY88: 89136.52541 | BZ88: 89164.22615 | CA88: 89235.01691 | CB88: 89271.95122 | CC88: 89308.88553 | CD88: 89345.81984 | CE88: 89373.52058 | CF88: 89401.22131 | CG88: 89428.92205 | CH88: 89456.62278 | CI88: 91873.62985 | CJ88: 91902.43861 | CK88: 91931.24737 | CL88: 91960.05614 | CM88: 91988.8649 | EF88: =IF(EF$69="","",SUM(EF78:EF87)) -> 
B90: NET OPERATING INCOME | G90: =IF(G$69="","",G75-G88) -> 0 | H90: =IF(H$69="","",H75-H88) -> 0 | I90: 0 | J90: 0 | K90: 0 | L90: 0 | M90: 0 | N90: 0 | O90: 0 | P90: 0 | Q90: 0 | R90: 0 | S90: 0 | T90: 0 | U90: 0 | V90: 0 | W90: 0 | X90: 0 | Y90: 0 | Z90: 0 | AA90: -50661.48935 | AB90: -43437.63249 | AC90: -36213.77563 | AD90: -28989.91878 | AE90: -21766.06192 | AF90: -14542.20506 | AG90: -7318.348205 | AH90: -94.49134799 | AI90: 7129.365509 | AJ90: 14353.22237 | AK90: 21577.07922 | AL90: 28800.93608 | AM90: 32881.04945 | AN90: 41633.94971 | AO90: 49413.67279 | AP90: 57193.39588 | AQ90: 64973.11896 | AR90: 72752.84205 | AS90: 80532.56513 | AT90: 88312.28822 | AU90: 96092.01131 | AV90: 103871.7344 | AW90: 111651.4575 | AX90: 119431.1806 | AY90: 124528.1695 | AZ90: 132620.6265 | BA90: 142001.2162 | BB90: 150369.7017 | BC90: 158738.1871 | BD90: 167106.6725 | BE90: 175475.158 | BF90: 183843.6434 | BG90: 192212.1289 | BH90: 200580.6143 | BI90: 208949.0997 | BJ90: 217317.5852 | BK90: 224617.507 | BL90: 233322.3233 | BM90: 242027.1395 | BN90: 252071.6137 | BO90: 261063.4994 | BP90: 270055.3852 | BQ90: 305840.4308 | BR90: 306701.6396 | BS90: 307562.8483 | BT90: =IF(BT$69="","",BT75-BT88) -> 308424.057 | BU90: 309285.2657 | BV90: 310146.4744 | BW90: 311159.4947 | BX90: 312055.1518 | BY90: 312950.8088 | BZ90: 313846.4659 | CA90: 316135.3672 | CB90: 317329.5767 | CC90: 318523.7861 | CD90: 319717.9955 | CE90: 320613.6525 | CF90: 321509.3096 | CG90: 322404.9667 | CH90: 323300.6237 | CI90: 324376.6135 | CJ90: 325308.0969 | CK90: 326239.5802 | CL90: 327171.0636 | CM90: 328102.5469 | EF90: =IF(EF$69="","",EF75-EF88) -> 
B92: CAPITAL EXPENDITURES | G92: =IF(G$69="","",Underwriting!Q148) -> 0 | H92: =IF(H$69="","",Underwriting!R148) -> 0 | I92: =IF(I$69="","",Underwriting!S148) -> 0 | J92: =IF(J$69="","",Underwriting!T148) -> 0 | K92: =IF(K$69="","",Underwriting!U148) -> 0 | L92: =IF(L$69="","",Underwriting!V148) -> 0 | M92: =IF(M$69="","",Underwriting!W148) -> 0 | N92: =IF(N$69="","",Underwriting!X148) -> 0 | O92: =IF(O$69="","",Underwriting!Y148) -> 0 | P92: =IF(P$69="","",Underwriting!Z148) -> 0 | Q92: =IF(Q$69="","",Underwriting!AA148) -> 0 | R92: =IF(R$69="","",Underwriting!AB148) -> 0 | S92: =IF(S$69="","",Underwriting!AC148) -> 0 | T92: =IF(T$69="","",Underwriting!AD148) -> 0 | U92: =IF(U$69="","",Underwriting!AE148) -> 0 | V92: =IF(V$69="","",Underwriting!AF148) -> 0 | W92: =IF(W$69="","",Underwriting!AG148) -> 0 | X92: =IF(X$69="","",Underwriting!AH148) -> 0 | Y92: =IF(Y$69="","",Underwriting!AI148) -> 0 | Z92: =IF(Z$69="","",Underwriting!AJ148) -> 0 | AA92: =IF(AA$69="","",Underwriting!AK148) -> 208.3333333 | AB92: =IF(AB$69="","",Underwriting!AL148) -> 252.9761905 | AC92: =IF(AC$69="","",Underwriting!AM148) -> 297.6190476 | AD92: =IF(AD$69="","",Underwriting!AN148) -> 342.2619048 | AE92: =IF(AE$69="","",Underwriting!AO148) -> 386.9047619 | AF92: =IF(AF$69="","",Underwriting!AP148) -> 431.547619 | AG92: =IF(AG$69="","",Underwriting!AQ148) -> 476.1904762 | AH92: =IF(AH$69="","",Underwriting!AR148) -> 520.8333333 | AI92: =IF(AI$69="","",Underwriting!AS148) -> 565.4761905 | AJ92: =IF(AJ$69="","",Underwriting!AT148) -> 610.1190476 | AK92: =IF(AK$69="","",Underwriting!AU148) -> 654.7619048 | AL92: =IF(AL$69="","",Underwriting!AV148) -> 699.4047619 | AM92: =IF(AM$69="","",Underwriting!AW148) -> 766.3690476 | AN92: =IF(AN$69="","",Underwriting!AX148) -> 812.3511905 | AO92: =IF(AO$69="","",Underwriting!AY148) -> 858.3333333 | AP92: =IF(AP$69="","",Underwriting!AZ148) -> 904.3154762 | AQ92: =IF(AQ$69="","",Underwriting!BA148) -> 950.297619 | AR92: =IF(AR$69="","",Underwriting!BB148) -> 996.2797619 | AS92: =IF(AS$69="","",Underwriting!BC148) -> 1042.261905 | AT92: =IF(AT$69="","",Underwriting!BD148) -> 1088.244048 | AU92: =IF(AU$69="","",Underwriting!BE148) -> 1134.22619 | AV92: =IF(AV$69="","",Underwriting!BF148) -> 1180.208333 | AW92: =IF(AW$69="","",Underwriting!BG148) -> 1226.190476 | AX92: =IF(AX$69="","",Underwriting!BH148) -> 1272.172619 | AY92: =IF(AY$69="","",Underwriting!BI148) -> 1357.699405 | AZ92: =IF(AZ$69="","",Underwriting!BJ148) -> 1405.061012 | BA92: =IF(BA$69="","",Underwriting!BK148) -> 1452.422619 | BB92: =IF(BB$69="","",Underwriting!BL148) -> 1499.784226 | BC92: =IF(BC$69="","",Underwriting!BM148) -> 1547.145833 | BD92: =IF(BD$69="","",Underwriting!BN148) -> 1594.50744 | BE92: =IF(BE$69="","",Underwriting!BO148) -> 1641.869048 | BF92: =IF(BF$69="","",Underwriting!BP148) -> 1689.230655 | BG92: =IF(BG$69="","",Underwriting!BQ148) -> 1736.592262 | BH92: =IF(BH$69="","",Underwriting!BR148) -> 1783.953869 | BI92: =IF(BI$69="","",Underwriting!BS148) -> 1831.315476 | BJ92: =IF(BJ$69="","",Underwriting!BT148) -> 1878.677083 | BK92: =IF(BK$69="","",Underwriting!BU148) -> 1983.819851 | BL92: =IF(BL$69="","",Underwriting!BV148) -> 2032.602307 | BM92: =IF(BM$69="","",Underwriting!BW148) -> 2081.384762 | BN92: =IF(BN$69="","",Underwriting!BX148) -> 2130.167217 | BO92: =IF(BO$69="","",Underwriting!BY148) -> 2178.949673 | BP92: =IF(BP$69="","",Underwriting!BZ148) -> 2227.732128 | BQ92: =IF(BQ$69="","",Underwriting!CA148) -> 2276.514583 | BR92: =IF(BR$69="","",Underwriting!CB148) -> 2276.514583 | BS92: =IF(BS$69="","",Underwriting!CC148) -> 2276.514583 | BT92: =IF(BT$69="","",Underwriting!CD148) -> 2276.514583 | BU92: =IF(BU$69="","",Underwriting!CE148) -> 2276.514583 | BV92: =IF(BV$69="","",Underwriting!CF148) -> 2276.514583 | BW92: =IF(BW$69="","",Underwriting!CG148) -> 2344.810021 | BX92: =IF(BX$69="","",Underwriting!CH148) -> 2344.810021 | BY92: =IF(BY$69="","",Underwriting!CI148) -> 2344.810021 | BZ92: =IF(BZ$69="","",Underwriting!CJ148) -> 2344.810021 | CA92: =IF(CA$69="","",Underwriting!CK148) -> 2344.810021 | CB92: =IF(CB$69="","",Underwriting!CL148) -> 2344.810021 | CC92: =IF(CC$69="","",Underwriting!CM148) -> 2344.810021 | CD92: =IF(CD$69="","",Underwriting!CN148) -> 2344.810021 | CE92: =IF(CE$69="","",Underwriting!CO148) -> 2344.810021 | CF92: =IF(CF$69="","",Underwriting!CP148) -> 2344.810021 | CG92: =IF(CG$69="","",Underwriting!CQ148) -> 2344.810021 | CH92: =IF(CH$69="","",Underwriting!CR148) -> 2344.810021 | CI92: =IF(CI$69="","",Underwriting!CS148) -> 2415.154321 | CJ92: =IF(CJ$69="","",Underwriting!CT148) -> 2415.154321 | CK92: =IF(CK$69="","",Underwriting!CU148) -> 2415.154321 | CL92: =IF(CL$69="","",Underwriting!CV148) -> 2415.154321 | CM92: =IF(CM$69="","",Underwriting!CW148) -> 2415.154321 | CN92: =IF(CN$69="","",Underwriting!CX148) ->  | CO92: =IF(CO$69="","",Underwriting!CY148) ->  | CP92: =IF(CP$69="","",Underwriting!CZ148) ->  | CQ92: =IF(CQ$69="","",Underwriting!DA148) ->  | CR92: =IF(CR$69="","",Underwriting!DB148) ->  | CS92: =IF(CS$69="","",Underwriting!DC148) ->  | CT92: =IF(CT$69="","",Underwriting!DD148) ->  | CU92: =IF(CU$69="","",Underwriting!DE148) ->  | CV92: =IF(CV$69="","",Underwriting!DF148) ->  | CW92: =IF(CW$69="","",Underwriting!DG148) ->  | CX92: =IF(CX$69="","",Underwriting!DH148) ->  | CY92: =IF(CY$69="","",Underwriting!DI148) ->  | CZ92: =IF(CZ$69="","",Underwriting!DJ148) ->  | DA92: =IF(DA$69="","",Underwriting!DK148) ->  | DB92: =IF(DB$69="","",Underwriting!DL148) ->  | DC92: =IF(DC$69="","",Underwriting!DM148) ->  | DD92: =IF(DD$69="","",Underwriting!DN148) ->  | DE92: =IF(DE$69="","",Underwriting!DO148) ->  | DF92: =IF(DF$69="","",Underwriting!DP148) ->  | DG92: =IF(DG$69="","",Underwriting!DQ148) ->  | DH92: =IF(DH$69="","",Underwriting!DR148) ->  | DI92: =IF(DI$69="","",Underwriting!DS148) ->  | DJ92: =IF(DJ$69="","",Underwriting!DT148) ->  | DK92: =IF(DK$69="","",Underwriting!DU148) ->  | DL92: =IF(DL$69="","",Underwriting!DV148) ->  | DM92: =IF(DM$69="","",Underwriting!DW148) ->  | DN92: =IF(DN$69="","",Underwriting!DX148) ->  | DO92: =IF(DO$69="","",Underwriting!DY148) ->  | DP92: =IF(DP$69="","",Underwriting!DZ148) ->  | DQ92: =IF(DQ$69="","",Underwriting!EA148) ->  | DR92: =IF(DR$69="","",Underwriting!EB148) ->  | DS92: =IF(DS$69="","",Underwriting!EC148) ->  | DT92: =IF(DT$69="","",Underwriting!ED148) ->  | DU92: =IF(DU$69="","",Underwriting!EE148) ->  | DV92: =IF(DV$69="","",Underwriting!EF148) ->  | DW92: =IF(DW$69="","",Underwriting!EG148) ->  | DX92: =IF(DX$69="","",Underwriting!EH148) ->  | DY92: =IF(DY$69="","",Underwriting!EI148) ->  | DZ92: =IF(DZ$69="","",Underwriting!EJ148) ->  | EA92: =IF(EA$69="","",Underwriting!EK148) ->  | EB92: =IF(EB$69="","",Underwriting!EL148) ->  | EC92: =IF(EC$69="","",Underwriting!EM148) ->  | ED92: =IF(ED$69="","",Underwriting!EN148) ->  | EE92: =IF(EE$69="","",Underwriting!EO148) ->  | EF92: =IF(EF$69="","",Underwriting!EP148) ->  | EG92: =IF(EG$69="","",Underwriting!EQ148) ->  | EH92: =IF(EH$69="","",Underwriting!ER148) ->  | EI92: =IF(EI$69="","",Underwriting!ES148) -> 
B94: CASH FLOW FROM OPERATIONS | G94: =IF(G$69="","",G90-G92) -> 0 | H94: =IF(H$69="","",H90-H92) -> 0 | I94: 0 | J94: 0 | K94: 0 | L94: 0 | M94: 0 | N94: 0 | O94: 0 | P94: 0 | Q94: 0 | R94: 0 | S94: 0 | T94: 0 | U94: 0 | V94: 0 | W94: 0 | X94: 0 | Y94: 0 | Z94: 0 | AA94: -50869.82268 | AB94: -43690.60868 | AC94: -36511.39468 | AD94: -29332.18068 | AE94: -22152.96668 | AF94: -14973.75268 | AG94: -7794.538681 | AH94: -615.3246813 | AI94: 6563.889319 | AJ94: 13743.10332 | AK94: 20922.31732 | AL94: 28101.53132 | AM94: 32114.68041 | AN94: 40821.59852 | AO94: 48555.33946 | AP94: 56289.0804 | AQ94: 64022.82134 | AR94: 71756.56229 | AS94: 79490.30323 | AT94: 87224.04417 | AU94: 94957.78512 | AV94: 102691.5261 | AW94: 110425.267 | AX94: 118159.0079 | AY94: 123170.4701 | AZ94: 131215.5655 | BA94: 140548.7936 | BB94: 148869.9174 | BC94: 157191.0413 | BD94: 165512.1651 | BE94: 173833.2889 | BF94: 182154.4128 | BG94: 190475.5366 | BH94: 198796.6604 | BI94: 207117.7843 | BJ94: 215438.9081 | BK94: 222633.6872 | BL94: 231289.7209 | BM94: 239945.7547 | BN94: 249941.4464 | BO94: 258884.5498 | BP94: 267827.6531 | BQ94: 303563.9163 | BR94: 304425.125 | BS94: 305286.3337 | BT94: =IF(BT$69="","",BT90-BT92) -> 306147.5424 | BU94: 307008.7511 | BV94: 307869.9598 | BW94: 308814.6847 | BX94: 309710.3417 | BY94: 310605.9988 | BZ94: 311501.6559 | CA94: 313790.5572 | CB94: 314984.7666 | CC94: 316178.976 | CD94: 317373.1855 | CE94: 318268.8425 | CF94: 319164.4996 | CG94: 320060.1566 | CH94: 320955.8137 | CI94: 321961.4592 | CJ94: 322892.9426 | CK94: 323824.4259 | CL94: 324755.9092 | CM94: 325687.3926 | EF94: =IF(EF$69="","",EF90-EF92) -> 
B96: MONTHLY PROPERTY-LEVEL CASH FLOWS | G96: =+G69 -> 0 | H96: =+H69 -> 1 | I96: 2 | J96: 3 | K96: 4 | L96: 5 | M96: 6 | N96: 7 | O96: 8 | P96: 9 | Q96: 10 | R96: 11 | S96: 12 | T96: 13 | U96: 14 | V96: 15 | W96: 16 | X96: 17 | Y96: 18 | Z96: 19 | AA96: 20 | AB96: 21 | AC96: 22 | AD96: 23 | AE96: 24 | AF96: 25 | AG96: 26 | AH96: 27 | AI96: 28 | AJ96: 29 | AK96: 30 | AL96: 31 | AM96: 32 | AN96: 33 | AO96: 34 | AP96: 35 | AQ96: 36 | AR96: 37 | AS96: 38 | AT96: 39 | AU96: 40 | AV96: 41 | AW96: 42 | AX96: 43 | AY96: 44 | AZ96: 45 | BA96: 46 | BB96: 47 | BC96: 48 | BD96: 49 | BE96: 50 | BF96: 51 | BG96: 52 | BH96: 53 | BI96: 54 | BJ96: 55 | BK96: 56 | BL96: 57 | BM96: 58 | BN96: 59 | BO96: 60 | BP96: 61 | BQ96: 62 | BR96: 63 | BS96: 64 | BT96: =+BT69 -> 65 | BU96: 66 | BV96: 67 | BW96: 68 | BX96: 69 | BY96: 70 | BZ96: 71 | CA96: 72 | CB96: 73 | CC96: 74 | CD96: 75 | CE96: 76 | CF96: 77 | CG96: 78 | CH96: 79 | CI96: 80 | CJ96: 81 | CK96: 82 | CL96: 83 | CM96: 84 | EF96: =+EF69 -> 
B98: Net Unlevered Cash Flow | G98: =IF(G$96="","",Underwriting!Q225) -> -42075500 | H98: =IF(H$96="","",Underwriting!R225) -> -93059.03345 | I98: =IF(I$96="","",Underwriting!S225) -> -316005.6344 | J98: =IF(J$96="","",Underwriting!T225) -> -993917.8468 | K98: =IF(K$96="","",Underwriting!U225) -> -1573126.549 | L98: =IF(L$96="","",Underwriting!V225) -> -1578267.941 | M98: =IF(M$96="","",Underwriting!W225) -> -1052615.444 | N98: =IF(N$96="","",Underwriting!X225) -> -884026.7699 | O98: =IF(O$96="","",Underwriting!Y225) -> -749230.8564 | P98: =IF(P$96="","",Underwriting!Z225) -> -593680.4929 | Q98: =IF(Q$96="","",Underwriting!AA225) -> -760068.6037 | R98: =IF(R$96="","",Underwriting!AB225) -> -710090.9744 | S98: =IF(S$96="","",Underwriting!AC225) -> -643734.484 | T98: =IF(T$96="","",Underwriting!AD225) -> -755945.9255 | U98: =IF(U$96="","",Underwriting!AE225) -> -735432.3806 | V98: =IF(V$96="","",Underwriting!AF225) -> -728327.7058 | W98: =IF(W$96="","",Underwriting!AG225) -> -727684.0019 | X98: =IF(X$96="","",Underwriting!AH225) -> -609202.0019 | Y98: =IF(Y$96="","",Underwriting!AI225) -> -585983.0019 | Z98: =IF(Z$96="","",Underwriting!AJ225) -> -389705.6685 | AA98: =IF(AA$96="","",Underwriting!AK225) -> -50869.82268 | AB98: =IF(AB$96="","",Underwriting!AL225) -> -43690.60868 | AC98: =IF(AC$96="","",Underwriting!AM225) -> -36511.39468 | AD98: =IF(AD$96="","",Underwriting!AN225) -> -29332.18068 | AE98: =IF(AE$96="","",Underwriting!AO225) -> -22152.96668 | AF98: =IF(AF$96="","",Underwriting!AP225) -> -14973.75268 | AG98: =IF(AG$96="","",Underwriting!AQ225) -> -7794.538681 | AH98: =IF(AH$96="","",Underwriting!AR225) -> -615.3246813 | AI98: =IF(AI$96="","",Underwriting!AS225) -> 6563.889319 | AJ98: =IF(AJ$96="","",Underwriting!AT225) -> 13743.10332 | AK98: =IF(AK$96="","",Underwriting!AU225) -> 20922.31732 | AL98: =IF(AL$96="","",Underwriting!AV225) -> 28101.53132 | AM98: =IF(AM$96="","",Underwriting!AW225) -> 32114.68041 | AN98: =IF(AN$96="","",Underwriting!AX225) -> 40821.59852 | AO98: =IF(AO$96="","",Underwriting!AY225) -> 48555.33946 | AP98: =IF(AP$96="","",Underwriting!AZ225) -> 56289.0804 | AQ98: =IF(AQ$96="","",Underwriting!BA225) -> 64022.82134 | AR98: =IF(AR$96="","",Underwriting!BB225) -> 71756.56229 | AS98: =IF(AS$96="","",Underwriting!BC225) -> 79490.30323 | AT98: =IF(AT$96="","",Underwriting!BD225) -> 87224.04417 | AU98: =IF(AU$96="","",Underwriting!BE225) -> 94957.78512 | AV98: =IF(AV$96="","",Underwriting!BF225) -> 102691.5261 | AW98: =IF(AW$96="","",Underwriting!BG225) -> 110425.267 | AX98: =IF(AX$96="","",Underwriting!BH225) -> 118159.0079 | AY98: =IF(AY$96="","",Underwriting!BI225) -> 123170.4701 | AZ98: =IF(AZ$96="","",Underwriting!BJ225) -> 131215.5655 | BA98: =IF(BA$96="","",Underwriting!BK225) -> 140548.7936 | BB98: =IF(BB$96="","",Underwriting!BL225) -> 148869.9174 | BC98: =IF(BC$96="","",Underwriting!BM225) -> 157191.0413 | BD98: =IF(BD$96="","",Underwriting!BN225) -> 165512.1651 | BE98: =IF(BE$96="","",Underwriting!BO225) -> 173833.2889 | BF98: =IF(BF$96="","",Underwriting!BP225) -> 182154.4128 | BG98: =IF(BG$96="","",Underwriting!BQ225) -> 190475.5366 | BH98: =IF(BH$96="","",Underwriting!BR225) -> 198796.6604 | BI98: =IF(BI$96="","",Underwriting!BS225) -> 207117.7843 | BJ98: =IF(BJ$96="","",Underwriting!BT225) -> 215438.9081 | BK98: =IF(BK$96="","",Underwriting!BU225) -> 222633.6872 | BL98: =IF(BL$96="","",Underwriting!BV225) -> 231289.7209 | BM98: =IF(BM$96="","",Underwriting!BW225) -> 239945.7547 | BN98: =IF(BN$96="","",Underwriting!BX225) -> 249941.4464 | BO98: =IF(BO$96="","",Underwriting!BY225) -> 258884.5498 | BP98: =IF(BP$96="","",Underwriting!BZ225) -> 267827.6531 | BQ98: =IF(BQ$96="","",Underwriting!CA225) -> 303563.9163 | BR98: =IF(BR$96="","",Underwriting!CB225) -> 304425.125 | BS98: =IF(BS$96="","",Underwriting!CC225) -> 305286.3337 | BT98: =IF(BT$96="","",Underwriting!CD225) -> 306147.5424 | BU98: =IF(BU$96="","",Underwriting!CE225) -> 307008.7511 | BV98: =IF(BV$96="","",Underwriting!CF225) -> 307869.9598 | BW98: =IF(BW$96="","",Underwriting!CG225) -> 308814.6847 | BX98: =IF(BX$96="","",Underwriting!CH225) -> 309710.3417 | BY98: =IF(BY$96="","",Underwriting!CI225) -> 310605.9988 | BZ98: =IF(BZ$96="","",Underwriting!CJ225) -> 311501.6559 | CA98: =IF(CA$96="","",Underwriting!CK225) -> 313790.5572 | CB98: =IF(CB$96="","",Underwriting!CL225) -> 314984.7666 | CC98: =IF(CC$96="","",Underwriting!CM225) -> 316178.976 | CD98: =IF(CD$96="","",Underwriting!CN225) -> 317373.1855 | CE98: =IF(CE$96="","",Underwriting!CO225) -> 318268.8425 | CF98: =IF(CF$96="","",Underwriting!CP225) -> 319164.4996 | CG98: =IF(CG$96="","",Underwriting!CQ225) -> 320060.1566 | CH98: =IF(CH$96="","",Underwriting!CR225) -> 320955.8137 | CI98: =IF(CI$96="","",Underwriting!CS225) -> 321961.4592 | CJ98: =IF(CJ$96="","",Underwriting!CT225) -> 322892.9426 | CK98: =IF(CK$96="","",Underwriting!CU225) -> 323824.4259 | CL98: =IF(CL$96="","",Underwriting!CV225) -> 324755.9092 | CM98: =IF(CM$96="","",Underwriting!CW225) -> 75825407.51 | CN98: =IF(CN$96="","",Underwriting!CX225) ->  | CO98: =IF(CO$96="","",Underwriting!CY225) ->  | CP98: =IF(CP$96="","",Underwriting!CZ225) ->  | CQ98: =IF(CQ$96="","",Underwriting!DA225) ->  | CR98: =IF(CR$96="","",Underwriting!DB225) ->  | CS98: =IF(CS$96="","",Underwriting!DC225) ->  | CT98: =IF(CT$96="","",Underwriting!DD225) ->  | CU98: =IF(CU$96="","",Underwriting!DE225) ->  | CV98: =IF(CV$96="","",Underwriting!DF225) ->  | CW98: =IF(CW$96="","",Underwriting!DG225) ->  | CX98: =IF(CX$96="","",Underwriting!DH225) ->  | CY98: =IF(CY$96="","",Underwriting!DI225) ->  | CZ98: =IF(CZ$96="","",Underwriting!DJ225) ->  | DA98: =IF(DA$96="","",Underwriting!DK225) ->  | DB98: =IF(DB$96="","",Underwriting!DL225) ->  | DC98: =IF(DC$96="","",Underwriting!DM225) ->  | DD98: =IF(DD$96="","",Underwriting!DN225) ->  | DE98: =IF(DE$96="","",Underwriting!DO225) ->  | DF98: =IF(DF$96="","",Underwriting!DP225) ->  | DG98: =IF(DG$96="","",Underwriting!DQ225) ->  | DH98: =IF(DH$96="","",Underwriting!DR225) ->  | DI98: =IF(DI$96="","",Underwriting!DS225) ->  | DJ98: =IF(DJ$96="","",Underwriting!DT225) ->  | DK98: =IF(DK$96="","",Underwriting!DU225) ->  | DL98: =IF(DL$96="","",Underwriting!DV225) ->  | DM98: =IF(DM$96="","",Underwriting!DW225) ->  | DN98: =IF(DN$96="","",Underwriting!DX225) ->  | DO98: =IF(DO$96="","",Underwriting!DY225) ->  | DP98: =IF(DP$96="","",Underwriting!DZ225) ->  | DQ98: =IF(DQ$96="","",Underwriting!EA225) ->  | DR98: =IF(DR$96="","",Underwriting!EB225) ->  | DS98: =IF(DS$96="","",Underwriting!EC225) ->  | DT98: =IF(DT$96="","",Underwriting!ED225) ->  | DU98: =IF(DU$96="","",Underwriting!EE225) ->  | DV98: =IF(DV$96="","",Underwriting!EF225) ->  | DW98: =IF(DW$96="","",Underwriting!EG225) ->  | DX98: =IF(DX$96="","",Underwriting!EH225) ->  | DY98: =IF(DY$96="","",Underwriting!EI225) ->  | DZ98: =IF(DZ$96="","",Underwriting!EJ225) ->  | EA98: =IF(EA$96="","",Underwriting!EK225) ->  | EB98: =IF(EB$96="","",Underwriting!EL225) ->  | EC98: =IF(EC$96="","",Underwriting!EM225) ->  | ED98: =IF(ED$96="","",Underwriting!EN225) ->  | EE98: =IF(EE$96="","",Underwriting!EO225) ->  | EF98: =IF(EF$96="","",Underwriting!EP225) ->  | EG98: =IF(EG$96="","",Underwriting!EQ225) ->  | EH98: =IF(EH$96="","",Underwriting!ER225) ->  | EI98: =IF(EI$96="","",Underwriting!ES225) -> 
B99: Net Levered Cash Flow | G99: =IF(G$96="","",Underwriting!Q226) -> -42078206.96 | H99: =IF(H$96="","",Underwriting!R226) -> 0 | I99: =IF(I$96="","",Underwriting!S226) -> 0 | J99: =IF(J$96="","",Underwriting!T226) -> 0 | K99: =IF(K$96="","",Underwriting!U226) -> 0 | L99: =IF(L$96="","",Underwriting!V226) -> 0 | M99: =IF(M$96="","",Underwriting!W226) -> 0 | N99: =IF(N$96="","",Underwriting!X226) -> 0 | O99: =IF(O$96="","",Underwriting!Y226) -> 0 | P99: =IF(P$96="","",Underwriting!Z226) -> 0 | Q99: =IF(Q$96="","",Underwriting!AA226) -> 0 | R99: =IF(R$96="","",Underwriting!AB226) -> 0 | S99: =IF(S$96="","",Underwriting!AC226) -> 0 | T99: =IF(T$96="","",Underwriting!AD226) -> 0 | U99: =IF(U$96="","",Underwriting!AE226) -> 0 | V99: =IF(V$96="","",Underwriting!AF226) -> 0 | W99: =IF(W$96="","",Underwriting!AG226) -> 0 | X99: =IF(X$96="","",Underwriting!AH226) -> 0 | Y99: =IF(Y$96="","",Underwriting!AI226) -> 0 | Z99: =IF(Z$96="","",Underwriting!AJ226) -> -1.571606845e-09 | AA99: =IF(AA$96="","",Underwriting!AK226) -> -7.275957614e-12 | AB99: =IF(AB$96="","",Underwriting!AL226) -> -7.275957614e-12 | AC99: =IF(AC$96="","",Underwriting!AM226) -> 7.275957614e-12 | AD99: =IF(AD$96="","",Underwriting!AN226) -> 7.275957614e-12 | AE99: =IF(AE$96="","",Underwriting!AO226) -> 0 | AF99: =IF(AF$96="","",Underwriting!AP226) -> 1.455191523e-11 | AG99: =IF(AG$96="","",Underwriting!AQ226) -> -1.000444172e-11 | AH99: =IF(AH$96="","",Underwriting!AR226) -> 2.387423592e-12 | AI99: =IF(AI$96="","",Underwriting!AS226) -> -7.275957614e-12 | AJ99: =IF(AJ$96="","",Underwriting!AT226) -> -1.818989404e-12 | AK99: =IF(AK$96="","",Underwriting!AU226) -> 3.637978807e-12 | AL99: =IF(AL$96="","",Underwriting!AV226) -> 0 | AM99: =IF(AM$96="","",Underwriting!AW226) -> -7.275957614e-12 | AN99: =IF(AN$96="","",Underwriting!AX226) -> 7.275957614e-12 | AO99: =IF(AO$96="","",Underwriting!AY226) -> -7.275957614e-12 | AP99: =IF(AP$96="","",Underwriting!AZ226) -> 0 | AQ99: =IF(AQ$96="","",Underwriting!BA226) -> 0 | AR99: =IF(AR$96="","",Underwriting!BB226) -> 0 | AS99: =IF(AS$96="","",Underwriting!BC226) -> 0 | AT99: =IF(AT$96="","",Underwriting!BD226) -> 0 | AU99: =IF(AU$96="","",Underwriting!BE226) -> 0 | AV99: =IF(AV$96="","",Underwriting!BF226) -> 0 | AW99: =IF(AW$96="","",Underwriting!BG226) -> 0 | AX99: =IF(AX$96="","",Underwriting!BH226) -> 0 | AY99: =IF(AY$96="","",Underwriting!BI226) -> 0 | AZ99: =IF(AZ$96="","",Underwriting!BJ226) -> 0 | BA99: =IF(BA$96="","",Underwriting!BK226) -> 5295.420161 | BB99: =IF(BB$96="","",Underwriting!BL226) -> 13616.544 | BC99: =IF(BC$96="","",Underwriting!BM226) -> 21937.66783 | BD99: =IF(BD$96="","",Underwriting!BN226) -> 30258.79166 | BE99: =IF(BE$96="","",Underwriting!BO226) -> 38579.9155 | BF99: =IF(BF$96="","",Underwriting!BP226) -> 46901.03933 | BG99: =IF(BG$96="","",Underwriting!BQ226) -> 55222.16317 | BH99: =IF(BH$96="","",Underwriting!BR226) -> 63543.287 | BI99: =IF(BI$96="","",Underwriting!BS226) -> 71864.41084 | BJ99: =IF(BJ$96="","",Underwriting!BT226) -> 80185.53467 | BK99: =IF(BK$96="","",Underwriting!BU226) -> 87380.31375 | BL99: =IF(BL$96="","",Underwriting!BV226) -> 96036.34751 | BM99: =IF(BM$96="","",Underwriting!BW226) -> 104692.3813 | BN99: =IF(BN$96="","",Underwriting!BX226) -> 114688.073 | BO99: =IF(BO$96="","",Underwriting!BY226) -> 123631.1763 | BP99: =IF(BP$96="","",Underwriting!BZ226) -> 132574.2797 | BQ99: =IF(BQ$96="","",Underwriting!CA226) -> 168310.5428 | BR99: =IF(BR$96="","",Underwriting!CB226) -> 169171.7515 | BS99: =IF(BS$96="","",Underwriting!CC226) -> 170032.9602 | BT99: =IF(BT$96="","",Underwriting!CD226) -> 170894.169 | BU99: =IF(BU$96="","",Underwriting!CE226) -> 171755.3777 | BV99: =IF(BV$96="","",Underwriting!CF226) -> 172616.5864 | BW99: =IF(BW$96="","",Underwriting!CG226) -> 173561.3112 | BX99: =IF(BX$96="","",Underwriting!CH226) -> 174456.9683 | BY99: =IF(BY$96="","",Underwriting!CI226) -> 175352.6254 | BZ99: =IF(BZ$96="","",Underwriting!CJ226) -> 176248.2824 | CA99: =IF(CA$96="","",Underwriting!CK226) -> 178537.1838 | CB99: =IF(CB$96="","",Underwriting!CL226) -> 179731.3932 | CC99: =IF(CC$96="","",Underwriting!CM226) -> 180925.6026 | CD99: =IF(CD$96="","",Underwriting!CN226) -> 182119.812 | CE99: =IF(CE$96="","",Underwriting!CO226) -> 183015.4691 | CF99: =IF(CF$96="","",Underwriting!CP226) -> 183911.1261 | CG99: =IF(CG$96="","",Underwriting!CQ226) -> 184806.7832 | CH99: =IF(CH$96="","",Underwriting!CR226) -> 185702.4403 | CI99: =IF(CI$96="","",Underwriting!CS226) -> 186708.0858 | CJ99: =IF(CJ$96="","",Underwriting!CT226) -> 187639.5691 | CK99: =IF(CK$96="","",Underwriting!CU226) -> 188571.0525 | CL99: =IF(CL$96="","",Underwriting!CV226) -> 189502.5358 | CM99: =IF(CM$96="","",Underwriting!CW226) -> 57656371.01 | CN99: =IF(CN$96="","",Underwriting!CX226) ->  | CO99: =IF(CO$96="","",Underwriting!CY226) ->  | CP99: =IF(CP$96="","",Underwriting!CZ226) ->  | CQ99: =IF(CQ$96="","",Underwriting!DA226) ->  | CR99: =IF(CR$96="","",Underwriting!DB226) ->  | CS99: =IF(CS$96="","",Underwriting!DC226) ->  | CT99: =IF(CT$96="","",Underwriting!DD226) ->  | CU99: =IF(CU$96="","",Underwriting!DE226) ->  | CV99: =IF(CV$96="","",Underwriting!DF226) ->  | CW99: =IF(CW$96="","",Underwriting!DG226) ->  | CX99: =IF(CX$96="","",Underwriting!DH226) ->  | CY99: =IF(CY$96="","",Underwriting!DI226) ->  | CZ99: =IF(CZ$96="","",Underwriting!DJ226) ->  | DA99: =IF(DA$96="","",Underwriting!DK226) ->  | DB99: =IF(DB$96="","",Underwriting!DL226) ->  | DC99: =IF(DC$96="","",Underwriting!DM226) ->  | DD99: =IF(DD$96="","",Underwriting!DN226) ->  | DE99: =IF(DE$96="","",Underwriting!DO226) ->  | DF99: =IF(DF$96="","",Underwriting!DP226) ->  | DG99: =IF(DG$96="","",Underwriting!DQ226) ->  | DH99: =IF(DH$96="","",Underwriting!DR226) ->  | DI99: =IF(DI$96="","",Underwriting!DS226) ->  | DJ99: =IF(DJ$96="","",Underwriting!DT226) ->  | DK99: =IF(DK$96="","",Underwriting!DU226) ->  | DL99: =IF(DL$96="","",Underwriting!DV226) ->  | DM99: =IF(DM$96="","",Underwriting!DW226) ->  | DN99: =IF(DN$96="","",Underwriting!DX226) ->  | DO99: =IF(DO$96="","",Underwriting!DY226) ->  | DP99: =IF(DP$96="","",Underwriting!DZ226) ->  | DQ99: =IF(DQ$96="","",Underwriting!EA226) ->  | DR99: =IF(DR$96="","",Underwriting!EB226) ->  | DS99: =IF(DS$96="","",Underwriting!EC226) ->  | DT99: =IF(DT$96="","",Underwriting!ED226) ->  | DU99: =IF(DU$96="","",Underwriting!EE226) ->  | DV99: =IF(DV$96="","",Underwriting!EF226) ->  | DW99: =IF(DW$96="","",Underwriting!EG226) ->  | DX99: =IF(DX$96="","",Underwriting!EH226) ->  | DY99: =IF(DY$96="","",Underwriting!EI226) ->  | DZ99: =IF(DZ$96="","",Underwriting!EJ226) ->  | EA99: =IF(EA$96="","",Underwriting!EK226) ->  | EB99: =IF(EB$96="","",Underwriting!EL226) ->  | EC99: =IF(EC$96="","",Underwriting!EM226) ->  | ED99: =IF(ED$96="","",Underwriting!EN226) ->  | EE99: =IF(EE$96="","",Underwriting!EO226) ->  | EF99: =IF(EF$96="","",Underwriting!EP226) ->  | EG99: =IF(EG$96="","",Underwriting!EQ226) ->  | EH99: =IF(EH$96="","",Underwriting!ER226) ->  | EI99: =IF(EI$96="","",Underwriting!ES226) -> 

Sheet Underwriting
B2: =UPPER(Investment_Name) -> NORTH SYDNEY APT RENEWAL | D2: =IF(Recalc?=TRUE,"CLICK TO RECALCULATE","") ->  | P2: Analysis Year | Q2: =ROUNDUP(Q3/12,0) -> 0 | R2: =ROUNDUP(R3/12,0) -> 1 | S2: =ROUNDUP(S3/12,0) -> 1 | T2: 1 | U2: 1 | V2: 1 | W2: 1 | X2: 1 | Y2: 1 | Z2: 1 | AA2: 1 | AB2: 1 | AC2: 1 | AD2: 2 | AE2: 2 | AF2: 2 | AG2: 2 | AH2: 2 | AI2: 2 | AJ2: 2 | AK2: 2 | AL2: 2 | AM2: 2 | AN2: 2 | AO2: 2 | AP2: 3 | AQ2: 3 | AR2: 3 | AS2: 3 | AT2: 3 | AU2: 3 | AV2: 3 | AW2: 3 | AX2: 3 | AY2: 3 | AZ2: 3 | BA2: 3 | BB2: 4 | BC2: 4 | BD2: 4 | BE2: 4 | BF2: 4 | BG2: 4 | BH2: 4 | BI2: 4 | BJ2: 4 | BK2: 4 | BL2: 4 | BM2: 4 | BN2: 5 | BO2: 5 | BP2: 5 | BQ2: 5 | BR2: 5 | BS2: 5 | BT2: 5 | BU2: 5 | BV2: 5 | BW2: 5 | BX2: 5 | BY2: 5 | BZ2: 6 | CA2: 6 | CB2: 6 | CC2: 6 | CD2: 6 | CE2: =ROUNDUP(CE3/12,0) -> 6 | CF2: 6 | CG2: 6 | CH2: 6 | CI2: 6 | CJ2: 6 | CK2: 6 | CL2: 7 | CM2: 7 | CN2: 7 | CO2: 7 | CP2: 7 | CQ2: 7 | CR2: 7 | CS2: 7 | CT2: 7 | CU2: 7 | CV2: 7 | CW2: 7 | CX2: 8 | CY2: 8 | CZ2: 8 | DA2: 8 | DB2: 8 | DC2: 8 | DD2: 8 | DE2: 8 | DF2: 8 | DG2: 8 | DH2: 8 | DI2: 8 | DJ2: 9 | DK2: 9 | DL2: 9 | DM2: 9 | DN2: 9 | DO2: 9 | DP2: 9 | DQ2: 9 | DR2: 9 | DS2: 9 | DT2: 9 | DU2: 9 | DV2: 10 | DW2: 10 | DX2: 10 | DY2: 10 | DZ2: 10 | EA2: 10 | EB2: 10 | EC2: 10 | ED2: 10 | EE2: 10 | EF2: 10 | EG2: 10 | EH2: 11 | EI2: 11 | EJ2: 11 | EK2: 11 | EL2: 11 | EM2: 11 | EN2: 11 | EO2: 11 | EP2: 11 | EQ2: =ROUNDUP(EQ3/12,0) -> 11 | ER2: =ROUNDUP(ER3/12,0) -> 11 | ES2: =ROUNDUP(ES3/12,0) -> 11 | FA2: =Q2 -> 0 | FB2: =R2 -> 1 | FC2: 1 | FD2: 1 | FE2: 1 | FF2: 1 | FG2: 1 | FH2: 1 | FI2: 1 | FJ2: 1 | FK2: 1 | FL2: 1 | FM2: 1 | FN2: 2 | FO2: 2 | FP2: 2 | FQ2: 2 | FR2: 2 | FS2: 2 | FT2: 2 | FU2: 2 | FV2: 2 | FW2: 2 | FX2: 2 | FY2: 2 | FZ2: 3 | GA2: 3 | GB2: 3 | GC2: 3 | GD2: 3 | GE2: 3 | GF2: 3 | GG2: 3 | GH2: 3 | GI2: 3 | GJ2: 3 | GK2: 3 | GL2: 4 | GM2: 4 | GN2: 4 | GO2: 4 | GP2: 4 | GQ2: 4 | GR2: 4 | GS2: 4 | GT2: 4 | GU2: 4 | GV2: 4 | GW2: 4 | GX2: 5 | GY2: 5 | GZ2: 5 | HA2: 5 | HB2: 5 | HC2: 5 | HD2: 5 | HE2: 5 | HF2: 5 | HG2: 5 | HH2: 5 | HI2: 5 | HJ2: 6 | HK2: 6 | HL2: 6 | HM2: 6 | HN2: =CD2 -> 6 | HO2: 6 | HP2: 6 | HQ2: 6 | HR2: 6 | HS2: 6 | HT2: 6 | HU2: 6 | HV2: 7 | HW2: 7 | HX2: 7 | HY2: 7 | HZ2: 7 | IA2: 7 | IB2: 7 | IC2: 7 | ID2: 7 | IE2: 7 | IF2: 7 | IG2: 7 | IH2: 8 | II2: 8 | IJ2: 8 | IK2: 8 | IL2: 8 | IM2: 8 | IN2: 8 | IO2: 8 | IP2: 8 | IQ2: 8 | IR2: 8 | IS2: 8 | IT2: 9 | IU2: 9 | IV2: 9 | IW2: =DM2 -> 9 | IX2: 9 | IY2: 9 | IZ2: 9 | JA2: 9 | JB2: 9 | JC2: 9 | JD2: 9 | JE2: 9 | JF2: 10 | JG2: =DW2 -> 10 | JH2: 10 | JI2: 10 | JJ2: 10 | JK2: 10 | JL2: 10 | JM2: 10 | JN2: 10 | JO2: 10 | JP2: 10 | JQ2: =EG2 -> 10 | JR2: 11 | JS2: 11 | JT2: 11 | JU2: 11 | JV2: 11 | JW2: 11 | JX2: 11 | JY2: 11 | JZ2: 11 | KA2: =EQ2 -> 11 | KB2: 11 | KC2: 11
P3: Analysis Month | Q3: 0 | R3: =Q3+1 -> 1 | S3: =R3+1 -> 2 | T3: 3 | U3: 4 | V3: 5 | W3: 6 | X3: 7 | Y3: 8 | Z3: 9 | AA3: 10 | AB3: 11 | AC3: 12 | AD3: 13 | AE3: 14 | AF3: 15 | AG3: 16 | AH3: 17 | AI3: 18 | AJ3: 19 | AK3: 20 | AL3: 21 | AM3: 22 | AN3: 23 | AO3: 24 | AP3: 25 | AQ3: 26 | AR3: 27 | AS3: 28 | AT3: 29 | AU3: 30 | AV3: 31 | AW3: 32 | AX3: 33 | AY3: 34 | AZ3: 35 | BA3: 36 | BB3: 37 | BC3: 38 | BD3: 39 | BE3: 40 | BF3: 41 | BG3: 42 | BH3: 43 | BI3: 44 | BJ3: 45 | BK3: 46 | BL3: 47 | BM3: 48 | BN3: 49 | BO3: 50 | BP3: 51 | BQ3: 52 | BR3: 53 | BS3: 54 | BT3: 55 | BU3: 56 | BV3: 57 | BW3: 58 | BX3: 59 | BY3: 60 | BZ3: 61 | CA3: 62 | CB3: 63 | CC3: 64 | CD3: 65 | CE3: =CD3+1 -> 66 | CF3: 67 | CG3: 68 | CH3: 69 | CI3: 70 | CJ3: 71 | CK3: 72 | CL3: 73 | CM3: 74 | CN3: 75 | CO3: 76 | CP3: 77 | CQ3: 78 | CR3: 79 | CS3: 80 | CT3: 81 | CU3: 82 | CV3: 83 | CW3: 84 | CX3: 85 | CY3: 86 | CZ3: 87 | DA3: 88 | DB3: 89 | DC3: 90 | DD3: 91 | DE3: 92 | DF3: 93 | DG3: 94 | DH3: 95 | DI3: 96 | DJ3: 97 | DK3: 98 | DL3: 99 | DM3: 100 | DN3: 101 | DO3: 102 | DP3: 103 | DQ3: 104 | DR3: 105 | DS3: 106 | DT3: 107 | DU3: 108 | DV3: 109 | DW3: 110 | DX3: 111 | DY3: 112 | DZ3: 113 | EA3: 114 | EB3: 115 | EC3: 116 | ED3: 117 | EE3: 118 | EF3: 119 | EG3: 120 | EH3: 121 | EI3: 122 | EJ3: 123 | EK3: 124 | EL3: 125 | EM3: 126 | EN3: 127 | EO3: 128 | EP3: 129 | EQ3: =EP3+1 -> 130 | ER3: =EQ3+1 -> 131 | ES3: =ER3+1 -> 132 | FA3: =Q3 -> 0 | FB3: 1 | FC3: 2 | FD3: 3 | FE3: 4 | FF3: 5 | FG3: 6 | FH3: 7 | FI3: 8 | FJ3: 9 | FK3: 10 | FL3: 11 | FM3: 12 | FN3: 13 | FO3: 14 | FP3: 15 | FQ3: 16 | FR3: 17 | FS3: 18 | FT3: 19 | FU3: 20 | FV3: 21 | FW3: 22 | FX3: 23 | FY3: 24 | FZ3: 25 | GA3: 26 | GB3: 27 | GC3: 28 | GD3: 29 | GE3: 30 | GF3: 31 | GG3: 32 | GH3: 33 | GI3: 34 | GJ3: 35 | GK3: 36 | GL3: 37 | GM3: 38 | GN3: 39 | GO3: 40 | GP3: 41 | GQ3: 42 | GR3: 43 | GS3: 44 | GT3: 45 | GU3: 46 | GV3: 47 | GW3: 48 | GX3: 49 | GY3: 50 | GZ3: 51 | HA3: 52 | HB3: 53 | HC3: 54 | HD3: 55 | HE3: 56 | HF3: 57 | HG3: 58 | HH3: 59 | HI3: 60 | HJ3: 61 | HK3: 62 | HL3: 63 | HM3: 64 | HN3: 65 | HO3: 66 | HP3: 67 | HQ3: 68 | HR3: 69 | HS3: 70 | HT3: 71 | HU3: 72 | HV3: 73 | HW3: 74 | HX3: 75 | HY3: 76 | HZ3: 77 | IA3: 78 | IB3: 79 | IC3: 80 | ID3: 81 | IE3: 82 | IF3: 83 | IG3: 84 | IH3: 85 | II3: 86 | IJ3: 87 | IK3: 88 | IL3: 89 | IM3: 90 | IN3: 91 | IO3: 92 | IP3: 93 | IQ3: 94 | IR3: 95 | IS3: 96 | IT3: 97 | IU3: 98 | IV3: 99 | IW3: 100 | IX3: 101 | IY3: 102 | IZ3: 103 | JA3: 104 | JB3: 105 | JC3: 106 | JD3: 107 | JE3: 108 | JF3: 109 | JG3: 110 | JH3: 111 | JI3: 112 | JJ3: 113 | JK3: 114 | JL3: 115 | JM3: 116 | JN3: 117 | JO3: 118 | JP3: 119 | JQ3: 120 | JR3: 121 | JS3: 122 | JT3: 123 | JU3: 124 | JV3: 125 | JW3: 126 | JX3: 127 | JY3: 128 | JZ3: 129 | KA3: 130 | KB3: 131 | KC3: 132
B5: Levered IRR: | C5: =H226 -> 0.05945812762 | D5: Levered EMx: | E5: =G226 -> 1.489520455 | H5: Development Spread (Untrended) | I5: =G231 -> -1.966365148 | J5: Assumption Notes (Click [+] / [-] above column O to open/close Notes section) | ER5: Hide Calc | ES5: Show Calc | ET5: 1
B8: INVESTMENT DESCRIPTION | I8: M2
B9: Name | E9: North Sydney Apt Renewal | F9: County | I9: Australia
B10: Address | E10: 123 Miller St, North Sydney | F10: State | I10: NSW
B11: City | E11: Sydney | F11: Zip Code | I11: 2060
B13: Analysis Begin Date | E13: 2024-09-01 | F13: Sale Date | H13: =Timing_Reversion_Month -> 84 | I13: =EDATE(E13,H13-1) -> 2031-08-01
B15: Land Area | C15: =IF(Unit_Type="SF",E15*43560,E15*4046.86) -> 4856.232 | D15: =Unit_Type -> M2 | E15: 1.2 | F15: Lots | I15: 1
B16: Units/Acre | E16: =I16/E15 -> 233.3333333 | F16: Homes | I16: =$C$107 -> 280
B17: FAR | E17: =E18/C15 -> 11.92282412 | F17: Homes per Lot | I17: 280
B18: ="Gross Buildable (GBA - "&Unit_Type&")" -> Gross Buildable (GBA - M2) | E18: =53400+4500 -> 57900 | F18: ="Net Rentable (NRA - "&Unit_Type&")" -> Net Rentable (NRA - M2) | H18: =TEXT(Units_SF_M2/E18,"0.0%")&" of GBA" -> 62.0% of GBA | I18: =I16*D107 -> 35900
B19: Parking Ratio | E19: =Parking_Structured/I16 -> 2 | F19: Garage Parking Spaces | I19: =Units_BTR*2 -> 560
B21: INVESTMENT PERIOD CASH FLOWS | P21: Analysis Month | Q21: =Q$3 -> 0 | R21: =R$3 -> 1 | S21: 2 | T21: 3 | U21: 4 | V21: 5 | W21: 6 | X21: 7 | Y21: 8 | Z21: 9 | AA21: 10 | AB21: 11 | AC21: 12 | AD21: 13 | AE21: 14 | AF21: 15 | AG21: 16 | AH21: 17 | AI21: 18 | AJ21: 19 | AK21: 20 | AL21: 21 | AM21: 22 | AN21: 23 | AO21: 24 | AP21: 25 | AQ21: 26 | AR21: 27 | AS21: 28 | AT21: 29 | AU21: 30 | AV21: 31 | AW21: 32 | AX21: 33 | AY21: 34 | AZ21: 35 | BA21: 36 | BB21: 37 | BC21: 38 | BD21: 39 | BE21: 40 | BF21: 41 | BG21: 42 | BH21: 43 | BI21: 44 | BJ21: 45 | BK21: 46 | BL21: 47 | BM21: 48 | BN21: 49 | BO21: 50 | BP21: 51 | BQ21: 52 | BR21: 53 | BS21: 54 | BT21: 55 | BU21: 56 | BV21: 57 | BW21: 58 | BX21: 59 | BY21: 60 | BZ21: 61 | CA21: 62 | CB21: 63 | CC21: 64 | CD21: =CD$3 -> 65 | CE21: 66 | CF21: 67 | CG21: 68 | CH21: 69 | CI21: 70 | CJ21: 71 | CK21: 72 | CL21: 73 | CM21: 74 | CN21: 75 | CO21: 76 | CP21: 77 | CQ21: 78 | CR21: 79 | CS21: 80 | CT21: 81 | CU21: 82 | CV21: 83 | CW21: 84 | CX21: 85 | CY21: 86 | CZ21: 87 | DA21: 88 | DB21: 89 | DC21: 90 | DD21: 91 | DE21: 92 | DF21: 93 | DG21: 94 | DH21: 95 | DI21: 96 | DJ21: 97 | DK21: 98 | DL21: 99 | DM21: 100 | DN21: 101 | DO21: 102 | DP21: 103 | DQ21: 104 | DR21: 105 | DS21: 106 | DT21: 107 | DU21: 108 | DV21: 109 | DW21: 110 | DX21: 111 | DY21: 112 | DZ21: 113 | EA21: 114 | EB21: 115 | EC21: 116 | ED21: 117 | EE21: 118 | EF21: 119 | EG21: 120 | EH21: 121 | EI21: 122 | EJ21: 123 | EK21: 124 | EL21: 125 | EM21: 126 | EN21: 127 | EO21: 128 | EP21: =EP$3 -> 129 | EQ21: 130 | ER21: 131 | ES21: 132 | EU21: S-CURVE CALCULATION | FA21: =Q21 -> 0 | FB21: =R21 -> 1 | FC21: 2 | FD21: 3 | FE21: 4 | FF21: 5 | FG21: 6 | FH21: 7 | FI21: 8 | FJ21: 9 | FK21: 10 | FL21: 11 | FM21: 12 | FN21: 13 | FO21: 14 | FP21: 15 | FQ21: 16 | FR21: 17 | FS21: 18 | FT21: 19 | FU21: 20 | FV21: 21 | FW21: 22 | FX21: 23 | FY21: 24 | FZ21: 25 | GA21: 26 | GB21: 27 | GC21: 28 | GD21: 29 | GE21: 30 | GF21: 31 | GG21: 32 | GH21: 33 | GI21: 34 | GJ21: 35 | GK21: 36 | GL21: 37 | GM21: 38 | GN21: 39 | GO21: 40 | GP21: 41 | GQ21: 42 | GR21: 43 | GS21: 44 | GT21: 45 | GU21: 46 | GV21: 47 | GW21: 48 | GX21: 49 | GY21: 50 | GZ21: 51 | HA21: 52 | HB21: 53 | HC21: 54 | HD21: 55 | HE21: 56 | HF21: 57 | HG21: 58 | HH21: 59 | HI21: 60 | HJ21: 61 | HK21: 62 | HL21: 63 | HM21: 64 | HN21: =CD21 -> 65 | HO21: 66 | HP21: 67 | HQ21: 68 | HR21: 69 | HS21: 70 | HT21: 71 | HU21: 72 | HV21: 73 | HW21: 74 | HX21: 75 | HY21: 76 | HZ21: 77 | IA21: 78 | IB21: 79 | IC21: 80 | ID21: 81 | IE21: 82 | IF21: 83 | IG21: 84 | IH21: 85 | II21: 86 | IJ21: 87 | IK21: 88 | IL21: 89 | IM21: 90 | IN21: 91 | IO21: 92 | IP21: 93 | IQ21: 94 | IR21: 95 | IS21: 96 | IT21: 97 | IU21: 98 | IV21: 99 | IW21: 100 | IX21: 101 | IY21: 102 | IZ21: 103 | JA21: 104 | JB21: 105 | JC21: 106 | JD21: 107 | JE21: 108 | JF21: 109 | JG21: 110 | JH21: 111 | JI21: 112 | JJ21: 113 | JK21: 114 | JL21: 115 | JM21: 116 | JN21: 117 | JO21: 118 | JP21: 119 | JQ21: 120 | JR21: 121 | JS21: 122 | JT21: 123 | JU21: 124 | JV21: 125 | JW21: 126 | JX21: 127 | JY21: 128 | JZ21: =EP21 -> 129 | KA21: 130 | KB21: 131 | KC21: 132
B22: SOURCES AND USES | G22: =TEXT(Units_SF_M2,"#,##0")&" NRA" -> 35,900 NRA | H22: =Units_BTR -> 280 | P22: Analysis Date | Q22: =EOMONTH(E13,-1) -> 2024-08-31 | R22: =EOMONTH(Q22,1) -> 2024-09-30 | S22: =EOMONTH(R22,1) -> 2024-10-31 | T22: 2024-11-30 | U22: 2024-12-31 | V22: 2025-01-31 | W22: 2025-02-28 | X22: 2025-03-31 | Y22: 2025-04-30 | Z22: 2025-05-31 | AA22: 2025-06-30 | AB22: 2025-07-31 | AC22: 2025-08-31 | AD22: 2025-09-30 | AE22: 2025-10-31 | AF22: 2025-11-30 | AG22: 2025-12-31 | AH22: 2026-01-31 | AI22: 2026-02-28 | AJ22: 2026-03-31 | AK22: 2026-04-30 | AL22: 2026-05-31 | AM22: 2026-06-30 | AN22: 2026-07-31 | AO22: 2026-08-31 | AP22: 2026-09-30 | AQ22: 2026-10-31 | AR22: 2026-11-30 | AS22: 2026-12-31 | AT22: 2027-01-31 | AU22: 2027-02-28 | AV22: 2027-03-31 | AW22: 2027-04-30 | AX22: 2027-05-31 | AY22: 2027-06-30 | AZ22: 2027-07-31 | BA22: 2027-08-31 | BB22: 2027-09-30 | BC22: 2027-10-31 | BD22: 2027-11-30 | BE22: 2027-12-31 | BF22: 2028-01-31 | BG22: 2028-02-29 | BH22: 2028-03-31 | BI22: 2028-04-30 | BJ22: 2028-05-31 | BK22: 2028-06-30 | BL22: 2028-07-31 | BM22: 2028-08-31 | BN22: 2028-09-30 | BO22: 2028-10-31 | BP22: 2028-11-30 | BQ22: 2028-12-31 | BR22: 2029-01-31 | BS22: 2029-02-28 | BT22: 2029-03-31 | BU22: 2029-04-30 | BV22: 2029-05-31 | BW22: 2029-06-30 | BX22: 2029-07-31 | BY22: 2029-08-31 | BZ22: 2029-09-30 | CA22: 2029-10-31 | CB22: 2029-11-30 | CC22: 2029-12-31 | CD22: 2030-01-31 | CE22: =EOMONTH(CD22,1) -> 2030-02-28 | CF22: 2030-03-31 | CG22: 2030-04-30 | CH22: 2030-05-31 | CI22: 2030-06-30 | CJ22: 2030-07-31 | CK22: 2030-08-31 | CL22: 2030-09-30 | CM22: 2030-10-31 | CN22: 2030-11-30 | CO22: 2030-12-31 | CP22: 2031-01-31 | CQ22: 2031-02-28 | CR22: 2031-03-31 | CS22: 2031-04-30 | CT22: 2031-05-31 | CU22: 2031-06-30 | CV22: 2031-07-31 | CW22: 2031-08-31 | CX22: 2031-09-30 | CY22: 2031-10-31 | CZ22: 2031-11-30 | DA22: 2031-12-31 | DB22: 2032-01-31 | DC22: 2032-02-29 | DD22: 2032-03-31 | DE22: 2032-04-30 | DF22: 2032-05-31 | DG22: 2032-06-30 | DH22: 2032-07-31 | DI22: 2032-08-31 | DJ22: 2032-09-30 | DK22: 2032-10-31 | DL22: 2032-11-30 | DM22: 2032-12-31 | DN22: 2033-01-31 | DO22: 2033-02-28 | DP22: 2033-03-31 | DQ22: 2033-04-30 | DR22: 2033-05-31 | DS22: 2033-06-30 | DT22: 2033-07-31 | DU22: 2033-08-31 | DV22: 2033-09-30 | DW22: 2033-10-31 | DX22: 2033-11-30 | DY22: 2033-12-31 | DZ22: 2034-01-31 | EA22: 2034-02-28 | EB22: 2034-03-31 | EC22: 2034-04-30 | ED22: 2034-05-31 | EE22: 2034-06-30 | EF22: 2034-07-31 | EG22: 2034-08-31 | EH22: 2034-09-30 | EI22: 2034-10-31 | EJ22: 2034-11-30 | EK22: 2034-12-31 | EL22: 2035-01-31 | EM22: 2035-02-28 | EN22: 2035-03-31 | EO22: 2035-04-30 | EP22: 2035-05-31 | EQ22: =EOMONTH(EP22,1) -> 2035-06-30 | ER22: =EOMONTH(EQ22,1) -> 2035-07-31 | ES22: =EOMONTH(ER22,1) -> 2035-08-31 | EU22: Amount | EV22: Start Period | EW22: End Period | EX22: Months | EY22: Timing | EZ22: StDev | FA22: =Q22 -> 2024-08-31 | FB22: 2024-09-30 | FC22: 2024-10-31 | FD22: 2024-11-30 | FE22: 2024-12-31 | FF22: 2025-01-31 | FG22: 2025-02-28 | FH22: 2025-03-31 | FI22: 2025-04-30 | FJ22: 2025-05-31 | FK22: 2025-06-30 | FL22: 2025-07-31 | FM22: 2025-08-31 | FN22: 2025-09-30 | FO22: 2025-10-31 | FP22: 2025-11-30 | FQ22: 2025-12-31 | FR22: 2026-01-31 | FS22: 2026-02-28 | FT22: 2026-03-31 | FU22: 2026-04-30 | FV22: 2026-05-31 | FW22: 2026-06-30 | FX22: 2026-07-31 | FY22: 2026-08-31 | FZ22: 2026-09-30 | GA22: 2026-10-31 | GB22: 2026-11-30 | GC22: 2026-12-31 | GD22: 2027-01-31 | GE22: 2027-02-28 | GF22: 2027-03-31 | GG22: 2027-04-30 | GH22: 2027-05-31 | GI22: 2027-06-30 | GJ22: 2027-07-31 | GK22: 2027-08-31 | GL22: 2027-09-30 | GM22: 2027-10-31 | GN22: 2027-11-30 | GO22: 2027-12-31 | GP22: 2028-01-31 | GQ22: 2028-02-29 | GR22: 2028-03-31 | GS22: 2028-04-30 | GT22: 2028-05-31 | GU22: 2028-06-30 | GV22: 2028-07-31 | GW22: 2028-08-31 | GX22: 2028-09-30 | GY22: 2028-10-31 | GZ22: 2028-11-30 | HA22: 2028-12-31 | HB22: 2029-01-31 | HC22: 2029-02-28 | HD22: 2029-03-31 | HE22: 2029-04-30 | HF22: 2029-05-31 | HG22: 2029-06-30 | HH22: 2029-07-31 | HI22: 2029-08-31 | HJ22: 2029-09-30 | HK22: 2029-10-31 | HL22: 2029-11-30 | HM22: 2029-12-31 | HN22: 2030-01-31 | HO22: 2030-02-28 | HP22: 2030-03-31 | HQ22: 2030-04-30 | HR22: 2030-05-31 | HS22: 2030-06-30 | HT22: 2030-07-31 | HU22: 2030-08-31 | HV22: 2030-09-30 | HW22: 2030-10-31 | HX22: 2030-11-30 | HY22: 2030-12-31 | HZ22: 2031-01-31 | IA22: 2031-02-28 | IB22: 2031-03-31 | IC22: 2031-04-30 | ID22: 2031-05-31 | IE22: 2031-06-30 | IF22: 2031-07-31 | IG22: 2031-08-31 | IH22: 2031-09-30 | II22: 2031-10-31 | IJ22: 2031-11-30 | IK22: 2031-12-31 | IL22: 2032-01-31 | IM22: 2032-02-29 | IN22: 2032-03-31 | IO22: 2032-04-30 | IP22: 2032-05-31 | IQ22: 2032-06-30 | IR22: 2032-07-31 | IS22: 2032-08-31 | IT22: 2032-09-30 | IU22: 2032-10-31 | IV22: 2032-11-30 | IW22: 2032-12-31 | IX22: 2033-01-31 | IY22: 2033-02-28 | IZ22: 2033-03-31 | JA22: 2033-04-30 | JB22: 2033-05-31 | JC22: 2033-06-30 | JD22: 2033-07-31 | JE22: 2033-08-31 | JF22: 2033-09-30 | JG22: 2033-10-31 | JH22: 2033-11-30 | JI22: 2033-12-31 | JJ22: 2034-01-31 | JK22: 2034-02-28 | JL22: 2034-03-31 | JM22: 2034-04-30 | JN22: 2034-05-31 | JO22: 2034-06-30 | JP22: 2034-07-31 | JQ22: 2034-08-31 | JR22: 2034-09-30 | JS22: 2034-10-31 | JT22: 2034-11-30 | JU22: 2034-12-31 | JV22: 2035-01-31 | JW22: 2035-02-28 | JX22: 2035-03-31 | JY22: 2035-04-30 | JZ22: 2035-05-31 | KA22: 2035-06-30 | KB22: 2035-07-31 | KC22: 2035-08-31
B23: USES | D23: START | E23: END | F23: METHOD | G23: ="/RENTABLE "&Unit_Type -> /RENTABLE M2 | H23: /HOME | I23: AMOUNT | P23: Cum. Spent % | Q23: =SUM($Q$64:Q64)/Project_Cost_Total -> 0.7019481462 | R23: =SUM($Q$64:R64)/Project_Cost_Total -> 0.7035108748 | S23: =SUM($Q$64:S64)/Project_Cost_Total -> 0.7087941781 | T23: =SUM($Q$64:T64)/Project_Cost_Total -> 0.7253945936 | U23: =SUM($Q$64:U64)/Project_Cost_Total -> 0.7517550058 | V23: =SUM($Q$64:V64)/Project_Cost_Total -> 0.7783986514 | W23: =SUM($Q$64:W64)/Project_Cost_Total -> 0.7964975711 | X23: =SUM($Q$64:X64)/Project_Cost_Total -> 0.8119276562 | Y23: =SUM($Q$64:Y64)/Project_Cost_Total -> 0.8252310539 | Z23: =SUM($Q$64:Z64)/Project_Cost_Total -> 0.8360465509 | AA23: =SUM($Q$64:AA64)/Project_Cost_Total -> 0.8497111329 | AB23: =SUM($Q$64:AB64)/Project_Cost_Total -> 0.8626467905 | AC23: =SUM($Q$64:AC64)/Project_Cost_Total -> 0.8745755845 | AD23: =SUM($Q$64:AD64)/Project_Cost_Total -> 0.888460551 | AE23: =SUM($Q$64:AE64)/Project_Cost_Total -> 0.9021083992 | AF23: =SUM($Q$64:AF64)/Project_Cost_Total -> 0.9157404156 | AG23: =SUM($Q$64:AG64)/Project_Cost_Total -> 0.9294639638 | AH23: =SUM($Q$64:AH64)/Project_Cost_Total -> 0.9413194175 | AI23: =SUM($Q$64:AI64)/Project_Cost_Total -> 0.9528775247 | AJ23: =SUM($Q$64:AJ64)/Project_Cost_Total -> 0.9612571233 | AK23: =SUM($Q$64:AK64)/Project_Cost_Total -> 0.9640628258 | AL23: =SUM($Q$64:AL64)/Project_Cost_Total -> 0.9667701404 | AM23: =SUM($Q$64:AM64)/Project_Cost_Total -> 0.9693783292 | AN23: =SUM($Q$64:AN64)/Project_Cost_Total -> 0.9718866488 | AO23: =SUM($Q$64:AO64)/Project_Cost_Total -> 0.9742943502 | AP23: =SUM($Q$64:AP64)/Project_Cost_Total -> 0.9766006786 | AQ23: =SUM($Q$64:AQ64)/Project_Cost_Total -> 0.9788048739 | AR23: =SUM($Q$64:AR64)/Project_Cost_Total -> 0.98090617 | AS23: =SUM($Q$64:AS64)/Project_Cost_Total -> 0.9829037951 | AT23: =SUM($Q$64:AT64)/Project_Cost_Total -> 0.9847969718 | AU23: =SUM($Q$64:AU64)/Project_Cost_Total -> 0.9865849167 | AV23: =SUM($Q$64:AV64)/Project_Cost_Total -> 0.9882668405 | AW23: =SUM($Q$64:AW64)/Project_Cost_Total -> 0.9898946175 | AX23: =SUM($Q$64:AX64)/Project_Cost_Total -> 0.9913897579 | AY23: =SUM($Q$64:AY64)/Project_Cost_Total -> 0.9927674563 | AZ23: =SUM($Q$64:AZ64)/Project_Cost_Total -> 0.9940268319 | BA23: =SUM($Q$64:BA64)/Project_Cost_Total -> 0.9951669973 | BB23: =SUM($Q$64:BB64)/Project_Cost_Total -> 0.9961870583 | BC23: =SUM($Q$64:BC64)/Project_Cost_Total -> 0.9970861143 | BD23: =SUM($Q$64:BD64)/Project_Cost_Total -> 0.9978632576 | BE23: =SUM($Q$64:BE64)/Project_Cost_Total -> 0.998517574 | BF23: =SUM($Q$64:BF64)/Project_Cost_Total -> 0.9990481422 | BG23: =SUM($Q$64:BG64)/Project_Cost_Total -> 0.9994540341 | BH23: =SUM($Q$64:BH64)/Project_Cost_Total -> 0.9997343147 | BI23: =SUM($Q$64:BI64)/Project_Cost_Total -> 0.9999333286 | BJ23: =SUM($Q$64:BJ64)/Project_Cost_Total -> 1 | BK23: =SUM($Q$64:BK64)/Project_Cost_Total -> 1 | BL23: =SUM($Q$64:BL64)/Project_Cost_Total -> 1 | BM23: =SUM($Q$64:BM64)/Project_Cost_Total -> 1 | BN23: =SUM($Q$64:BN64)/Project_Cost_Total -> 1 | BO23: =SUM($Q$64:BO64)/Project_Cost_Total -> 1 | BP23: =SUM($Q$64:BP64)/Project_Cost_Total -> 1 | BQ23: =SUM($Q$64:BQ64)/Project_Cost_Total -> 1 | BR23: =SUM($Q$64:BR64)/Project_Cost_Total -> 1 | BS23: =SUM($Q$64:BS64)/Project_Cost_Total -> 1 | BT23: =SUM($Q$64:BT64)/Project_Cost_Total -> 1 | BU23: =SUM($Q$64:BU64)/Project_Cost_Total -> 1 | BV23: =SUM($Q$64:BV64)/Project_Cost_Total -> 1 | BW23: =SUM($Q$64:BW64)/Project_Cost_Total -> 1 | BX23: =SUM($Q$64:BX64)/Project_Cost_Total -> 1 | BY23: =SUM($Q$64:BY64)/Project_Cost_Total -> 1 | BZ23: =SUM($Q$64:BZ64)/Project_Cost_Total -> 1 | CA23: =SUM($Q$64:CA64)/Project_Cost_Total -> 1 | CB23: =SUM($Q$64:CB64)/Project_Cost_Total -> 1 | CC23: =SUM($Q$64:CC64)/Project_Cost_Total -> 1 | CD23: =SUM($Q$64:CD64)/Project_Cost_Total -> 1 | CE23: =SUM($Q$64:CE64)/Project_Cost_Total -> 1 | CF23: =SUM($Q$64:CF64)/Project_Cost_Total -> 1 | CG23: =SUM($Q$64:CG64)/Project_Cost_Total -> 1 | CH23: =SUM($Q$64:CH64)/Project_Cost_Total -> 1 | CI23: =SUM($Q$64:CI64)/Project_Cost_Total -> 1 | CJ23: =SUM($Q$64:CJ64)/Project_Cost_Total -> 1 | CK23: =SUM($Q$64:CK64)/Project_Cost_Total -> 1 | CL23: =SUM($Q$64:CL64)/Project_Cost_Total -> 1 | CM23: =SUM($Q$64:CM64)/Project_Cost_Total -> 1 | CN23: =SUM($Q$64:CN64)/Project_Cost_Total -> 1 | CO23: =SUM($Q$64:CO64)/Project_Cost_Total -> 1 | CP23: =SUM($Q$64:CP64)/Project_Cost_Total -> 1 | CQ23: =SUM($Q$64:CQ64)/Project_Cost_Total -> 1 | CR23: =SUM($Q$64:CR64)/Project_Cost_Total -> 1 | CS23: =SUM($Q$64:CS64)/Project_Cost_Total -> 1 | CT23: =SUM($Q$64:CT64)/Project_Cost_Total -> 1 | CU23: =SUM($Q$64:CU64)/Project_Cost_Total -> 1 | CV23: =SUM($Q$64:CV64)/Project_Cost_Total -> 1 | CW23: =SUM($Q$64:CW64)/Project_Cost_Total -> 1 | CX23: =SUM($Q$64:CX64)/Project_Cost_Total -> 1 | CY23: =SUM($Q$64:CY64)/Project_Cost_Total -> 1 | CZ23: =SUM($Q$64:CZ64)/Project_Cost_Total -> 1 | DA23: =SUM($Q$64:DA64)/Project_Cost_Total -> 1 | DB23: =SUM($Q$64:DB64)/Project_Cost_Total -> 1 | DC23: =SUM($Q$64:DC64)/Project_Cost_Total -> 1 | DD23: =SUM($Q$64:DD64)/Project_Cost_Total -> 1 | DE23: =SUM($Q$64:DE64)/Project_Cost_Total -> 1 | DF23: =SUM($Q$64:DF64)/Project_Cost_Total -> 1 | DG23: =SUM($Q$64:DG64)/Project_Cost_Total -> 1 | DH23: =SUM($Q$64:DH64)/Project_Cost_Total -> 1 | DI23: =SUM($Q$64:DI64)/Project_Cost_Total -> 1 | DJ23: =SUM($Q$64:DJ64)/Project_Cost_Total -> 1 | DK23: =SUM($Q$64:DK64)/Project_Cost_Total -> 1 | DL23: =SUM($Q$64:DL64)/Project_Cost_Total -> 1 | DM23: =SUM($Q$64:DM64)/Project_Cost_Total -> 1 | DN23: =SUM($Q$64:DN64)/Project_Cost_Total -> 1 | DO23: =SUM($Q$64:DO64)/Project_Cost_Total -> 1 | DP23: =SUM($Q$64:DP64)/Project_Cost_Total -> 1 | DQ23: =SUM($Q$64:DQ64)/Project_Cost_Total -> 1 | DR23: =SUM($Q$64:DR64)/Project_Cost_Total -> 1 | DS23: =SUM($Q$64:DS64)/Project_Cost_Total -> 1 | DT23: =SUM($Q$64:DT64)/Project_Cost_Total -> 1 | DU23: =SUM($Q$64:DU64)/Project_Cost_Total -> 1 | DV23: =SUM($Q$64:DV64)/Project_Cost_Total -> 1 | DW23: =SUM($Q$64:DW64)/Project_Cost_Total -> 1 | DX23: =SUM($Q$64:DX64)/Project_Cost_Total -> 1 | DY23: =SUM($Q$64:DY64)/Project_Cost_Total -> 1 | DZ23: =SUM($Q$64:DZ64)/Project_Cost_Total -> 1 | EA23: =SUM($Q$64:EA64)/Project_Cost_Total -> 1 | EB23: =SUM($Q$64:EB64)/Project_Cost_Total -> 1 | EC23: =SUM($Q$64:EC64)/Project_Cost_Total -> 1 | ED23: =SUM($Q$64:ED64)/Project_Cost_Total -> 1 | EE23: =SUM($Q$64:EE64)/Project_Cost_Total -> 1 | EF23: =SUM($Q$64:EF64)/Project_Cost_Total -> 1 | EG23: =SUM($Q$64:EG64)/Project_Cost_Total -> 1 | EH23: =SUM($Q$64:EH64)/Project_Cost_Total -> 1 | EI23: =SUM($Q$64:EI64)/Project_Cost_Total -> 1 | EJ23: =SUM($Q$64:EJ64)/Project_Cost_Total -> 1 | EK23: =SUM($Q$64:EK64)/Project_Cost_Total -> 1 | EL23: =SUM($Q$64:EL64)/Project_Cost_Total -> 1 | EM23: =SUM($Q$64:EM64)/Project_Cost_Total -> 1 | EN23: =SUM($Q$64:EN64)/Project_Cost_Total -> 1 | EO23: =SUM($Q$64:EO64)/Project_Cost_Total -> 1 | EP23: =SUM($Q$64:EP64)/Project_Cost_Total -> 1 | EQ23: =SUM($Q$64:EQ64)/Project_Cost_Total -> 1 | ER23: =SUM($Q$64:ER64)/Project_Cost_Total -> 1 | ES23: =SUM($Q$64:ES64)/Project_Cost_Total -> 1
B24: Land Costs | D24: ADD ITEM | E24: DEL. ITEM | P24: Spent % | Q24: =Q23 -> 0.7019481462 | R24: =R23-Q23 -> 0.001562728686 | S24: =S23-R23 -> 0.005283303252 | T24: 0.01660041545 | U24: 0.02636041227 | V24: 0.02664364559 | W24: 0.01809891971 | X24: 0.01543008512 | Y24: 0.01330339766 | Z24: 0.01081549699 | AA24: 0.01366458198 | AB24: 0.01293565768 | AC24: 0.011928794 | AD24: 0.01388496644 | AE24: 0.01364784822 | AF24: 0.01363201644 | AG24: 0.01372354815 | AH24: 0.01185545368 | AI24: 0.01155810721 | AJ24: 0.008379598613 | AK24: 0.002805702494 | AL24: 0.002707314613 | AM24: 0.002608188824 | AN24: 0.00250831959 | AO24: 0.002407701338 | AP24: 0.002306328449 | AQ24: 0.002204195263 | AR24: 0.002101296079 | AS24: 0.00199762515 | AT24: 0.001893176689 | AU24: 0.001787944865 | AV24: 0.001681923803 | AW24: 0.001627777023 | AX24: 0.001495140402 | AY24: 0.001377698408 | AZ24: 0.0012593756 | BA24: 0.00114016537 | BB24: 0.001020061064 | BC24: 0.0008990559752 | BD24: 0.0007771433484 | BE24: 0.0006543163769 | BF24: 0.0005305682031 | BG24: 0.000405891918 | BH24: 0.0002802805607 | BI24: 0.0001990139035 | BJ24: 6.667138781e-05 | BK24: 0 | BL24: 0 | BM24: 0 | BN24: 0 | BO24: 0 | BP24: 0 | BQ24: 0 | BR24: 0 | BS24: 0 | BT24: 0 | BU24: 0 | BV24: 0 | BW24: 0 | BX24: 0 | BY24: 0 | BZ24: 0 | CA24: 0 | CB24: 0 | CC24: 0 | CD24: 0 | CE24: =CE23-CD23 -> 0 | CF24: 0 | CG24: 0 | CH24: 0 | CI24: 0 | CJ24: 0 | CK24: 0 | CL24: 0 | CM24: 0 | CN24: 0 | CO24: 0 | CP24: 0 | CQ24: 0 | CR24: 0 | CS24: 0 | CT24: 0 | CU24: 0 | CV24: 0 | CW24: 0 | CX24: 0 | CY24: 0 | CZ24: 0 | DA24: 0 | DB24: 0 | DC24: 0 | DD24: 0 | DE24: 0 | DF24: 0 | DG24: 0 | DH24: 0 | DI24: 0 | DJ24: 0 | DK24: 0 | DL24: 0 | DM24: 0 | DN24: 0 | DO24: 0 | DP24: 0 | DQ24: 0 | DR24: 0 | DS24: 0 | DT24: 0 | DU24: 0 | DV24: 0 | DW24: 0 | DX24: 0 | DY24: 0 | DZ24: 0 | EA24: 0 | EB24: 0 | EC24: 0 | ED24: 0 | EE24: 0 | EF24: 0 | EG24: 0 | EH24: 0 | EI24: 0 | EJ24: 0 | EK24: 0 | EL24: 0 | EM24: 0 | EN24: 0 | EO24: 0 | EP24: 0 | EQ24: =EQ23-EP23 -> 0 | ER24: =ER23-EQ23 -> 0 | ES24: =ES23-ER23 -> 0
B25: Land Costs | D25: 0 | E25: =D25 -> 0 | F25: Straight-Line | G25: =I25/Units_SF_M2 -> 1137.883008 | H25: =I25/Units_BTR -> 145892.8571 | I25: 40850000 | P25: =IF(ROUND(SUM(Q25:ES25),0)=ROUND(I25,0),"","Incomplete") ->  | Q25: =AND(Q$21>=$D25,Q$21<=$E25)*IF(OR($F25="Straight-Line",$F25="Detail"),$I25/$EX25,FA25) -> 40850000 | R25: =AND(R$21>=$D25,R$21<=$E25)*IF(OR($F25="Straight-Line",$F25="Detail"),$I25/$EX25,FB25) -> 0 | S25: 0 | T25: 0 | U25: 0 | V25: 0 | W25: 0 | X25: 0 | Y25: 0 | Z25: 0 | AA25: =AND(AA$21>=$D25,AA$21<=$E25)*IF(OR($F25="Straight-Line",$F25="Detail"),$I25/$EX25,FK25) -> 0 | AB25: 0 | AC25: 0 | AD25: 0 | AE25: 0 | AF25: 0 | AG25: 0 | AH25: 0 | AI25: 0 | AJ25: 0 | AK25: =AND(AK$21>=$D25,AK$21<=$E25)*IF(OR($F25="Straight-Line",$F25="Detail"),$I25/$EX25,FU25) -> 0 | AL25: 0 | AM25: 0 | AN25: 0 | AO25: 0 | AP25: 0 | AQ25: 0 | AR25: 0 | AS25: 0 | AT25: 0 | AU25: =AND(AU$21>=$D25,AU$21<=$E25)*IF(OR($F25="Straight-Line",$F25="Detail"),$I25/$EX25,GE25) -> 0 | AV25: 0 | AW25: 0 | AX25: 0 | AY25: 0 | AZ25: 0 | BA25: 0 | BB25: 0 | BC25: 0 | BD25: 0 | BE25: =AND(BE$21>=$D25,BE$21<=$E25)*IF(OR($F25="Straight-Line",$F25="Detail"),$I25/$EX25,GO25) -> 0 | BF25: 0 | BG25: 0 | BH25: 0 | BI25: 0 | BJ25: 0 | BK25: 0 | BL25: 0 | BM25: 0 | BN25: 0 | BO25: =AND(BO$21>=$D25,BO$21<=$E25)*IF(OR($F25="Straight-Line",$F25="Detail"),$I25/$EX25,GY25) -> 0 | BP25: 0 | BQ25: 0 | BR25: 0 | BS25: 0 | BT25: 0 | BU25: 0 | BV25: 0 | BW25: 0 | BX25: 0 | BY25: =AND(BY$21>=$D25,BY$21<=$E25)*IF(OR($F25="Straight-Line",$F25="Detail"),$I25/$EX25,HI25) -> 0 | BZ25: 0 | CA25: 0 | CB25: 0 | CC25: 0 | CD25: 0 | CE25: 0 | CF25: 0 | CG25: 0 | CH25: 0 | CI25: =AND(CI$21>=$D25,CI$21<=$E25)*IF(OR($F25="Straight-Line",$F25="Detail"),$I25/$EX25,HS25) -> 0 | CJ25: 0 | CK25: 0 | CL25: 0 | CM25: 0 | CN25: 0 | CO25: 0 | CP25: 0 | CQ25: 0 | CR25: 0 | CS25: =AND(CS$21>=$D25,CS$21<=$E25)*IF(OR($F25="Straight-Line",$F25="Detail"),$I25/$EX25,IC25) -> 0 | CT25: 0 | CU25: 0 | CV25: 0 | CW25: 0 | CX25: 0 | CY25: 0 | CZ25: 0 | DA25: 0 | DB25: 0 | DC25: =AND(DC$21>=$D25,DC$21<=$E25)*IF(OR($F25="Straight-Line",$F25="Detail"),$I25/$EX25,IM25) -> 0 | DD25: 0 | DE25: 0 | DF25: 0 | DG25: 0 | DH25: 0 | DI25: 0 | DJ25: 0 | DK25: 0 | DL25: 0 | DM25: =AND(DM$21>=$D25,DM$21<=$E25)*IF(OR($F25="Straight-Line",$F25="Detail"),$I25/$EX25,IW25) -> 0 | DN25: 0 | DO25: 0 | DP25: 0 | DQ25: 0 | DR25: 0 | DS25: 0 | DT25: 0 | DU25: 0 | DV25: 0 | DW25: =AND(DW$21>=$D25,DW$21<=$E25)*IF(OR($F25="Straight-Line",$F25="Detail"),$I25/$EX25,JG25) -> 0 | DX25: 0 | DY25: 0 | DZ25: 0 | EA25: 0 | EB25: 0 | EC25: 0 | ED25: 0 | EE25: 0 | EF25: 0 | EG25: =AND(EG$21>=$D25,EG$21<=$E25)*IF(OR($F25="Straight-Line",$F25="Detail"),$I25/$EX25,JQ25) -> 0 | EH25: 0 | EI25: 0 | EJ25: 0 | EK25: 0 | EL25: 0 | EM25: 0 | EN25: 0 | EO25: 0 | EP25: 0 | EQ25: =AND(EQ$21>=$D25,EQ$21<=$E25)*IF(OR($F25="Straight-Line",$F25="Detail"),$I25/$EX25,KA25) -> 0 | ER25: 0 | ES25: 0 | EU25: =I25 -> 40850000 | EV25: =INDEX($Q$22:$ES$22,1,$D25+1) -> 2024-08-31 | EW25: =INDEX($Q$22:$ES$22,1,$E25+1) -> 2024-08-31 | EX25: =+E25-D25+1 -> 1 | EY25: =F25 -> Straight-Line | EZ25: =EX25/Scurve_Dist -> 0.1666666667 | FA25: =AND($EY25="S-Curve",FA$22>=$EV25,FA$22<=$EW25)*(_xlfn.NORM.DIST((YEAR(FA$22)-YEAR($EV25))*12+MONTH(FA$22)-MONTH($EV25)+1,$EX25/2,$EZ25,TRUE)-_xlfn.NORM.DIST((YEAR(FA$22)-YEAR($EV25))*12+MONTH(FA$22)-MONTH($EV25),$EX25/2,$EZ25,TRUE))/(1-2*_xlfn.NORM.DIST(0,$EX25/2,$EZ25,TRUE))*$EU25 -> 0 | FB25: =AND($EY25="S-Curve",FB$22>=$EV25,FB$22<=$EW25)*(_xlfn.NORM.DIST((YEAR(FB$22)-YEAR($EV25))*12+MONTH(FB$22)-MONTH($EV25)+1,$EX25/2,$EZ25,TRUE)-_xlfn.NORM.DIST((YEAR(FB$22)-YEAR($EV25))*12+MONTH(FB$22)-MONTH($EV25),$EX25/2,$EZ25,TRUE))/(1-2*_xlfn.NORM.DIST(0,$EX25/2,$EZ25,TRUE))*$EU25 -> 0 | FC25: 0 | FD25: 0 | FE25: 0 | FF25: 0 | FG25: 0 | FH25: 0 | FI25: 0 | FJ25: 0 | FK25: 0 | FL25: 0 | FM25: 0 | FN25: 0 | FO25: 0 | FP25: 0 | FQ25: 0 | FR25: 0 | FS25: 0 | FT25: 0 | FU25: 0 | FV25: 0 | FW25: 0 | FX25: 0 | FY25: 0 | FZ25: 0 | GA25: 0 | GB25: 0 | GC25: 0 | GD25: 0 | GE25: 0 | GF25: 0 | GG25: 0 | GH25: 0 | GI25: 0 | GJ25: 0 | GK25: 0 | GL25: 0 | GM25: 0 | GN25: 0 | GO25: 0 | GP25: 0 | GQ25: 0 | GR25: 0 | GS25: 0 | GT25: 0 | GU25: 0 | GV25: 0 | GW25: 0 | GX25: 0 | GY25: 0 | GZ25: 0 | HA25: 0 | HB25: 0 | HC25: 0 | HD25: 0 | HE25: 0 | HF25: 0 | HG25: 0 | HH25: 0 | HI25: 0 | HJ25: 0 | HK25: 0 | HL25: 0 | HM25: 0 | HN25: =AND($EY25="S-Curve",HN$22>=$EV25,HN$22<=$EW25)*(_xlfn.NORM.DIST((YEAR(HN$22)-YEAR($EV25))*12+MONTH(HN$22)-MONTH($EV25)+1,$EX25/2,$EZ25,TRUE)-_xlfn.NORM.DIST((YEAR(HN$22)-YEAR($EV25))*12+MONTH(HN$22)-MONTH($EV25),$EX25/2,$EZ25,TRUE))/(1-2*_xlfn.NORM.DIST(0,$EX25/2,$EZ25,TRUE))*$EU25 -> 0 | HO25: 0 | HP25: 0 | HQ25: 0 | HR25: 0 | HS25: 0 | HT25: 0 | HU25: 0 | HV25: 0 | HW25: 0 | HX25: 0 | HY25: 0 | HZ25: 0 | IA25: 0 | IB25: 0 | IC25: 0 | ID25: 0 | IE25: 0 | IF25: 0 | IG25: 0 | IH25: 0 | II25: 0 | IJ25: 0 | IK25: 0 | IL25: 0 | IM25: 0 | IN25: 0 | IO25: 0 | IP25: 0 | IQ25: 0 | IR25: 0 | IS25: 0 | IT25: 0 | IU25: 0 | IV25: 0 | IW25: 0 | IX25: 0 | IY25: 0 | IZ25: 0 | JA25: 0 | JB25: 0 | JC25: 0 | JD25: 0 | JE25: 0 | JF25: 0 | JG25: 0 | JH25: 0 | JI25: 0 | JJ25: 0 | JK25: 0 | JL25: 0 | JM25: 0 | JN25: 0 | JO25: 0 | JP25: 0 | JQ25: 0 | JR25: 0 | JS25: 0 | JT25: 0 | JU25: 0 | JV25: 0 | JW25: 0 | JX25: 0 | JY25: 0 | JZ25: =AND($EY25="S-Curve",JZ$22>=$EV25,JZ$22<=$EW25)*(_xlfn.NORM.DIST((YEAR(JZ$22)-YEAR($EV25))*12+MONTH(JZ$22)-MONTH($EV25)+1,$EX25/2,$EZ25,TRUE)-_xlfn.NORM.DIST((YEAR(JZ$22)-YEAR($EV25))*12+MONTH(JZ$22)-MONTH($EV25),$EX25/2,$EZ25,TRUE))/(1-2*_xlfn.NORM.DIST(0,$EX25/2,$EZ25,TRUE))*$EU25 -> 0 | KA25: 0 | KB25: 0 | KC25: 0
B26: Closing Costs | D26: 0 | E26: 0 | F26: Straight-Line | G26: =I26/Units_SF_M2 -> 34.13649025 | H26: =I26/Units_BTR -> 4376.785714 | I26: =+I25*0.03 -> 1225500 | K26: 3% of purchase price | P26: =IF(ROUND(SUM(Q26:ES26),0)=ROUND(I26,0),"","Incomplete") ->  | Q26: =AND(Q$21>=$D26,Q$21<=$E26)*IF(OR($F26="Straight-Line",$F26="Detail"),$I26/$EX26,FA26) -> 1225500 | R26: 0 | S26: 0 | T26: 0 | U26: 0 | V26: 0 | W26: 0 | X26: 0 | Y26: 0 | Z26: 0 | AA26: 0 | AB26: 0 | AC26: 0 | AD26: 0 | AE26: 0 | AF26: 0 | AG26: 0 | AH26: 0 | AI26: 0 | AJ26: 0 | AK26: 0 | AL26: 0 | AM26: 0 | AN26: 0 | AO26: 0 | AP26: 0 | AQ26: 0 | AR26: 0 | AS26: 0 | AT26: 0 | AU26: 0 | AV26: 0 | AW26: 0 | AX26: 0 | AY26: 0 | AZ26: 0 | BA26: 0 | BB26: 0 | BC26: 0 | BD26: 0 | BE26: 0 | BF26: 0 | BG26: 0 | BH26: 0 | BI26: 0 | BJ26: 0 | BK26: 0 | BL26: 0 | BM26: 0 | BN26: 0 | BO26: 0 | BP26: 0 | BQ26: 0 | BR26: 0 | BS26: 0 | BT26: 0 | BU26: 0 | BV26: 0 | BW26: 0 | BX26: 0 | BY26: 0 | BZ26: 0 | CA26: 0 | CB26: 0 | CC26: 0 | CD26: 0 | CE26: 0 | CF26: 0 | CG26: 0 | CH26: 0 | CI26: 0 | CJ26: 0 | CK26: 0 | CL26: 0 | CM26: 0 | CN26: 0 | CO26: 0 | CP26: 0 | CQ26: 0 | CR26: 0 | CS26: 0 | CT26: 0 | CU26: 0 | CV26: 0 | CW26: 0 | CX26: 0 | CY26: 0 | CZ26: 0 | DA26: 0 | DB26: 0 | DC26: 0 | DD26: 0 | DE26: 0 | DF26: 0 | DG26: 0 | DH26: 0 | DI26: 0 | DJ26: 0 | DK26: 0 | DL26: 0 | DM26: 0 | DN26: 0 | DO26: 0 | DP26: 0 | DQ26: 0 | DR26: 0 | DS26: 0 | DT26: 0 | DU26: 0 | DV26: 0 | DW26: 0 | DX26: 0 | DY26: 0 | DZ26: 0 | EA26: 0 | EB26: 0 | EC26: 0 | ED26: 0 | EE26: 0 | EF26: 0 | EG26: 0 | EH26: 0 | EI26: 0 | EJ26: 0 | EK26: 0 | EL26: 0 | EM26: 0 | EN26: 0 | EO26: 0 | EP26: 0 | EQ26: 0 | ER26: 0 | ES26: 0 | EU26: =I26 -> 1225500 | EV26: =INDEX($Q$22:$ES$22,1,$D26+1) -> 2024-08-31 | EW26: =INDEX($Q$22:$ES$22,1,$E26+1) -> 2024-08-31 | EX26: =+E26-D26+1 -> 1 | EY26: =F26 -> Straight-Line | EZ26: =EX26/Scurve_Dist -> 0.1666666667 | FA26: =AND($EY26="S-Curve",FA$22>=$EV26,FA$22<=$EW26)*(_xlfn.NORM.DIST((YEAR(FA$22)-YEAR($EV26))*12+MONTH(FA$22)-MONTH($EV26)+1,$EX26/2,$EZ26,TRUE)-_xlfn.NORM.DIST((YEAR(FA$22)-YEAR($EV26))*12+MONTH(FA$22)-MONTH($EV26),$EX26/2,$EZ26,TRUE))/(1-2*_xlfn.NORM.DIST(0,$EX26/2,$EZ26,TRUE))*$EU26 -> 0 | FB26: 0 | FC26: 0 | FD26: 0 | FE26: 0 | FF26: 0 | FG26: 0 | FH26: 0 | FI26: 0 | FJ26: 0 | FK26: 0 | FL26: 0 | FM26: 0 | FN26: 0 | FO26: 0 | FP26: 0 | FQ26: 0 | FR26: 0 | FS26: 0 | FT26: 0 | FU26: 0 | FV26: 0 | FW26: 0 | FX26: 0 | FY26: 0 | FZ26: 0 | GA26: 0 | GB26: 0 | GC26: 0 | GD26: 0 | GE26: 0 | GF26: 0 | GG26: 0 | GH26: 0 | GI26: 0 | GJ26: 0 | GK26: 0 | GL26: 0 | GM26: 0 | GN26: 0 | GO26: 0 | GP26: 0 | GQ26: 0 | GR26: 0 | GS26: 0 | GT26: 0 | GU26: 0 | GV26: 0 | GW26: 0 | GX26: 0 | GY26: 0 | GZ26: 0 | HA26: 0 | HB26: 0 | HC26: 0 | HD26: 0 | HE26: 0 | HF26: 0 | HG26: 0 | HH26: 0 | HI26: 0 | HJ26: 0 | HK26: 0 | HL26: 0 | HM26: =AND($EY26="S-Curve",HM$22>=$EV26,HM$22<=$EW26)*(_xlfn.NORM.DIST((YEAR(HM$22)-YEAR($EV26))*12+MONTH(HM$22)-MONTH($EV26)+1,$EX26/2,$EZ26,TRUE)-_xlfn.NORM.DIST((YEAR(HM$22)-YEAR($EV26))*12+MONTH(HM$22)-MONTH($EV26),$EX26/2,$EZ26,TRUE))/(1-2*_xlfn.NORM.DIST(0,$EX26/2,$EZ26,TRUE))*$EU26 -> 0 | HN26: 0 | HO26: 0 | HP26: 0 | HQ26: 0 | HR26: 0 | HS26: 0 | HT26: 0 | HU26: 0 | HV26: 0 | HW26: 0 | HX26: 0 | HY26: 0 | HZ26: 0 | IA26: 0 | IB26: 0 | IC26: 0 | ID26: 0 | IE26: 0 | IF26: 0 | IG26: 0 | IH26: 0 | II26: 0 | IJ26: 0 | IK26: 0 | IL26: 0 | IM26: 0 | IN26: 0 | IO26: 0 | IP26: 0 | IQ26: 0 | IR26: 0 | IS26: 0 | IT26: 0 | IU26: 0 | IV26: 0 | IW26: 0 | IX26: 0 | IY26: 0 | IZ26: 0 | JA26: 0 | JB26: 0 | JC26: 0 | JD26: 0 | JE26: 0 | JF26: 0 | JG26: 0 | JH26: 0 | JI26: 0 | JJ26: 0 | JK26: 0 | JL26: 0 | JM26: 0 | JN26: 0 | JO26: 0 | JP26: 0 | JQ26: 0 | JR26: 0 | JS26: 0 | JT26: 0 | JU26: 0 | JV26: 0 | JW26: 0 | JX26: 0 | JY26: =AND($EY26="S-Curve",JY$22>=$EV26,JY$22<=$EW26)*(_xlfn.NORM.DIST((YEAR(JY$22)-YEAR($EV26))*12+MONTH(JY$22)-MONTH($EV26)+1,$EX26/2,$EZ26,TRUE)-_xlfn.NORM.DIST((YEAR(JY$22)-YEAR($EV26))*12+MONTH(JY$22)-MONTH($EV26),$EX26/2,$EZ26,TRUE))/(1-2*_xlfn.NORM.DIST(0,$EX26/2,$EZ26,TRUE))*$EU26 -> 0 | JZ26: 0 | KA26: 0 | KB26: 0 | KC26: 0
B27: [Item] | D27: 0 | E27: 0 | F27: Straight-Line | G27: =I27/Units_SF_M2 -> 0 | H27: =I27/Units_BTR -> 0 | I27: 0 | P27: =IF(ROUND(SUM(Q27:ES27),0)=ROUND(I27,0),"","Incomplete") ->  | Q27: 0 | R27: 0 | S27: 0 | T27: 0 | U27: 0 | V27: 0 | W27: 0 | X27: 0 | Y27: 0 | Z27: 0 | AA27: 0 | AB27: 0 | AC27: 0 | AD27: 0 | AE27: 0 | AF27: 0 | AG27: 0 | AH27: 0 | AI27: 0 | AJ27: 0 | AK27: 0 | AL27: 0 | AM27: 0 | AN27: 0 | AO27: 0 | AP27: 0 | AQ27: 0 | AR27: 0 | AS27: 0 | AT27: 0 | AU27: 0 | AV27: 0 | AW27: 0 | AX27: 0 | AY27: 0 | AZ27: 0 | BA27: 0 | BB27: 0 | BC27: 0 | BD27: 0 | BE27: 0 | BF27: 0 | BG27: 0 | BH27: 0 | BI27: 0 | BJ27: 0 | BK27: 0 | BL27: 0 | BM27: 0 | BN27: 0 | BO27: 0 | BP27: 0 | BQ27: 0 | BR27: 0 | BS27: 0 | BT27: 0 | BU27: 0 | BV27: 0 | BW27: 0 | BX27: 0 | BY27: 0 | BZ27: 0 | CA27: 0 | CB27: 0 | CC27: 0 | CD27: 0 | CE27: 0 | CF27: 0 | CG27: 0 | CH27: 0 | CI27: 0 | CJ27: 0 | CK27: 0 | CL27: 0 | CM27: 0 | CN27: 0 | CO27: 0 | CP27: 0 | CQ27: 0 | CR27: 0 | CS27: 0 | CT27: 0 | CU27: 0 | CV27: 0 | CW27: 0 | CX27: 0 | CY27: 0 | CZ27: 0 | DA27: 0 | DB27: 0 | DC27: 0 | DD27: 0 | DE27: 0 | DF27: 0 | DG27: 0 | DH27: 0 | DI27: 0 | DJ27: 0 | DK27: 0 | DL27: 0 | DM27: 0 | DN27: 0 | DO27: 0 | DP27: 0 | DQ27: 0 | DR27: 0 | DS27: 0 | DT27: 0 | DU27: 0 | DV27: 0 | DW27: 0 | DX27: 0 | DY27: 0 | DZ27: 0 | EA27: 0 | EB27: 0 | EC27: 0 | ED27: 0 | EE27: 0 | EF27: 0 | EG27: 0 | EH27: 0 | EI27: 0 | EJ27: 0 | EK27: 0 | EL27: 0 | EM27: 0 | EN27: 0 | EO27: 0 | EP27: 0 | EQ27: 0 | ER27: 0 | ES27: 0 | EU27: =I27 -> 0 | EV27: =INDEX($Q$22:$ES$22,1,$D27+1) -> 2024-08-31 | EW27: =INDEX($Q$22:$ES$22,1,$E27+1) -> 2024-08-31 | EX27: =+E27-D27+1 -> 1 | EY27: =F27 -> Straight-Line | EZ27: =EX27/Scurve_Dist -> 0.1666666667 | FA27: =AND($EY27="S-Curve",FA$22>=$EV27,FA$22<=$EW27)*(_xlfn.NORM.DIST((YEAR(FA$22)-YEAR($EV27))*12+MONTH(FA$22)-MONTH($EV27)+1,$EX27/2,$EZ27,TRUE)-_xlfn.NORM.DIST((YEAR(FA$22)-YEAR($EV27))*12+MONTH(FA$22)-MONTH($EV27),$EX27/2,$EZ27,TRUE))/(1-2*_xlfn.NORM.DIST(0,$EX27/2,$EZ27,TRUE))*$EU27 -> 0 | FB27: 0 | FC27: 0 | FD27: 0 | FE27: 0 | FF27: 0 | FG27: 0 | FH27: 0 | FI27: 0 | FJ27: 0 | FK27: 0 | FL27: 0 | FM27: 0 | FN27: 0 | FO27: 0 | FP27: 0 | FQ27: 0 | FR27: 0 | FS27: 0 | FT27: 0 | FU27: 0 | FV27: 0 | FW27: 0 | FX27: 0 | FY27: 0 | FZ27: 0 | GA27: 0 | GB27: 0 | GC27: 0 | GD27: 0 | GE27: 0 | GF27: 0 | GG27: 0 | GH27: 0 | GI27: 0 | GJ27: 0 | GK27: 0 | GL27: 0 | GM27: 0 | GN27: 0 | GO27: 0 | GP27: 0 | GQ27: 0 | GR27: 0 | GS27: 0 | GT27: 0 | GU27: 0 | GV27: 0 | GW27: 0 | GX27: 0 | GY27: 0 | GZ27: 0 | HA27: 0 | HB27: 0 | HC27: 0 | HD27: 0 | HE27: 0 | HF27: 0 | HG27: 0 | HH27: 0 | HI27: 0 | HJ27: 0 | HK27: 0 | HL27: 0 | HM27: 0 | HN27: 0 | HO27: 0 | HP27: 0 | HQ27: 0 | HR27: 0 | HS27: 0 | HT27: 0 | HU27: 0 | HV27: 0 | HW27: 0 | HX27: 0 | HY27: 0 | HZ27: 0 | IA27: 0 | IB27: 0 | IC27: 0 | ID27: 0 | IE27: 0 | IF27: 0 | IG27: 0 | IH27: 0 | II27: 0 | IJ27: 0 | IK27: 0 | IL27: 0 | IM27: 0 | IN27: 0 | IO27: 0 | IP27: 0 | IQ27: 0 | IR27: 0 | IS27: 0 | IT27: 0 | IU27: 0 | IV27: 0 | IW27: 0 | IX27: 0 | IY27: 0 | IZ27: 0 | JA27: 0 | JB27: 0 | JC27: 0 | JD27: 0 | JE27: 0 | JF27: 0 | JG27: 0 | JH27: 0 | JI27: 0 | JJ27: 0 | JK27: 0 | JL27: 0 | JM27: 0 | JN27: 0 | JO27: 0 | JP27: 0 | JQ27: 0 | JR27: 0 | JS27: 0 | JT27: 0 | JU27: 0 | JV27: 0 | JW27: 0 | JX27: 0 | JY27: 0 | JZ27: 0 | KA27: 0 | KB27: 0 | KC27: 0
B28: Total Land Costs | D28: =MIN(D25:D27) -> 0 | E28: =MAX(E25:E27) -> 0 | G28: =SUM(G25:G27) -> 1172.019499 | H28: =SUM(H25:H27) -> 150269.6429 | I28: =SUM(I25:I27) -> 42075500 | P28: =IF(ROUND(SUM(Q28:ES28),0)=ROUND(I28,0),"","Incomplete") ->  | Q28: =SUM(Q25:Q27) -> 42075500 | R28: =SUM(R25:R27) -> 0 | S28: 0 | T28: 0 | U28: 0 | V28: 0 | W28: 0 | X28: 0 | Y28: 0 | Z28: 0 | AA28: 0 | AB28: 0 | AC28: 0 | AD28: 0 | AE28: 0 | AF28: 0 | AG28: 0 | AH28: 0 | AI28: 0 | AJ28: 0 | AK28: 0 | AL28: 0 | AM28: 0 | AN28: 0 | AO28: 0 | AP28: 0 | AQ28: 0 | AR28: 0 | AS28: 0 | AT28: 0 | AU28: 0 | AV28: 0 | AW28: =SUM(AW25:AW27) -> 0 | AX28: 0 | AY28: 0 | AZ28: 0 | BA28: 0 | BB28: 0 | BC28: 0 | BD28: 0 | BE28: 0 | BF28: 0 | BG28: 0 | BH28: 0 | BI28: 0 | BJ28: 0 | BK28: 0 | BL28: 0 | BM28: 0 | BN28: 0 | BO28: 0 | BP28: 0 | BQ28: 0 | BR28: 0 | BS28: 0 | BT28: 0 | BU28: 0 | BV28: 0 | BW28: 0 | BX28: 0 | BY28: 0 | BZ28: 0 | CA28: 0 | CB28: 0 | CC28: =SUM(CC25:CC27) -> 0 | CD28: 0 | CE28: 0 | CF28: 0 | CG28: 0 | CH28: 0 | CI28: 0 | CJ28: 0 | CK28: 0 | CL28: 0 | CM28: 0 | CN28: 0 | CO28: 0 | CP28: 0 | CQ28: 0 | CR28: 0 | CS28: 0 | CT28: 0 | CU28: 0 | CV28: 0 | CW28: 0 | CX28: 0 | CY28: 0 | CZ28: 0 | DA28: 0 | DB28: 0 | DC28: 0 | DD28: 0 | DE28: 0 | DF28: 0 | DG28: 0 | DH28: 0 | DI28: =SUM(DI25:DI27) -> 0 | DJ28: 0 | DK28: 0 | DL28: 0 | DM28: 0 | DN28: 0 | DO28: 0 | DP28: 0 | DQ28: 0 | DR28: 0 | DS28: 0 | DT28: 0 | DU28: 0 | DV28: 0 | DW28: 0 | DX28: 0 | DY28: 0 | DZ28: 0 | EA28: 0 | EB28: 0 | EC28: 0 | ED28: 0 | EE28: 0 | EF28: 0 | EG28: 0 | EH28: 0 | EI28: 0 | EJ28: 0 | EK28: 0 | EL28: 0 | EM28: 0 | EN28: 0 | EO28: =SUM(EO25:EO27) -> 0 | EP28: 0 | EQ28: 0 | ER28: 0 | ES28: 0 | EV28: # of Land Cost Items | EW28: =COUNTA($B$25:$B$27) -> 3
B30: Hard Costs (Horizontal Construction) | D30: ADD ITEM | E30: DEL. ITEM
B31: Site/Lot Improvement | D31: 1 | E31: 8 | F31: S-Curve | G31: =I31/Units_SF_M2 -> 141.7 | H31: =I31/Units_BTR -> 18167.96429 | I31: =5087030*I15 -> 5087030 | K31: 5,087,030/lot; per comp set | P31: =IF(ROUND(SUM(Q31:ES31),0)=ROUND(I31,0),"","Incomplete") ->  | Q31: =AND(Q$21>=$D31,Q$21<=$E31)*IF(OR($F31="Straight-Line",$F31="Detail"),$I31/$EX31,FA31) -> 0 | R31: =AND(R$21>=$D31,R$21<=$E31)*IF(OR($F31="Straight-Line",$F31="Detail"),$I31/$EX31,FB31) -> 55469.04245 | S31: =AND(S$21>=$D31,S$21<=$E31)*IF(OR($F31="Straight-Line",$F31="Detail"),$I31/$EX31,FC31) -> 278415.6434 | T31: =AND(T$21>=$D31,T$21<=$E31)*IF(OR($F31="Straight-Line",$F31="Detail"),$I31/$EX31,FD31) -> 815210.8062 | U31: =AND(U$21>=$D31,U$21<=$E31)*IF(OR($F31="Straight-Line",$F31="Detail"),$I31/$EX31,FE31) -> 1394419.508 | V31: =AND(V$21>=$D31,V$21<=$E31)*IF(OR($F31="Straight-Line",$F31="Detail"),$I31/$EX31,FF31) -> 1394419.508 | W31: =AND(W$21>=$D31,W$21<=$E31)*IF(OR($F31="Straight-Line",$F31="Detail"),$I31/$EX31,FG31) -> 815210.8062 | X31: =AND(X$21>=$D31,X$21<=$E31)*IF(OR($F31="Straight-Line",$F31="Detail"),$I31/$EX31,FH31) -> 278415.6434 | Y31: =AND(Y$21>=$D31,Y$21<=$E31)*IF(OR($F31="Straight-Line",$F31="Detail"),$I31/$EX31,FI31) -> 55469.04245 | Z31: =AND(Z$21>=$D31,Z$21<=$E31)*IF(OR($F31="Straight-Line",$F31="Detail"),$I31/$EX31,FJ31) -> 0 | AA31: =AND(AA$21>=$D31,AA$21<=$E31)*IF(OR($F31="Straight-Line",$F31="Detail"),$I31/$EX31,FK31) -> 0 | AB31: =AND(AB$21>=$D31,AB$21<=$E31)*IF(OR($F31="Straight-Line",$F31="Detail"),$I31/$EX31,FL31) -> 0 | AC31: =AND(AC$21>=$D31,AC$21<=$E31)*IF(OR($F31="Straight-Line",$F31="Detail"),$I31/$EX31,FM31) -> 0 | AD31: =AND(AD$21>=$D31,AD$21<=$E31)*IF(OR($F31="Straight-Line",$F31="Detail"),$I31/$EX31,FN31) -> 0 | AE31: =AND(AE$21>=$D31,AE$21<=$E31)*IF(OR($F31="Straight-Line",$F31="Detail"),$I31/$EX31,FO31) -> 0 | AF31: =AND(AF$21>=$D31,AF$21<=$E31)*IF(OR($F31="Straight-Line",$F31="Detail"),$I31/$EX31,FP31) -> 0 | AG31: =AND(AG$21>=$D31,AG$21<=$E31)*IF(OR($F31="Straight-Line",$F31="Detail"),$I31/$EX31,FQ31) -> 0 | AH31: =AND(AH$21>=$D31,AH$21<=$E31)*IF(OR($F31="Straight-Line",$F31="Detail"),$I31/$EX31,FR31) -> 0 | AI31: =AND(AI$21>=$D31,AI$21<=$E31)*IF(OR($F31="Straight-Line",$F31="Detail"),$I31/$EX31,FS31) -> 0 | AJ31: =AND(AJ$21>=$D31,AJ$21<=$E31)*IF(OR($F31="Straight-Line",$F31="Detail"),$I31/$EX31,FT31) -> 0 | AK31: =AND(AK$21>=$D31,AK$21<=$E31)*IF(OR($F31="Straight-Line",$F31="Detail"),$I31/$EX31,FU31) -> 0 | AL31: =AND(AL$21>=$D31,AL$21<=$E31)*IF(OR($F31="Straight-Line",$F31="Detail"),$I31/$EX31,FV31) -> 0 | AM31: =AND(AM$21>=$D31,AM$21<=$E31)*IF(OR($F31="Straight-Line",$F31="Detail"),$I31/$EX31,FW31) -> 0 | AN31: =AND(AN$21>=$D31,AN$21<=$E31)*IF(OR($F31="Straight-Line",$F31="Detail"),$I31/$EX31,FX31) -> 0 | AO31: =AND(AO$21>=$D31,AO$21<=$E31)*IF(OR($F31="Straight-Line",$F31="Detail"),$I31/$EX31,FY31) -> 0 | AP31: =AND(AP$21>=$D31,AP$21<=$E31)*IF(OR($F31="Straight-Line",$F31="Detail"),$I31/$EX31,FZ31) -> 0 | AQ31: =AND(AQ$21>=$D31,AQ$21<=$E31)*IF(OR($F31="Straight-Line",$F31="Detail"),$I31/$EX31,GA31) -> 0 | AR31: =AND(AR$21>=$D31,AR$21<=$E31)*IF(OR($F31="Straight-Line",$F31="Detail"),$I31/$EX31,GB31) -> 0 | AS31: =AND(AS$21>=$D31,AS$21<=$E31)*IF(OR($F31="Straight-Line",$F31="Detail"),$I31/$EX31,GC31) -> 0 | AT31: =AND(AT$21>=$D31,AT$21<=$E31)*IF(OR($F31="Straight-Line",$F31="Detail"),$I31/$EX31,GD31) -> 0 | AU31: =AND(AU$21>=$D31,AU$21<=$E31)*IF(OR($F31="Straight-Line",$F31="Detail"),$I31/$EX31,GE31) -> 0 | AV31: =AND(AV$21>=$D31,AV$21<=$E31)*IF(OR($F31="Straight-Line",$F31="Detail"),$I31/$EX31,GF31) -> 0 | AW31: =AND(AW$21>=$D31,AW$21<=$E31)*IF(OR($F31="Straight-Line",$F31="Detail"),$I31/$EX31,GG31) -> 0 | AX31: =AND(AX$21>=$D31,AX$21<=$E31)*IF(OR($F31="Straight-Line",$F31="Detail"),$I31/$EX31,GH31) -> 0 | AY31: =AND(AY$21>=$D31,AY$21<=$E31)*IF(OR($F31="Straight-Line",$F31="Detail"),$I31/$EX31,GI31) -> 0 | AZ31: =AND(AZ$21>=$D31,AZ$21<=$E31)*IF(OR($F31="Straight-Line",$F31="Detail"),$I31/$EX31,GJ31) -> 0 | BA31: =AND(BA$21>=$D31,BA$21<=$E31)*IF(OR($F31="Straight-Line",$F31="Detail"),$I31/$EX31,GK31) -> 0 | BB31: =AND(BB$21>=$D31,BB$21<=$E31)*IF(OR($F31="Straight-Line",$F31="Detail"),$I31/$EX31,GL31) -> 0 | BC31: =AND(BC$21>=$D31,BC$21<=$E31)*IF(OR($F31="Straight-Line",$F31="Detail"),$I31/$EX31,GM31) -> 0 | BD31: =AND(BD$21>=$D31,BD$21<=$E31)*IF(OR($F31="Straight-Line",$F31="Detail"),$I31/$EX31,GN31) -> 0 | BE31: =AND(BE$21>=$D31,BE$21<=$E31)*IF(OR($F31="Straight-Line",$F31="Detail"),$I31/$EX31,GO31) -> 0 | BF31: =AND(BF$21>=$D31,BF$21<=$E31)*IF(OR($F31="Straight-Line",$F31="Detail"),$I31/$EX31,GP31) -> 0 | BG31: =AND(BG$21>=$D31,BG$21<=$E31)*IF(OR($F31="Straight-Line",$F31="Detail"),$I31/$EX31,GQ31) -> 0 | BH31: =AND(BH$21>=$D31,BH$21<=$E31)*IF(OR($F31="Straight-Line",$F31="Detail"),$I31/$EX31,GR31) -> 0 | BI31: =AND(BI$21>=$D31,BI$21<=$E31)*IF(OR($F31="Straight-Line",$F31="Detail"),$I31/$EX31,GS31) -> 0 | BJ31: =AND(BJ$21>=$D31,BJ$21<=$E31)*IF(OR($F31="Straight-Line",$F31="Detail"),$I31/$EX31,GT31) -> 0 | BK31: =AND(BK$21>=$D31,BK$21<=$E31)*IF(OR($F31="Straight-Line",$F31="Detail"),$I31/$EX31,GU31) -> 0 | BL31: =AND(BL$21>=$D31,BL$21<=$E31)*IF(OR($F31="Straight-Line",$F31="Detail"),$I31/$EX31,GV31) -> 0 | BM31: =AND(BM$21>=$D31,BM$21<=$E31)*IF(OR($F31="Straight-Line",$F31="Detail"),$I31/$EX31,GW31) -> 0 | BN31: =AND(BN$21>=$D31,BN$21<=$E31)*IF(OR($F31="Straight-Line",$F31="Detail"),$I31/$EX31,GX31) -> 0 | BO31: =AND(BO$21>=$D31,BO$21<=$E31)*IF(OR($F31="Straight-Line",$F31="Detail"),$I31/$EX31,GY31) -> 0 | BP31: =AND(BP$21>=$D31,BP$21<=$E31)*IF(OR($F31="Straight-Line",$F31="Detail"),$I31/$EX31,GZ31) -> 0 | BQ31: =AND(BQ$21>=$D31,BQ$21<=$E31)*IF(OR($F31="Straight-Line",$F31="Detail"),$I31/$EX31,HA31) -> 0 | BR31: =AND(BR$21>=$D31,BR$21<=$E31)*IF(OR($F31="Straight-Line",$F31="Detail"),$I31/$EX31,HB31) -> 0 | BS31: =AND(BS$21>=$D31,BS$21<=$E31)*IF(OR($F31="Straight-Line",$F31="Detail"),$I31/$EX31,HC31) -> 0 | BT31: =AND(BT$21>=$D31,BT$21<=$E31)*IF(OR($F31="Straight-Line",$F31="Detail"),$I31/$EX31,HD31) -> 0 | BU31: =AND(BU$21>=$D31,BU$21<=$E31)*IF(OR($F31="Straight-Line",$F31="Detail"),$I31/$EX31,HE31) -> 0 | BV31: =AND(BV$21>=$D31,BV$21<=$E31)*IF(OR($F31="Straight-Line",$F31="Detail"),$I31/$EX31,HF31) -> 0 | BW31: =AND(BW$21>=$D31,BW$21<=$E31)*IF(OR($F31="Straight-Line",$F31="Detail"),$I31/$EX31,HG31) -> 0 | BX31: =AND(BX$21>=$D31,BX$21<=$E31)*IF(OR($F31="Straight-Line",$F31="Detail"),$I31/$EX31,HH31) -> 0 | BY31: =AND(BY$21>=$D31,BY$21<=$E31)*IF(OR($F31="Straight-Line",$F31="Detail"),$I31/$EX31,HI31) -> 0 | BZ31: =AND(BZ$21>=$D31,BZ$21<=$E31)*IF(OR($F31="Straight-Line",$F31="Detail"),$I31/$EX31,HJ31) -> 0 | CA31: =AND(CA$21>=$D31,CA$21<=$E31)*IF(OR($F31="Straight-Line",$F31="Detail"),$I31/$EX31,HK31) -> 0 | CB31: =AND(CB$21>=$D31,CB$21<=$E31)*IF(OR($F31="Straight-Line",$F31="Detail"),$I31/$EX31,HL31) -> 0 | CC31: =AND(CC$21>=$D31,CC$21<=$E31)*IF(OR($F31="Straight-Line",$F31="Detail"),$I31/$EX31,HM31) -> 0 | CD31: =AND(CD$21>=$D31,CD$21<=$E31)*IF(OR($F31="Straight-Line",$F31="Detail"),$I31/$EX31,HN31) -> 0 | CE31: =AND(CE$21>=$D31,CE$21<=$E31)*IF(OR($F31="Straight-Line",$F31="Detail"),$I31/$EX31,HO31) -> 0 | CF31: =AND(CF$21>=$D31,CF$21<=$E31)*IF(OR($F31="Straight-Line",$F31="Detail"),$I31/$EX31,HP31) -> 0 | CG31: =AND(CG$21>=$D31,CG$21<=$E31)*IF(OR($F31="Straight-Line",$F31="Detail"),$I31/$EX31,HQ31) -> 0 | CH31: =AND(CH$21>=$D31,CH$21<=$E31)*IF(OR($F31="Straight-Line",$F31="Detail"),$I31/$EX31,HR31) -> 0 | CI31: =AND(CI$21>=$D31,CI$21<=$E31)*IF(OR($F31="Straight-Line",$F31="Detail"),$I31/$EX31,HS31) -> 0 | CJ31: =AND(CJ$21>=$D31,CJ$21<=$E31)*IF(OR($F31="Straight-Line",$F31="Detail"),$I31/$EX31,HT31) -> 0 | CK31: =AND(CK$21>=$D31,CK$21<=$E31)*IF(OR($F31="Straight-Line",$F31="Detail"),$I31/$EX31,HU31) -> 0 | CL31: =AND(CL$21>=$D31,CL$21<=$E31)*IF(OR($F31="Straight-Line",$F31="Detail"),$I31/$EX31,HV31) -> 0 | CM31: =AND(CM$21>=$D31,CM$21<=$E31)*IF(OR($F31="Straight-Line",$F31="Detail"),$I31/$EX31,HW31) -> 0 | CN31: =AND(CN$21>=$D31,CN$21<=$E31)*IF(OR($F31="Straight-Line",$F31="Detail"),$I31/$EX31,HX31) -> 0 | CO31: =AND(CO$21>=$D31,CO$21<=$E31)*IF(OR($F31="Straight-Line",$F31="Detail"),$I31/$EX31,HY31) -> 0 | CP31: =AND(CP$21>=$D31,CP$21<=$E31)*IF(OR($F31="Straight-Line",$F31="Detail"),$I31/$EX31,HZ31) -> 0 | CQ31: =AND(CQ$21>=$D31,CQ$21<=$E31)*IF(OR($F31="Straight-Line",$F31="Detail"),$I31/$EX31,IA31) -> 0 | CR31: =AND(CR$21>=$D31,CR$21<=$E31)*IF(OR($F31="Straight-Line",$F31="Detail"),$I31/$EX31,IB31) -> 0 | CS31: =AND(CS$21>=$D31,CS$21<=$E31)*IF(OR($F31="Straight-Line",$F31="Detail"),$I31/$EX31,IC31) -> 0 | CT31: =AND(CT$21>=$D31,CT$21<=$E31)*IF(OR($F31="Straight-Line",$F31="Detail"),$I31/$EX31,ID31) -> 0 | CU31: =AND(CU$21>=$D31,CU$21<=$E31)*IF(OR($F31="Straight-Line",$F31="Detail"),$I31/$EX31,IE31) -> 0 | CV31: =AND(CV$21>=$D31,CV$21<=$E31)*IF(OR($F31="Straight-Line",$F31="Detail"),$I31/$EX31,IF31) -> 0 | CW31: =AND(CW$21>=$D31,CW$21<=$E31)*IF(OR($F31="Straight-Line",$F31="Detail"),$I31/$EX31,IG31) -> 0 | CX31: =AND(CX$21>=$D31,CX$21<=$E31)*IF(OR($F31="Straight-Line",$F31="Detail"),$I31/$EX31,IH31) -> 0 | CY31: =AND(CY$21>=$D31,CY$21<=$E31)*IF(OR($F31="Straight-Line",$F31="Detail"),$I31/$EX31,II31) -> 0 | CZ31: =AND(CZ$21>=$D31,CZ$21<=$E31)*IF(OR($F31="Straight-Line",$F31="Detail"),$I31/$EX31,IJ31) -> 0 | DA31: =AND(DA$21>=$D31,DA$21<=$E31)*IF(OR($F31="Straight-Line",$F31="Detail"),$I31/$EX31,IK31) -> 0 | DB31: =AND(DB$21>=$D31,DB$21<=$E31)*IF(OR($F31="Straight-Line",$F31="Detail"),$I31/$EX31,IL31) -> 0 | DC31: =AND(DC$21>=$D31,DC$21<=$E31)*IF(OR($F31="Straight-Line",$F31="Detail"),$I31/$EX31,IM31) -> 0 | DD31: =AND(DD$21>=$D31,DD$21<=$E31)*IF(OR($F31="Straight-Line",$F31="Detail"),$I31/$EX31,IN31) -> 0 | DE31: =AND(DE$21>=$D31,DE$21<=$E31)*IF(OR($F31="Straight-Line",$F31="Detail"),$I31/$EX31,IO31) -> 0 | DF31: =AND(DF$21>=$D31,DF$21<=$E31)*IF(OR($F31="Straight-Line",$F31="Detail"),$I31/$EX31,IP31) -> 0 | DG31: =AND(DG$21>=$D31,DG$21<=$E31)*IF(OR($F31="Straight-Line",$F31="Detail"),$I31/$EX31,IQ31) -> 0 | DH31: =AND(DH$21>=$D31,DH$21<=$E31)*IF(OR($F31="Straight-Line",$F31="Detail"),$I31/$EX31,IR31) -> 0 | DI31: =AND(DI$21>=$D31,DI$21<=$E31)*IF(OR($F31="Straight-Line",$F31="Detail"),$I31/$EX31,IS31) -> 0 | DJ31: =AND(DJ$21>=$D31,DJ$21<=$E31)*IF(OR($F31="Straight-Line",$F31="Detail"),$I31/$EX31,IT31) -> 0 | DK31: =AND(DK$21>=$D31,DK$21<=$E31)*IF(OR($F31="Straight-Line",$F31="Detail"),$I31/$EX31,IU31) -> 0 | DL31: =AND(DL$21>=$D31,DL$21<=$E31)*IF(OR($F31="Straight-Line",$F31="Detail"),$I31/$EX31,IV31) -> 0 | DM31: =AND(DM$21>=$D31,DM$21<=$E31)*IF(OR($F31="Straight-Line",$F31="Detail"),$I31/$EX31,IW31) -> 0 | DN31: =AND(DN$21>=$D31,DN$21<=$E31)*IF(OR($F31="Straight-Line",$F31="Detail"),$I31/$EX31,IX31) -> 0 | DO31: =AND(DO$21>=$D31,DO$21<=$E31)*IF(OR($F31="Straight-Line",$F31="Detail"),$I31/$EX31,IY31) -> 0 | DP31: =AND(DP$21>=$D31,DP$21<=$E31)*IF(OR($F31="Straight-Line",$F31="Detail"),$I31/$EX31,IZ31) -> 0 | DQ31: =AND(DQ$21>=$D31,DQ$21<=$E31)*IF(OR($F31="Straight-Line",$F31="Detail"),$I31/$EX31,JA31) -> 0 | DR31: =AND(DR$21>=$D31,DR$21<=$E31)*IF(OR($F31="Straight-Line",$F31="Detail"),$I31/$EX31,JB31) -> 0 | DS31: =AND(DS$21>=$D31,DS$21<=$E31)*IF(OR($F31="Straight-Line",$F31="Detail"),$I31/$EX31,JC31) -> 0 | DT31: =AND(DT$21>=$D31,DT$21<=$E31)*IF(OR($F31="Straight-Line",$F31="Detail"),$I31/$EX31,JD31) -> 0 | DU31: =AND(DU$21>=$D31,DU$21<=$E31)*IF(OR($F31="Straight-Line",$F31="Detail"),$I31/$EX31,JE31) -> 0 | DV31: =AND(DV$21>=$D31,DV$21<=$E31)*IF(OR($F31="Straight-Line",$F31="Detail"),$I31/$EX31,JF31) -> 0 | DW31: =AND(DW$21>=$D31,DW$21<=$E31)*IF(OR($F31="Straight-Line",$F31="Detail"),$I31/$EX31,JG31) -> 0 | DX31: =AND(DX$21>=$D31,DX$21<=$E31)*IF(OR($F31="Straight-Line",$F31="Detail"),$I31/$EX31,JH31) -> 0 | DY31: =AND(DY$21>=$D31,DY$21<=$E31)*IF(OR($F31="Straight-Line",$F31="Detail"),$I31/$EX31,JI31) -> 0 | DZ31: =AND(DZ$21>=$D31,DZ$21<=$E31)*IF(OR($F31="Straight-Line",$F31="Detail"),$I31/$EX31,JJ31) -> 0 | EA31: =AND(EA$21>=$D31,EA$21<=$E31)*IF(OR($F31="Straight-Line",$F31="Detail"),$I31/$EX31,JK31) -> 0 | EB31: =AND(EB$21>=$D31,EB$21<=$E31)*IF(OR($F31="Straight-Line",$F31="Detail"),$I31/$EX31,JL31) -> 0 | EC31: =AND(EC$21>=$D31,EC$21<=$E31)*IF(OR($F31="Straight-Line",$F31="Detail"),$I31/$EX31,JM31) -> 0 | ED31: =AND(ED$21>=$D31,ED$21<=$E31)*IF(OR($F31="Straight-Line",$F31="Detail"),$I31/$EX31,JN31) -> 0 | EE31: =AND(EE$21>=$D31,EE$21<=$E31)*IF(OR($F31="Straight-Line",$F31="Detail"),$I31/$EX31,JO31) -> 0 | EF31: =AND(EF$21>=$D31,EF$21<=$E31)*IF(OR($F31="Straight-Line",$F31="Detail"),$I31/$EX31,JP31) -> 0 | EG31: =AND(EG$21>=$D31,EG$21<=$E31)*IF(OR($F31="Straight-Line",$F31="Detail"),$I31/$EX31,JQ31) -> 0 | EH31: =AND(EH$21>=$D31,EH$21<=$E31)*IF(OR($F31="Straight-Line",$F31="Detail"),$I31/$EX31,JR31) -> 0 | EI31: =AND(EI$21>=$D31,EI$21<=$E31)*IF(OR($F31="Straight-Line",$F31="Detail"),$I31/$EX31,JS31) -> 0 | EJ31: =AND(EJ$21>=$D31,EJ$21<=$E31)*IF(OR($F31="Straight-Line",$F31="Detail"),$I31/$EX31,JT31) -> 0 | EK31: =AND(EK$21>=$D31,EK$21<=$E31)*IF(OR($F31="Straight-Line",$F31="Detail"),$I31/$EX31,JU31) -> 0 | EL31: =AND(EL$21>=$D31,EL$21<=$E31)*IF(OR($F31="Straight-Line",$F31="Detail"),$I31/$EX31,JV31) -> 0 | EM31: =AND(EM$21>=$D31,EM$21<=$E31)*IF(OR($F31="Straight-Line",$F31="Detail"),$I31/$EX31,JW31) -> 0 | EN31: =AND(EN$21>=$D31,EN$21<=$E31)*IF(OR($F31="Straight-Line",$F31="Detail"),$I31/$EX31,JX31) -> 0 | EO31: =AND(EO$21>=$D31,EO$21<=$E31)*IF(OR($F31="Straight-Line",$F31="Detail"),$I31/$EX31,JY31) -> 0 | EP31: =AND(EP$21>=$D31,EP$21<=$E31)*IF(OR($F31="Straight-Line",$F31="Detail"),$I31/$EX31,JZ31) -> 0 | EQ31: =AND(EQ$21>=$D31,EQ$21<=$E31)*IF(OR($F31="Straight-Line",$F31="Detail"),$I31/$EX31,KA31) -> 0 | ER31: =AND(ER$21>=$D31,ER$21<=$E31)*IF(OR($F31="Straight-Line",$F31="Detail"),$I31/$EX31,KB31) -> 0 | ES31: =AND(ES$21>=$D31,ES$21<=$E31)*IF(OR($F31="Straight-Line",$F31="Detail"),$I31/$EX31,KC31) -> 0 | EU31: =I31 -> 5087030 | EV31: =INDEX($Q$22:$ES$22,1,$D31+1) -> 2024-09-30 | EW31: =INDEX($Q$22:$ES$22,1,$E31+1) -> 2025-04-30 | EX31: =+E31-D31+1 -> 8 | EY31: =F31 -> S-Curve | EZ31: =EX31/Scurve_Dist -> 1.333333333 | FA31: =AND($EY31="S-Curve",FA$22>=$EV31,FA$22<=$EW31)*(_xlfn.NORM.DIST((YEAR(FA$22)-YEAR($EV31))*12+MONTH(FA$22)-MONTH($EV31)+1,$EX31/2,$EZ31,TRUE)-_xlfn.NORM.DIST((YEAR(FA$22)-YEAR($EV31))*12+MONTH(FA$22)-MONTH($EV31),$EX31/2,$EZ31,TRUE))/(1-2*_xlfn.NORM.DIST(0,$EX31/2,$EZ31,TRUE))*$EU31 -> 0 | FB31: 55469.04245 | FC31: 278415.6434 | FD31: 815210.8062 | FE31: 1394419.508 | FF31: 1394419.508 | FG31: 815210.8062 | FH31: 278415.6434 | FI31: 55469.04245 | FJ31: 0 | FK31: 0 | FL31: 0 | FM31: 0 | FN31: 0 | FO31: 0 | FP31: 0 | FQ31: =AND($EY31="S-Curve",FQ$22>=$EV31,FQ$22<=$EW31)*(_xlfn.NORM.DIST((YEAR(FQ$22)-YEAR($EV31))*12+MONTH(FQ$22)-MONTH($EV31)+1,$EX31/2,$EZ31,TRUE)-_xlfn.NORM.DIST((YEAR(FQ$22)-YEAR($EV31))*12+MONTH(FQ$22)-MONTH($EV31),$EX31/2,$EZ31,TRUE))/(1-2*_xlfn.NORM.DIST(0,$EX31/2,$EZ31,TRUE))*$EU31 -> 0 | FR31: 0 | FS31: 0 | FT31: 0 | FU31: 0 | FV31: 0 | FW31: 0 | FX31: 0 | FY31: 0 | FZ31: 0 | GA31: 0 | GB31: 0 | GC31: 0 | GD31: 0 | GE31: 0 | GF31: 0 | GG31: =AND($EY31="S-Curve",GG$22>=$EV31,GG$22<=$EW31)*(_xlfn.NORM.DIST((YEAR(GG$22)-YEAR($EV31))*12+MONTH(GG$22)-MONTH($EV31)+1,$EX31/2,$EZ31,TRUE)-_xlfn.NORM.DIST((YEAR(GG$22)-YEAR($EV31))*12+MONTH(GG$22)-MONTH($EV31),$EX31/2,$EZ31,TRUE))/(1-2*_xlfn.NORM.DIST(0,$EX31/2,$EZ31,TRUE))*$EU31 -> 0 | GH31: 0 | GI31: 0 | GJ31: 0 | GK31: 0 | GL31: 0 | GM31: 0 | GN31: 0 | GO31: 0 | GP31: 0 | GQ31: 0 | GR31: 0 | GS31: 0 | GT31: 0 | GU31: 0 | GV31: 0 | GW31: =AND($EY31="S-Curve",GW$22>=$EV31,GW$22<=$EW31)*(_xlfn.NORM.DIST((YEAR(GW$22)-YEAR($EV31))*12+MONTH(GW$22)-MONTH($EV31)+1,$EX31/2,$EZ31,TRUE)-_xlfn.NORM.DIST((YEAR(GW$22)-YEAR($EV31))*12+MONTH(GW$22)-MONTH($EV31),$EX31/2,$EZ31,TRUE))/(1-2*_xlfn.NORM.DIST(0,$EX31/2,$EZ31,TRUE))*$EU31 -> 0 | GX31: 0 | GY31: 0 | GZ31: 0 | HA31: 0 | HB31: 0 | HC31: 0 | HD31: 0 | HE31: 0 | HF31: 0 | HG31: 0 | HH31: 0 | HI31: 0 | HJ31: 0 | HK31: 0 | HL31: 0 | HM31: =AND($EY31="S-Curve",HM$22>=$EV31,HM$22<=$EW31)*(_xlfn.NORM.DIST((YEAR(HM$22)-YEAR($EV31))*12+MONTH(HM$22)-MONTH($EV31)+1,$EX31/2,$EZ31,TRUE)-_xlfn.NORM.DIST((YEAR(HM$22)-YEAR($EV31))*12+MONTH(HM$22)-MONTH($EV31),$EX31/2,$EZ31,TRUE))/(1-2*_xlfn.NORM.DIST(0,$EX31/2,$EZ31,TRUE))*$EU31 -> 0 | HN31: 0 | HO31: 0 | HP31: 0 | HQ31: 0 | HR31: 0 | HS31: 0 | HT31: 0 | HU31: 0 | HV31: 0 | HW31: 0 | HX31: 0 | HY31: 0 | HZ31: 0 | IA31: 0 | IB31: 0 | IC31: =AND($EY31="S-Curve",IC$22>=$EV31,IC$22<=$EW31)*(_xlfn.NORM.DIST((YEAR(IC$22)-YEAR($EV31))*12+MONTH(IC$22)-MONTH($EV31)+1,$EX31/2,$EZ31,TRUE)-_xlfn.NORM.DIST((YEAR(IC$22)-YEAR($EV31))*12+MONTH(IC$22)-MONTH($EV31),$EX31/2,$EZ31,TRUE))/(1-2*_xlfn.NORM.DIST(0,$EX31/2,$EZ31,TRUE))*$EU31 -> 0 | ID31: 0 | IE31: 0 | IF31: 0 | IG31: 0 | IH31: 0 | II31: 0 | IJ31: 0 | IK31: 0 | IL31: 0 | IM31: 0 | IN31: 0 | IO31: 0 | IP31: 0 | IQ31: 0 | IR31: 0 | IS31: =AND($EY31="S-Curve",IS$22>=$EV31,IS$22<=$EW31)*(_xlfn.NORM.DIST((YEAR(IS$22)-YEAR($EV31))*12+MONTH(IS$22)-MONTH($EV31)+1,$EX31/2,$EZ31,TRUE)-_xlfn.NORM.DIST((YEAR(IS$22)-YEAR($EV31))*12+MONTH(IS$22)-MONTH($EV31),$EX31/2,$EZ31,TRUE))/(1-2*_xlfn.NORM.DIST(0,$EX31/2,$EZ31,TRUE))*$EU31 -> 0 | IT31: 0 | IU31: 0 | IV31: 0 | IW31: 0 | IX31: 0 | IY31: 0 | IZ31: 0 | JA31: 0 | JB31: 0 | JC31: 0 | JD31: 0 | JE31: 0 | JF31: 0 | JG31: 0 | JH31: 0 | JI31: =AND($EY31="S-Curve",JI$22>=$EV31,JI$22<=$EW31)*(_xlfn.NORM.DIST((YEAR(JI$22)-YEAR($EV31))*12+MONTH(JI$22)-MONTH($EV31)+1,$EX31/2,$EZ31,TRUE)-_xlfn.NORM.DIST((YEAR(JI$22)-YEAR($EV31))*12+MONTH(JI$22)-MONTH($EV31),$EX31/2,$EZ31,TRUE))/(1-2*_xlfn.NORM.DIST(0,$EX31/2,$EZ31,TRUE))*$EU31 -> 0 | JJ31: 0 | JK31: 0 | JL31: 0 | JM31: 0 | JN31: 0 | JO31: 0 | JP31: 0 | JQ31: 0 | JR31: 0 | JS31: 0 | JT31: 0 | JU31: 0 | JV31: 0 | JW31: 0 | JX31: 0 | JY31: =AND($EY31="S-Curve",JY$22>=$EV31,JY$22<=$EW31)*(_xlfn.NORM.DIST((YEAR(JY$22)-YEAR($EV31))*12+MONTH(JY$22)-MONTH($EV31)+1,$EX31/2,$EZ31,TRUE)-_xlfn.NORM.DIST((YEAR(JY$22)-YEAR($EV31))*12+MONTH(JY$22)-MONTH($EV31),$EX31/2,$EZ31,TRUE))/(1-2*_xlfn.NORM.DIST(0,$EX31/2,$EZ31,TRUE))*$EU31 -> 0 | JZ31: 0 | KA31: 0 | KB31: 0 | KC31: 0
B32: Common Area | D32: 6 | E32: 9 | F32: S-Curve | G32: =I32/Units_SF_M2 -> 15.80091922 | H32: =I32/Units_BTR -> 2025.903571 | I32: 567253 | K32: 1.5% of vertical hard cost | P32: =IF(ROUND(SUM(Q32:ES32),0)=ROUND(I32,0),"","Incomplete") ->  | Q32: 0 | R32: 0 | S32: 0 | T32: 0 | U32: 0 | V32: 0 | W32: 37231.36874 | X32: 246395.1313 | Y32: 246395.1313 | Z32: 37231.36874 | AA32: 0 | AB32: 0 | AC32: 0 | AD32: 0 | AE32: 0 | AF32: 0 | AG32: 0 | AH32: 0 | AI32: 0 | AJ32: 0 | AK32: 0 | AL32: 0 | AM32: 0 | AN32: 0 | AO32: 0 | AP32: 0 | AQ32: 0 | AR32: 0 | AS32: 0 | AT32: 0 | AU32: 0 | AV32: 0 | AW32: 0 | AX32: 0 | AY32: 0 | AZ32: 0 | BA32: 0 | BB32: 0 | BC32: 0 | BD32: 0 | BE32: 0 | BF32: 0 | BG32: 0 | BH32: 0 | BI32: 0 | BJ32: 0 | BK32: 0 | BL32: 0 | BM32: 0 | BN32: 0 | BO32: 0 | BP32: 0 | BQ32: 0 | BR32: 0 | BS32: 0 | BT32: 0 | BU32: 0 | BV32: 0 | BW32: 0 | BX32: 0 | BY32: 0 | BZ32: 0 | CA32: 0 | CB32: 0 | CC32: 0 | CD32: 0 | CE32: 0 | CF32: 0 | CG32: 0 | CH32: 0 | CI32: 0 | CJ32: 0 | CK32: 0 | CL32: 0 | CM32: 0 | CN32: 0 | CO32: 0 | CP32: 0 | CQ32: 0 | CR32: 0 | CS32: 0 | CT32: 0 | CU32: 0 | CV32: 0 | CW32: 0 | CX32: 0 | CY32: 0 | CZ32: 0 | DA32: 0 | DB32: 0 | DC32: 0 | DD32: 0 | DE32: 0 | DF32: 0 | DG32: 0 | DH32: 0 | DI32: 0 | DJ32: 0 | DK32: 0 | DL32: 0 | DM32: 0 | DN32: 0 | DO32: 0 | DP32: 0 | DQ32: 0 | DR32: 0 | DS32: 0 | DT32: 0 | DU32: 0 | DV32: 0 | DW32: 0 | DX32: 0 | DY32: 0 | DZ32: 0 | EA32: 0 | EB32: 0 | EC32: 0 | ED32: 0 | EE32: 0 | EF32: 0 | EG32: 0 | EH32: 0 | EI32: 0 | EJ32: 0 | EK32: 0 | EL32: 0 | EM32: 0 | EN32: 0 | EO32: 0 | EP32: 0 | EQ32: 0 | ER32: 0 | ES32: 0 | EU32: =I32 -> 567253 | EV32: =INDEX($Q$22:$ES$22,1,$D32+1) -> 2025-02-28 | EW32: =INDEX($Q$22:$ES$22,1,$E32+1) -> 2025-05-31 | EX32: =+E32-D32+1 -> 4 | EY32: =F32 -> S-Curve | EZ32: =EX32/Scurve_Dist -> 0.6666666667 | FA32: 0 | FB32: 0 | FC32: 0 | FD32: 0 | FE32: 0 | FF32: 0 | FG32: 37231.36874 | FH32: 246395.1313 | FI32: 246395.1313 | FJ32: 37231.36874 | FK32: 0 | FL32: 0 | FM32: 0 | FN32: 0 | FO32: 0 | FP32: 0 | FQ32: 0 | FR32: 0 | FS32: 0 | FT32: 0 | FU32: 0 | FV32: 0 | FW32: 0 | FX32: 0 | FY32: 0 | FZ32: 0 | GA32: 0 | GB32: 0 | GC32: 0 | GD32: 0 | GE32: 0 | GF32: 0 | GG32: 0 | GH32: 0 | GI32: 0 | GJ32: 0 | GK32: 0 | GL32: 0 | GM32: 0 | GN32: 0 | GO32: 0 | GP32: 0 | GQ32: 0 | GR32: 0 | GS32: 0 | GT32: 0 | GU32: 0 | GV32: 0 | GW32: 0 | GX32: 0 | GY32: 0 | GZ32: 0 | HA32: 0 | HB32: 0 | HC32: 0 | HD32: 0 | HE32: 0 | HF32: 0 | HG32: 0 | HH32: 0 | HI32: 0 | HJ32: 0 | HK32: 0 | HL32: 0 | HM32: 0 | HN32: 0 | HO32: 0 | HP32: 0 | HQ32: 0 | HR32: 0 | HS32: 0 | HT32: 0 | HU32: 0 | HV32: 0 | HW32: 0 | HX32: 0 | HY32: 0 | HZ32: 0 | IA32: 0 | IB32: 0 | IC32: 0 | ID32: 0 | IE32: 0 | IF32: 0 | IG32: 0 | IH32: 0 | II32: 0 | IJ32: 0 | IK32: 0 | IL32: 0 | IM32: 0 | IN32: 0 | IO32: 0 | IP32: 0 | IQ32: 0 | IR32: 0 | IS32: 0 | IT32: 0 | IU32: 0 | IV32: 0 | IW32: 0 | IX32: 0 | IY32: 0 | IZ32: 0 | JA32: 0 | JB32: 0 | JC32: 0 | JD32: 0 | JE32: 0 | JF32: 0 | JG32: 0 | JH32: 0 | JI32: 0 | JJ32: 0 | JK32: 0 | JL32: 0 | JM32: 0 | JN32: 0 | JO32: 0 | JP32: 0 | JQ32: 0 | JR32: 0 | JS32: 0 | JT32: 0 | JU32: 0 | JV32: 0 | JW32: 0 | JX32: 0 | JY32: 0 | JZ32: 0 | KA32: 0 | KB32: 0 | KC32: 0
B33: Other Horizontal Hard Costs | D33: 3 | E33: 9 | F33: Straight-Line | G33: =I33/Units_SF_M2 -> 7.875045961 | H33: =I33/Units_BTR -> 1009.693393 | I33: =SUM(I31:I32)*0.05 -> 282714.15 | K33: 5% of total | P33: =IF(ROUND(SUM(Q33:ES33),0)=ROUND(I33,0),"","Incomplete") ->  | Q33: =AND(Q$21>=$D33,Q$21<=$E33)*IF(OR($F33="Straight-Line",$F33="Detail"),$I33/$EX33,FA33) -> 0 | R33: =AND(R$21>=$D33,R$21<=$E33)*IF(OR($F33="Straight-Line",$F33="Detail"),$I33/$EX33,FB33) -> 0 | S33: =AND(S$21>=$D33,S$21<=$E33)*IF(OR($F33="Straight-Line",$F33="Detail"),$I33/$EX33,FC33) -> 0 | T33: =AND(T$21>=$D33,T$21<=$E33)*IF(OR($F33="Straight-Line",$F33="Detail"),$I33/$EX33,FD33) -> 40387.73571 | U33: =AND(U$21>=$D33,U$21<=$E33)*IF(OR($F33="Straight-Line",$F33="Detail"),$I33/$EX33,FE33) -> 40387.73571 | V33: =AND(V$21>=$D33,V$21<=$E33)*IF(OR($F33="Straight-Line",$F33="Detail"),$I33/$EX33,FF33) -> 40387.73571 | W33: =AND(W$21>=$D33,W$21<=$E33)*IF(OR($F33="Straight-Line",$F33="Detail"),$I33/$EX33,FG33) -> 40387.73571 | X33: =AND(X$21>=$D33,X$21<=$E33)*IF(OR($F33="Straight-Line",$F33="Detail"),$I33/$EX33,FH33) -> 40387.73571 | Y33: =AND(Y$21>=$D33,Y$21<=$E33)*IF(OR($F33="Straight-Line",$F33="Detail"),$I33/$EX33,FI33) -> 40387.73571 | Z33: =AND(Z$21>=$D33,Z$21<=$E33)*IF(OR($F33="Straight-Line",$F33="Detail"),$I33/$EX33,FJ33) -> 40387.73571 | AA33: =AND(AA$21>=$D33,AA$21<=$E33)*IF(OR($F33="Straight-Line",$F33="Detail"),$I33/$EX33,FK33) -> 0 | AB33: =AND(AB$21>=$D33,AB$21<=$E33)*IF(OR($F33="Straight-Line",$F33="Detail"),$I33/$EX33,FL33) -> 0 | AC33: =AND(AC$21>=$D33,AC$21<=$E33)*IF(OR($F33="Straight-Line",$F33="Detail"),$I33/$EX33,FM33) -> 0 | AD33: =AND(AD$21>=$D33,AD$21<=$E33)*IF(OR($F33="Straight-Line",$F33="Detail"),$I33/$EX33,FN33) -> 0 | AE33: =AND(AE$21>=$D33,AE$21<=$E33)*IF(OR($F33="Straight-Line",$F33="Detail"),$I33/$EX33,FO33) -> 0 | AF33: =AND(AF$21>=$D33,AF$21<=$E33)*IF(OR($F33="Straight-Line",$F33="Detail"),$I33/$EX33,FP33) -> 0 | AG33: =AND(AG$21>=$D33,AG$21<=$E33)*IF(OR($F33="Straight-Line",$F33="Detail"),$I33/$EX33,FQ33) -> 0 | AH33: =AND(AH$21>=$D33,AH$21<=$E33)*IF(OR($F33="Straight-Line",$F33="Detail"),$I33/$EX33,FR33) -> 0 | AI33: =AND(AI$21>=$D33,AI$21<=$E33)*IF(OR($F33="Straight-Line",$F33="Detail"),$I33/$EX33,FS33) -> 0 | AJ33: =AND(AJ$21>=$D33,AJ$21<=$E33)*IF(OR($F33="Straight-Line",$F33="Detail"),$I33/$EX33,FT33) -> 0 | AK33: =AND(AK$21>=$D33,AK$21<=$E33)*IF(OR($F33="Straight-Line",$F33="Detail"),$I33/$EX33,FU33) -> 0 | AL33: =AND(AL$21>=$D33,AL$21<=$E33)*IF(OR($F33="Straight-Line",$F33="Detail"),$I33/$EX33,FV33) -> 0 | AM33: =AND(AM$21>=$D33,AM$21<=$E33)*IF(OR($F33="Straight-Line",$F33="Detail"),$I33/$EX33,FW33) -> 0 | AN33: =AND(AN$21>=$D33,AN$21<=$E33)*IF(OR($F33="Straight-Line",$F33="Detail"),$I33/$EX33,FX33) -> 0 | AO33: =AND(AO$21>=$D33,AO$21<=$E33)*IF(OR($F33="Straight-Line",$F33="Detail"),$I33/$EX33,FY33) -> 0 | AP33: =AND(AP$21>=$D33,AP$21<=$E33)*IF(OR($F33="Straight-Line",$F33="Detail"),$I33/$EX33,FZ33) -> 0 | AQ33: =AND(AQ$21>=$D33,AQ$21<=$E33)*IF(OR($F33="Straight-Line",$F33="Detail"),$I33/$EX33,GA33) -> 0 | AR33: =AND(AR$21>=$D33,AR$21<=$E33)*IF(OR($F33="Straight-Line",$F33="Detail"),$I33/$EX33,GB33) -> 0 | AS33: =AND(AS$21>=$D33,AS$21<=$E33)*IF(OR($F33="Straight-Line",$F33="Detail"),$I33/$EX33,GC33) -> 0 | AT33: =AND(AT$21>=$D33,AT$21<=$E33)*IF(OR($F33="Straight-Line",$F33="Detail"),$I33/$EX33,GD33) -> 0 | AU33: =AND(AU$21>=$D33,AU$21<=$E33)*IF(OR($F33="Straight-Line",$F33="Detail"),$I33/$EX33,GE33) -> 0 | AV33: =AND(AV$21>=$D33,AV$21<=$E33)*IF(OR($F33="Straight-Line",$F33="Detail"),$I33/$EX33,GF33) -> 0 | AW33: =AND(AW$21>=$D33,AW$21<=$E33)*IF(OR($F33="Straight-Line",$F33="Detail"),$I33/$EX33,GG33) -> 0 | AX33: =AND(AX$21>=$D33,AX$21<=$E33)*IF(OR($F33="Straight-Line",$F33="Detail"),$I33/$EX33,GH33) -> 0 | AY33: =AND(AY$21>=$D33,AY$21<=$E33)*IF(OR($F33="Straight-Line",$F33="Detail"),$I33/$EX33,GI33) -> 0 | AZ33: =AND(AZ$21>=$D33,AZ$21<=$E33)*IF(OR($F33="Straight-Line",$F33="Detail"),$I33/$EX33,GJ33) -> 0 | BA33: =AND(BA$21>=$D33,BA$21<=$E33)*IF(OR($F33="Straight-Line",$F33="Detail"),$I33/$EX33,GK33) -> 0 | BB33: =AND(BB$21>=$D33,BB$21<=$E33)*IF(OR($F33="Straight-Line",$F33="Detail"),$I33/$EX33,GL33) -> 0 | BC33: =AND(BC$21>=$D33,BC$21<=$E33)*IF(OR($F33="Straight-Line",$F33="Detail"),$I33/$EX33,GM33) -> 0 | BD33: =AND(BD$21>=$D33,BD$21<=$E33)*IF(OR($F33="Straight-Line",$F33="Detail"),$I33/$EX33,GN33) -> 0 | BE33: =AND(BE$21>=$D33,BE$21<=$E33)*IF(OR($F33="Straight-Line",$F33="Detail"),$I33/$EX33,GO33) -> 0 | BF33: =AND(BF$21>=$D33,BF$21<=$E33)*IF(OR($F33="Straight-Line",$F33="Detail"),$I33/$EX33,GP33) -> 0 | BG33: =AND(BG$21>=$D33,BG$21<=$E33)*IF(OR($F33="Straight-Line",$F33="Detail"),$I33/$EX33,GQ33) -> 0 | BH33: =AND(BH$21>=$D33,BH$21<=$E33)*IF(OR($F33="Straight-Line",$F33="Detail"),$I33/$EX33,GR33) -> 0 | BI33: =AND(BI$21>=$D33,BI$21<=$E33)*IF(OR($F33="Straight-Line",$F33="Detail"),$I33/$EX33,GS33) -> 0 | BJ33: =AND(BJ$21>=$D33,BJ$21<=$E33)*IF(OR($F33="Straight-Line",$F33="Detail"),$I33/$EX33,GT33) -> 0 | BK33: =AND(BK$21>=$D33,BK$21<=$E33)*IF(OR($F33="Straight-Line",$F33="Detail"),$I33/$EX33,GU33) -> 0 | BL33: =AND(BL$21>=$D33,BL$21<=$E33)*IF(OR($F33="Straight-Line",$F33="Detail"),$I33/$EX33,GV33) -> 0 | BM33: =AND(BM$21>=$D33,BM$21<=$E33)*IF(OR($F33="Straight-Line",$F33="Detail"),$I33/$EX33,GW33) -> 0 | BN33: =AND(BN$21>=$D33,BN$21<=$E33)*IF(OR($F33="Straight-Line",$F33="Detail"),$I33/$EX33,GX33) -> 0 | BO33: =AND(BO$21>=$D33,BO$21<=$E33)*IF(OR($F33="Straight-Line",$F33="Detail"),$I33/$EX33,GY33) -> 0 | BP33: =AND(BP$21>=$D33,BP$21<=$E33)*IF(OR($F33="Straight-Line",$F33="Detail"),$I33/$EX33,GZ33) -> 0 | BQ33: =AND(BQ$21>=$D33,BQ$21<=$E33)*IF(OR($F33="Straight-Line",$F33="Detail"),$I33/$EX33,HA33) -> 0 | BR33: =AND(BR$21>=$D33,BR$21<=$E33)*IF(OR($F33="Straight-Line",$F33="Detail"),$I33/$EX33,HB33) -> 0 | BS33: =AND(BS$21>=$D33,BS$21<=$E33)*IF(OR($F33="Straight-Line",$F33="Detail"),$I33/$EX33,HC33) -> 0 | BT33: =AND(BT$21>=$D33,BT$21<=$E33)*IF(OR($F33="Straight-Line",$F33="Detail"),$I33/$EX33,HD33) -> 0 | BU33: =AND(BU$21>=$D33,BU$21<=$E33)*IF(OR($F33="Straight-Line",$F33="Detail"),$I33/$EX33,HE33) -> 0 | BV33: =AND(BV$21>=$D33,BV$21<=$E33)*IF(OR($F33="Straight-Line",$F33="Detail"),$I33/$EX33,HF33) -> 0 | BW33: =AND(BW$21>=$D33,BW$21<=$E33)*IF(OR($F33="Straight-Line",$F33="Detail"),$I33/$EX33,HG33) -> 0 | BX33: =AND(BX$21>=$D33,BX$21<=$E33)*IF(OR($F33="Straight-Line",$F33="Detail"),$I33/$EX33,HH33) -> 0 | BY33: =AND(BY$21>=$D33,BY$21<=$E33)*IF(OR($F33="Straight-Line",$F33="Detail"),$I33/$EX33,HI33) -> 0 | BZ33: =AND(BZ$21>=$D33,BZ$21<=$E33)*IF(OR($F33="Straight-Line",$F33="Detail"),$I33/$EX33,HJ33) -> 0 | CA33: =AND(CA$21>=$D33,CA$21<=$E33)*IF(OR($F33="Straight-Line",$F33="Detail"),$I33/$EX33,HK33) -> 0 | CB33: =AND(CB$21>=$D33,CB$21<=$E33)*IF(OR($F33="Straight-Line",$F33="Detail"),$I33/$EX33,HL33) -> 0 | CC33: =AND(CC$21>=$D33,CC$21<=$E33)*IF(OR($F33="Straight-Line",$F33="Detail"),$I33/$EX33,HM33) -> 0 | CD33: =AND(CD$21>=$D33,CD$21<=$E33)*IF(OR($F33="Straight-Line",$F33="Detail"),$I33/$EX33,HN33) -> 0 | CE33: =AND(CE$21>=$D33,CE$21<=$E33)*IF(OR($F33="Straight-Line",$F33="Detail"),$I33/$EX33,HO33) -> 0 | CF33: =AND(CF$21>=$D33,CF$21<=$E33)*IF(OR($F33="Straight-Line",$F33="Detail"),$I33/$EX33,HP33) -> 0 | CG33: =AND(CG$21>=$D33,CG$21<=$E33)*IF(OR($F33="Straight-Line",$F33="Detail"),$I33/$EX33,HQ33) -> 0 | CH33: =AND(CH$21>=$D33,CH$21<=$E33)*IF(OR($F33="Straight-Line",$F33="Detail"),$I33/$EX33,HR33) -> 0 | CI33: =AND(CI$21>=$D33,CI$21<=$E33)*IF(OR($F33="Straight-Line",$F33="Detail"),$I33/$EX33,HS33) -> 0 | CJ33: =AND(CJ$21>=$D33,CJ$21<=$E33)*IF(OR($F33="Straight-Line",$F33="Detail"),$I33/$EX33,HT33) -> 0 | CK33: =AND(CK$21>=$D33,CK$21<=$E33)*IF(OR($F33="Straight-Line",$F33="Detail"),$I33/$EX33,HU33) -> 0 | CL33: =AND(CL$21>=$D33,CL$21<=$E33)*IF(OR($F33="Straight-Line",$F33="Detail"),$I33/$EX33,HV33) -> 0 | CM33: =AND(CM$21>=$D33,CM$21<=$E33)*IF(OR($F33="Straight-Line",$F33="Detail"),$I33/$EX33,HW33) -> 0 | CN33: =AND(CN$21>=$D33,CN$21<=$E33)*IF(OR($F33="Straight-Line",$F33="Detail"),$I33/$EX33,HX33) -> 0 | CO33: =AND(CO$21>=$D33,CO$21<=$E33)*IF(OR($F33="Straight-Line",$F33="Detail"),$I33/$EX33,HY33) -> 0 | CP33: =AND(CP$21>=$D33,CP$21<=$E33)*IF(OR($F33="Straight-Line",$F33="Detail"),$I33/$EX33,HZ33) -> 0 | CQ33: =AND(CQ$21>=$D33,CQ$21<=$E33)*IF(OR($F33="Straight-Line",$F33="Detail"),$I33/$EX33,IA33) -> 0 | CR33: =AND(CR$21>=$D33,CR$21<=$E33)*IF(OR($F33="Straight-Line",$F33="Detail"),$I33/$EX33,IB33) -> 0 | CS33: =AND(CS$21>=$D33,CS$21<=$E33)*IF(OR($F33="Straight-Line",$F33="Detail"),$I33/$EX33,IC33) -> 0 | CT33: =AND(CT$21>=$D33,CT$21<=$E33)*IF(OR($F33="Straight-Line",$F33="Detail"),$I33/$EX33,ID33) -> 0 | CU33: =AND(CU$21>=$D33,CU$21<=$E33)*IF(OR($F33="Straight-Line",$F33="Detail"),$I33/$EX33,IE33) -> 0 | CV33: =AND(CV$21>=$D33,CV$21<=$E33)*IF(OR($F33="Straight-Line",$F33="Detail"),$I33/$EX33,IF33) -> 0 | CW33: =AND(CW$21>=$D33,CW$21<=$E33)*IF(OR($F33="Straight-Line",$F33="Detail"),$I33/$EX33,IG33) -> 0 | CX33: =AND(CX$21>=$D33,CX$21<=$E33)*IF(OR($F33="Straight-Line",$F33="Detail"),$I33/$EX33,IH33) -> 0 | CY33: =AND(CY$21>=$D33,CY$21<=$E33)*IF(OR($F33="Straight-Line",$F33="Detail"),$I33/$EX33,II33) -> 0 | CZ33: =AND(CZ$21>=$D33,CZ$21<=$E33)*IF(OR($F33="Straight-Line",$F33="Detail"),$I33/$EX33,IJ33) -> 0 | DA33: =AND(DA$21>=$D33,DA$21<=$E33)*IF(OR($F33="Straight-Line",$F33="Detail"),$I33/$EX33,IK33) -> 0 | DB33: =AND(DB$21>=$D33,DB$21<=$E33)*IF(OR($F33="Straight-Line",$F33="Detail"),$I33/$EX33,IL33) -> 0 | DC33: =AND(DC$21>=$D33,DC$21<=$E33)*IF(OR($F33="Straight-Line",$F33="Detail"),$I33/$EX33,IM33) -> 0 | DD33: =AND(DD$21>=$D33,DD$21<=$E33)*IF(OR($F33="Straight-Line",$F33="Detail"),$I33/$EX33,IN33) -> 0 | DE33: =AND(DE$21>=$D33,DE$21<=$E33)*IF(OR($F33="Straight-Line",$F33="Detail"),$I33/$EX33,IO33) -> 0 | DF33: =AND(DF$21>=$D33,DF$21<=$E33)*IF(OR($F33="Straight-Line",$F33="Detail"),$I33/$EX33,IP33) -> 0 | DG33: =AND(DG$21>=$D33,DG$21<=$E33)*IF(OR($F33="Straight-Line",$F33="Detail"),$I33/$EX33,IQ33) -> 0 | DH33: =AND(DH$21>=$D33,DH$21<=$E33)*IF(OR($F33="Straight-Line",$F33="Detail"),$I33/$EX33,IR33) -> 0 | DI33: =AND(DI$21>=$D33,DI$21<=$E33)*IF(OR($F33="Straight-Line",$F33="Detail"),$I33/$EX33,IS33) -> 0 | DJ33: =AND(DJ$21>=$D33,DJ$21<=$E33)*IF(OR($F33="Straight-Line",$F33="Detail"),$I33/$EX33,IT33) -> 0 | DK33: =AND(DK$21>=$D33,DK$21<=$E33)*IF(OR($F33="Straight-Line",$F33="Detail"),$I33/$EX33,IU33) -> 0 | DL33: =AND(DL$21>=$D33,DL$21<=$E33)*IF(OR($F33="Straight-Line",$F33="Detail"),$I33/$EX33,IV33) -> 0 | DM33: =AND(DM$21>=$D33,DM$21<=$E33)*IF(OR($F33="Straight-Line",$F33="Detail"),$I33/$EX33,IW33) -> 0 | DN33: =AND(DN$21>=$D33,DN$21<=$E33)*IF(OR($F33="Straight-Line",$F33="Detail"),$I33/$EX33,IX33) -> 0 | DO33: =AND(DO$21>=$D33,DO$21<=$E33)*IF(OR($F33="Straight-Line",$F33="Detail"),$I33/$EX33,IY33) -> 0 | DP33: =AND(DP$21>=$D33,DP$21<=$E33)*IF(OR($F33="Straight-Line",$F33="Detail"),$I33/$EX33,IZ33) -> 0 | DQ33: =AND(DQ$21>=$D33,DQ$21<=$E33)*IF(OR($F33="Straight-Line",$F33="Detail"),$I33/$EX33,JA33) -> 0 | DR33: =AND(DR$21>=$D33,DR$21<=$E33)*IF(OR($F33="Straight-Line",$F33="Detail"),$I33/$EX33,JB33) -> 0 | DS33: =AND(DS$21>=$D33,DS$21<=$E33)*IF(OR($F33="Straight-Line",$F33="Detail"),$I33/$EX33,JC33) -> 0 | DT33: =AND(DT$21>=$D33,DT$21<=$E33)*IF(OR($F33="Straight-Line",$F33="Detail"),$I33/$EX33,JD33) -> 0 | DU33: =AND(DU$21>=$D33,DU$21<=$E33)*IF(OR($F33="Straight-Line",$F33="Detail"),$I33/$EX33,JE33) -> 0 | DV33: =AND(DV$21>=$D33,DV$21<=$E33)*IF(OR($F33="Straight-Line",$F33="Detail"),$I33/$EX33,JF33) -> 0 | DW33: =AND(DW$21>=$D33,DW$21<=$E33)*IF(OR($F33="Straight-Line",$F33="Detail"),$I33/$EX33,JG33) -> 0 | DX33: =AND(DX$21>=$D33,DX$21<=$E33)*IF(OR($F33="Straight-Line",$F33="Detail"),$I33/$EX33,JH33) -> 0 | DY33: =AND(DY$21>=$D33,DY$21<=$E33)*IF(OR($F33="Straight-Line",$F33="Detail"),$I33/$EX33,JI33) -> 0 | DZ33: =AND(DZ$21>=$D33,DZ$21<=$E33)*IF(OR($F33="Straight-Line",$F33="Detail"),$I33/$EX33,JJ33) -> 0 | EA33: =AND(EA$21>=$D33,EA$21<=$E33)*IF(OR($F33="Straight-Line",$F33="Detail"),$I33/$EX33,JK33) -> 0 | EB33: =AND(EB$21>=$D33,EB$21<=$E33)*IF(OR($F33="Straight-Line",$F33="Detail"),$I33/$EX33,JL33) -> 0 | EC33: =AND(EC$21>=$D33,EC$21<=$E33)*IF(OR($F33="Straight-Line",$F33="Detail"),$I33/$EX33,JM33) -> 0 | ED33: =AND(ED$21>=$D33,ED$21<=$E33)*IF(OR($F33="Straight-Line",$F33="Detail"),$I33/$EX33,JN33) -> 0 | EE33: =AND(EE$21>=$D33,EE$21<=$E33)*IF(OR($F33="Straight-Line",$F33="Detail"),$I33/$EX33,JO33) -> 0 | EF33: =AND(EF$21>=$D33,EF$21<=$E33)*IF(OR($F33="Straight-Line",$F33="Detail"),$I33/$EX33,JP33) -> 0 | EG33: =AND(EG$21>=$D33,EG$21<=$E33)*IF(OR($F33="Straight-Line",$F33="Detail"),$I33/$EX33,JQ33) -> 0 | EH33: =AND(EH$21>=$D33,EH$21<=$E33)*IF(OR($F33="Straight-Line",$F33="Detail"),$I33/$EX33,JR33) -> 0 | EI33: =AND(EI$21>=$D33,EI$21<=$E33)*IF(OR($F33="Straight-Line",$F33="Detail"),$I33/$EX33,JS33) -> 0 | EJ33: =AND(EJ$21>=$D33,EJ$21<=$E33)*IF(OR($F33="Straight-Line",$F33="Detail"),$I33/$EX33,JT33) -> 0 | EK33: =AND(EK$21>=$D33,EK$21<=$E33)*IF(OR($F33="Straight-Line",$F33="Detail"),$I33/$EX33,JU33) -> 0 | EL33: =AND(EL$21>=$D33,EL$21<=$E33)*IF(OR($F33="Straight-Line",$F33="Detail"),$I33/$EX33,JV33) -> 0 | EM33: =AND(EM$21>=$D33,EM$21<=$E33)*IF(OR($F33="Straight-Line",$F33="Detail"),$I33/$EX33,JW33) -> 0 | EN33: =AND(EN$21>=$D33,EN$21<=$E33)*IF(OR($F33="Straight-Line",$F33="Detail"),$I33/$EX33,JX33) -> 0 | EO33: =AND(EO$21>=$D33,EO$21<=$E33)*IF(OR($F33="Straight-Line",$F33="Detail"),$I33/$EX33,JY33) -> 0 | EP33: =AND(EP$21>=$D33,EP$21<=$E33)*IF(OR($F33="Straight-Line",$F33="Detail"),$I33/$EX33,JZ33) -> 0 | EQ33: =AND(EQ$21>=$D33,EQ$21<=$E33)*IF(OR($F33="Straight-Line",$F33="Detail"),$I33/$EX33,KA33) -> 0 | ER33: =AND(ER$21>=$D33,ER$21<=$E33)*IF(OR($F33="Straight-Line",$F33="Detail"),$I33/$EX33,KB33) -> 0 | ES33: =AND(ES$21>=$D33,ES$21<=$E33)*IF(OR($F33="Straight-Line",$F33="Detail"),$I33/$EX33,KC33) -> 0 | EU33: =I33 -> 282714.15 | EV33: =INDEX($Q$22:$ES$22,1,$D33+1) -> 2024-11-30 | EW33: =INDEX($Q$22:$ES$22,1,$E33+1) -> 2025-05-31 | EX33: =+E33-D33+1 -> 7 | EY33: =F33 -> Straight-Line | EZ33: =EX33/Scurve_Dist -> 1.166666667 | FA33: 0 | FB33: 0 | FC33: 0 | FD33: 0 | FE33: 0 | FF33: 0 | FG33: 0 | FH33: 0 | FI33: 0 | FJ33: 0 | FK33: 0 | FL33: 0 | FM33: 0 | FN33: 0 | FO33: 0 | FP33: 0 | FQ33: 0 | FR33: 0 | FS33: 0 | FT33: 0 | FU33: 0 | FV33: 0 | FW33: 0 | FX33: 0 | FY33: 0 | FZ33: 0 | GA33: 0 | GB33: 0 | GC33: 0 | GD33: 0 | GE33: 0 | GF33: 0 | GG33: 0 | GH33: 0 | GI33: 0 | GJ33: 0 | GK33: 0 | GL33: 0 | GM33: 0 | GN33: 0 | GO33: 0 | GP33: 0 | GQ33: 0 | GR33: 0 | GS33: 0 | GT33: 0 | GU33: 0 | GV33: 0 | GW33: 0 | GX33: 0 | GY33: 0 | GZ33: 0 | HA33: 0 | HB33: 0 | HC33: 0 | HD33: 0 | HE33: 0 | HF33: 0 | HG33: 0 | HH33: 0 | HI33: 0 | HJ33: 0 | HK33: 0 | HL33: 0 | HM33: 0 | HN33: 0 | HO33: 0 | HP33: 0 | HQ33: 0 | HR33: 0 | HS33: 0 | HT33: 0 | HU33: 0 | HV33: 0 | HW33: 0 | HX33: 0 | HY33: 0 | HZ33: 0 | IA33: 0 | IB33: 0 | IC33: 0 | ID33: 0 | IE33: 0 | IF33: 0 | IG33: 0 | IH33: 0 | II33: 0 | IJ33: 0 | IK33: 0 | IL33: 0 | IM33: 0 | IN33: 0 | IO33: 0 | IP33: 0 | IQ33: 0 | IR33: 0 | IS33: 0 | IT33: 0 | IU33: 0 | IV33: 0 | IW33: 0 | IX33: 0 | IY33: 0 | IZ33: 0 | JA33: 0 | JB33: 0 | JC33: 0 | JD33: 0 | JE33: 0 | JF33: 0 | JG33: 0 | JH33: 0 | JI33: 0 | JJ33: 0 | JK33: 0 | JL33: 0 | JM33: 0 | JN33: 0 | JO33: 0 | JP33: 0 | JQ33: 0 | JR33: 0 | JS33: 0 | JT33: 0 | JU33: 0 | JV33: 0 | JW33: 0 | JX33: 0 | JY33: 0 | JZ33: 0 | KA33: 0 | KB33: 0 | KC33: 0
B34: [Item] | D34: 0 | E34: 0 | F34: Straight-Line | G34: =I34/Units_SF_M2 -> 0 | H34: =I34/Units_BTR -> 0 | I34: 0 | P34: =IF(ROUND(SUM(Q34:ES34),0)=ROUND(I34,0),"","Incomplete") ->  | Q34: 0 | R34: 0 | S34: 0 | T34: 0 | U34: 0 | V34: 0 | W34: 0 | X34: 0 | Y34: 0 | Z34: 0 | AA34: 0 | AB34: 0 | AC34: 0 | AD34: 0 | AE34: 0 | AF34: 0 | AG34: 0 | AH34: 0 | AI34: 0 | AJ34: 0 | AK34: 0 | AL34: 0 | AM34: 0 | AN34: 0 | AO34: 0 | AP34: 0 | AQ34: 0 | AR34: 0 | AS34: 0 | AT34: 0 | AU34: 0 | AV34: 0 | AW34: 0 | AX34: 0 | AY34: 0 | AZ34: 0 | BA34: 0 | BB34: 0 | BC34: 0 | BD34: 0 | BE34: 0 | BF34: 0 | BG34: 0 | BH34: 0 | BI34: 0 | BJ34: 0 | BK34: 0 | BL34: 0 | BM34: 0 | BN34: 0 | BO34: 0 | BP34: 0 | BQ34: 0 | BR34: 0 | BS34: 0 | BT34: 0 | BU34: 0 | BV34: 0 | BW34: 0 | BX34: 0 | BY34: 0 | BZ34: 0 | CA34: 0 | CB34: 0 | CC34: 0 | CD34: 0 | CE34: 0 | CF34: 0 | CG34: 0 | CH34: 0 | CI34: 0 | CJ34: 0 | CK34: 0 | CL34: 0 | CM34: 0 | CN34: 0 | CO34: 0 | CP34: 0 | CQ34: 0 | CR34: 0 | CS34: 0 | CT34: 0 | CU34: 0 | CV34: 0 | CW34: 0 | CX34: 0 | CY34: 0 | CZ34: 0 | DA34: 0 | DB34: 0 | DC34: 0 | DD34: 0 | DE34: 0 | DF34: 0 | DG34: 0 | DH34: 0 | DI34: 0 | DJ34: 0 | DK34: 0 | DL34: 0 | DM34: 0 | DN34: 0 | DO34: 0 | DP34: 0 | DQ34: 0 | DR34: 0 | DS34: 0 | DT34: 0 | DU34: 0 | DV34: 0 | DW34: 0 | DX34: 0 | DY34: 0 | DZ34: 0 | EA34: 0 | EB34: 0 | EC34: 0 | ED34: 0 | EE34: 0 | EF34: 0 | EG34: 0 | EH34: 0 | EI34: 0 | EJ34: 0 | EK34: 0 | EL34: 0 | EM34: 0 | EN34: 0 | EO34: 0 | EP34: 0 | EQ34: 0 | ER34: 0 | ES34: 0 | EU34: =I34 -> 0 | EV34: =INDEX($Q$22:$ES$22,1,$D34+1) -> 2024-08-31 | EW34: =INDEX($Q$22:$ES$22,1,$E34+1) -> 2024-08-31 | EX34: =+E34-D34+1 -> 1 | EY34: =F34 -> Straight-Line | EZ34: =EX34/Scurve_Dist -> 0.1666666667 | FA34: 0 | FB34: 0 | FC34: 0 | FD34: 0 | FE34: 0 | FF34: 0 | FG34: 0 | FH34: 0 | FI34: 0 | FJ34: 0 | FK34: 0 | FL34: 0 | FM34: 0 | FN34: 0 | FO34: 0 | FP34: 0 | FQ34: 0 | FR34: 0 | FS34: 0 | FT34: 0 | FU34: 0 | FV34: 0 | FW34: 0 | FX34: 0 | FY34: 0 | FZ34: 0 | GA34: 0 | GB34: 0 | GC34: 0 | GD34: 0 | GE34: 0 | GF34: 0 | GG34: 0 | GH34: 0 | GI34: 0 | GJ34: 0 | GK34: 0 | GL34: 0 | GM34: 0 | GN34: 0 | GO34: 0 | GP34: 0 | GQ34: 0 | GR34: 0 | GS34: 0 | GT34: 0 | GU34: 0 | GV34: 0 | GW34: 0 | GX34: 0 | GY34: 0 | GZ34: 0 | HA34: 0 | HB34: 0 | HC34: 0 | HD34: 0 | HE34: 0 | HF34: 0 | HG34: 0 | HH34: 0 | HI34: 0 | HJ34: 0 | HK34: 0 | HL34: 0 | HM34: 0 | HN34: 0 | HO34: 0 | HP34: 0 | HQ34: 0 | HR34: 0 | HS34: 0 | HT34: 0 | HU34: 0 | HV34: 0 | HW34: 0 | HX34: 0 | HY34: 0 | HZ34: 0 | IA34: 0 | IB34: 0 | IC34: 0 | ID34: 0 | IE34: 0 | IF34: 0 | IG34: 0 | IH34: 0 | II34: 0 | IJ34: 0 | IK34: 0 | IL34: 0 | IM34: 0 | IN34: 0 | IO34: 0 | IP34: 0 | IQ34: 0 | IR34: 0 | IS34: 0 | IT34: 0 | IU34: 0 | IV34: 0 | IW34: 0 | IX34: 0 | IY34: 0 | IZ34: 0 | JA34: 0 | JB34: 0 | JC34: 0 | JD34: 0 | JE34: 0 | JF34: 0 | JG34: 0 | JH34: 0 | JI34: 0 | JJ34: 0 | JK34: 0 | JL34: 0 | JM34: 0 | JN34: 0 | JO34: 0 | JP34: 0 | JQ34: 0 | JR34: 0 | JS34: 0 | JT34: 0 | JU34: 0 | JV34: 0 | JW34: 0 | JX34: 0 | JY34: 0 | JZ34: 0 | KA34: 0 | KB34: 0 | KC34: 0
B35: Total Hard Costs (Horizontal) | D35: =MIN(D31:D34) -> 0 | E35: =MAX(E31:E34) -> 9 | G35: =SUM(G31:G34) -> 165.3759652 | H35: =SUM(H31:H34) -> 21203.56125 | I35: =SUM(I31:I34) -> 5936997.15 | P35: =IF(ROUND(SUM(Q35:ES35),0)=ROUND(I35,0),"","Incomplete") ->  | Q35: =SUM(Q31:Q34) -> 0 | R35: 55469.04245 | S35: 278415.6434 | T35: 855598.5419 | U35: 1434807.244 | V35: 1434807.244 | W35: 892829.9107 | X35: 565198.5104 | Y35: 342251.9094 | Z35: 77619.10445 | AA35: 0 | AB35: 0 | AC35: 0 | AD35: 0 | AE35: 0 | AF35: 0 | AG35: 0 | AH35: 0 | AI35: 0 | AJ35: 0 | AK35: 0 | AL35: 0 | AM35: 0 | AN35: 0 | AO35: 0 | AP35: 0 | AQ35: 0 | AR35: 0 | AS35: 0 | AT35: 0 | AU35: 0 | AV35: 0 | AW35: =SUM(AW31:AW34) -> 0 | AX35: 0 | AY35: 0 | AZ35: 0 | BA35: 0 | BB35: 0 | BC35: 0 | BD35: 0 | BE35: 0 | BF35: 0 | BG35: 0 | BH35: 0 | BI35: 0 | BJ35: 0 | BK35: 0 | BL35: 0 | BM35: 0 | BN35: 0 | BO35: 0 | BP35: 0 | BQ35: 0 | BR35: 0 | BS35: 0 | BT35: 0 | BU35: 0 | BV35: 0 | BW35: 0 | BX35: 0 | BY35: 0 | BZ35: 0 | CA35: 0 | CB35: 0 | CC35: 0 | CD35: 0 | CE35: 0 | CF35: 0 | CG35: 0 | CH35: 0 | CI35: 0 | CJ35: 0 | CK35: 0 | CL35: 0 | CM35: 0 | CN35: 0 | CO35: 0 | CP35: 0 | CQ35: 0 | CR35: 0 | CS35: 0 | CT35: 0 | CU35: 0 | CV35: 0 | CW35: 0 | CX35: 0 | CY35: 0 | CZ35: 0 | DA35: 0 | DB35: 0 | DC35: 0 | DD35: 0 | DE35: 0 | DF35: 0 | DG35: 0 | DH35: 0 | DI35: =SUM(DI31:DI34) -> 0 | DJ35: 0 | DK35: 0 | DL35: 0 | DM35: 0 | DN35: 0 | DO35: 0 | DP35: 0 | DQ35: 0 | DR35: 0 | DS35: 0 | DT35: 0 | DU35: 0 | DV35: 0 | DW35: 0 | DX35: 0 | DY35: 0 | DZ35: 0 | EA35: 0 | EB35: 0 | EC35: 0 | ED35: 0 | EE35: 0 | EF35: 0 | EG35: 0 | EH35: 0 | EI35: 0 | EJ35: 0 | EK35: 0 | EL35: 0 | EM35: 0 | EN35: 0 | EO35: =SUM(EO31:EO34) -> 0 | EP35: =SUM(EP31:EP34) -> 0 | EQ35: =SUM(EQ31:EQ34) -> 0 | ER35: =SUM(ER31:ER34) -> 0 | ES35: =SUM(ES31:ES34) -> 0 | EV35: # of Hard Cost (Horizontal) Items | EW35: =COUNTA($B$31:$B$34) -> 4
B37: Hard Costs (Vertical Construction) | D37: ADD ITEM | E37: DEL. ITEM
B38: =B101 -> 1A. 1Bd 1/Bth | D38: 5 | E38: =D38+10-1 -> 14 | F38: S-Curve | G38: =I38/Units_SF_M2 -> 20.85793872 | H38: =I38/Units_BTR -> 2674.285714 | I38: =C101*D101*120 -> 748800 | K38: $120/SF; Per comps | P38: =IF(ROUND(SUM(Q38:ES38),0)=ROUND(I38,0),"","Incomplete") ->  | Q38: =AND(Q$21>=$D38,Q$21<=$E38)*IF(OR($F38="Straight-Line",$F38="Detail"),$I38/$EX38,FA38) -> 0 | R38: 0 | S38: 0 | T38: 0 | U38: 0 | V38: 5141.391964 | W38: 20822.52462 | X38: 59419.96791 | Y38: 119519.2431 | Z38: 169496.8724 | AA38: =AND(AA$21>=$D38,AA$21<=$E38)*IF(OR($F38="Straight-Line",$F38="Detail"),$I38/$EX38,FK38) -> 169496.8724 | AB38: 119519.2431 | AC38: 59419.96791 | AD38: 20822.52462 | AE38: 5141.391964 | AF38: 0 | AG38: 0 | AH38: 0 | AI38: 0 | AJ38: 0 | AK38: =AND(AK$21>=$D38,AK$21<=$E38)*IF(OR($F38="Straight-Line",$F38="Detail"),$I38/$EX38,FU38) -> 0 | AL38: 0 | AM38: 0 | AN38: 0 | AO38: 0 | AP38: 0 | AQ38: 0 | AR38: 0 | AS38: 0 | AT38: 0 | AU38: =AND(AU$21>=$D38,AU$21<=$E38)*IF(OR($F38="Straight-Line",$F38="Detail"),$I38/$EX38,GE38) -> 0 | AV38: 0 | AW38: 0 | AX38: 0 | AY38: 0 | AZ38: 0 | BA38: 0 | BB38: 0 | BC38: 0 | BD38: 0 | BE38: =AND(BE$21>=$D38,BE$21<=$E38)*IF(OR($F38="Straight-Line",$F38="Detail"),$I38/$EX38,GO38) -> 0 | BF38: 0 | BG38: 0 | BH38: 0 | BI38: 0 | BJ38: 0 | BK38: 0 | BL38: 0 | BM38: 0 | BN38: 0 | BO38: =AND(BO$21>=$D38,BO$21<=$E38)*IF(OR($F38="Straight-Line",$F38="Detail"),$I38/$EX38,GY38) -> 0 | BP38: 0 | BQ38: 0 | BR38: 0 | BS38: 0 | BT38: 0 | BU38: 0 | BV38: 0 | BW38: 0 | BX38: 0 | BY38: =AND(BY$21>=$D38,BY$21<=$E38)*IF(OR($F38="Straight-Line",$F38="Detail"),$I38/$EX38,HI38) -> 0 | BZ38: 0 | CA38: 0 | CB38: 0 | CC38: 0 | CD38: 0 | CE38: 0 | CF38: 0 | CG38: 0 | CH38: 0 | CI38: =AND(CI$21>=$D38,CI$21<=$E38)*IF(OR($F38="Straight-Line",$F38="Detail"),$I38/$EX38,HS38) -> 0 | CJ38: 0 | CK38: 0 | CL38: 0 | CM38: 0 | CN38: 0 | CO38: 0 | CP38: 0 | CQ38: 0 | CR38: 0 | CS38: =AND(CS$21>=$D38,CS$21<=$E38)*IF(OR($F38="Straight-Line",$F38="Detail"),$I38/$EX38,IC38) -> 0 | CT38: 0 | CU38: 0 | CV38: 0 | CW38: 0 | CX38: 0 | CY38: 0 | CZ38: 0 | DA38: 0 | DB38: 0 | DC38: =AND(DC$21>=$D38,DC$21<=$E38)*IF(OR($F38="Straight-Line",$F38="Detail"),$I38/$EX38,IM38) -> 0 | DD38: 0 | DE38: 0 | DF38: 0 | DG38: 0 | DH38: 0 | DI38: 0 | DJ38: 0 | DK38: 0 | DL38: 0 | DM38: =AND(DM$21>=$D38,DM$21<=$E38)*IF(OR($F38="Straight-Line",$F38="Detail"),$I38/$EX38,IW38) -> 0 | DN38: 0 | DO38: 0 | DP38: 0 | DQ38: 0 | DR38: 0 | DS38: 0 | DT38: 0 | DU38: 0 | DV38: 0 | DW38: =AND(DW$21>=$D38,DW$21<=$E38)*IF(OR($F38="Straight-Line",$F38="Detail"),$I38/$EX38,JG38) -> 0 | DX38: 0 | DY38: 0 | DZ38: 0 | EA38: 0 | EB38: 0 | EC38: 0 | ED38: 0 | EE38: 0 | EF38: 0 | EG38: =AND(EG$21>=$D38,EG$21<=$E38)*IF(OR($F38="Straight-Line",$F38="Detail"),$I38/$EX38,JQ38) -> 0 | EH38: 0 | EI38: 0 | EJ38: 0 | EK38: 0 | EL38: 0 | EM38: 0 | EN38: 0 | EO38: 0 | EP38: 0 | EQ38: =AND(EQ$21>=$D38,EQ$21<=$E38)*IF(OR($F38="Straight-Line",$F38="Detail"),$I38/$EX38,KA38) -> 0 | ER38: 0 | ES38: 0 | EU38: =I38 -> 748800 | EV38: =INDEX($Q$22:$ES$22,1,$D38+1) -> 2025-01-31 | EW38: =INDEX($Q$22:$ES$22,1,$E38+1) -> 2025-10-31 | EX38: =+E38-D38+1 -> 10 | EY38: =F38 -> S-Curve | EZ38: =EX38/Scurve_Dist -> 1.666666667 | FA38: =AND($EY38="S-Curve",FA$22>=$EV38,FA$22<=$EW38)*(_xlfn.NORM.DIST((YEAR(FA$22)-YEAR($EV38))*12+MONTH(FA$22)-MONTH($EV38)+1,$EX38/2,$EZ38,TRUE)-_xlfn.NORM.DIST((YEAR(FA$22)-YEAR($EV38))*12+MONTH(FA$22)-MONTH($EV38),$EX38/2,$EZ38,TRUE))/(1-2*_xlfn.NORM.DIST(0,$EX38/2,$EZ38,TRUE))*$EU38 -> 0 | FB38: 0 | FC38: 0 | FD38: 0 | FE38: 0 | FF38: 5141.391964 | FG38: 20822.52462 | FH38: 59419.96791 | FI38: 119519.2431 | FJ38: 169496.8724 | FK38: 169496.8724 | FL38: 119519.2431 | FM38: 59419.96791 | FN38: 20822.52462 | FO38: 5141.391964 | FP38: 0 | FQ38: =AND($EY38="S-Curve",FQ$22>=$EV38,FQ$22<=$EW38)*(_xlfn.NORM.DIST((YEAR(FQ$22)-YEAR($EV38))*12+MONTH(FQ$22)-MONTH($EV38)+1,$EX38/2,$EZ38,TRUE)-_xlfn.NORM.DIST((YEAR(FQ$22)-YEAR($EV38))*12+MONTH(FQ$22)-MONTH($EV38),$EX38/2,$EZ38,TRUE))/(1-2*_xlfn.NORM.DIST(0,$EX38/2,$EZ38,TRUE))*$EU38 -> 0 | FR38: 0 | FS38: 0 | FT38: 0 | FU38: 0 | FV38: 0 | FW38: 0 | FX38: 0 | FY38: 0 | FZ38: 0 | GA38: 0 | GB38: 0 | GC38: 0 | GD38: 0 | GE38: 0 | GF38: 0 | GG38: =AND($EY38="S-Curve",GG$22>=$EV38,GG$22<=$EW38)*(_xlfn.NORM.DIST((YEAR(GG$22)-YEAR($EV38))*12+MONTH(GG$22)-MONTH($EV38)+1,$EX38/2,$EZ38,TRUE)-_xlfn.NORM.DIST((YEAR(GG$22)-YEAR($EV38))*12+MONTH(GG$22)-MONTH($EV38),$EX38/2,$EZ38,TRUE))/(1-2*_xlfn.NORM.DIST(0,$EX38/2,$EZ38,TRUE))*$EU38 -> 0 | GH38: 0 | GI38: 0 | GJ38: 0 | GK38: 0 | GL38: 0 | GM38: 0 | GN38: 0 | GO38: 0 | GP38: 0 | GQ38: 0 | GR38: 0 | GS38: 0 | GT38: 0 | GU38: 0 | GV38: 0 | GW38: =AND($EY38="S-Curve",GW$22>=$EV38,GW$22<=$EW38)*(_xlfn.NORM.DIST((YEAR(GW$22)-YEAR($EV38))*12+MONTH(GW$22)-MONTH($EV38)+1,$EX38/2,$EZ38,TRUE)-_xlfn.NORM.DIST((YEAR(GW$22)-YEAR($EV38))*12+MONTH(GW$22)-MONTH($EV38),$EX38/2,$EZ38,TRUE))/(1-2*_xlfn.NORM.DIST(0,$EX38/2,$EZ38,TRUE))*$EU38 -> 0 | GX38: 0 | GY38: 0 | GZ38: 0 | HA38: 0 | HB38: 0 | HC38: 0 | HD38: 0 | HE38: 0 | HF38: 0 | HG38: 0 | HH38: 0 | HI38: 0 | HJ38: 0 | HK38: 0 | HL38: 0 | HM38: =AND($EY38="S-Curve",HM$22>=$EV38,HM$22<=$EW38)*(_xlfn.NORM.DIST((YEAR(HM$22)-YEAR($EV38))*12+MONTH(HM$22)-MONTH($EV38)+1,$EX38/2,$EZ38,TRUE)-_xlfn.NORM.DIST((YEAR(HM$22)-YEAR($EV38))*12+MONTH(HM$22)-MONTH($EV38),$EX38/2,$EZ38,TRUE))/(1-2*_xlfn.NORM.DIST(0,$EX38/2,$EZ38,TRUE))*$EU38 -> 0 | HN38: 0 | HO38: 0 | HP38: 0 | HQ38: 0 | HR38: 0 | HS38: 0 | HT38: 0 | HU38: 0 | HV38: 0 | HW38: 0 | HX38: 0 | HY38: 0 | HZ38: 0 | IA38: 0 | IB38: 0 | IC38: =AND($EY38="S-Curve",IC$22>=$EV38,IC$22<=$EW38)*(_xlfn.NORM.DIST((YEAR(IC$22)-YEAR($EV38))*12+MONTH(IC$22)-MONTH($EV38)+1,$EX38/2,$EZ38,TRUE)-_xlfn.NORM.DIST((YEAR(IC$22)-YEAR($EV38))*12+MONTH(IC$22)-MONTH($EV38),$EX38/2,$EZ38,TRUE))/(1-2*_xlfn.NORM.DIST(0,$EX38/2,$EZ38,TRUE))*$EU38 -> 0 | ID38: 0 | IE38: 0 | IF38: 0 | IG38: 0 | IH38: 0 | II38: 0 | IJ38: 0 | IK38: 0 | IL38: 0 | IM38: 0 | IN38: 0 | IO38: 0 | IP38: 0 | IQ38: 0 | IR38: 0 | IS38: =AND($EY38="S-Curve",IS$22>=$EV38,IS$22<=$EW38)*(_xlfn.NORM.DIST((YEAR(IS$22)-YEAR($EV38))*12+MONTH(IS$22)-MONTH($EV38)+1,$EX38/2,$EZ38,TRUE)-_xlfn.NORM.DIST((YEAR(IS$22)-YEAR($EV38))*12+MONTH(IS$22)-MONTH($EV38),$EX38/2,$EZ38,TRUE))/(1-2*_xlfn.NORM.DIST(0,$EX38/2,$EZ38,TRUE))*$EU38 -> 0 | IT38: 0 | IU38: 0 | IV38: 0 | IW38: 0 | IX38: 0 | IY38: 0 | IZ38: 0 | JA38: 0 | JB38: 0 | JC38: 0 | JD38: 0 | JE38: 0 | JF38: 0 | JG38: 0 | JH38: 0 | JI38: =AND($EY38="S-Curve",JI$22>=$EV38,JI$22<=$EW38)*(_xlfn.NORM.DIST((YEAR(JI$22)-YEAR($EV38))*12+MONTH(JI$22)-MONTH($EV38)+1,$EX38/2,$EZ38,TRUE)-_xlfn.NORM.DIST((YEAR(JI$22)-YEAR($EV38))*12+MONTH(JI$22)-MONTH($EV38),$EX38/2,$EZ38,TRUE))/(1-2*_xlfn.NORM.DIST(0,$EX38/2,$EZ38,TRUE))*$EU38 -> 0 | JJ38: 0 | JK38: 0 | JL38: 0 | JM38: 0 | JN38: 0 | JO38: 0 | JP38: 0 | JQ38: 0 | JR38: 0 | JS38: 0 | JT38: 0 | JU38: 0 | JV38: 0 | JW38: 0 | JX38: 0 | JY38: =AND($EY38="S-Curve",JY$22>=$EV38,JY$22<=$EW38)*(_xlfn.NORM.DIST((YEAR(JY$22)-YEAR($EV38))*12+MONTH(JY$22)-MONTH($EV38)+1,$EX38/2,$EZ38,TRUE)-_xlfn.NORM.DIST((YEAR(JY$22)-YEAR($EV38))*12+MONTH(JY$22)-MONTH($EV38),$EX38/2,$EZ38,TRUE))/(1-2*_xlfn.NORM.DIST(0,$EX38/2,$EZ38,TRUE))*$EU38 -> 0 | JZ38: 0 | KA38: 0 | KB38: 0 | KC38: 0
B39: =B102 -> 1B. 1Bd 1.5/Bth | D39: 6 | E39: =D39+10-1 -> 15 | F39: S-Curve | G39: =I39/Units_SF_M2 -> 2.611420613 | H39: =I39/Units_BTR -> 334.8214286 | I39: =C102*D102*125 -> 93750 | K39: $125/SF; Per comps | Q39: 0 | R39: 0 | S39: 0 | T39: 0 | U39: 0 | V39: 0 | W39: 643.7039218 | X39: 2606.986756 | Y39: 7439.399027 | Z39: 14963.84754 | AA39: 21221.06275 | AB39: 21221.06275 | AC39: 14963.84754 | AD39: 7439.399027 | AE39: 2606.986756 | AF39: 643.7039218 | AG39: 0 | AH39: 0 | AI39: 0 | AJ39: 0 | AK39: 0 | AL39: 0 | AM39: 0 | AN39: 0 | AO39: 0 | AP39: 0 | AQ39: 0 | AR39: 0 | AS39: 0 | AT39: 0 | AU39: 0 | AV39: 0 | AW39: 0 | AX39: 0 | AY39: 0 | AZ39: 0 | BA39: 0 | BB39: 0 | BC39: 0 | BD39: 0 | BE39: 0 | BF39: 0 | BG39: 0 | BH39: 0 | BI39: 0 | BJ39: 0 | BK39: 0 | BL39: 0 | BM39: 0 | BN39: 0 | BO39: 0 | BP39: 0 | BQ39: 0 | BR39: 0 | BS39: 0 | BT39: 0 | BU39: 0 | BV39: 0 | BW39: 0 | BX39: 0 | BY39: 0 | BZ39: 0 | CA39: 0 | CB39: 0 | CC39: 0 | CD39: 0 | CE39: 0 | CF39: 0 | CG39: 0 | CH39: 0 | CI39: 0 | CJ39: 0 | CK39: 0 | CL39: 0 | CM39: 0 | CN39: 0 | CO39: 0 | CP39: 0 | CQ39: 0 | CR39: 0 | CS39: 0 | CT39: 0 | CU39: 0 | CV39: 0 | CW39: 0 | CX39: 0 | CY39: 0 | CZ39: 0 | DA39: 0 | DB39: 0 | DC39: 0 | DD39: 0 | DE39: 0 | DF39: 0 | DG39: 0 | DH39: 0 | DI39: 0 | DJ39: 0 | DK39: 0 | DL39: 0 | DM39: 0 | DN39: 0 | DO39: 0 | DP39: 0 | DQ39: 0 | DR39: 0 | DS39: 0 | DT39: 0 | DU39: 0 | DV39: 0 | DW39: 0 | DX39: 0 | DY39: 0 | DZ39: 0 | EA39: 0 | EB39: 0 | EC39: 0 | ED39: 0 | EE39: 0 | EF39: 0 | EG39: 0 | EH39: 0 | EI39: 0 | EJ39: 0 | EK39: 0 | EL39: 0 | EM39: 0 | EN39: 0 | EO39: 0 | EP39: 0 | EQ39: 0 | ER39: 0 | ES39: 0 | EU39: 93750 | EV39: 2025-02-28 | EW39: 2025-11-30 | EX39: 10 | EY39: S-Curve | EZ39: 1.666666667 | FA39: 0 | FB39: 0 | FC39: 0 | FD39: 0 | FE39: 0 | FF39: 0 | FG39: 643.7039218 | FH39: 2606.986756 | FI39: 7439.399027 | FJ39: 14963.84754 | FK39: 21221.06275 | FL39: 21221.06275 | FM39: 14963.84754 | FN39: 7439.399027 | FO39: 2606.986756 | FP39: 643.7039218 | FQ39: 0 | FR39: 0 | FS39: 0 | FT39: 0 | FU39: 0 | FV39: 0 | FW39: 0 | FX39: 0 | FY39: 0 | FZ39: 0 | GA39: 0 | GB39: 0 | GC39: 0 | GD39: 0 | GE39: 0 | GF39: 0 | GG39: 0 | GH39: 0 | GI39: 0 | GJ39: 0 | GK39: 0 | GL39: 0 | GM39: 0 | GN39: 0 | GO39: 0 | GP39: 0 | GQ39: 0 | GR39: 0 | GS39: 0 | GT39: 0 | GU39: 0 | GV39: 0 | GW39: 0 | GX39: 0 | GY39: 0 | GZ39: 0 | HA39: 0 | HB39: 0 | HC39: 0 | HD39: 0 | HE39: 0 | HF39: 0 | HG39: 0 | HH39: 0 | HI39: 0 | HJ39: 0 | HK39: 0 | HL39: 0 | HM39: 0 | HN39: 0 | HO39: 0 | HP39: 0 | HQ39: 0 | HR39: 0 | HS39: 0 | HT39: 0 | HU39: 0 | HV39: 0 | HW39: 0 | HX39: 0 | HY39: 0 | HZ39: 0 | IA39: 0 | IB39: 0 | IC39: 0 | ID39: 0 | IE39: 0 | IF39: 0 | IG39: 0 | IH39: 0 | II39: 0 | IJ39: 0 | IK39: 0 | IL39: 0 | IM39: 0 | IN39: 0 | IO39: 0 | IP39: 0 | IQ39: 0 | IR39: 0 | IS39: 0 | IT39: 0 | IU39: 0 | IV39: 0 | IW39: 0 | IX39: 0 | IY39: 0 | IZ39: 0 | JA39: 0 | JB39: 0 | JC39: 0 | JD39: 0 | JE39: 0 | JF39: 0 | JG39: 0 | JH39: 0 | JI39: 0 | JJ39: 0 | JK39: 0 | JL39: 0 | JM39: 0 | JN39: 0 | JO39: 0 | JP39: 0 | JQ39: 0 | JR39: 0 | JS39: 0 | JT39: 0 | JU39: 0 | JV39: 0 | JW39: 0 | JX39: 0 | JY39: 0 | JZ39: 0 | KA39: 0 | KB39: 0 | KC39: 0
